Workbook

Sheet 经代vs个险费用比较 (hidden)
B1: 个险佣金 | H1: 个险获得费用 | N1: 个险总费用
B2: 1 | C2: 3 | D2: 5 | E2: 10 | F2: 15 | G2: 20 | H2: 1 | I2: 3 | J2: 5 | K2: 10 | L2: 15 | M2: 20 | N2: 1 | O2: 3 | P2: 5 | Q2: 10 | R2: 15 | S2: 20
A3: 1 | B3: =2.5%*1.8 -> 0.045 | C3: =6%*1.8 -> 0.108 | D3: =10%*1.8 -> 0.18 | E3: =20%*1.8 -> 0.36 | F3: =30%*1.8 -> 0.54 | G3: =35%*1.8 -> 0.63 | H3: 0.0462 | I3: 0.2614 | J3: 0.3148 | K3: 0.4476 | L3: 0.4476 | M3: 0.4765 | N3: =B3+H3 -> 0.0912 | O3: =C3+I3 -> 0.3694 | P3: 0.4948 | Q3: 0.8076 | R3: 0.9876 | S3: 1.1065
A4: 2 | C4: =2%*2 -> 0.04 | D4: =3%*2 -> 0.06 | E4: =4%*2 -> 0.08 | F4: =5%*2 -> 0.1 | G4: =8%*2 -> 0.16
A5: 3 | C5: 0.01 | D5: 0.02 | E5: 0.03 | F5: 0.04 | G5: 0.05
A6: 4 | E6: 0.01 | F6: 0.02 | G6: 0.03
A7: 5
B8: 经代佣金 | H8: 经代获得费用 | N8: 经代总费用
B9: 1 | C9: 3 | D9: 5 | E9: 10 | F9: 15 | G9: 20 | H9: 1 | I9: 3 | J9: 5 | K9: 10 | L9: 15 | M9: 20 | N9: 1 | O9: 3 | P9: 5 | Q9: 10 | R9: 15 | S9: 20
A10: 1 | B10: 0.08 | C10: 0.2 | D10: 0.33 | E10: 0.6 | F10: 0.75 | G10: 0.9 | H10: 0.0248 | I10: 0.152 | J10: 0.1768 | K10: 0.2382 | L10: 0.2382 | M10: 0.2565 | N10: =B10+H10 -> 0.1048 | O10: =C10+I10 -> 0.352 | P10: 0.5068 | Q10: 0.8382 | R10: 0.9882 | S10: 1.1565
A11: 2 | C11: 0.083 | D11: 0.09 | E11: 0.095 | F11: 0.13 | G11: 0.17
A12: 3 | C12: 0.02 | D12: 0.025 | E12: 0.03 | F12: 0.04 | G12: 0.03
A13: 4 | D13: 0.025 | E13: 0.03 | F13: 0.03 | G13: 0.03
A14: 5 | D14: 0.02 | E14: 0.03 | F14: 0.03 | G14: 0.03

Sheet 重疾轻症明细 (hidden)
B1: 轻症 | C1: 26 | F1: 重疾 | G1: 61 | H1: 74
A2: 1 | B2: 极早期恶性肿瘤或恶性病变 | C2: √ | E2: 1-25 | F2: 行业定义 | G2: √ | H2: √
A3: 2 | B3: 不典型的急性心肌梗塞 | C3: √ | E3: 26 | F3: 严重多发性硬化 | G3: √ | H3: √
A4: 3 | B4: 轻微脑中风 | C4: √ | E4: 27 | F4: 终末期肺病 | G4: √ | H4: √ | I4: 与慢性呼吸功能衰竭建议只保留一个
A5: 4 | B5: 冠状动脉介入手术（非开胸手术） | C5: √ | E5: 28 | F5: 颅脑手术 | G5: √ | H5: √
A6: 5 | B6: 心脏瓣膜介入手术（非开胸手术） | C6: √ | E6: 29 | F6: 严重Ｉ型糖尿病 | G6: √ | H6: √
A7: 6 | B7: 视力严重受损（三岁开始） | C7: √ | E7: 30 | F7: 严重类风湿性关节炎 | G7: √ | H7: √
A8: 7 | B8: 主动脉内手术（非开胸手术） | C8: √ | E8: 31 | F8: 急性出血坏死性胰腺炎开腹手术/II级重症急性胰腺炎 | G8: √ | H8: √
A9: 8 | B9: 脑垂体瘤、脑囊肿、脑动脉瘤及脑血管瘤 | C9: √ | E9: 32 | F9: 侵蚀性葡萄胎（或称恶性葡萄胎） | G9: √ | H9: √
A10: 9 | B10: 较小面积III度烧伤 | C10: √ | E10: 33 | F10: 经输血导致的感染艾滋病病毒或者患艾滋病 | G10: √ | H10: √
A11: 10 | B11: 轻度颅脑手术 | C11: √ | E11: 34 | F11: 系统性红斑狼疮并发重度的肾功能损害 | G11: √ | H11: √
A12: 11 | B12: 重度头部外伤 | C12: √ | E12: 35 | F12: 重症肌无力 | G12: √ | H12: √
A13: 12 | B13: 单个肢体缺失 | C13: √ | E13: 36 | F13: 持续植物人状态 | G13: √ | H13: √
A14: 13 | B14: 单侧肺脏切除 | C14: √ | E14: 37 | F14: 严重心肌病 | G14: √ | H14: √
A15: 14 | B15: 肝脏手术 | C15: √ | E15: 38 | F15: 严重溃疡性结肠炎 | G15: √ | H15: √
A16: 15 | B16: 早期运动神经性疾病 | C16: √ | E16: 39 | F16: 溶血性链球菌引起的坏疽 | G16: √ | H16: √
A17: 16 | B17: 特定周围动脉疾病的血管介入治疗 | C17: √ | E17: 40 | F17: 坏死性筋膜炎 | G17: √ | H17: √
A18: 17 | B18: 原发性肺动脉高压 | C18: √ | E18: 41 | F18: 系统性硬皮病 | G18: √ | H18: √
A19: 18 | B19: 轻度瘫痪 | C19: √ | E19: 42 | F19: 严重克隆病 | G19: √ | H19: √
A20: 19 | B20: 胆道重建手术 | C20: √ | E20: 43 | F20: 象皮病 | G20: √ | H20: √
A21: 20 | B21: 单眼视力丧失 | C21: √ | E21: 44 | F21: 肾髓质囊性病 | G21: √ | H21: √
A22: 21 | B22: 面部重建手术 | C22: √ | E22: 45 | F22: 慢性复发性胰腺炎 | G22: √ | H22: √
A23: 22 | B23: 双侧睾丸切除手术 | C23: √ | E23: 46 | F23: 原发性硬化性胆管炎 | G23: √ | H23: √
A24: 23 | B24: 肾脏切除 | C24: √ | E24: 47 | F24: 原发性慢性肾上腺皮质功能减退 | G24: √ | H24: √
A25: 24 | B25: 单耳失聪 | C25: √ | E25: 48 | F25: 胰腺移植 | G25: √ | H25: √
A26: 25 | B26: 轻度面部烧伤 | C26: √ | E26: 49 | F26: 因职业关系导致的人类免疫缺陷病毒感染 | G26: √ | H26: √
A27: 26 | B27: III度房室传导阻滞 | C27: √ | E27: 50 | F27: 非阿尔茨海默病所致严重痴呆 | G27: √ | H27: √
A28: 上述22种轻症，每种最多赔付1次，轻症赔付累计以3次为限 | E28: 51 | F28: 严重川崎病 | G28: √ | H28: √
E29: 52 | F29: 疯牛病（克雅氏病） | G29: √ | H29: √
E30: 53 | F30: 嗜铬细胞瘤 | G30: √ | H30: √
E31: 54 | F31: 埃博拉病毒 | G31: √ | H31: √
E32: 55 | F32: 进行性核上性麻痹 | G32: √ | H32: √
E33: 56 | F33: 肺泡蛋白质沉积症 | G33: √ | H33: √
E34: 57 | F34: 严重面部烧伤 | G34: √ | H34: √
E35: 58 | F35: 肺淋巴管肌瘤病 | G35: √ | H35: √
E36: 59 | F36: 失去一肢及一眼 | G36: √ | H36: √
E37: 60 | F37: 严重传染心内膜炎 | G37: √ | H37: √
E38: 61 | F38: 严重心肌炎 | G38: √ | H38: √
E39: 62 | F39: 脊髓灰质炎 | H39: √ | I39: 脊髓灰质炎是由于脊髓灰质炎病毒感染所致的瘫痪性疾病，临床表现为运动功能损害或呼吸无力。脊髓灰质炎必须明确诊断。本保单仅对脊髓灰质炎造成的神经系统功能损害导致被保险人一肢或一肢以上肢体机能永久完全丧失的情况予以理赔。肢体机能永久完全丧失，指疾病确诊180 天后，每肢三大关节中的两大关节仍然完全僵硬，或不能随意识活动。
E40: 63 | F40: 冠状动脉粥样斑块切除术 | H40: √ | I40: 是指有心绞痛等心脏不适症状，经过血管造影技术检查证实同时存在两支(其中一支为左冠状动脉主干、左前降支或左回旋支)或更多支的冠状动脉血管发生严重的狭窄（狭窄程度在70%以上），需要并且已实施冠状动脉粥样斑块切除术以改善血管的血流状况。索赔时必须提供血管造影的影像资料、报告、手术记录和病历。
E41: 64 | F41: 肺源性心脏病 | H41: √ | I41: 定义一：指被保人因慢性肺部疾病导致慢性心功能损害造成永久不可逆性的心功能衰竭。心功能衰竭程度达到纽约心脏病学会的心功能分级标准之心功能IV 级。被保险人永久不可逆性的力活动能力受限，不能从事任何体力活动。
I42: 定义二：由呼吸专科医生或心内科专科医生确诊为肺源性心脏病。诊断必须基于右心导管（心血管造影）的检查结果，且必须同时满足如下诊断标准： （1）肺血管阻力高于3个伍德单位； （2）平均肺动脉血压不低于40毫米汞柱； （3）肺楔压不高于15毫米汞柱； （4）右心室过度肥大和扩张，出现右心衰竭和呼吸困难。 因左心病变或者先天性心脏病引起的右心衰竭或者肺动脉高压不在保障范围之内。
E43: 65 | F43: 终末期疾病 | H43: √ | I43: 被保险人被确诊为疾病的终末期状态。疾病已经无法以现有的医疗技术医治缓解，并且根据临床医学经验判断被保险人将于未来六个月内死亡。在家属及患者的要求和医师的同意下积极治疗已被放弃，所有治疗措施仅以减轻患者痛苦为目的。此疾病状态必须在被保险人生前已经确诊并且具有医疗证明文件和临床检查依据。
I44: 被保险人因患慢性呼吸系统疾病或终末期肺病而导致永久不可逆性的慢性呼吸功能衰竭，该病必须由医院的呼吸科专科医生确诊并符合以下各项： （1）肺功能测试其FEV1持续低于1升； （2）动脉血氧分压（PaO2）< 50mmHg； （3）动脉血氧饱和度（SaO2）< 80％； （4）气道内阻力增加，至少达到0.5 kPa/l/s； （5）残气容积占肺总量(TLC)的60%以上； （6）胸内气体容积升高，超过170(基值的百分比)； （7）休息时出现呼吸困难，必须接受持续的输氧治疗
E45: 66 | F45: 严重哮喘 | H45: √ | I45: 被保险人必须在过去两年内曾发生哮喘持续状态，并符合以下其中两项标准，本公司才承担保险责任： （1）运动耐受力永久并持续地减少并且轻微的运动能引起气促； （2）长期胸腔过度膨胀而导致胸腔畸形； （3）在家及在静息状态下需要吸氧； （4）持续的每天服用类固醇药物（至少持续六个月以上）。
E46: 67 | F46: 严重冠心病 | H46: √ | I46: 指经根据冠状动脉造影检查结果明确诊断为三支主要血管严重狭窄性病变（至少一支血管管腔直径减少75％以上和其他两支血管管腔直径减少60％以上）。冠状动脉的主要血管指左冠状动脉主干、前降支、左旋支及右冠状动脉。前降支、左旋支及右冠状动脉的分支血管的狭窄不作为本保障的衡量指标。
E47: 68 | F47: 自主生活能力完全丧失 | H47: √ | I47: 指严重疾病或外伤造成被保险人永久不可逆的身体功能损害，导致自主生活能力完全丧失，被保险人年龄在6 周岁以上且至少持续180 天以上无法独立完成六项基本日常生活活动中的三项或三项以上。
E48: 69 | F48: 破裂脑动脉瘤夹闭手术 | H48: √ | I48: 指因脑动脉瘤破裂造成蛛网膜下腔出血，被保险人实际接受了在全麻下进行的开颅动脉瘤夹闭手术。 脑动脉瘤（未破裂）预防性手术、颅骨打孔手术、动脉瘤栓塞手术、血管内手术及其他颅脑手术不在本保障范围内。
E49: 70 | F49: 主动脉夹层血肿/主动脉夹层瘤 | H49: √ | I49: 是指主动脉壁在受到某些病理因素的破坏后，高速、高压的主动脉血流将其内膜撕裂，以致主动脉腔内的血流通过主动脉内膜的破裂口进入主动脉内壁而形成血肿。被保险人需通过电脑断层扫描（CT）、磁共振扫描（MRI）、磁共振血管检验法（MRA）或血管扫描等检查，并且实施了胸腹切开的直视主动脉手术。
E50: 71 | F50: 肌营养不良症 | H50: √ | I50: 肌营养不良症是一组遗传性肌肉变性性病变，临床特征为与神经系统无关的肌肉无力和肌肉萎缩。须满足自主生活能力完全丧失，无法独立完成六项基本日常生活活动中的三项或三项以上。
I51: 指一组原发于肌肉的遗传性疾病，临床表现为与神经系统无关的肌肉无力和肌肉萎缩。须满足下列全部条件： （1）肌肉组织活检结果满足肌营养不良症的肌肉细胞变性、坏死等阳性改变； （2）自主生活能力完全丧失，无法独立完成六项基本日常生活活动中的三项或三项以上。 本附加合同条款责任免除中的遗传性疾病规定，不适用于本重大疾病。
E52: 72 | F52: 雷氏综合征 | H52: √ | I52: 雷氏综合征是线粒体功能障碍性疾病。导致脂肪代谢障碍，引起短链脂肪酸、血氨升高，造成脑水肿。主要临床表现为急性发热、反复呕吐、惊厥及意识障碍等等。肝脏活检是确诊的重要手段。雷氏综合征需由三级医院的儿科专科医生确诊，并符合下列所有条件： （1）有脑水肿和颅内压升高的脑脊液检查和影像学检查证据； （2）血氨超过正常值的3倍； （3）临床出现昏迷，病程至少达到疾病分期第3期。
E53: 73 | F53: 严重自身免疫性肝炎 | H53: √ | I53: 自身免疫性肝炎是一种原因不明的慢性肝脏的坏死性炎性疾病吗，机体免疫机制被破坏，产生针对肝脏自身抗原的抗体导致自身免疫反应，从而破坏干细胞造成肝脏炎症坏死，进而发展为肝硬化。必须满足所有以下条件： （1）高γ球蛋白血症； （2）血液中存在高水平的自身免疫抗体，如ANA（抗核抗体）、SMA（抗平滑肌抗体）、抗LMK1抗体或抗-SLA/LP抗体； （3）肝脏活检证实免疫性肝炎； （4）临床已经出现腹水、食道静脉曲张和脾肿大等肝硬化表现。
E54: 74 | F54: 肝豆状核变性 | H54: √ | I54: 指由于先天性铜代谢障碍所引起的一种疾病，其特点为肝硬化与双侧脑基底神经节变性同时存在，且须经专科医生明确诊断，并同时必须具备下列情况： （1）临床表现包括：进行性加剧的肢体震颤，肌强直，吞咽及发音困难，精神异常； （2）角膜色素环（K-F环）； （3）血清铜和血清铜蓝蛋白降低，尿铜增加； （4）食管静脉曲张； （5）腹水。
I55: 指一种常染色体隐性遗传的铜代谢缺陷病，以不同程度的肝细胞损害、脑退行性病变和角膜边缘有铜盐沉着环为其临床特征，并须满足下列全部条件： （1）典型症状； （2）角膜色素环（K-F 环）； （3）血清铜和血清铜蓝蛋白降低，尿铜增加； （4）经皮做肝脏活检来定量分析肝脏铜的含量。 本附加合同条款责任免除中的遗传性疾病规定，不适用于本重大疾病。

Sheet 重疾种类比较 (hidden)
C1: 乐福 | D1: 康健 一生 | E1: 守护 一生 | F1: 康运 一生 | G1: 常青树 2015 | H1: 尊享 世家 | L1: 乐福 | M1: 康健 一生 | N1: 守护 一生 | O1: 康运 一生 | P1: 常青树 | Q1: 尊享 世家 | R1: 康健一生 价格
B2: 轻症 | C2: 10 | D2: 10 | E2: 14 | F2: 12 | G2: 15 | H2: 26 | K2: 重疾 | L2: 42 | M2: 50 | N2: 50 | O2: 60 | P2: 61 | Q2: 60 | U2: M | V2: F
D3: 1次为限 | E3: 1次为限 | F3: 3次为限 | G3: 3次为限 | J3: 1-25 | K3: 行业定义 | L3: √ | M3: √ | N3: √ | O3: √ | P3: √ | Q3: √ | R3: 18 | S3: 1 | T3: =R3&"_"&S3 -> 18_1 | U3: 210.7 | V3: 185.2
A4: 1 | B4: 极早期恶性肿瘤或恶性病变 | C4: √ | D4: √ | E4: √ | F4: √ | G4: √ | H4: √ | J4: 26 | K4: 严重多发性硬化 | L4: √ | M4: √ | N4: √ | O4: √ | P4: √ | Q4: √ | R4: 19 | S4: 1 | T4: =R4&"_"&S4 -> 19_1 | U4: 215.1 | V4: 189
A5: 2 | B5: 不典型的急性心肌梗塞 | C5: √ | D5: √ | E5: √ | F5: √ | H5: √ | J5: 27 | K5: 终末期肺病 | L5: √ | M5: √ | P5: √ | Q5: √ | R5: 20 | S5: 1 | T5: 20_1 | U5: 221.8 | V5: 195
A6: 3 | B6: 轻微脑中风 | C6: √ | D6: √ | E6: √ | F6: √ | G6: √ | H6: √ | J6: 28 | K6: 颅脑手术 | L6: √ | Q6: √ | R6: 21 | S6: 1 | T6: 21_1 | U6: 228.8 | V6: 201.1
A7: 4 | B7: 冠状动脉介入手术（非开胸手术） | C7: √ | D7: √ | E7: √ | G7: √ | H7: √ | J7: 29 | K7: 严重Ｉ型糖尿病 | L7: √ | N7: √ | O7: √ | P7: √ | Q7: √ | R7: 22 | S7: 1 | T7: 22_1 | U7: 235.9 | V7: 207.4
A8: 5 | B8: 心脏瓣膜介入手术（非开胸手术） | C8: √ | D8: √ | E8: √ | F8: √ | G8: √ | H8: √ | J8: 30 | K8: 严重类风湿性关节炎 | L8: √ | M8: √ | N8: √ | O8: √ | P8: √ | Q8: √ | R8: 23 | S8: 1 | T8: 23_1 | U8: 243.2 | V8: 213.9
A9: 6 | B9: 视力严重受损（三岁开始） | C9: √ | D9: √ | E9: √ | F9: √ | G9: √ | H9: √ | J9: 31 | K9: 急性出血坏死性胰腺炎开腹手术 | L9: √ | M9: √ | N9: √ | P9: √ | Q9: √ | R9: 24 | S9: 1 | T9: 24_1 | U9: 250.8 | V9: 220.6
A10: 7 | B10: 主动脉内手术（非开胸手术） | C10: √ | D10: √ | E10: √ | F10: √ | G10: √ | H10: √ | J10: 32 | K10: 侵蚀性葡萄胎（或称恶性葡萄胎） | L10: √ | M10: √ | Q10: √ | R10: 25 | S10: 1 | T10: 25_1 | U10: 258.5 | V10: 227.5
A11: 8 | B11: 脑垂体瘤、脑囊肿、脑动脉瘤及脑血管瘤 | C11: √ | D11: √ | E11: √ | F11: √ | G11: √ | H11: √ | J11: 33 | K11: 经输血导致的感染艾滋病病毒或者患艾滋病 | L11: √ | M11: √ | N11: √ | O11: √ | P11: √ | Q11: √ | R11: 26 | S11: 1 | T11: 26_1 | U11: 266.5 | V11: 234.6
A12: 9 | B12: 较小面积III度烧伤 | C12: √ | D12: √ | E12: √ | F12: √ | G12: √ | H12: √ | J12: 34 | K12: 系统性红斑狼疮并发重度的肾功能损害 | L12: √ | M12: √ | N12: √ | O12: √ | P12: √ | Q12: √ | R12: 27 | S12: 1 | T12: 27_1 | U12: 274.7 | V12: 242
A13: 10 | B13: 轻度颅脑手术 | C13: √ | H13: √ | J13: 35 | K13: 重症肌无力 | L13: √ | M13: √ | N13: √ | O13: √ | P13: √ | Q13: √ | R13: 28 | S13: 1 | T13: 28_1 | U13: 283.1 | V13: 249.5
A14: 11 | B14: 重度头部外伤 | D14: √ | E14: √ | F14: √ | G14: √ | H14: √ | J14: 36 | K14: 持续植物人状态 | L14: √ | M14: √ | N14: √ | O14: √ | P14: √ | Q14: √ | R14: 29 | S14: 1 | T14: 29_1 | U14: 291.9 | V14: 257.2
A15: 12 | B15: 单个肢体缺失 | E15: √ | F15: √ | G15: √ | H15: √ | J15: 37 | K15: 严重心肌病 | L15: √ | M15: √ | N15: √ | O15: √ | P15: √ | Q15: √ | R15: 30 | S15: 1 | T15: 30_1 | U15: 300.8 | V15: 265.1
A16: 13 | B16: 川崎病合并冠状动脉扩张 | E16: √ | J16: 38 | K16: 严重溃疡性结肠炎 | L16: √ | M16: √ | N16: √ | O16: √ | P16: √ | Q16: √ | R16: 31 | S16: 1 | T16: 31_1 | U16: 310.1 | V16: 273.3
A17: 14 | B17: 严重脑炎或脑膜炎 | E17: √ | F17: √ | J17: 39 | K17: 溶血性链球菌引起的坏疽 | L17: √ | Q17: √ | R17: 32 | S17: 1 | T17: 32_1 | U17: 319.6 | V17: 281.6
A18: 15 | B18: 脊髓灰质炎 | E18: √ | J18: 40 | K18: 坏死性筋膜炎 | L18: √ | M18: √ | N18: √ | O18: √ | P18: √ | Q18: √ | R18: 33 | S18: 1 | T18: 33_1 | U18: 329.4 | V18: 290.1
A19: 16 | B19: 急性坏死性胰腺炎 | F19: √ | J19: 41 | K19: 系统性硬皮病 | L19: √ | M19: √ | N19: √ | O19: √ | P19: √ | Q19: √ | R19: 34 | S19: 1 | T19: 34_1 | U19: 339.4 | V19: 298.8
A20: 17 | B20: 慢性肾功能损害-肾功能衰竭期 | G20: √ | J20: 42 | K20: 严重克隆病 | L20: √ | M20: √ | N20: √ | O20: √ | P20: √ | Q20: √ | R20: 35 | S20: 1 | T20: 35_1 | U20: 349.7 | V20: 307.8
A21: 18 | B21: 单侧肺脏切除 | G21: √ | H21: √ | J21: 43 | K21: 象皮病 | M21: √ | N21: √ | O21: √ | P21: √ | Q21: √ | R21: 36 | S21: 1 | T21: 36_1 | U21: 360.3 | V21: 316.9
A22: 19 | B22: 肝脏手术 | G22: √ | H22: √ | J22: 44 | K22: 肾髓质囊性病 | M22: √ | N22: √ | O22: √ | P22: √ | Q22: √ | R22: 37 | S22: 1 | T22: 37_1 | U22: 371.1 | V22: 326.1
A23: 20 | B23: 早期运动神经性疾病 | G23: √ | H23: √ | J23: 45 | K23: 脊髓灰质炎后遗症/严重脊髓灰质炎 | M23: √ | N23: √ | O23: √ | P23: √ | R23: 38 | S23: 1 | T23: 38_1 | U23: 382.2 | V23: 335.6
A24: 21 | B24: 人工耳蜗植入术 | G24: √ | J24: 46 | K24: 慢性复发性胰腺炎 | M24: √ | N24: √ | O24: √ | P24: √ | Q24: √ | R24: 39 | S24: 1 | T24: 39_1 | U24: 393.5 | V24: 345.2
A25: 22 | B25: 特定周围动脉疾病的血管介入治疗 | H25: √ | J25: 47 | K25: 冠状动脉粥样斑块切除术 | M25: √ | R25: 40 | S25: 1 | T25: 40_1 | U25: 405 | V25: 355
A26: 23 | B26: 原发性肺动脉高压 | H26: √ | J26: 48 | K26: 原发性硬化性胆管炎 | M26: √ | N26: √ | O26: √ | P26: √ | Q26: √ | R26: 41 | S26: 1 | T26: 41_1 | U26: 416.7 | V26: 365
A27: 24 | B27: 轻度瘫痪 | H27: √ | J27: 49 | K27: 原发性慢性肾上腺皮质功能减退 | M27: √ | O27: √ | P27: √ | Q27: √ | R27: 42 | S27: 1 | T27: 42_1 | U27: 428.6 | V27: 375.1
A28: 25 | B28: 胆道重建手术 | H28: √ | J28: 50 | K28: 胰腺移植 | M28: √ | N28: √ | O28: √ | P28: √ | Q28: √ | R28: 43 | S28: 1 | T28: 43_1 | U28: 440.7 | V28: 385.4
A29: 26 | B29: 单眼视力丧失 | H29: √ | J29: 51 | K29: 肺源性心脏病 | M29: √ | O29: √ | P29: √ | R29: 44 | S29: 1 | T29: 44_1 | U29: 452.9 | V29: 395.9
A30: 28 | B30: 面部重建手术 | H30: √ | J30: 52 | K30: 主动脉夹层瘤 | M30: √ | R30: 45 | S30: 1 | T30: 45_1 | U30: 465.3 | V30: 406.4
A31: 29 | B31: 双侧睾丸切除手术 | H31: √ | J31: 53 | K31: 终末期疾病 | M31: √ | O31: √ | R31: 46 | S31: 1 | T31: 46_1 | U31: 477.7 | V31: 417.2
A32: 30 | B32: 肾脏切除 | H32: √ | J32: 54 | K32: 慢性呼吸功能衰竭 | N32: √ | O32: √ | R32: 47 | S32: 1 | T32: 47_1 | U32: 490.2 | V32: 428
A33: 31 | B33: 单耳失聪 | H33: √ | J33: 55 | K33: 因职业关系导致的人类免疫缺陷病毒感染 | N33: √ | O33: √ | P33: √ | Q33: √ | R33: 48 | S33: 1 | T33: 48_1 | U33: 502.8 | V33: 439
A34: 32 | B34: 轻度面部烧伤 | H34: √ | J34: 56 | K34: 非阿尔茨海默病所致严重痴呆 | N34: √ | O34: √ | P34: √ | Q34: √ | R34: 49 | S34: 1 | T34: 49_1 | U34: 515.4 | V34: 450.2
A35: 33 | B35: III度房室传导阻滞 | H35: √ | J35: 57 | K35: 严重哮喘 | N35: √ | P35: √ | R35: 50 | S35: 1 | T35: 50_1 | U35: 528.1 | V35: 461.6
J36: 58 | K36: 严重川崎病 | N36: √ | O36: √ | P36: √ | Q36: √ | R36: 51 | S36: 1 | T36: 51_1 | U36: 540.7 | V36: 473.2
J37: 59 | K37: 疯牛病（克雅氏病） | N37: √ | O37: √ | P37: √ | Q37: √ | R37: 52 | S37: 1 | T37: 52_1 | U37: 553.4 | V37: 485
J38: 60 | K38: 严重冠心病 | O38: √ | P38: √ | R38: 53 | S38: 1 | T38: 53_1 | U38: 566.1 | V38: 497
J39: 62 | K39: 自主生活能力完全丧失 | O39: √ | R39: 54 | S39: 1 | T39: 54_1 | U39: 578.8 | V39: 509.2
J40: 63 | K40: II 级重症急性胰腺炎 | O40: √ | R40: 55 | S40: 1 | T40: 55_1 | U40: 591.4 | V40: 521.6
J41: 64 | K41: 破裂脑动脉瘤夹闭手术 | O41: √ | R41: 56 | S41: 1 | T41: 56_1 | U41: 604 | V41: 534.2
J42: 65 | K42: 主动脉夹层血肿 | O42: √ | R42: 57 | S42: 1 | T42: 57_1 | U42: 616.5 | V42: 547
J43: 66 | K43: 严重心肌炎 | O43: √ | P43: √ | R43: 58 | S43: 1 | T43: 58_1 | U43: 629.1 | V43: 559.9
J44: 67 | K44: 肌营养不良症 | O44: √ | P44: √ | R44: 59 | S44: 1 | T44: 59_1 | U44: 641.5 | V44: 573.1
J45: 68 | K45: 嗜铬细胞瘤 | O45: √ | Q45: √ | R45: 60 | S45: 1 | T45: 60_1 | U45: 654 | V45: 586.4
J46: 69 | K46: 完全性房室传导阻滞 | O46: √ | R46: 18 | S46: 5 | T46: 18_5 | U46: 46.7 | V46: 41.1
J47: 70 | K47: 埃博拉病毒 | P47: √ | Q47: √ | R47: 19 | S47: 5 | T47: 19_5 | U47: 47.3 | V47: 41.6
J48: 71 | K48: 进行性核上性麻痹 | P48: √ | Q48: √ | R48: 20 | S48: 5 | T48: 20_5 | U48: 48.8 | V48: 42.9
J49: 72 | K49: 雷氏综合征 | P49: √ | R49: 21 | S49: 5 | T49: 21_5 | U49: 50.4 | V49: 44.3
J50: 73 | K50: 严重自身免疫性肝炎 | P50: √ | R50: 22 | S50: 5 | T50: 22_5 | U50: 52 | V50: 45.7
J51: 74 | K51: 肌萎缩性侧索硬化症 | P51: √ | R51: 23 | S51: 5 | T51: 23_5 | U51: 53.6 | V51: 47.1
J52: 75 | K52: 肝豆状核变性 | P52: √ | R52: 24 | S52: 5 | T52: 24_5 | U52: 55.2 | V52: 48.6
J53: 75 | K53: 肺泡蛋白质沉积症 | Q53: √ | R53: 25 | S53: 5 | T53: 25_5 | U53: 57 | V53: 50.1
J54: 77 | K54: 严重面部烧伤 | Q54: √ | R54: 26 | S54: 5 | T54: 26_5 | U54: 58.7 | V54: 51.7
J55: 79 | K55: 肺淋巴管肌瘤病 | Q55: √ | R55: 27 | S55: 5 | T55: 27_5 | U55: 60.5 | V55: 53.3
J56: 81 | K56: 失去一肢及一眼 | Q56: √ | R56: 28 | S56: 5 | T56: 28_5 | U56: 62.4 | V56: 55
J57: 83 | K57: 严重传染心内膜炎 | Q57: √ | R57: 29 | S57: 5 | T57: 29_5 | U57: 64.4 | V57: 56.7
R58: 30 | S58: 5 | T58: 30_5 | U58: 66.3 | V58: 58.4
R59: 31 | S59: 5 | T59: 31_5 | U59: 68.4 | V59: 60.3
R60: 32 | S60: 5 | T60: 32_5 | U60: 70.5 | V60: 62.1
R61: 33 | S61: 5 | T61: 33_5 | U61: 72.7 | V61: 64
R62: 34 | S62: 5 | T62: 34_5 | U62: 74.9 | V62: 66
R63: 35 | S63: 5 | T63: 35_5 | U63: 77.3 | V63: 68
R64: 36 | S64: 5 | T64: 36_5 | U64: 79.6 | V64: 70
R65: 37 | S65: 5 | T65: 37_5 | U65: 82.1 | V65: 72.1
R66: 38 | S66: 5 | T66: 38_5 | U66: 84.6 | V66: 74.3
R67: 39 | S67: 5 | T67: 39_5 | U67: 87.2 | V67: 76.5
R68: 40 | S68: 5 | T68: =R68&"_"&S68 -> 40_5 | U68: 89.8 | V68: 78.7
R69: 41 | S69: 5 | T69: 41_5 | U69: 92.6 | V69: 81
R70: 42 | S70: 5 | T70: 42_5 | U70: 95.3 | V70: 83.3
R71: 43 | S71: 5 | T71: 43_5 | U71: 98.2 | V71: 85.6
R72: 44 | S72: 5 | T72: 44_5 | U72: 101.1 | V72: 88.1
R73: 45 | S73: 5 | T73: 45_5 | U73: 104 | V73: 90.5
R74: 46 | S74: 5 | T74: 46_5 | U74: 107 | V74: 93
R75: 47 | S75: 5 | T75: 47_5 | U75: 110.1 | V75: 95.5
R76: 48 | S76: 5 | T76: 48_5 | U76: 113.1 | V76: 98.1
R77: 49 | S77: 5 | T77: 49_5 | U77: 116.3 | V77: 100.7
R78: 50 | S78: 5 | T78: 50_5 | U78: 119.4 | V78: 103.4
R79: 51 | S79: 5 | T79: 51_5 | U79: 122.6 | V79: 106.1
R80: 52 | S80: 5 | T80: 52_5 | U80: 125.9 | V80: 108.9
R81: 53 | S81: 5 | T81: 53_5 | U81: 129.2 | V81: 111.7
R82: 54 | S82: 5 | T82: 54_5 | U82: 132.5 | V82: 114.6
R83: 55 | S83: 5 | T83: 55_5 | U83: 135.9 | V83: 117.6
R84: 56 | S84: 5 | T84: 56_5 | U84: 139.3 | V84: 120.7
R85: 57 | S85: 5 | T85: 57_5 | U85: 142.7 | V85: 123.8
R86: 58 | S86: 5 | T86: 58_5 | U86: 146.2 | V86: 127
R87: 59 | S87: 5 | T87: 59_5 | U87: 149.7 | V87: 130.3
R88: 60 | S88: 5 | T88: 60_5 | U88: 153.2 | V88: 133.7
R89: 18 | S89: 10 | T89: 18_10 | U89: 26.5 | V89: 23.3
R90: 19 | S90: 10 | T90: 19_10 | U90: 26.9 | V90: 23.6
R91: 20 | S91: 10 | T91: 20_10 | U91: 27.7 | V91: 24.3
R92: 21 | S92: 10 | T92: 21_10 | U92: 28.6 | V92: 25.1
R93: 22 | S93: 10 | T93: 22_10 | U93: 29.5 | V93: 25.9
R94: 23 | S94: 10 | T94: 23_10 | U94: 30.4 | V94: 26.7
R95: 24 | S95: 10 | T95: 24_10 | U95: 31.4 | V95: 27.6
R96: 25 | S96: 10 | T96: 25_10 | U96: 32.4 | V96: 28.5
R97: 26 | S97: 10 | T97: 26_10 | U97: 33.4 | V97: 29.4
R98: 27 | S98: 10 | T98: 27_10 | U98: 34.4 | V98: 30.3
R99: 28 | S99: 10 | T99: 28_10 | U99: 35.5 | V99: 31.3
R100: 29 | S100: 10 | T100: 29_10 | U100: 36.6 | V100: 32.3
R101: 30 | S101: 10 | T101: 30_10 | U101: 37.8 | V101: 33.3
R102: 31 | S102: 10 | T102: 31_10 | U102: 39 | V102: 34.3
R103: 32 | S103: 10 | T103: 32_10 | U103: 40.2 | V103: 35.4
R104: 33 | S104: 10 | T104: 33_10 | U104: 41.5 | V104: 36.5
R105: 34 | S105: 10 | T105: 34_10 | U105: 42.8 | V105: 37.7
R106: 35 | S106: 10 | T106: 35_10 | U106: 44.2 | V106: 38.8
R107: 36 | S107: 10 | T107: 36_10 | U107: 45.6 | V107: 40.1
R108: 37 | S108: 10 | T108: 37_10 | U108: 47.1 | V108: 41.3
R109: 38 | S109: 10 | T109: 38_10 | U109: 48.6 | V109: 42.6
R110: 39 | S110: 10 | T110: 39_10 | U110: 50.1 | V110: 43.9
R111: 40 | S111: 10 | T111: 40_10 | U111: 51.8 | V111: 45.2
R112: 41 | S112: 10 | T112: 41_10 | U112: 53.4 | V112: 46.6
R113: 42 | S113: 10 | T113: 42_10 | U113: 55.2 | V113: 48
R114: 43 | S114: 10 | T114: 43_10 | U114: 57 | V114: 49.4
R115: 44 | S115: 10 | T115: 44_10 | U115: 58.8 | V115: 50.9
R116: 45 | S116: 10 | T116: 45_10 | U116: 60.7 | V116: 52.3
R117: 46 | S117: 10 | T117: 46_10 | U117: 62.7 | V117: 53.9
R118: 47 | S118: 10 | T118: 47_10 | U118: 64.7 | V118: 55.4
R119: 48 | S119: 10 | T119: 48_10 | U119: 66.7 | V119: 57
R120: 49 | S120: 10 | T120: 49_10 | U120: 68.8 | V120: 58.6
R121: 50 | S121: 10 | T121: 50_10 | U121: 71 | V121: 60.2
R122: 51 | S122: 10 | T122: 51_10 | U122: 73.2 | V122: 62
R123: 52 | S123: 10 | T123: 52_10 | U123: 75.4 | V123: 63.7
R124: 53 | S124: 10 | T124: 53_10 | U124: 77.8 | V124: 65.5
R125: 54 | S125: 10 | T125: 54_10 | U125: 80.1 | V125: 67.4
R126: 55 | S126: 10 | T126: 55_10 | U126: 82.6 | V126: 69.4
R127: 18 | S127: 15 | T127: 18_15 | U127: 19.3 | V127: 16.9
R128: 19 | S128: 15 | T128: 19_15 | U128: 19.6 | V128: 17.2
R129: 20 | S129: 15 | T129: 20_15 | U129: 20.2 | V129: 17.7
R130: 21 | S130: 15 | T130: 21_15 | U130: 20.8 | V130: 18.3
R131: 22 | S131: 15 | T131: 22_15 | U131: 21.5 | V131: 18.9
R132: 23 | S132: 15 | T132: =R132&"_"&S132 -> 23_15 | U132: 22.2 | V132: 19.5
R133: 24 | S133: 15 | T133: 24_15 | U133: 22.9 | V133: 20.1
R134: 25 | S134: 15 | T134: 25_15 | U134: 23.6 | V134: 20.7
R135: 26 | S135: 15 | T135: 26_15 | U135: 24.4 | V135: 21.4
R136: 27 | S136: 15 | T136: 27_15 | U136: 25.1 | V136: 22.1
R137: 28 | S137: 15 | T137: 28_15 | U137: 25.9 | V137: 22.8
R138: 29 | S138: 15 | T138: 29_15 | U138: 26.8 | V138: 23.6
R139: 30 | S139: 15 | T139: 30_15 | U139: 27.6 | V139: 24.3
R140: 31 | S140: 15 | T140: 31_15 | U140: 28.5 | V140: 25.1
R141: 32 | S141: 15 | T141: 32_15 | U141: 29.5 | V141: 25.9
R142: 33 | S142: 15 | T142: 33_15 | U142: 30.4 | V142: 26.8
R143: 34 | S143: 15 | T143: 34_15 | U143: 31.4 | V143: 27.6
R144: 35 | S144: 15 | T144: 35_15 | U144: 32.5 | V144: 28.5
R145: 36 | S145: 15 | T145: 36_15 | U145: 33.6 | V145: 29.4
R146: 37 | S146: 15 | T146: 37_15 | U146: 34.7 | V146: 30.4
R147: 38 | S147: 15 | T147: 38_15 | U147: 35.9 | V147: 31.3
R148: 39 | S148: 15 | T148: 39_15 | U148: 37.2 | V148: 32.3
R149: 40 | S149: 15 | T149: 40_15 | U149: 38.5 | V149: 33.4
R150: 41 | S150: 15 | T150: 41_15 | U150: 39.8 | V150: 34.4
R151: 42 | S151: 15 | T151: 42_15 | U151: 41.2 | V151: 35.5
R152: 43 | S152: 15 | T152: 43_15 | U152: 42.7 | V152: 36.6
R153: 44 | S153: 15 | T153: 44_15 | U153: 44.2 | V153: 37.7
R154: 45 | S154: 15 | T154: 45_15 | U154: 45.7 | V154: 38.9
R155: 46 | S155: 15 | T155: 46_15 | U155: 47.4 | V155: 40.1
R156: 47 | S156: 15 | T156: 47_15 | U156: 49.1 | V156: 41.3
R157: 48 | S157: 15 | T157: 48_15 | U157: 50.8 | V157: 42.6
R158: 49 | S158: 15 | T158: 49_15 | U158: 52.6 | V158: 43.9
R159: 50 | S159: 15 | T159: 50_15 | U159: 54.5 | V159: 45.2

Sheet 备忘 (hidden)
B1: 读表的数值
B3: 表名 | C3: 单元格 | D3: 所读数值
A4: 1 | B4: GP | C4: N2 | D4: SA Round
A5: 2 | B5: CSV | C5: AI列 | D5: CSV
A6: 3 | B6: Reserve | C6: AS列 | D6: Rsv
A7: 4
A8: 5
A11: 2017-12-04 | B11: 上午，读ztj的SA、CSV、Rsv

Sheet SA&Table (hidden)
F1: SA Round | G1: CSV | H1: 1 | I1: 2 | J1: 3 | K1: 4 | L1: 5 | M1: 6 | N1: 7 | O1: 8 | P1: 9 | Q1: 10 | R1: 11 | S1: 12 | T1: 13 | U1: 14 | V1: 15 | W1: 16 | X1: 17 | Y1: 18 | Z1: 19 | AA1: 20 | AB1: 21 | AC1: 22 | AD1: 23 | AE1: 24 | AF1: 25 | AG1: 26 | AH1: 27 | AI1: 28 | AJ1: 29 | AK1: 30 | AL1: 31 | AM1: 32 | AN1: 33 | AO1: 34 | AP1: 35 | AQ1: 36 | AR1: 37 | AS1: 38 | AT1: 39 | AU1: 40 | AV1: 41 | AW1: 42 | AX1: 43 | AY1: 44 | AZ1: 45 | BA1: 46 | BB1: 47 | BC1: 48 | BD1: 49 | BE1: 50 | BF1: 51 | BG1: 52 | BH1: 53 | BI1: 54 | BJ1: 55 | BK1: 56 | BL1: 57 | BM1: 58 | BN1: 59 | BO1: 60 | BP1: 61 | BQ1: 62 | BR1: 63 | BS1: 64 | BT1: 65 | BU1: 66 | BV1: 67 | BW1: 68 | BX1: 69 | BY1: 70 | BZ1: 71 | CA1: 72 | CB1: 73 | CC1: 74 | CD1: 75 | CE1: 76 | CF1: 77 | CG1: 78 | CH1: 79 | CI1: 80 | CJ1: 81 | CK1: 82 | CL1: 83 | CM1: 84 | CN1: 85 | CO1: 86 | CP1: 87 | CQ1: 88 | CR1: 89 | CS1: 90 | CT1: 91 | CU1: 92 | CV1: 93 | CW1: 94 | CX1: 95 | CY1: 96 | CZ1: 97 | DA1: 98 | DB1: 99 | DC1: 100 | DD1: 101 | DE1: 102 | DF1: 103 | DG1: 104 | DH1: 105 | DI1: 106 | DK1: Rsv | DL1: 1 | DM1: 2 | DN1: 3 | DO1: 4 | DP1: 5 | DQ1: 6 | DR1: 7 | DS1: 8 | DT1: 9 | DU1: 10 | DV1: 11 | DW1: 12 | DX1: 13 | DY1: 14 | DZ1: 15 | EA1: 16 | EB1: 17 | EC1: 18 | ED1: 19 | EE1: 20 | EF1: 21 | EG1: 22 | EH1: 23 | EI1: 24 | EJ1: 25 | EK1: 26 | EL1: 27 | EM1: 28 | EN1: 29 | EO1: 30 | EP1: 31 | EQ1: 32 | ER1: 33 | ES1: 34 | ET1: 35 | EU1: 36 | EV1: 37 | EW1: 38 | EX1: 39 | EY1: 40 | EZ1: 41 | FA1: 42 | FB1: 43 | FC1: 44 | FD1: 45 | FE1: 46 | FF1: 47 | FG1: 48 | FH1: 49 | FI1: 50 | FJ1: 51 | FK1: 52 | FL1: 53 | FM1: 54 | FN1: 55 | FO1: 56 | FP1: 57 | FQ1: 58 | FR1: 59 | FS1: 60 | FT1: 61 | FU1: 62 | FV1: 63 | FW1: 64 | FX1: 65 | FY1: 66 | FZ1: 67 | GA1: 68 | GB1: 69 | GC1: 70 | GD1: 71 | GE1: 72 | GF1: 73 | GG1: 74 | GH1: 75 | GI1: 76 | GJ1: 77 | GK1: 78 | GL1: 79 | GM1: 80 | GN1: 81 | GO1: 82 | GP1: 83 | GQ1: 84 | GR1: 85 | GS1: 86 | GT1: 87 | GU1: 88 | GV1: 89 | GW1: 90 | GX1: 91 | GY1: 92 | GZ1: 93 | HA1: 94 | HB1: 95 | HC1: 96 | HD1: 97 | HE1: 98 | HF1: 99 | HG1: 100 | HH1: 101 | HI1: 102 | HJ1: 103 | HK1: 104 | HL1: 105 | HM1: 106
E2: =Age&"_"&PPP&"_"&Sex -> 30_10_M | F2: =VLOOKUP(E2,A:F,6,FALSE) -> 578 | H2: =VLOOKUP($E$2,$A:H,H3,FALSE) -> 382 | I2: =VLOOKUP($E$2,$A:I,I3,FALSE) -> 884 | J2: =VLOOKUP($E$2,$A:J,J3,FALSE) -> 1481 | K2: =VLOOKUP($E$2,$A:K,K3,FALSE) -> 2135 | L2: =VLOOKUP($E$2,$A:L,L3,FALSE) -> 1878 | M2: =VLOOKUP($E$2,$A:M,M3,FALSE) -> 2453 | N2: =VLOOKUP($E$2,$A:N,N3,FALSE) -> 3061 | O2: =VLOOKUP($E$2,$A:O,O3,FALSE) -> 3704 | P2: =VLOOKUP($E$2,$A:P,P3,FALSE) -> 4384 | Q2: =VLOOKUP($E$2,$A:Q,Q3,FALSE) -> 5103 | R2: =VLOOKUP($E$2,$A:R,R3,FALSE) -> 5189 | S2: =VLOOKUP($E$2,$A:S,S3,FALSE) -> 5279 | T2: =VLOOKUP($E$2,$A:T,T3,FALSE) -> 5371 | U2: =VLOOKUP($E$2,$A:U,U3,FALSE) -> 5467 | V2: =VLOOKUP($E$2,$A:V,V3,FALSE) -> 5567 | W2: =VLOOKUP($E$2,$A:W,W3,FALSE) -> 5671 | X2: =VLOOKUP($E$2,$A:X,X3,FALSE) -> 5778 | Y2: =VLOOKUP($E$2,$A:Y,Y3,FALSE) -> 5890 | Z2: =VLOOKUP($E$2,$A:Z,Z3,FALSE) -> 6006 | AA2: =VLOOKUP($E$2,$A:AA,AA3,FALSE) -> 6126 | AB2: =VLOOKUP($E$2,$A:AB,AB3,FALSE) -> 6250 | AC2: =VLOOKUP($E$2,$A:AC,AC3,FALSE) -> 6380 | AD2: =VLOOKUP($E$2,$A:AD,AD3,FALSE) -> 6514 | AE2: =VLOOKUP($E$2,$A:AE,AE3,FALSE) -> 6654 | AF2: =VLOOKUP($E$2,$A:AF,AF3,FALSE) -> 6798 | AG2: =VLOOKUP($E$2,$A:AG,AG3,FALSE) -> 6949 | AH2: =VLOOKUP($E$2,$A:AH,AH3,FALSE) -> 7105 | AI2: =VLOOKUP($E$2,$A:AI,AI3,FALSE) -> 7268 | AJ2: =VLOOKUP($E$2,$A:AJ,AJ3,FALSE) -> 7437 | AK2: =VLOOKUP($E$2,$A:AK,AK3,FALSE) -> 7554 | AL2: =VLOOKUP($E$2,$A:AL,AL3,FALSE) -> 7677 | AM2: =VLOOKUP($E$2,$A:AM,AM3,FALSE) -> 7803 | AN2: =VLOOKUP($E$2,$A:AN,AN3,FALSE) -> 7935 | AO2: =VLOOKUP($E$2,$A:AO,AO3,FALSE) -> 8072 | AP2: =VLOOKUP($E$2,$A:AP,AP3,FALSE) -> 8215 | AQ2: =VLOOKUP($E$2,$A:AQ,AQ3,FALSE) -> 8363 | AR2: =VLOOKUP($E$2,$A:AR,AR3,FALSE) -> 8516 | AS2: =VLOOKUP($E$2,$A:AS,AS3,FALSE) -> 8677 | AT2: =VLOOKUP($E$2,$A:AT,AT3,FALSE) -> 8844 | AU2: =VLOOKUP($E$2,$A:AU,AU3,FALSE) -> 9018 | AV2: =VLOOKUP($E$2,$A:AV,AV3,FALSE) -> 9199 | AW2: =VLOOKUP($E$2,$A:AW,AW3,FALSE) -> 9389 | AX2: =VLOOKUP($E$2,$A:AX,AX3,FALSE) -> 9587 | AY2: =VLOOKUP($E$2,$A:AY,AY3,FALSE) -> 9795 | AZ2: =VLOOKUP($E$2,$A:AZ,AZ3,FALSE) -> 10011 | BA2: =VLOOKUP($E$2,$A:BA,BA3,FALSE) -> 10235 | BB2: =VLOOKUP($E$2,$A:BB,BB3,FALSE) -> 10468 | BC2: =VLOOKUP($E$2,$A:BC,BC3,FALSE) -> 10709 | BD2: =VLOOKUP($E$2,$A:BD,BD3,FALSE) -> 10960 | BE2: =VLOOKUP($E$2,$A:BE,BE3,FALSE) -> 10219 | BF2: =VLOOKUP($E$2,$A:BF,BF3,FALSE) -> 9449 | BG2: =VLOOKUP($E$2,$A:BG,BG3,FALSE) -> 8647 | BH2: =VLOOKUP($E$2,$A:BH,BH3,FALSE) -> 7812 | BI2: =VLOOKUP($E$2,$A:BI,BI3,FALSE) -> 6945 | BJ2: =VLOOKUP($E$2,$A:BJ,BJ3,FALSE) -> 6042 | BK2: =VLOOKUP($E$2,$A:BK,BK3,FALSE) -> 5104 | BL2: =VLOOKUP($E$2,$A:BL,BL3,FALSE) -> 4128 | BM2: =VLOOKUP($E$2,$A:BM,BM3,FALSE) -> 3115 | BN2: =VLOOKUP($E$2,$A:BN,BN3,FALSE) -> 2061 | BO2: =VLOOKUP($E$2,$A:BO,BO3,FALSE) -> 1967 | BP2: =VLOOKUP($E$2,$A:BP,BP3,FALSE) -> 1868 | BQ2: =VLOOKUP($E$2,$A:BQ,BQ3,FALSE) -> 1766 | BR2: =VLOOKUP($E$2,$A:BR,BR3,FALSE) -> 1659 | BS2: =VLOOKUP($E$2,$A:BS,BS3,FALSE) -> 1548 | BT2: =VLOOKUP($E$2,$A:BT,BT3,FALSE) -> 1433 | BU2: =VLOOKUP($E$2,$A:BU,BU3,FALSE) -> 1313 | BV2: =VLOOKUP($E$2,$A:BV,BV3,FALSE) -> 1188 | BW2: =VLOOKUP($E$2,$A:BW,BW3,FALSE) -> 1058 | BX2: =VLOOKUP($E$2,$A:BX,BX3,FALSE) -> 923 | BY2: =VLOOKUP($E$2,$A:BY,BY3,FALSE) -> 783 | BZ2: =VLOOKUP($E$2,$A:BZ,BZ3,FALSE) -> 637 | CA2: =VLOOKUP($E$2,$A:CA,CA3,FALSE) -> 486 | CB2: =VLOOKUP($E$2,$A:CB,CB3,FALSE) -> 330 | CC2: =VLOOKUP($E$2,$A:CC,CC3,FALSE) -> 168 | CD2: =VLOOKUP($E$2,$A:CD,CD3,FALSE) -> 0 | CE2: =VLOOKUP($E$2,$A:CE,CE3,FALSE) -> 0 | CF2: =VLOOKUP($E$2,$A:CF,CF3,FALSE) ->  | CG2: =VLOOKUP($E$2,$A:CG,CG3,FALSE) ->  | CH2: =VLOOKUP($E$2,$A:CH,CH3,FALSE) ->  | CI2: =VLOOKUP($E$2,$A:CI,CI3,FALSE) ->  | CJ2: =VLOOKUP($E$2,$A:CJ,CJ3,FALSE) ->  | CK2: =VLOOKUP($E$2,$A:CK,CK3,FALSE) ->  | CL2: =VLOOKUP($E$2,$A:CL,CL3,FALSE) ->  | CM2: =VLOOKUP($E$2,$A:CM,CM3,FALSE) ->  | CN2: =VLOOKUP($E$2,$A:CN,CN3,FALSE) ->  | CO2: =VLOOKUP($E$2,$A:CO,CO3,FALSE) ->  | CP2: =VLOOKUP($E$2,$A:CP,CP3,FALSE) ->  | CQ2: =VLOOKUP($E$2,$A:CQ,CQ3,FALSE) ->  | CR2: =VLOOKUP($E$2,$A:CR,CR3,FALSE) ->  | CS2: =VLOOKUP($E$2,$A:CS,CS3,FALSE) ->  | CT2: =VLOOKUP($E$2,$A:CT,CT3,FALSE) ->  | CU2: =VLOOKUP($E$2,$A:CU,CU3,FALSE) ->  | CV2: =VLOOKUP($E$2,$A:CV,CV3,FALSE) ->  | CW2: =VLOOKUP($E$2,$A:CW,CW3,FALSE) ->  | CX2: =VLOOKUP($E$2,$A:CX,CX3,FALSE) ->  | CY2: =VLOOKUP($E$2,$A:CY,CY3,FALSE) ->  | CZ2: =VLOOKUP($E$2,$A:CZ,CZ3,FALSE) ->  | DA2: =VLOOKUP($E$2,$A:DA,DA3,FALSE) ->  | DB2: =VLOOKUP($E$2,$A:DB,DB3,FALSE) ->  | DC2: =VLOOKUP($E$2,$A:DC,DC3,FALSE) ->  | DD2: =VLOOKUP($E$2,$A:DD,DD3,FALSE) ->  | DE2: =VLOOKUP($E$2,$A:DE,DE3,FALSE) ->  | DF2: =VLOOKUP($E$2,$A:DF,DF3,FALSE) ->  | DG2: =VLOOKUP($E$2,$A:DG,DG3,FALSE) ->  | DH2: =VLOOKUP($E$2,$A:DH,DH3,FALSE) ->  | DI2: =VLOOKUP($E$2,$A:DI,DI3,FALSE) ->  | DK2: =VLOOKUP($E$2,$A:DK,DK3,FALSE) -> 0 | DL2: =VLOOKUP($E$2,$A:DL,DL3,FALSE) -> 558.360557 | DM2: =VLOOKUP($E$2,$A:DM,DM3,FALSE) -> 1469.723285 | DN2: =VLOOKUP($E$2,$A:DN,DN3,FALSE) -> 2403.814234 | DO2: =VLOOKUP($E$2,$A:DO,DO3,FALSE) -> 3361.206008 | DP2: =VLOOKUP($E$2,$A:DP,DP3,FALSE) -> 3342.487941 | DQ2: =VLOOKUP($E$2,$A:DQ,DQ3,FALSE) -> 4207.059886 | DR2: =VLOOKUP($E$2,$A:DR,DR3,FALSE) -> 5093.083021 | DS2: =VLOOKUP($E$2,$A:DS,DS3,FALSE) -> 6001.088896 | DT2: =VLOOKUP($E$2,$A:DT,DT3,FALSE) -> 6931.622797 | DU2: =VLOOKUP($E$2,$A:DU,DU3,FALSE) -> 7885.24453 | DV2: =VLOOKUP($E$2,$A:DV,DV3,FALSE) -> 7964.981321 | DW2: =VLOOKUP($E$2,$A:DW,DW3,FALSE) -> 8046.632148 | DX2: =VLOOKUP($E$2,$A:DX,DX3,FALSE) -> 8130.242552 | DY2: =VLOOKUP($E$2,$A:DY,DY3,FALSE) -> 8215.858443 | DZ2: =VLOOKUP($E$2,$A:DZ,DZ3,FALSE) -> 8303.53206 | EA2: =VLOOKUP($E$2,$A:EA,EA3,FALSE) -> 8393.317077 | EB2: =VLOOKUP($E$2,$A:EB,EB3,FALSE) -> 8485.271061 | EC2: =VLOOKUP($E$2,$A:EC,EC3,FALSE) -> 8579.457568 | ED2: =VLOOKUP($E$2,$A:ED,ED3,FALSE) -> 8675.947848 | EE2: =VLOOKUP($E$2,$A:EE,EE3,FALSE) -> 8774.819642 | EF2: =VLOOKUP($E$2,$A:EF,EF3,FALSE) -> 8876.157586 | EG2: =VLOOKUP($E$2,$A:EG,EG3,FALSE) -> 8980.054663 | EH2: =VLOOKUP($E$2,$A:EH,EH3,FALSE) -> 9086.610416 | EI2: =VLOOKUP($E$2,$A:EI,EI3,FALSE) -> 9195.933451 | EJ2: =VLOOKUP($E$2,$A:EJ,EJ3,FALSE) -> 9308.140832 | EK2: =VLOOKUP($E$2,$A:EK,EK3,FALSE) -> 9423.359201 | EL2: =VLOOKUP($E$2,$A:EL,EL3,FALSE) -> 9541.723488 | EM2: =VLOOKUP($E$2,$A:EM,EM3,FALSE) -> 9663.378448 | EN2: =VLOOKUP($E$2,$A:EN,EN3,FALSE) -> 9788.47923 | EO2: =VLOOKUP($E$2,$A:EO,EO3,FALSE) -> 9859.395949 | EP2: =VLOOKUP($E$2,$A:EP,EP3,FALSE) -> 9932.394948 | EQ2: =VLOOKUP($E$2,$A:EQ,EQ3,FALSE) -> 10007.59056 | ER2: =VLOOKUP($E$2,$A:ER,ER3,FALSE) -> 10085.1119 | ES2: =VLOOKUP($E$2,$A:ES,ES3,FALSE) -> 10165.10587 | ET2: =VLOOKUP($E$2,$A:ET,ET3,FALSE) -> 10247.74028 | EU2: =VLOOKUP($E$2,$A:EU,EU3,FALSE) -> 10333.20584 | EV2: =VLOOKUP($E$2,$A:EV,EV3,FALSE) -> 10421.71947 | EW2: =VLOOKUP($E$2,$A:EW,EW3,FALSE) -> 10513.52836 | EX2: =VLOOKUP($E$2,$A:EX,EX3,FALSE) -> 10608.91967 | EY2: =VLOOKUP($E$2,$A:EY,EY3,FALSE) -> 10708.23875 | EZ2: =VLOOKUP($E$2,$A:EZ,EZ3,FALSE) -> 10811.92029 | FA2: =VLOOKUP($E$2,$A:FA,FA3,FALSE) -> 10920.53232 | FB2: =VLOOKUP($E$2,$A:FB,FB3,FALSE) -> 11034.8339 | FC2: =VLOOKUP($E$2,$A:FC,FC3,FALSE) -> 11155.84636 | FD2: =VLOOKUP($E$2,$A:FD,FD3,FALSE) -> 11281.57632 | FE2: =VLOOKUP($E$2,$A:FE,FE3,FALSE) -> 11411.72883 | FF2: =VLOOKUP($E$2,$A:FF,FF3,FALSE) -> 11546.34572 | FG2: =VLOOKUP($E$2,$A:FG,FG3,FALSE) -> 11685.29145 | FH2: =VLOOKUP($E$2,$A:FH,FH3,FALSE) -> 11828.09049 | FI2: =VLOOKUP($E$2,$A:FI,FI3,FALSE) -> 10973.97177 | FJ2: =VLOOKUP($E$2,$A:FJ,FJ3,FALSE) -> 10097.92171 | FK2: =VLOOKUP($E$2,$A:FK,FK3,FALSE) -> 9198.933475 | FL2: =VLOOKUP($E$2,$A:FL,FL3,FALSE) -> 8276.005916 | FM2: =VLOOKUP($E$2,$A:FM,FM3,FALSE) -> 7328.05276 | FN2: =VLOOKUP($E$2,$A:FN,FN3,FALSE) -> 6354.268576 | FO2: =VLOOKUP($E$2,$A:FO,FO3,FALSE) -> 5353.857301 | FP2: =VLOOKUP($E$2,$A:FP,FP3,FALSE) -> 4326.396363 | FQ2: =VLOOKUP($E$2,$A:FQ,FQ3,FALSE) -> 3271.579819 | FR2: =VLOOKUP($E$2,$A:FR,FR3,FALSE) -> 2189.838861 | FS2: =VLOOKUP($E$2,$A:FS,FS3,FALSE) -> 2082.028067 | FT2: =VLOOKUP($E$2,$A:FT,FT3,FALSE) -> 1971.173474 | FU2: =VLOOKUP($E$2,$A:FU,FU3,FALSE) -> 1856.963904 | FV2: =VLOOKUP($E$2,$A:FV,FV3,FALSE) -> 1739.361617 | FW2: =VLOOKUP($E$2,$A:FW,FW3,FALSE) -> 1618.154246 | FX2: =VLOOKUP($E$2,$A:FX,FX3,FALSE) -> 1493.060218 | FY2: =VLOOKUP($E$2,$A:FY,FY3,FALSE) -> 1363.955931 | FZ2: =VLOOKUP($E$2,$A:FZ,FZ3,FALSE) -> 1230.70768 | GA2: =VLOOKUP($E$2,$A:GA,GA3,FALSE) -> 1093.165044 | GB2: =VLOOKUP($E$2,$A:GB,GB3,FALSE) -> 951.1476312 | GC2: =VLOOKUP($E$2,$A:GC,GC3,FALSE) -> 804.4167322 | GD2: =VLOOKUP($E$2,$A:GD,GD3,FALSE) -> 653.11227 | GE2: =VLOOKUP($E$2,$A:GE,GE3,FALSE) -> 497.0565702 | GF2: =VLOOKUP($E$2,$A:GF,GF3,FALSE) -> 335.9773718 | GG2: =VLOOKUP($E$2,$A:GG,GG3,FALSE) -> 170.0956078 | GH2: =VLOOKUP($E$2,$A:GH,GH3,FALSE) -> 0 | GI2: =VLOOKUP($E$2,$A:GI,GI3,FALSE) -> 0 | GJ2: =VLOOKUP($E$2,$A:GJ,GJ3,FALSE) ->  | GK2: =VLOOKUP($E$2,$A:GK,GK3,FALSE) ->  | GL2: =VLOOKUP($E$2,$A:GL,GL3,FALSE) ->  | GM2: =VLOOKUP($E$2,$A:GM,GM3,FALSE) ->  | GN2: =VLOOKUP($E$2,$A:GN,GN3,FALSE) ->  | GO2: =VLOOKUP($E$2,$A:GO,GO3,FALSE) ->  | GP2: =VLOOKUP($E$2,$A:GP,GP3,FALSE) ->  | GQ2: =VLOOKUP($E$2,$A:GQ,GQ3,FALSE) ->  | GR2: =VLOOKUP($E$2,$A:GR,GR3,FALSE) ->  | GS2: =VLOOKUP($E$2,$A:GS,GS3,FALSE) ->  | GT2: =VLOOKUP($E$2,$A:GT,GT3,FALSE) ->  | GU2: =VLOOKUP($E$2,$A:GU,GU3,FALSE) ->  | GV2: =VLOOKUP($E$2,$A:GV,GV3,FALSE) ->  | GW2: =VLOOKUP($E$2,$A:GW,GW3,FALSE) ->  | GX2: =VLOOKUP($E$2,$A:GX,GX3,FALSE) ->  | GY2: =VLOOKUP($E$2,$A:GY,GY3,FALSE) ->  | GZ2: =VLOOKUP($E$2,$A:GZ,GZ3,FALSE) ->  | HA2: =VLOOKUP($E$2,$A:HA,HA3,FALSE) ->  | HB2: =VLOOKUP($E$2,$A:HB,HB3,FALSE) ->  | HC2: =VLOOKUP($E$2,$A:HC,HC3,FALSE) ->  | HD2: =VLOOKUP($E$2,$A:HD,HD3,FALSE) ->  | HE2: =VLOOKUP($E$2,$A:HE,HE3,FALSE) ->  | HF2: =VLOOKUP($E$2,$A:HF,HF3,FALSE) ->  | HG2: =VLOOKUP($E$2,$A:HG,HG3,FALSE) ->  | HH2: =VLOOKUP($E$2,$A:HH,HH3,FALSE) ->  | HI2: =VLOOKUP($E$2,$A:HI,HI3,FALSE) ->  | HJ2: =VLOOKUP($E$2,$A:HJ,HJ3,FALSE) ->  | HK2: =VLOOKUP($E$2,$A:HK,HK3,FALSE) ->  | HL2: =VLOOKUP($E$2,$A:HL,HL3,FALSE) ->  | HM2: =VLOOKUP($E$2,$A:HM,HM3,FALSE) -> 
H3: 8 | I3: 9 | J3: 10 | K3: 11 | L3: 12 | M3: 13 | N3: 14 | O3: 15 | P3: 16 | Q3: 17 | R3: 18 | S3: 19 | T3: 20 | U3: 21 | V3: 22 | W3: 23 | X3: 24 | Y3: 25 | Z3: 26 | AA3: 27 | AB3: 28 | AC3: 29 | AD3: 30 | AE3: 31 | AF3: 32 | AG3: 33 | AH3: 34 | AI3: 35 | AJ3: 36 | AK3: 37 | AL3: 38 | AM3: 39 | AN3: 40 | AO3: 41 | AP3: 42 | AQ3: 43 | AR3: 44 | AS3: 45 | AT3: 46 | AU3: 47 | AV3: 48 | AW3: 49 | AX3: 50 | AY3: 51 | AZ3: 52 | BA3: 53 | BB3: 54 | BC3: 55 | BD3: 56 | BE3: 57 | BF3: 58 | BG3: 59 | BH3: 60 | BI3: 61 | BJ3: 62 | BK3: 63 | BL3: 64 | BM3: 65 | BN3: 66 | BO3: 67 | BP3: 68 | BQ3: 69 | BR3: 70 | BS3: 71 | BT3: 72 | BU3: 73 | BV3: 74 | BW3: 75 | BX3: 76 | BY3: 77 | BZ3: 78 | CA3: 79 | CB3: 80 | CC3: 81 | CD3: 82 | CE3: 83 | CF3: 84 | CG3: 85 | CH3: 86 | CI3: 87 | CJ3: 88 | CK3: 89 | CL3: 90 | CM3: 91 | CN3: 92 | CO3: 93 | CP3: 94 | CQ3: 95 | CR3: 96 | CS3: 97 | CT3: 98 | CU3: 99 | CV3: 100 | CW3: 101 | CX3: 102 | CY3: 103 | CZ3: 104 | DA3: 105 | DB3: 106 | DC3: 107 | DD3: 108 | DE3: 109 | DF3: 110 | DG3: 111 | DH3: 112 | DI3: 113 | DJ3: 114 | DK3: 115 | DL3: 116 | DM3: 117 | DN3: 118 | DO3: 119 | DP3: 120 | DQ3: 121 | DR3: 122 | DS3: 123 | DT3: 124 | DU3: 125 | DV3: 126 | DW3: 127 | DX3: 128 | DY3: 129 | DZ3: 130 | EA3: 131 | EB3: 132 | EC3: 133 | ED3: 134 | EE3: 135 | EF3: 136 | EG3: 137 | EH3: 138 | EI3: 139 | EJ3: 140 | EK3: 141 | EL3: 142 | EM3: 143 | EN3: 144 | EO3: 145 | EP3: 146 | EQ3: 147 | ER3: 148 | ES3: 149 | ET3: 150 | EU3: 151 | EV3: 152 | EW3: 153 | EX3: 154 | EY3: 155 | EZ3: 156 | FA3: 157 | FB3: 158 | FC3: 159 | FD3: 160 | FE3: 161 | FF3: 162 | FG3: 163 | FH3: 164 | FI3: 165 | FJ3: 166 | FK3: 167 | FL3: 168 | FM3: 169 | FN3: 170 | FO3: 171 | FP3: 172 | FQ3: 173 | FR3: 174 | FS3: 175 | FT3: 176 | FU3: 177 | FV3: 178 | FW3: 179 | FX3: 180 | FY3: 181 | FZ3: 182 | GA3: 183 | GB3: 184 | GC3: 185 | GD3: 186 | GE3: 187 | GF3: 188 | GG3: 189 | GH3: 190 | GI3: 191 | GJ3: 192 | GK3: 193 | GL3: 194 | GM3: 195 | GN3: 196 | GO3: 197 | GP3: 198 | GQ3: 199 | GR3: 200 | GS3: 201 | GT3: 202 | GU3: 203 | GV3: 204 | GW3: 205 | GX3: 206 | GY3: 207 | GZ3: 208 | HA3: 209 | HB3: 210 | HC3: 211 | HD3: 212 | HE3: 213 | HF3: 214 | HG3: 215 | HH3: 216 | HI3: 217 | HJ3: 218 | HK3: 219 | HL3: 220 | HM3: 221
A4: Index | B4: PPP | C4: InsuredAge | D4: InsuredSex | F4: SA Round | G4: 0 | H4: 1 | I4: 2 | J4: 3 | K4: 4 | L4: 5 | M4: 6 | N4: 7 | O4: 8 | P4: 9 | Q4: 10 | R4: 11 | S4: 12 | T4: 13 | U4: 14 | V4: 15 | W4: 16 | X4: 17 | Y4: 18 | Z4: 19 | AA4: 20 | AB4: 21 | AC4: 22 | AD4: 23 | AE4: 24 | AF4: 25 | AG4: 26 | AH4: 27 | AI4: 28 | AJ4: 29 | AK4: 30 | AL4: 31 | AM4: 32 | AN4: 33 | AO4: 34 | AP4: 35 | AQ4: 36 | AR4: 37 | AS4: 38 | AT4: 39 | AU4: 40 | AV4: 41 | AW4: 42 | AX4: 43 | AY4: 44 | AZ4: 45 | BA4: 46 | BB4: 47 | BC4: 48 | BD4: 49 | BE4: 50 | BF4: 51 | BG4: 52 | BH4: 53 | BI4: 54 | BJ4: 55 | BK4: 56 | BL4: 57 | BM4: 58 | BN4: 59 | BO4: 60 | BP4: 61 | BQ4: 62 | BR4: 63 | BS4: 64 | BT4: 65 | BU4: 66 | BV4: 67 | BW4: 68 | BX4: 69 | BY4: 70 | BZ4: 71 | CA4: 72 | CB4: 73 | CC4: 74 | CD4: 75 | CE4: 76 | CF4: 77 | CG4: 78 | CH4: 79 | CI4: 80 | CJ4: 81 | CK4: 82 | CL4: 83 | CM4: 84 | CN4: 85 | CO4: 86 | CP4: 87 | CQ4: 88 | CR4: 89 | CS4: 90 | CT4: 91 | CU4: 92 | CV4: 93 | CW4: 94 | CX4: 95 | CY4: 96 | CZ4: 97 | DA4: 98 | DB4: 99 | DC4: 100 | DD4: 101 | DE4: 102 | DF4: 103 | DG4: 104 | DH4: 105 | DI4: 106 | DK4: 0 | DL4: 1 | DM4: 2 | DN4: 3 | DO4: 4 | DP4: 5 | DQ4: 6 | DR4: 7 | DS4: 8 | DT4: 9 | DU4: 10 | DV4: 11 | DW4: 12 | DX4: 13 | DY4: 14 | DZ4: 15 | EA4: 16 | EB4: 17 | EC4: 18 | ED4: 19 | EE4: 20 | EF4: 21 | EG4: 22 | EH4: 23 | EI4: 24 | EJ4: 25 | EK4: 26 | EL4: 27 | EM4: 28 | EN4: 29 | EO4: 30 | EP4: 31 | EQ4: 32 | ER4: 33 | ES4: 34 | ET4: 35 | EU4: 36 | EV4: 37 | EW4: 38 | EX4: 39 | EY4: 40 | EZ4: 41 | FA4: 42 | FB4: 43 | FC4: 44 | FD4: 45 | FE4: 46 | FF4: 47 | FG4: 48 | FH4: 49 | FI4: 50 | FJ4: 51 | FK4: 52 | FL4: 53 | FM4: 54 | FN4: 55 | FO4: 56 | FP4: 57 | FQ4: 58 | FR4: 59 | FS4: 60 | FT4: 61 | FU4: 62 | FV4: 63 | FW4: 64 | FX4: 65 | FY4: 66 | FZ4: 67 | GA4: 68 | GB4: 69 | GC4: 70 | GD4: 71 | GE4: 72 | GF4: 73 | GG4: 74 | GH4: 75 | GI4: 76 | GJ4: 77 | GK4: 78 | GL4: 79 | GM4: 80 | GN4: 81 | GO4: 82 | GP4: 83 | GQ4: 84 | GR4: 85 | GS4: 86 | GT4: 87 | GU4: 88 | GV4: 89 | GW4: 90 | GX4: 91 | GY4: 92 | GZ4: 93 | HA4: 94 | HB4: 95 | HC4: 96 | HD4: 97 | HE4: 98 | HF4: 99 | HG4: 100 | HH4: 101 | HI4: 102 | HJ4: 103 | HK4: 104 | HL4: 105 | HM4: 106
A5: =C5&"_"&B5&"_"&D5 -> 0_20_M | B5: 20 | C5: 0 | D5: M | F5: 1285 | G5: 0 | H5: 327 | I5: 791 | J5: 1339 | K5: 1933 | L5: 1632 | M5: 2006 | N5: 2399 | O5: 2811 | P5: 3243 | Q5: 3696 | R5: 4172 | S5: 4670 | T5: 5192 | U5: 5740 | V5: 6314 | W5: 6915 | X5: 7544 | Y5: 8204 | Z5: 8894 | AA5: 9617 | AB5: 9743 | AC5: 9875 | AD5: 10011 | AE5: 10153 | AF5: 10300 | AG5: 10454 | AH5: 10613 | AI5: 10779 | AJ5: 10951 | AK5: 11130 | AL5: 11316 | AM5: 11510 | AN5: 11711 | AO5: 11920 | AP5: 12137 | AQ5: 12363 | AR5: 12598 | AS5: 12842 | AT5: 13095 | AU5: 13359 | AV5: 13633 | AW5: 13918 | AX5: 14214 | AY5: 14522 | AZ5: 14842 | BA5: 15174 | BB5: 15520 | BC5: 15880 | BD5: 16254 | BE5: 16643 | BF5: 17048 | BG5: 17469 | BH5: 17908 | BI5: 18364 | BJ5: 18840 | BK5: 19335 | BL5: 19850 | BM5: 20387 | BN5: 20944 | BO5: 21395 | BP5: 21864 | BQ5: 22352 | BR5: 22859 | BS5: 23386 | BT5: 23934 | BU5: 22504 | BV5: 21016 | BW5: 19469 | BX5: 17860 | BY5: 16187 | BZ5: 14447 | CA5: 12637 | CB5: 10754 | CC5: 8797 | CD5: 6761 | CE5: 6644 | CF5: 6522 | CG5: 6395 | CH5: 6263 | CI5: 6125 | CJ5: 5981 | CK5: 5830 | CL5: 5674 | CM5: 5510 | CN5: 5340 | CO5: 5162 | CP5: 4976 | CQ5: 4783 | CR5: 4582 | CS5: 4372 | CT5: 4153 | CU5: 3926 | CV5: 3689 | CW5: 3442 | CX5: 3185 | CY5: 2918 | CZ5: 2640 | DA5: 2351 | DB5: 2051 | DC5: 1740 | DD5: 1416 | DE5: 1081 | DF5: 733 | DG5: 373 | DH5: 0 | DI5: 0 | DL5: 328.3829243 | DM5: 1232.081592 | DN5: 2158.443207 | DO5: 3108.01482 | DP5: 3081.355332 | DQ5: 3796.899407 | DR5: 4530.31344 | DS5: 5282.036092 | DT5: 6052.514996 | DU5: 6842.208544 | DV5: 7651.587561 | DW5: 8481.136834 | DX5: 9331.352922 | DY5: 10202.74844 | DZ5: 11095.85705 | EA5: 12011.23103 | EB5: 12949.42987 | EC5: 13911.0401 | ED5: 14896.65184 | EE5: 15906.87886 | EF5: 16046.5725 | EG5: 16189.76358 | EH5: 16336.54277 | EI5: 16486.99962 | EJ5: 16641.22314 | EK5: 16799.30565 | EL5: 16961.33684 | EM5: 17127.41653 | EN5: 17297.64834 | EO5: 17472.13472 | EP5: 17650.98552 | EQ5: 17834.31533 | ER5: 18022.24375 | ES5: 18214.89557 | ET5: 18412.40106 | EU5: 18614.89616 | EV5: 18822.52161 | EW5: 19035.42499 | EX5: 19253.7603 | EY5: 19477.68918 | EZ5: 19707.38199 | FA5: 19943.02028 | FB5: 20184.79706 | FC5: 20432.91937 | FD5: 20687.60906 | FE5: 20949.10552 | FF5: 21217.66757 | FG5: 21493.57424 | FH5: 21777.12422 | FI5: 22068.63814 | FJ5: 22368.4599 | FK5: 22676.95546 | FL5: 22994.51914 | FM5: 23321.5699 | FN5: 23658.55544 | FO5: 24005.95001 | FP5: 24363.89094 | FQ5: 24731.23973 | FR5: 25108.17854 | FS5: 25366.38159 | FT5: 25631.30876 | FU5: 25903.04551 | FV5: 26181.65027 | FW5: 26467.15308 | FX5: 26759.53731 | FY5: 25058.71743 | FZ5: 23314.96819 | GA5: 21527.1574 | GB5: 19694.15295 | GC5: 17814.83398 | GD5: 15888.11897 | GE5: 13912.98141 | GF5: 11888.46619 | GG5: 9813.68403 | GH5: 7687.909879 | GI5: 7510.613403 | GJ5: 7330.229059 | GK5: 7146.784365 | GL5: 6960.223243 | GM5: 6770.428415 | GN5: 6577.196215 | GO5: 6380.293872 | GP5: 6179.318044 | GQ5: 5973.981377 | GR5: 5763.835781 | GS5: 5548.548389 | GT5: 5327.781295 | GU5: 5101.092868 | GV5: 4868.099392 | GW5: 4628.505123 | GX5: 4381.998693 | GY5: 4128.057635 | GZ5: 3866.390468 | HA5: 3596.680353 | HB5: 3318.563646 | HC5: 3031.589858 | HD5: 2735.459875 | HE5: 2429.832929 | HF5: 2114.293673 | HG5: 1788.282646 | HH5: 1451.944341 | HI5: 1104.68132 | HJ5: 746.738583 | HK5: 378.1537301 | HL5: 0 | HM5: 0
A6: =C6&"_"&B6&"_"&D6 -> 1_20_M | B6: 20 | C6: 1 | D6: M | F6: 1272 | G6: 0 | H6: 328 | I6: 792 | J6: 1340 | K6: 1934 | L6: 1634 | M6: 2010 | N6: 2406 | O6: 2820 | P6: 3256 | Q6: 3712 | R6: 4191 | S6: 4693 | T6: 5219 | U6: 5770 | V6: 6348 | W6: 6953 | X6: 7587 | Y6: 8252 | Z6: 8947 | AA6: 9675 | AB6: 9806 | AC6: 9943 | AD6: 10084 | AE6: 10232 | AF6: 10385 | AG6: 10544 | AH6: 10709 | AI6: 10881 | AJ6: 11060 | AK6: 11246 | AL6: 11440 | AM6: 11640 | AN6: 11849 | AO6: 12066 | AP6: 12292 | AQ6: 12526 | AR6: 12770 | AS6: 13023 | AT6: 13287 | AU6: 13560 | AV6: 13845 | AW6: 14141 | AX6: 14448 | AY6: 14768 | AZ6: 15100 | BA6: 15445 | BB6: 15805 | BC6: 16178 | BD6: 16567 | BE6: 16971 | BF6: 17392 | BG6: 17830 | BH6: 18286 | BI6: 18760 | BJ6: 19255 | BK6: 19770 | BL6: 20305 | BM6: 20862 | BN6: 21314 | BO6: 21784 | BP6: 22272 | BQ6: 22780 | BR6: 23308 | BS6: 23856 | BT6: 22427 | BU6: 20940 | BV6: 19394 | BW6: 17786 | BX6: 16113 | BY6: 14374 | BZ6: 12565 | CA6: 10684 | CB6: 8727 | CC6: 6693 | CD6: 6577 | CE6: 6457 | CF6: 6331 | CG6: 6200 | CH6: 6063 | CI6: 5920 | CJ6: 5772 | CK6: 5616 | CL6: 5455 | CM6: 5286 | CN6: 5110 | CO6: 4926 | CP6: 4735 | CQ6: 4536 | CR6: 4328 | CS6: 4112 | CT6: 3886 | CU6: 3652 | CV6: 3407 | CW6: 3153 | CX6: 2889 | CY6: 2614 | CZ6: 2328 | DA6: 2031 | DB6: 1722 | DC6: 1402 | DD6: 1070 | DE6: 726 | DF6: 369 | DG6: 0 | DH6: 0 | DL6: 329.7718109 | DM6: 1233.182987 | DN6: 2159.21951 | DO6: 3108.430325 | DP6: 3081.381846 | DQ6: 3799.128665 | DR6: 4534.789516 | DS6: 5288.80344 | DT6: 6061.61955 | DU6: 6853.69873 | DV6: 7665.515217 | DW6: 8497.554634 | DX6: 9350.318098 | DY6: 10224.32714 | DZ6: 11120.12151 | EA6: 12038.24815 | EB6: 12979.28051 | EC6: 13943.7956 | ED6: 14932.39367 | EE6: 15945.67856 | EF6: 16088.92081 | EG6: 16235.75163 | EH6: 16386.2605 | EI6: 16540.53621 | EJ6: 16698.67088 | EK6: 16860.7538 | EL6: 17026.88458 | EM6: 17197.16659 | EN6: 17371.70188 | EO6: 17550.59994 | EP6: 17733.97503 | EQ6: 17921.94637 | ER6: 18114.6384 | ES6: 18312.18101 | ET6: 18514.70976 | EU6: 18722.3649 | EV6: 18935.29347 | EW6: 19153.64886 | EX6: 19377.59198 | EY6: 19607.2922 | EZ6: 19842.93018 | FA6: 20084.69779 | FB6: 20332.80073 | FC6: 20587.45953 | FD6: 20848.91204 | FE6: 21117.41539 | FF6: 21393.24685 | FG6: 21676.70342 | FH6: 21968.10395 | FI6: 22267.79053 | FJ6: 22576.12734 | FK6: 22893.50672 | FL6: 23220.34572 | FM6: 23557.09002 | FN6: 23904.21188 | FO6: 24262.13745 | FP6: 24629.47258 | FQ6: 25006.39201 | FR6: 25265.8706 | FS6: 25532.10034 | FT6: 25805.17216 | FU6: 26085.1403 | FV6: 26372.03522 | FW6: 26665.84728 | FX6: 24966.48573 | FY6: 23224.22606 | FZ6: 21437.93693 | GA6: 19606.48711 | GB6: 17728.76664 | GC6: 15803.68586 | GD6: 13830.21885 | GE6: 11807.39703 | GF6: 9734.358771 | GG6: 7610.348177 | GH6: 7434.850773 | GI6: 7256.277941 | GJ6: 7074.67999 | GK6: 6890.005644 | GL6: 6702.14534 | GM6: 6510.906589 | GN6: 6315.962863 | GO6: 6117.076765 | GP6: 5913.791035 | GQ6: 5705.795853 | GR6: 5492.697968 | GS6: 5274.165836 | GT6: 5049.766441 | GU6: 4819.128038 | GV6: 4581.971842 | GW6: 4337.853057 | GX6: 4086.568476 | GY6: 3827.546712 | GZ6: 3560.67168 | HA6: 3285.41771 | HB6: 3001.333441 | HC6: 2708.119746 | HD6: 2405.437399 | HE6: 2092.875352 | HF6: 1770.323812 | HG6: 1437.296961 | HH6: 1093.607095 | HI6: 739.0921615 | HJ6: 374.3280504 | HK6: 0 | HL6: 0
A7: 2_20_M | B7: 20 | C7: 2 | D7: M | F7: 1260 | G7: 0 | H7: 328 | I7: 793 | J7: 1342 | K7: 1937 | L7: 1637 | M7: 2017 | N7: 2415 | O7: 2833 | P7: 3272 | Q7: 3732 | R7: 4215 | S7: 4721 | T7: 5251 | U7: 5807 | V7: 6389 | W7: 6999 | X7: 7639 | Y7: 8308 | Z7: 9009 | AA7: 9743 | AB7: 9879 | AC7: 10021 | AD7: 10168 | AE7: 10321 | AF7: 10480 | AG7: 10645 | AH7: 10817 | AI7: 10996 | AJ7: 11182 | AK7: 11375 | AL7: 11576 | AM7: 11784 | AN7: 12001 | AO7: 12226 | AP7: 12461 | AQ7: 12704 | AR7: 12957 | AS7: 13220 | AT7: 13494 | AU7: 13778 | AV7: 14073 | AW7: 14380 | AX7: 14699 | AY7: 15031 | AZ7: 15376 | BA7: 15735 | BB7: 16108 | BC7: 16497 | BD7: 16900 | BE7: 17321 | BF7: 17758 | BG7: 18213 | BH7: 18687 | BI7: 19181 | BJ7: 19695 | BK7: 20230 | BL7: 20786 | BM7: 21239 | BN7: 21709 | BO7: 22198 | BP7: 22706 | BQ7: 23235 | BR7: 23785 | BS7: 22356 | BT7: 20870 | BU7: 19324 | BV7: 17717 | BW7: 16045 | BX7: 14307 | BY7: 12499 | BZ7: 10619 | CA7: 8663 | CB7: 6630 | CC7: 6515 | CD7: 6396 | CE7: 6271 | CF7: 6141 | CG7: 6006 | CH7: 5865 | CI7: 5717 | CJ7: 5563 | CK7: 5403 | CL7: 5236 | CM7: 5062 | CN7: 4880 | CO7: 4690 | CP7: 4493 | CQ7: 4287 | CR7: 4073 | CS7: 3850 | CT7: 3617 | CU7: 3375 | CV7: 3124 | CW7: 2862 | CX7: 2589 | CY7: 2306 | CZ7: 2012 | DA7: 1706 | DB7: 1389 | DC7: 1060 | DD7: 719 | DE7: 366 | DF7: 0 | DG7: 0 | DL7: 331.731209 | DM7: 1235.426448 | DN7: 2161.730459 | DO7: 3111.198078 | DP7: 3084.405657 | DQ7: 3804.812197 | DR7: 4543.188965 | DS7: 5299.976379 | DT7: 6075.625983 | DU7: 6870.602063 | DV7: 7685.379923 | DW7: 8520.449807 | DX7: 9376.321702 | DY7: 10253.5234 | DZ7: 11152.58997 | EA7: 12074.0823 | EB7: 13018.565 | EC7: 13986.62543 | ED7: 14978.85446 | EE7: 15995.85836 | EF7: 16142.73743 | EG7: 16293.29491 | EH7: 16447.61941 | EI7: 16605.80287 | EJ7: 16767.93419 | EK7: 16934.11278 | EL7: 17104.44183 | EM7: 17279.02297 | EN7: 17457.96537 | EO7: 17641.38299 | EP7: 17829.39471 | EQ7: 18022.12464 | ER7: 18219.70232 | ES7: 18422.26295 | ET7: 18629.94633 | EU7: 18842.89903 | EV7: 19061.27386 | EW7: 19285.23104 | EX7: 19514.93904 | EY7: 19750.5777 | EZ7: 19992.33785 | FA7: 20240.42394 | FB7: 20495.05529 | FC7: 20756.46833 | FD7: 21024.91861 | FE7: 21300.68181 | FF7: 21584.05336 | FG7: 21875.35048 | FH7: 22174.91356 | FI7: 22483.10516 | FJ7: 22800.31581 | FK7: 23126.96076 | FL7: 23463.48386 | FM7: 23810.35552 | FN7: 24168.08579 | FO7: 24535.40206 | FP7: 24912.30102 | FQ7: 25172.95411 | FR7: 25440.3876 | FS7: 25714.68847 | FT7: 25995.91684 | FU7: 26284.09853 | FV7: 26579.21775 | FW7: 24881.19709 | FX7: 23140.30624 | FY7: 21355.42293 | FZ7: 19525.40915 | GA7: 17649.15562 | GB7: 15725.57313 | GC7: 13753.6359 | GD7: 11732.37525 | GE7: 9660.929283 | GF7: 7538.541836 | GG7: 7364.698573 | GH7: 7187.811898 | GI7: 7007.934582 | GJ7: 6825.019847 | GK7: 6638.924733 | GL7: 6449.450617 | GM7: 6256.373214 | GN7: 6059.364131 | GO7: 5858.034064 | GP7: 5652.015316 | GQ7: 5440.914539 | GR7: 5224.400494 | GS7: 5002.154321 | GT7: 4773.722244 | GU7: 4538.837099 | GV7: 4297.07097 | GW7: 4048.069349 | GX7: 3791.610839 | GY7: 3527.265239 | GZ7: 3254.475039 | HA7: 2973.016195 | HB7: 2682.673142 | HC7: 2382.89789 | HD7: 2073.286346 | HE7: 1753.742758 | HF7: 1423.808787 | HG7: 1083.350685 | HH7: 732.314775 | HI7: 370.7966537 | HJ7: 0 | HK7: 0
A8: 3_20_M | B8: 20 | C8: 3 | D8: M | F8: 1247 | G8: 0 | H8: 328 | I8: 794 | J8: 1343 | K8: 1939 | L8: 1639 | M8: 2022 | N8: 2424 | O8: 2845 | P8: 3288 | Q8: 3752 | R8: 4238 | S8: 4748 | T8: 5283 | U8: 5843 | V8: 6430 | W8: 7045 | X8: 7689 | Y8: 8364 | Z8: 9071 | AA8: 9811 | AB8: 9952 | AC8: 10099 | AD8: 10252 | AE8: 10411 | AF8: 10576 | AG8: 10748 | AH8: 10926 | AI8: 11112 | AJ8: 11305 | AK8: 11505 | AL8: 11714 | AM8: 11930 | AN8: 12155 | AO8: 12389 | AP8: 12633 | AQ8: 12885 | AR8: 13148 | AS8: 13421 | AT8: 13705 | AU8: 14000 | AV8: 14307 | AW8: 14625 | AX8: 14957 | AY8: 15302 | AZ8: 15660 | BA8: 16033 | BB8: 16420 | BC8: 16824 | BD8: 17243 | BE8: 17680 | BF8: 18135 | BG8: 18608 | BH8: 19101 | BI8: 19614 | BJ8: 20149 | BK8: 20704 | BL8: 21157 | BM8: 21628 | BN8: 22118 | BO8: 22627 | BP8: 23156 | BQ8: 23707 | BR8: 22279 | BS8: 20793 | BT8: 19249 | BU8: 17642 | BV8: 15972 | BW8: 14234 | BX8: 12427 | BY8: 10548 | BZ8: 8594 | CA8: 6561 | CB8: 6448 | CC8: 6330 | CD8: 6206 | CE8: 6078 | CF8: 5944 | CG8: 5804 | CH8: 5658 | CI8: 5506 | CJ8: 5347 | CK8: 5182 | CL8: 5009 | CM8: 4829 | CN8: 4642 | CO8: 4446 | CP8: 4243 | CQ8: 4031 | CR8: 3810 | CS8: 3580 | CT8: 3340 | CU8: 3091 | CV8: 2832 | CW8: 2562 | CX8: 2282 | CY8: 1991 | CZ8: 1688 | DA8: 1374 | DB8: 1049 | DC8: 711 | DD8: 362 | DE8: 0 | DF8: 0 | DL8: 333.4508177 | DM8: 1237.09901 | DN8: 2163.339647 | DO8: 3112.735846 | DP8: 3085.864691 | DQ8: 3808.783552 | DR8: 4549.726094 | DS8: 5309.134668 | DT8: 6087.463754 | DU8: 6885.178494 | DV8: 7702.758395 | DW8: 8540.702023 | DX8: 9399.525345 | DY8: 10279.75166 | DZ8: 11181.92945 | EA8: 12106.61102 | EB8: 13054.371 | EC8: 14025.78745 | ED8: 15021.45343 | EE8: 16041.98149 | EF8: 16192.59186 | EG8: 16346.96946 | EH8: 16505.20603 | EI8: 16667.39004 | EJ8: 16833.6207 | EK8: 17004.00096 | EL8: 17178.63205 | EM8: 17357.62278 | EN8: 17541.08676 | EO8: 17729.14253 | EP8: 17921.91383 | EQ8: 18119.52982 | ER8: 18322.12532 | ES8: 18529.83962 | ET8: 18742.81881 | EU8: 18961.21505 | EV8: 19185.18782 | EW8: 19414.90463 | EX8: 19650.54441 | EY8: 19892.29689 | EZ8: 20140.36512 | FA8: 20394.96715 | FB8: 20656.33786 | FC8: 20924.73112 | FD8: 21200.42084 | FE8: 21483.70075 | FF8: 21774.88632 | FG8: 22074.31614 | FH8: 22382.35095 | FI8: 22699.37934 | FJ8: 23025.81465 | FK8: 23362.0987 | FL8: 23708.69993 | FM8: 24066.12609 | FN8: 24433.41895 | FO8: 24810.29224 | FP8: 25072.21873 | FQ8: 25340.95285 | FR8: 25616.58195 | FS8: 25899.16656 | FT8: 26188.73891 | FU8: 26485.27831 | FV8: 24788.70795 | FW8: 23049.30597 | FX8: 21265.93565 | FY8: 19437.47658 | FZ8: 17562.80203 | GA8: 15640.84338 | GB8: 13670.56557 | GC8: 11651.00019 | GD8: 9581.26976 | GE8: 7460.649573 | GF8: 7288.590014 | GG8: 7113.522391 | GH8: 6935.502644 | GI8: 6754.455046 | GJ8: 6570.271551 | GK8: 6382.763966 | GL8: 6191.667851 | GM8: 5996.652905 | GN8: 5797.399362 | GO8: 5593.483663 | GP8: 5384.605649 | GQ8: 5170.369569 | GR8: 4950.35425 | GS8: 4724.331413 | GT8: 4491.813771 | GU8: 4252.502562 | GV8: 4006.071446 | GW8: 3752.144261 | GX8: 3490.479398 | GY8: 3220.58505 | GZ8: 2942.06533 | HA8: 2654.713369 | HB8: 2357.997166 | HC8: 2051.541616 | HD8: 1735.303829 | HE8: 1408.923741 | HF8: 1071.898889 | HG8: 724.6683534 | HH8: 366.9709739 | HI8: 0 | HJ8: 0
A9: 4_20_M | B9: 20 | C9: 4 | D9: M | F9: 1233 | G9: 0 | H9: 329 | I9: 794 | J9: 1344 | K9: 1940 | L9: 1641 | M9: 2027 | N9: 2432 | O9: 2857 | P9: 3303 | Q9: 3770 | R9: 4261 | S9: 4775 | T9: 5314 | U9: 5878 | V9: 6470 | W9: 7090 | X9: 7740 | Y9: 8420 | Z9: 9133 | AA9: 9878 | AB9: 10025 | AC9: 10178 | AD9: 10337 | AE9: 10502 | AF9: 10673 | AG9: 10851 | AH9: 11037 | AI9: 11229 | AJ9: 11430 | AK9: 11638 | AL9: 11854 | AM9: 12079 | AN9: 12313 | AO9: 12556 | AP9: 12808 | AQ9: 13070 | AR9: 13343 | AS9: 13627 | AT9: 13921 | AU9: 14227 | AV9: 14546 | AW9: 14877 | AX9: 15221 | AY9: 15579 | AZ9: 15951 | BA9: 16338 | BB9: 16741 | BC9: 17160 | BD9: 17596 | BE9: 18050 | BF9: 18522 | BG9: 19015 | BH9: 19527 | BI9: 20061 | BJ9: 20616 | BK9: 21069 | BL9: 21541 | BM9: 22032 | BN9: 22541 | BO9: 23071 | BP9: 23623 | BQ9: 22195 | BR9: 20711 | BS9: 19167 | BT9: 17562 | BU9: 15892 | BV9: 14156 | BW9: 12350 | BX9: 10472 | BY9: 8519 | BZ9: 6487 | CA9: 6375 | CB9: 6258 | CC9: 6136 | CD9: 6009 | CE9: 5877 | CF9: 5739 | CG9: 5594 | CH9: 5444 | CI9: 5287 | CJ9: 5123 | CK9: 4953 | CL9: 4775 | CM9: 4589 | CN9: 4396 | CO9: 4195 | CP9: 3985 | CQ9: 3767 | CR9: 3539 | CS9: 3303 | CT9: 3056 | CU9: 2800 | CV9: 2533 | CW9: 2256 | CX9: 1968 | CY9: 1669 | CZ9: 1359 | DA9: 1037 | DB9: 703 | DC9: 358 | DD9: 0 | DE9: 0 | DL9: 334.9510325 | DM9: 1238.231463 | DN9: 2164.089557 | DO9: 3113.088541 | DP9: 3085.805425 | DQ9: 3811.09182 | DR9: 4554.45294 | DS9: 5316.333608 | DT9: 6097.188953 | DU9: 6897.487898 | DV9: 7717.717712 | DW9: 8558.382651 | DX9: 9419.994401 | DY9: 10303.08913 | DZ9: 11208.20701 | EA9: 12135.91004 | EB9: 13086.76365 | EC9: 14061.3479 | ED9: 15060.26187 | EE9: 16084.11644 | EF9: 16238.55057 | EG9: 16396.84364 | EH9: 16559.0837 | EI9: 16725.36973 | EJ9: 16895.80443 | EK9: 17070.48855 | EL9: 17249.53057 | EM9: 17433.04369 | EN9: 17621.14609 | EO9: 17813.9611 | EP9: 18011.61749 | EQ9: 18214.24966 | ER9: 18421.99637 | ES9: 18635.00315 | ET9: 18853.4215 | EU9: 19077.41008 | EV9: 19307.13537 | EW9: 19542.77533 | EX9: 19784.51847 | EY9: 20032.56637 | EZ9: 20287.13571 | FA9: 20548.45967 | FB9: 20816.7903 | FC9: 21092.39964 | FD9: 21375.57958 | FE9: 21666.64371 | FF9: 21965.92863 | FG9: 22273.79317 | FH9: 22590.62382 | FI9: 22916.83184 | FJ9: 23252.85687 | FK9: 23599.16522 | FL9: 23956.26218 | FM9: 24323.53099 | FN9: 24700.37362 | FO9: 24963.66826 | FP9: 25233.79999 | FQ9: 25510.85661 | FR9: 25794.9047 | FS9: 26085.97207 | FT9: 26384.03862 | FU9: 24689.03541 | FV9: 22951.22741 | FW9: 21169.49426 | FX9: 19342.69994 | FY9: 17469.73702 | FZ9: 15549.51778 | GA9: 13581.01743 | GB9: 11563.26787 | GC9: 9495.391896 | GD9: 7376.665363 | GE9: 7206.540018 | GF9: 7033.450006 | GG9: 6857.426981 | GH9: 6678.425665 | GI9: 6496.307766 | GJ9: 6310.883196 | GK9: 6121.94077 | GL9: 5929.10792 | GM9: 5732.067765 | GN9: 5530.481594 | GO9: 5323.903384 | GP9: 5112.01875 | GQ9: 4894.531549 | GR9: 4671.019402 | GS9: 4441.117937 | GT9: 4204.561672 | GU9: 3960.896601 | GV9: 3709.934558 | GW9: 3451.076828 | GX9: 3184.226834 | GY9: 2908.829545 | GZ9: 2624.707422 | HA9: 2331.378758 | HB9: 2028.556061 | HC9: 1715.912324 | HD9: 1393.033385 | HE9: 1059.873763 | HF9: 716.5585673 | HG9: 362.8510111 | HH9: 0 | HI9: 0
A10: 5_20_M | B10: 20 | C10: 5 | D10: M | F10: 1220 | G10: 0 | H10: 329 | I10: 796 | J10: 1347 | K10: 1943 | L10: 1646 | M10: 2035 | N10: 2443 | O10: 2872 | P10: 3322 | Q10: 3794 | R10: 4288 | S10: 4807 | T10: 5351 | U10: 5921 | V10: 6518 | W10: 7143 | X10: 7799 | Y10: 8485 | Z10: 9204 | AA10: 9957 | AB10: 10109 | AC10: 10268 | AD10: 10432 | AE10: 10604 | AF10: 10782 | AG10: 10967 | AH10: 11159 | AI10: 11360 | AJ10: 11567 | AK10: 11784 | AL10: 12008 | AM10: 12242 | AN10: 12484 | AO10: 12736 | AP10: 12998 | AQ10: 13271 | AR10: 13554 | AS10: 13848 | AT10: 14154 | AU10: 14472 | AV10: 14803 | AW10: 15146 | AX10: 15504 | AY10: 15875 | AZ10: 16262 | BA10: 16664 | BB10: 17083 | BC10: 17518 | BD10: 17971 | BE10: 18443 | BF10: 18935 | BG10: 19447 | BH10: 19980 | BI10: 20534 | BJ10: 20988 | BK10: 21460 | BL10: 21952 | BM10: 22462 | BN10: 22993 | BO10: 23545 | BP10: 22118 | BQ10: 20635 | BR10: 19092 | BS10: 17488 | BT10: 15819 | BU10: 14083 | BV10: 12278 | BW10: 10401 | BX10: 8449 | BY10: 6419 | BZ10: 6308 | CA10: 6193 | CB10: 6072 | CC10: 5946 | CD10: 5815 | CE10: 5678 | CF10: 5536 | CG10: 5387 | CH10: 5231 | CI10: 5070 | CJ10: 4901 | CK10: 4725 | CL10: 4541 | CM10: 4350 | CN10: 4151 | CO10: 3944 | CP10: 3727 | CQ10: 3502 | CR10: 3268 | CS10: 3024 | CT10: 2771 | CU10: 2507 | CV10: 2233 | CW10: 1948 | CX10: 1652 | CY10: 1345 | CZ10: 1026 | DA10: 696 | DB10: 354 | DC10: 0 | DD10: 0 | DL10: 337.0738282 | DM10: 1240.595004 | DN10: 2166.695427 | DO10: 3115.938343 | DP10: 3088.901323 | DQ10: 3817.027735 | DR10: 4563.293373 | DS10: 5328.143928 | DT10: 6112.038316 | DU10: 6915.453065 | DV10: 7738.881259 | DW10: 8582.82357 | DX10: 9447.80439 | DY10: 10334.35239 | DZ10: 11243.01752 | EA10: 12174.35326 | EB10: 13128.92735 | EC10: 14107.32611 | ED10: 15110.14735 | EE10: 16138.00082 | EF10: 16296.34953 | EG10: 16458.64488 | EH10: 16624.98564 | EI10: 16795.4743 | EJ10: 16970.21118 | EK10: 17149.30441 | EL10: 17332.86687 | EM10: 17521.01635 | EN10: 17713.87586 | EO10: 17911.57376 | EP10: 18114.2441 | EQ10: 18322.02513 | ER10: 18535.06187 | ES10: 18753.50521 | ET10: 18977.51307 | EU10: 19207.25095 | EV10: 19442.89593 | EW10: 19684.6354 | EX10: 19932.66959 | EY10: 20187.21386 | EZ10: 20448.49988 | FA10: 20716.77801 | FB10: 20992.31854 | FC10: 21275.41169 | FD10: 21566.36926 | FE10: 21865.52607 | FF10: 22173.23917 | FG10: 22489.8931 | FH10: 22815.89719 | FI10: 23151.68911 | FJ10: 23497.73318 | FK10: 23854.53242 | FL10: 24221.78446 | FM10: 24598.60831 | FN10: 24863.17912 | FO10: 25134.6188 | FP10: 25413.01132 | FQ10: 25698.42364 | FR10: 25990.88403 | FS10: 26290.37935 | FT10: 24596.83546 | FU10: 22860.51807 | FV10: 21080.30768 | FW10: 19255.06915 | FX10: 17383.69585 | FY10: 15465.11179 | FZ10: 13498.28301 | GA10: 11482.24185 | GB10: 9416.111551 | GC10: 7299.150527 | GD10: 7130.826433 | GE10: 6959.550397 | GF10: 6785.376931 | GG10: 6608.265649 | GH10: 6428.086073 | GI10: 6244.659415 | GJ10: 6057.680886 | GK10: 5866.881514 | GL10: 5671.964959 | GM10: 5472.457946 | GN10: 5268.071146 | GO10: 5058.423799 | GP10: 4843.228501 | GQ10: 4622.075013 | GR10: 4394.616159 | GS10: 4160.453361 | GT10: 3919.452357 | GU10: 3671.145787 | GV10: 3415.136767 | GW10: 3151.168346 | GX10: 2878.68724 | GY10: 2597.520118 | GZ10: 2307.193823 | HA10: 2007.43714 | HB10: 1697.953489 | HC10: 1378.386005 | HD10: 1048.799537 | HE10: 708.9121458 | HF10: 359.0253313 | HG10: 0 | HH10: 0
A11: 6_20_M | B11: 20 | C11: 6 | D11: M | F11: 1206 | G11: 0 | H11: 330 | I11: 797 | J11: 1348 | K11: 1946 | L11: 1649 | M11: 2042 | N11: 2454 | O11: 2887 | P11: 3340 | Q11: 3816 | R11: 4316 | S11: 4839 | T11: 5388 | U11: 5963 | V11: 6565 | W11: 7196 | X11: 7858 | Y11: 8550 | Z11: 9275 | AA11: 10035 | AB11: 10193 | AC11: 10358 | AD11: 10529 | AE11: 10707 | AF11: 10892 | AG11: 11084 | AH11: 11284 | AI11: 11492 | AJ11: 11707 | AK11: 11932 | AL11: 12165 | AM11: 12407 | AN11: 12659 | AO11: 12921 | AP11: 13193 | AQ11: 13475 | AR11: 13769 | AS11: 14075 | AT11: 14392 | AU11: 14723 | AV11: 15066 | AW11: 15423 | AX11: 15794 | AY11: 16180 | AZ11: 16582 | BA11: 16999 | BB11: 17434 | BC11: 17887 | BD11: 18358 | BE11: 18849 | BF11: 19360 | BG11: 19892 | BH11: 20445 | BI11: 20900 | BJ11: 21373 | BK11: 21865 | BL11: 22377 | BM11: 22908 | BN11: 23461 | BO11: 22035 | BP11: 20553 | BQ11: 19011 | BR11: 17407 | BS11: 15740 | BT11: 14005 | BU11: 12201 | BV11: 10325 | BW11: 8374 | BX11: 6346 | BY11: 6236 | BZ11: 6121 | CA11: 6002 | CB11: 5878 | CC11: 5748 | CD11: 5613 | CE11: 5472 | CF11: 5325 | CG11: 5171 | CH11: 5011 | CI11: 4845 | CJ11: 4671 | CK11: 4489 | CL11: 4300 | CM11: 4103 | CN11: 3898 | CO11: 3685 | CP11: 3462 | CQ11: 3231 | CR11: 2990 | CS11: 2739 | CT11: 2478 | CU11: 2207 | CV11: 1925 | CW11: 1633 | CX11: 1329 | CY11: 1014 | CZ11: 688 | DA11: 350 | DB11: 0 | DC11: 0 | DL11: 339.0067757 | DM11: 1242.462981 | DN11: 2168.492709 | DO11: 3117.659301 | DP11: 3090.540897 | DQ11: 3821.370504 | DR11: 4570.399918 | DS11: 5338.07818 | DT11: 6124.871188 | DU11: 6931.260963 | DV11: 7757.737291 | DW11: 8604.812892 | DX11: 9473.005064 | DY11: 10362.85182 | DZ11: 11274.89485 | EA11: 12209.68973 | EB11: 13167.81016 | EC11: 14149.84109 | ED11: 15156.37896 | EE11: 16188.03608 | EF11: 16350.38873 | EG11: 16516.78612 | EH11: 16687.33052 | EI11: 16862.12178 | EJ11: 17041.26766 | EK11: 17224.88068 | EL11: 17413.07824 | EM11: 17605.98295 | EN11: 17803.72278 | EO11: 18006.43136 | EP11: 18214.24641 | EQ11: 18427.31241 | ER11: 18645.77956 | ES11: 18869.80499 | ET11: 19099.55315 | EU11: 19335.20016 | EV11: 19576.9322 | EW11: 19824.94804 | EX11: 20079.46163 | EY11: 20340.703 | EZ11: 20608.92066 | FA11: 20884.38304 | FB11: 21167.37852 | FC11: 21458.21702 | FD11: 21757.23139 | FE11: 22064.77677 | FF11: 22381.23559 | FG11: 22707.01511 | FH11: 23042.55084 | FI11: 23388.30497 | FJ11: 23744.77806 | FK11: 24112.0092 | FL11: 24488.80976 | FM11: 24754.75225 | FN11: 25027.59323 | FO11: 25307.42222 | FP11: 25594.29666 | FQ11: 25888.25625 | FR11: 26189.28312 | FS11: 24497.30388 | FT11: 22762.5851 | FU11: 20984.0083 | FV11: 19160.44864 | FW11: 17290.78236 | FX11: 15373.9432 | FY11: 13408.89778 | FZ11: 11394.67881 | GA11: 9330.409907 | GB11: 7215.331967 | GC11: 7048.928559 | GD11: 6879.637773 | GE11: 6707.46977 | GF11: 6532.380346 | GG11: 6354.275872 | GH11: 6172.943397 | GI11: 5988.131768 | GJ11: 5799.530207 | GK11: 5606.845848 | GL11: 5409.691011 | GM11: 5207.631486 | GN11: 5000.369174 | GO11: 4787.629851 | GP11: 4569.021423 | GQ11: 4344.222221 | GR11: 4112.870156 | GS11: 3874.53177 | GT11: 3629.050565 | GU11: 3375.87705 | GV11: 3114.745716 | GW11: 2845.367402 | GX11: 2567.401603 | GY11: 2280.420293 | GZ11: 1984.231051 | HA11: 1678.237613 | HB11: 1362.495649 | HC11: 1036.774411 | HD11: 700.8023596 | HE11: 354.9053685 | HF11: 0 | HG11: 0
A12: 7_20_M | B12: 20 | C12: 7 | D12: M | F12: 1191 | G12: 0 | H12: 330 | I12: 798 | J12: 1350 | K12: 1948 | L12: 1652 | M12: 2048 | N12: 2464 | O12: 2901 | P12: 3359 | Q12: 3839 | R12: 4343 | S12: 4871 | T12: 5424 | U12: 6004 | V12: 6612 | W12: 7249 | X12: 7917 | Y12: 8615 | Z12: 9347 | AA12: 10114 | AB12: 10278 | AC12: 10449 | AD12: 10627 | AE12: 10811 | AF12: 11003 | AG12: 11203 | AH12: 11410 | AI12: 11626 | AJ12: 11850 | AK12: 12083 | AL12: 12325 | AM12: 12576 | AN12: 12838 | AO12: 13109 | AP12: 13392 | AQ12: 13685 | AR12: 13990 | AS12: 14307 | AT12: 14637 | AU12: 14980 | AV12: 15336 | AW12: 15707 | AX12: 16092 | AY12: 16493 | AZ12: 16910 | BA12: 17344 | BB12: 17796 | BC12: 18266 | BD12: 18756 | BE12: 19267 | BF12: 19798 | BG12: 20351 | BH12: 20807 | BI12: 21280 | BJ12: 21773 | BK12: 22285 | BL12: 22817 | BM12: 23371 | BN12: 21946 | BO12: 20465 | BP12: 18924 | BQ12: 17321 | BR12: 15655 | BS12: 13921 | BT12: 12119 | BU12: 10244 | BV12: 8294 | BW12: 6267 | BX12: 6158 | BY12: 6046 | BZ12: 5928 | CA12: 5805 | CB12: 5677 | CC12: 5544 | CD12: 5404 | CE12: 5259 | CF12: 5107 | CG12: 4949 | CH12: 4785 | CI12: 4613 | CJ12: 4434 | CK12: 4247 | CL12: 4053 | CM12: 3850 | CN12: 3639 | CO12: 3419 | CP12: 3191 | CQ12: 2953 | CR12: 2705 | CS12: 2448 | CT12: 2180 | CU12: 1902 | CV12: 1613 | CW12: 1313 | CX12: 1002 | CY12: 680 | CZ12: 346 | DA12: 0 | DB12: 0 | DL12: 340.7643866 | DM12: 1243.861644 | DN12: 2169.519759 | DO12: 3118.302226 | DP12: 3090.78774 | DQ12: 3824.195826 | DR12: 4575.862964 | DS12: 5346.244552 | DT12: 6135.811661 | DU12: 6945.043332 | DV12: 7774.440721 | DW12: 8624.5099 | DX12: 9495.777071 | DY12: 10388.77231 | DZ12: 11304.03918 | EA12: 12242.13896 | EB12: 13203.64385 | EC12: 14189.13727 | ED12: 15199.21796 | EE12: 16234.49328 | EF12: 16400.95371 | EG12: 16571.56026 | EH12: 16746.41227 | EI12: 16925.61713 | EJ12: 17109.28693 | EK12: 17297.5387 | EL12: 17490.49461 | EM12: 17688.28221 | EN12: 17891.03469 | EO12: 18098.88919 | EP12: 18311.98961 | EQ12: 18530.48545 | ER12: 18754.53296 | ES12: 18984.29549 | ET12: 19219.94813 | EU12: 19461.67576 | EV12: 19709.67559 | EW12: 19964.16009 | EX12: 20225.35749 | EY12: 20493.51438 | EZ12: 20768.89717 | FA12: 21051.79228 | FB12: 21342.50763 | FC12: 21641.37396 | FD12: 21948.74437 | FE12: 22264.99904 | FF12: 22590.54302 | FG12: 22925.80953 | FH12: 23271.25845 | FI12: 23627.38774 | FJ12: 23994.60128 | FK12: 24371.37742 | FL12: 24638.79008 | FM12: 24913.13766 | FN12: 25194.50601 | FO12: 25482.95872 | FP12: 25778.53123 | FQ12: 26081.20643 | FR12: 24390.91184 | FS12: 22657.91515 | FT12: 20881.09911 | FU12: 19059.34022 | FV12: 17191.51604 | FW12: 15276.56149 | FX12: 13313.43184 | FY12: 11301.17113 | FZ12: 9238.903645 | GA12: 7125.871388 | GB12: 6961.560098 | GC12: 6794.362027 | GD12: 6624.332263 | GE12: 6451.4341 | GF12: 6275.544864 | GG12: 6096.451406 | GH12: 5913.958099 | GI12: 5727.714848 | GJ12: 5537.43545 | GK12: 5342.741327 | GL12: 5143.21043 | GM12: 4938.560976 | GN12: 4728.426958 | GO12: 4512.52922 | GP12: 4290.436573 | GQ12: 4061.931491 | GR12: 3826.630886 | GS12: 3584.256166 | GT12: 3334.275527 | GU12: 3076.451746 | GV12: 2810.541522 | GW12: 2535.969633 | GX12: 2252.590091 | GY12: 1959.940251 | GZ12: 1657.798783 | HA12: 1345.950431 | HB12: 1024.175955 | HC12: 692.2292089 | HD12: 350.4911226 | HE12: 0 | HF12: 0
A13: 8_20_M | B13: 20 | C13: 8 | D13: M | F13: 1176 | G13: 0 | H13: 331 | I13: 799 | J13: 1352 | K13: 1951 | L13: 1656 | M13: 2056 | N13: 2476 | O13: 2916 | P13: 3379 | Q13: 3864 | R13: 4372 | S13: 4905 | T13: 5464 | U13: 6050 | V13: 6664 | W13: 7307 | X13: 7980 | Y13: 8686 | Z13: 9425 | AA13: 10198 | AB13: 10369 | AC13: 10546 | AD13: 10731 | AE13: 10923 | AF13: 11122 | AG13: 11329 | AH13: 11544 | AI13: 11768 | AJ13: 12001 | AK13: 12242 | AL13: 12493 | AM13: 12754 | AN13: 13026 | AO13: 13308 | AP13: 13601 | AQ13: 13905 | AR13: 14222 | AS13: 14551 | AT13: 14893 | AU13: 15249 | AV13: 15619 | AW13: 16004 | AX13: 16404 | AY13: 16821 | AZ13: 17254 | BA13: 17705 | BB13: 18175 | BC13: 18664 | BD13: 19173 | BE13: 19704 | BF13: 20256 | BG13: 20712 | BH13: 21187 | BI13: 21680 | BJ13: 22193 | BK13: 22727 | BL13: 23281 | BM13: 21857 | BN13: 20377 | BO13: 18837 | BP13: 17235 | BQ13: 15570 | BR13: 13837 | BS13: 12036 | BT13: 10162 | BU13: 8214 | BV13: 6188 | BW13: 6081 | BX13: 5969 | BY13: 5853 | BZ13: 5732 | CA13: 5605 | CB13: 5473 | CC13: 5336 | CD13: 5192 | CE13: 5043 | CF13: 4887 | CG13: 4724 | CH13: 4554 | CI13: 4377 | CJ13: 4193 | CK13: 4001 | CL13: 3801 | CM13: 3593 | CN13: 3376 | CO13: 3150 | CP13: 2915 | CQ13: 2671 | CR13: 2416 | CS13: 2152 | CT13: 1877 | CU13: 1592 | CV13: 1296 | CW13: 989 | CX13: 671 | CY13: 341 | CZ13: 0 | DA13: 0 | DL13: 342.74556 | DM13: 1245.643524 | DN13: 2171.094226 | DO13: 3119.661642 | DP13: 3091.924326 | DQ13: 3828.08844 | DR13: 4582.579698 | DS13: 5355.858535 | DT13: 6148.393595 | DU13: 6960.674774 | DV13: 7793.197279 | DW13: 8646.475844 | DX13: 9521.029309 | DY13: 10417.38966 | DZ13: 11336.1061 | EA13: 12277.7386 | EB13: 13242.85793 | EC13: 14232.04982 | ED13: 15245.90809 | EE13: 16285.05038 | EF13: 16455.71727 | EG13: 16630.62818 | EH13: 16809.89012 | EI13: 16993.61477 | EJ13: 17181.91874 | EK13: 17374.9238 | EL13: 17572.75706 | EM13: 17775.55127 | EN13: 17983.443 | EO13: 18196.57556 | EP13: 18415.09772 | EQ13: 18639.1649 | ER13: 18868.93931 | ES13: 19104.59502 | ET13: 19346.31561 | EU13: 19594.29673 | EV13: 19848.74933 | EW13: 20109.89989 | EX13: 20377.99303 | EY13: 20653.29316 | EZ13: 20936.08473 | FA13: 21226.67364 | FB13: 21525.38854 | FC13: 21832.58047 | FD13: 22148.62737 | FE13: 22473.93205 | FF13: 22808.92543 | FG13: 23154.06511 | FH13: 23509.8464 | FI13: 23876.80747 | FJ13: 24253.55203 | FK13: 24522.43207 | FL13: 24798.27446 | FM13: 25081.17498 | FN13: 25371.19326 | FO13: 25668.35938 | FP13: 25972.66877 | FQ13: 24284.044 | FR13: 22552.75376 | FS13: 20777.68197 | FT13: 18957.70641 | FU13: 17091.7058 | FV13: 15178.61613 | FW13: 13217.39347 | FX13: 11207.08257 | FY13: 9146.79267 | FZ13: 7035.779819 | GA13: 6873.510078 | GB13: 6708.420321 | GC13: 6540.521704 | GD13: 6369.774449 | GE13: 6196.093856 | GF13: 6019.281334 | GG13: 5839.05198 | GH13: 5655.16489 | GI13: 5467.219121 | GJ13: 5274.899809 | GK13: 5077.884051 | GL13: 4875.833302 | GM13: 4668.403069 | GN13: 4455.216905 | GO13: 4235.975797 | GP13: 4010.350771 | GQ13: 3777.957384 | GR13: 3538.515902 | GS13: 3291.713822 | GT13: 3037.180463 | GU13: 2774.440348 | GV13: 2503.450517 | GW13: 2223.610468 | GX13: 1934.798972 | GY13: 1636.549403 | GZ13: 1328.663203 | HA13: 1010.955443 | HB13: 683.2503877 | HC13: 346.0768768 | HD13: 0 | HE13: 0
A14: 9_20_M | B14: 20 | C14: 9 | D14: M | F14: 1161 | G14: 0 | H14: 331 | I14: 800 | J14: 1355 | K14: 1955 | L14: 1661 | M14: 2065 | N14: 2489 | O14: 2934 | P14: 3401 | Q14: 3891 | R14: 4404 | S14: 4943 | T14: 5507 | U14: 6099 | V14: 6719 | W14: 7368 | X14: 8049 | Y14: 8761 | Z14: 9508 | AA14: 10289 | AB14: 10466 | AC14: 10650 | AD14: 10842 | AE14: 11041 | AF14: 11248 | AG14: 11463 | AH14: 11686 | AI14: 11918 | AJ14: 12160 | AK14: 12411 | AL14: 12671 | AM14: 12942 | AN14: 13224 | AO14: 13517 | AP14: 13821 | AQ14: 14137 | AR14: 14466 | AS14: 14807 | AT14: 15163 | AU14: 15532 | AV14: 15916 | AW14: 16316 | AX14: 16732 | AY14: 17165 | AZ14: 17615 | BA14: 18084 | BB14: 18572 | BC14: 19080 | BD14: 19610 | BE14: 20161 | BF14: 20619 | BG14: 21094 | BH14: 21588 | BI14: 22102 | BJ14: 22636 | BK14: 23191 | BL14: 21768 | BM14: 20289 | BN14: 18750 | BO14: 17149 | BP14: 15485 | BQ14: 13753 | BR14: 11953 | BS14: 10081 | BT14: 8134 | BU14: 6109 | BV14: 6003 | BW14: 5893 | BX14: 5778 | BY14: 5659 | BZ14: 5534 | CA14: 5404 | CB14: 5268 | CC14: 5126 | CD14: 4978 | CE14: 4824 | CF14: 4664 | CG14: 4496 | CH14: 4322 | CI14: 4140 | CJ14: 3950 | CK14: 3753 | CL14: 3547 | CM14: 3333 | CN14: 3110 | CO14: 2878 | CP14: 2637 | CQ14: 2386 | CR14: 2125 | CS14: 1853 | CT14: 1572 | CU14: 1280 | CV14: 976 | CW14: 662 | CX14: 337 | CY14: 0 | CZ14: 0 | DL14: 344.9702853 | DM14: 1247.843585 | DN14: 2173.266511 | DO14: 3121.802917 | DP14: 3094.032347 | DQ14: 3833.149831 | DR14: 4590.670131 | DS14: 5367.05184 | DT14: 6162.7739 | DU14: 6978.32101 | DV14: 7814.196769 | DW14: 8670.909173 | DX14: 9548.979026 | DY14: 10448.94389 | DZ14: 11371.35187 | EA14: 12316.76161 | EB14: 13285.74624 | EC14: 14278.88665 | ED14: 15296.78685 | EE14: 16340.06764 | EF14: 16515.04237 | EG14: 16694.36642 | EH14: 16878.15109 | EI14: 17066.51259 | EJ14: 17259.57225 | EK14: 17457.45678 | EL14: 17660.29847 | EM14: 17868.23334 | EN14: 18081.40413 | EO14: 18299.95887 | EP14: 18524.05214 | EQ14: 18753.84505 | ER14: 18989.51063 | ES14: 19231.23119 | ET14: 19479.2008 | EU14: 19733.62895 | EV14: 19994.74032 | EW14: 20262.77763 | EX14: 20538.00325 | EY14: 20820.69972 | EZ14: 21111.17091 | FA14: 21409.74339 | FB14: 21716.76617 | FC14: 22032.61494 | FD14: 22357.69033 | FE14: 22692.42094 | FF14: 23037.26212 | FG14: 23392.70658 | FH14: 23759.2895 | FI14: 24136.01051 | FJ14: 24406.3575 | FK14: 24683.70315 | FL14: 24968.13953 | FM14: 25259.72688 | FN14: 25558.50192 | FO14: 25864.45545 | FP14: 24177.51094 | FQ14: 22447.93815 | FR14: 20674.62224 | FS14: 18856.44227 | FT14: 16992.27827 | FU14: 15081.06737 | FV14: 13121.76659 | FW14: 11113.40766 | FX14: 9055.112312 | FY14: 6946.137579 | FZ14: 6785.951508 | GA14: 6622.969832 | GB14: 6457.229233 | GC14: 6288.663949 | GD14: 6117.187758 | GE14: 5942.601518 | GF14: 5764.675427 | GG14: 5583.12873 | GH14: 5397.6377 | GI14: 5207.841459 | GJ14: 5013.341634 | GK14: 4813.88822 | GL14: 4609.044124 | GM14: 4398.544712 | GN14: 4182.121355 | GO14: 3959.330601 | GP14: 3729.95842 | GQ14: 3493.601431 | GR14: 3249.962472 | GS14: 2998.69553 | GT14: 2739.365281 | GU14: 2471.684821 | GV14: 2195.320384 | GW14: 1910.246184 | GX14: 1615.725229 | GY14: 1311.529871 | GZ14: 997.9794165 | HA14: 674.677237 | HB14: 341.6626309 | HC14: 0 | HD14: 0
A15: 10_20_M | B15: 20 | C15: 10 | D15: M | F15: 1146 | G15: 0 | H15: 332 | I15: 802 | J15: 1358 | K15: 1959 | L15: 1667 | M15: 2075 | N15: 2503 | O15: 2953 | P15: 3425 | Q15: 3920 | R15: 4439 | S15: 4983 | T15: 5554 | U15: 6151 | V15: 6778 | W15: 7434 | X15: 8122 | Y15: 8842 | Z15: 9596 | AA15: 10386 | AB15: 10570 | AC15: 10761 | AD15: 10960 | AE15: 11167 | AF15: 11381 | AG15: 11604 | AH15: 11836 | AI15: 12077 | AJ15: 12328 | AK15: 12588 | AL15: 12859 | AM15: 13140 | AN15: 13432 | AO15: 13736 | AP15: 14052 | AQ15: 14380 | AR15: 14721 | AS15: 15076 | AT15: 15445 | AU15: 15829 | AV15: 16228 | AW15: 16643 | AX15: 17075 | AY15: 17524 | AZ15: 17992 | BA15: 18480 | BB15: 18987 | BC15: 19516 | BD15: 20067 | BE15: 20525 | BF15: 21001 | BG15: 21495 | BH15: 22010 | BI15: 22545 | BJ15: 23101 | BK15: 21679 | BL15: 20201 | BM15: 18663 | BN15: 17063 | BO15: 15400 | BP15: 13670 | BQ15: 11870 | BR15: 9999 | BS15: 8053 | BT15: 6030 | BU15: 5926 | BV15: 5817 | BW15: 5704 | BX15: 5586 | BY15: 5462 | BZ15: 5334 | CA15: 5200 | CB15: 5060 | CC15: 4914 | CD15: 4762 | CE15: 4603 | CF15: 4438 | CG15: 4266 | CH15: 4086 | CI15: 3899 | CJ15: 3704 | CK15: 3501 | CL15: 3290 | CM15: 3070 | CN15: 2841 | CO15: 2603 | CP15: 2355 | CQ15: 2097 | CR15: 1830 | CS15: 1552 | CT15: 1263 | CU15: 964 | CV15: 654 | CW15: 332 | CX15: 0 | CY15: 0 | DL15: 347.4514811 | DM15: 1250.470099 | DN15: 2176.03935 | DO15: 3124.724048 | DP15: 3097.105951 | DQ15: 3839.370266 | DR15: 4600.114006 | DS15: 5379.805449 | DT15: 6178.919127 | DU15: 6997.947816 | DV15: 7837.389044 | DW15: 8697.752815 | DX15: 9579.565422 | DY15: 10483.36352 | DZ15: 11409.69404 | EA15: 12359.11799 | EB15: 13332.20382 | EC15: 14329.54242 | ED15: 15351.74098 | EE15: 16399.4165 | EF15: 16578.80165 | EG15: 16762.64529 | EH15: 16951.06324 | EI15: 17144.1764 | EJ15: 17342.11106 | EK15: 17544.99907 | EL15: 17752.9759 | EM15: 17966.18367 | EN15: 18184.76974 | EO15: 18408.8878 | EP15: 18638.69787 | EQ15: 18874.37195 | ER15: 19116.09105 | ES15: 19364.0477 | ET15: 19618.44989 | EU15: 19879.52054 | EV15: 20147.5004 | EW15: 20422.64988 | EX15: 20705.24954 | EY15: 20995.60125 | EZ15: 21294.02949 | FA15: 21600.88123 | FB15: 21916.52993 | FC15: 22241.374 | FD15: 22575.83975 | FE15: 22920.38026 | FF15: 23275.48562 | FG15: 23641.68806 | FH15: 24018.37902 | FI15: 24290.19469 | FJ15: 24569.04097 | FK15: 24855.01559 | FL15: 25148.17486 | FM15: 25448.55616 | FN15: 25756.15103 | FO15: 24070.88385 | FP15: 22343.02542 | FQ15: 20571.46211 | FR15: 18755.07429 | FS15: 16892.74325 | FT15: 14983.39607 | FU15: 13026.01256 | FV15: 11019.61455 | FW15: 8963.324729 | FX15: 6856.383455 | FY15: 6698.254623 | FZ15: 6537.374081 | GA15: 6373.754217 | GB15: 6207.359959 | GC15: 6038.115874 | GD15: 5865.791001 | GE15: 5690.157693 | GF15: 5510.938921 | GG15: 5327.816492 | GH15: 5140.437177 | GI15: 4948.503573 | GJ15: 4751.609678 | GK15: 4549.418642 | GL15: 4341.691917 | GM15: 4128.05593 | GN15: 3908.21829 | GO15: 3681.848579 | GP15: 3448.55122 | GQ15: 3208.041743 | GR15: 2959.994716 | GS15: 2704.008511 | GT15: 2439.852253 | GU15: 2167.286839 | GV15: 1885.666294 | GW15: 1594.861193 | GX15: 1294.830758 | GY15: 985.1364745 | GZ15: 665.6984158 | HA15: 337.248385 | HB15: 0 | HC15: 0
A16: 11_20_M | B16: 20 | C16: 11 | D16: M | F16: 1130 | G16: 0 | H16: 333 | I16: 804 | J16: 1360 | K16: 1963 | L16: 1672 | M16: 2085 | N16: 2518 | O16: 2972 | P16: 3449 | Q16: 3949 | R16: 4474 | S16: 5024 | T16: 5600 | U16: 6205 | V16: 6838 | W16: 7501 | X16: 8196 | Y16: 8924 | Z16: 9686 | AA16: 10484 | AB16: 10675 | AC16: 10874 | AD16: 11080 | AE16: 11294 | AF16: 11517 | AG16: 11749 | AH16: 11989 | AI16: 12240 | AJ16: 12500 | AK16: 12770 | AL16: 13051 | AM16: 13342 | AN16: 13646 | AO16: 13961 | AP16: 14289 | AQ16: 14629 | AR16: 14984 | AS16: 15352 | AT16: 15735 | AU16: 16133 | AV16: 16548 | AW16: 16979 | AX16: 17428 | AY16: 17895 | AZ16: 18382 | BA16: 18888 | BB16: 19416 | BC16: 19966 | BD16: 20424 | BE16: 20901 | BF16: 21397 | BG16: 21912 | BH16: 22448 | BI16: 23005 | BJ16: 21584 | BK16: 20107 | BL16: 18570 | BM16: 16971 | BN16: 15309 | BO16: 13580 | BP16: 11782 | BQ16: 9912 | BR16: 7968 | BS16: 5946 | BT16: 5843 | BU16: 5736 | BV16: 5624 | BW16: 5508 | BX16: 5386 | BY16: 5259 | BZ16: 5127 | CA16: 4989 | CB16: 4846 | CC16: 4696 | CD16: 4539 | CE16: 4376 | CF16: 4206 | CG16: 4029 | CH16: 3845 | CI16: 3653 | CJ16: 3452 | CK16: 3244 | CL16: 3027 | CM16: 2801 | CN16: 2566 | CO16: 2322 | CP16: 2068 | CQ16: 1804 | CR16: 1530 | CS16: 1246 | CT16: 951 | CU16: 645 | CV16: 328 | CW16: 0 | CX16: 0 | DL16: 349.7943288 | DM16: 1252.680729 | DN16: 2178.112473 | DO16: 3126.656257 | DP16: 3098.895124 | DQ16: 3844.201363 | DR16: 4608.0678 | DS16: 5390.958936 | DT16: 6193.356839 | DU16: 7015.748715 | DV16: 7858.633927 | DW16: 8722.527641 | DX16: 9607.955223 | DY16: 10515.45209 | DZ16: 11445.56732 | EA16: 12398.8571 | EB16: 13375.89945 | EC16: 14377.28815 | ED16: 15403.62634 | EE16: 16455.53807 | EF16: 16639.44476 | EG16: 16827.92306 | EH16: 17021.09344 | EI16: 17219.08173 | EJ16: 17422.01931 | EK16: 17630.04104 | EL16: 17843.28844 | EM16: 18061.90808 | EN16: 18286.05277 | EO16: 18515.88131 | EP16: 18751.56464 | EQ16: 18993.28239 | ER16: 19241.22541 | ES16: 19495.60011 | ET16: 19756.62752 | EU16: 20024.54633 | EV16: 20299.61481 | EW16: 20582.11144 | EX16: 20872.33594 | EY16: 21170.61057 | EZ16: 21477.28012 | FA16: 21792.71566 | FB16: 22117.31326 | FC16: 22451.49678 | FD16: 22795.71687 | FE16: 23150.46084 | FF16: 23516.25773 | FG16: 23892.91995 | FH16: 24166.30588 | FI16: 24446.75716 | FJ16: 24734.36711 | FK16: 25029.20286 | FL16: 25331.29763 | FM16: 25640.6438 | FN16: 23957.16681 | FO16: 22231.13868 | FP16: 20461.44719 | FQ16: 18646.97423 | FR16: 16786.60262 | FS16: 14879.26084 | FT16: 12923.91761 | FU16: 10919.60642 | FV16: 8865.435229 | FW16: 6760.658867 | FX16: 6604.743433 | FY16: 6446.104056 | FZ16: 6284.779358 | GA16: 6120.709371 | GB16: 5953.818684 | GC16: 5783.925006 | GD16: 5610.767999 | GE16: 5434.078336 | GF16: 5253.477198 | GG16: 5068.67976 | GH16: 4879.403122 | GI16: 4685.260627 | GJ16: 4485.941216 | GK16: 4281.114814 | GL16: 4070.406511 | GM16: 3853.522703 | GN16: 3630.308136 | GO16: 3400.250554 | GP16: 3163.091314 | GQ16: 2918.545808 | GR16: 2666.27809 | GS16: 2405.854678 | GT16: 2137.023164 | GU16: 1859.508861 | GV16: 1572.989693 | GW16: 1277.042564 | GX16: 971.5871184 | GY16: 656.6619005 | GZ16: 332.5398561 | HA16: 0 | HB16: 0
A17: 12_20_M | B17: 20 | C17: 12 | D17: M | F17: 1113 | G17: 0 | H17: 333 | I17: 805 | J17: 1363 | K17: 1967 | L17: 1677 | M17: 2094 | N17: 2532 | O17: 2991 | P17: 3473 | Q17: 3979 | R17: 4509 | S17: 5065 | T17: 5648 | U17: 6258 | V17: 6898 | W17: 7569 | X17: 8271 | Y17: 9007 | Z17: 9777 | AA17: 10584 | AB17: 10782 | AC17: 10988 | AD17: 11202 | AE17: 11425 | AF17: 11656 | AG17: 11896 | AH17: 12146 | AI17: 12405 | AJ17: 12675 | AK17: 12956 | AL17: 13247 | AM17: 13550 | AN17: 13865 | AO17: 14192 | AP17: 14532 | AQ17: 14885 | AR17: 15253 | AS17: 15636 | AT17: 16033 | AU17: 16447 | AV17: 16877 | AW17: 17325 | AX17: 17792 | AY17: 18277 | AZ17: 18783 | BA17: 19310 | BB17: 19858 | BC17: 20318 | BD17: 20796 | BE17: 21292 | BF17: 21808 | BG17: 22345 | BH17: 22903 | BI17: 21484 | BJ17: 20007 | BK17: 18471 | BL17: 16874 | BM17: 15213 | BN17: 13485 | BO17: 11689 | BP17: 9820 | BQ17: 7877 | BR17: 5856 | BS17: 5755 | BT17: 5650 | BU17: 5540 | BV17: 5425 | BW17: 5305 | BX17: 5180 | BY17: 5050 | BZ17: 4914 | CA17: 4773 | CB17: 4625 | CC17: 4471 | CD17: 4311 | CE17: 4143 | CF17: 3969 | CG17: 3787 | CH17: 3598 | CI17: 3401 | CJ17: 3195 | CK17: 2982 | CL17: 2759 | CM17: 2528 | CN17: 2287 | CO17: 2037 | CP17: 1777 | CQ17: 1507 | CR17: 1227 | CS17: 936 | CT17: 635 | CU17: 323 | CV17: 0 | CW17: 0 | DL17: 352.0111345 | DM17: 1254.494988 | DN17: 2179.513706 | DO17: 3127.635081 | DP17: 3099.440452 | DQ17: 3847.696821 | DR17: 4614.585865 | DS17: 5400.579066 | DT17: 6206.153466 | DU17: 7031.797946 | DV17: 7878.016702 | DW17: 8745.323986 | DX17: 9634.243884 | DY17: 10545.31372 | DZ17: 11479.0777 | EA17: 12436.10112 | EB17: 13416.96461 | EC17: 14422.2577 | ED17: 15452.5902 | EE17: 16508.58971 | EF17: 16697.13329 | EG17: 16890.36566 | EH17: 17088.41215 | EI17: 17291.40365 | EJ17: 17499.47439 | EK17: 17712.76521 | EL17: 17931.4219 | EM17: 18155.59627 | EN17: 18385.4459 | EO17: 18621.14054 | EP17: 18862.85837 | EQ17: 19110.78849 | ER17: 19365.1356 | ES17: 19626.11875 | ET17: 19893.97442 | EU17: 20168.95861 | EV17: 20451.34761 | EW17: 20741.43885 | EX17: 21039.55224 | EY17: 21346.03025 | EZ17: 21661.24142 | FA17: 21985.57934 | FB17: 22319.46524 | FC17: 22663.34723 | FD17: 23017.70965 | FE17: 23383.07818 | FF17: 23759.7153 | FG17: 24034.76667 | FH17: 24316.92011 | FI17: 24606.27476 | FJ17: 24902.89406 | FK17: 25206.81208 | FL17: 25518.02222 | FM17: 23836.44401 | FN17: 22112.36488 | FO17: 20344.66733 | FP17: 18532.2258 | FQ17: 16673.93293 | FR17: 14768.71872 | FS17: 12815.54091 | FT17: 10813.44475 | FU17: 8761.539465 | FV17: 6659.081852 | FW17: 6505.520234 | FX17: 6349.267188 | FY17: 6190.359291 | FZ17: 6028.770096 | GA17: 5864.398389 | GB17: 5697.066024 | GC17: 5526.519341 | GD17: 5352.498584 | GE17: 5174.637951 | GF17: 4992.669858 | GG17: 4806.243391 | GH17: 4614.96851 | GI17: 4418.64352 | GJ17: 4216.849933 | GK17: 4009.357255 | GL17: 3795.777691 | GM17: 3575.803338 | GN17: 3349.270228 | GO17: 3115.603352 | GP17: 2874.729608 | GQ17: 2626.117996 | GR17: 2369.617068 | GS17: 2104.774661 | GT17: 1831.338989 | GU17: 1549.030696 | GV17: 1257.507049 | GW17: 956.8423759 | GX17: 646.7563501 | GY17: 327.5370441 | GZ17: 0 | HA17: 0
A18: 13_20_M | B18: 20 | C18: 13 | D18: M | F18: 1097 | G18: 0 | H18: 334 | I18: 808 | J18: 1367 | K18: 1973 | L18: 1684 | M18: 2106 | N18: 2549 | O18: 3014 | P18: 3502 | Q18: 4013 | R18: 4550 | S18: 5112 | T18: 5702 | U18: 6320 | V18: 6967 | W18: 7646 | X18: 8356 | Y18: 9100 | Z18: 9880 | AA18: 10695 | AB18: 10901 | AC18: 11115 | AD18: 11337 | AE18: 11568 | AF18: 11808 | AG18: 12058 | AH18: 12317 | AI18: 12586 | AJ18: 12866 | AK18: 13157 | AL18: 13459 | AM18: 13774 | AN18: 14100 | AO18: 14440 | AP18: 14793 | AQ18: 15160 | AR18: 15542 | AS18: 15939 | AT18: 16352 | AU18: 16782 | AV18: 17229 | AW18: 17694 | AX18: 18179 | AY18: 18684 | AZ18: 19209 | BA18: 19757 | BB18: 20218 | BC18: 20696 | BD18: 21193 | BE18: 21711 | BF18: 22248 | BG18: 22807 | BH18: 21388 | BI18: 19913 | BJ18: 18378 | BK18: 16782 | BL18: 15122 | BM18: 13396 | BN18: 11600 | BO18: 9733 | BP18: 7791 | BQ18: 5772 | BR18: 5672 | BS18: 5568 | BT18: 5460 | BU18: 5347 | BV18: 5229 | BW18: 5106 | BX18: 4977 | BY18: 4843 | BZ18: 4704 | CA18: 4558 | CB18: 4406 | CC18: 4248 | CD18: 4083 | CE18: 3911 | CF18: 3732 | CG18: 3546 | CH18: 3351 | CI18: 3149 | CJ18: 2938 | CK18: 2719 | CL18: 2491 | CM18: 2254 | CN18: 2007 | CO18: 1751 | CP18: 1485 | CQ18: 1209 | CR18: 923 | CS18: 626 | CT18: 318 | CU18: 0 | CV18: 0 | DL18: 354.9110366 | DM18: 1257.629216 | DN18: 2182.888781 | DO18: 3131.256409 | DP18: 3103.316718 | DQ18: 3855.026155 | DR18: 4625.458008 | DS18: 5415.079708 | DT18: 6224.370229 | DU18: 7053.823365 | DV18: 7903.942862 | DW18: 8775.24212 | DX18: 9668.247385 | DY18: 10583.49161 | DZ18: 11521.52813 | EA18: 12482.92513 | EB18: 13468.25939 | EC18: 14478.1273 | ED18: 15513.1425 | EE18: 16573.9368 | EF18: 16767.22494 | EG18: 16965.32358 | EH18: 17168.36314 | EI18: 17376.47722 | EJ18: 17589.80606 | EK18: 17808.49468 | EL18: 18032.69398 | EM18: 18262.56035 | EN18: 18498.26245 | EO18: 18739.97708 | EP18: 18987.89166 | EQ18: 19242.20932 | ER18: 19503.14722 | ES18: 19770.93975 | ET18: 20045.84079 | EU18: 20328.12453 | EV18: 20618.08627 | EW18: 20916.04367 | EX18: 21222.33704 | EY18: 21537.33252 | EZ18: 21861.42133 | FA18: 22195.02227 | FB18: 22538.581 | FC18: 22892.57909 | FD18: 23257.53903 | FE18: 23634.04794 | FF18: 23910.65905 | FG18: 24194.41096 | FH18: 24485.39926 | FI18: 24783.68255 | FJ18: 25089.30659 | FK18: 25402.26023 | FL18: 23722.47112 | FM18: 22000.21387 | FN18: 20234.37928 | FO18: 18423.84322 | FP18: 16567.49982 | FQ18: 14664.26926 | FR18: 12713.13232 | FS18: 10713.11072 | FT18: 8663.326519 | FU18: 6563.019762 | FV18: 6411.655851 | FW18: 6257.651145 | FX18: 6101.019487 | FY18: 5941.732682 | FZ18: 5779.688852 | GA18: 5614.710552 | GB18: 5446.600923 | GC18: 5275.062582 | GD18: 5099.738585 | GE18: 4920.373258 | GF18: 4736.631467 | GG18: 4548.14421 | GH18: 4354.624297 | GI18: 4155.774744 | GJ18: 3951.267433 | GK18: 3740.71815 | GL18: 3524.001092 | GM18: 3300.649055 | GN18: 3070.473073 | GO18: 2833.051472 | GP18: 2588.088454 | GQ18: 2335.218895 | GR18: 2074.307642 | GS18: 1804.892465 | GT18: 1526.73399 | GU18: 1239.56496 | GV18: 943.0485336 | GW18: 637.3141643 | GX18: 322.8285151 | GY18: 0 | GZ18: 0
A19: 14_20_M | B19: 20 | C19: 14 | D19: M | F19: 1080 | G19: 0 | H19: 335 | I19: 810 | J19: 1371 | K19: 1978 | L19: 1692 | M19: 2119 | N19: 2567 | O19: 3037 | P19: 3531 | Q19: 4048 | R19: 4591 | S19: 5160 | T19: 5757 | U19: 6382 | V19: 7037 | W19: 7723 | X19: 8442 | Y19: 9195 | Z19: 9984 | AA19: 10809 | AB19: 11023 | AC19: 11245 | AD19: 11475 | AE19: 11715 | AF19: 11964 | AG19: 12223 | AH19: 12492 | AI19: 12771 | AJ19: 13062 | AK19: 13364 | AL19: 13677 | AM19: 14004 | AN19: 14343 | AO19: 14695 | AP19: 15061 | AQ19: 15443 | AR19: 15839 | AS19: 16251 | AT19: 16680 | AU19: 17126 | AV19: 17591 | AW19: 18075 | AX19: 18578 | AY19: 19103 | AZ19: 19650 | BA19: 20111 | BB19: 20590 | BC19: 21089 | BD19: 21607 | BE19: 22145 | BF19: 22705 | BG19: 21288 | BH19: 19813 | BI19: 18279 | BJ19: 16684 | BK19: 15026 | BL19: 13300 | BM19: 11506 | BN19: 9641 | BO19: 7700 | BP19: 5682 | BQ19: 5584 | BR19: 5482 | BS19: 5375 | BT19: 5264 | BU19: 5148 | BV19: 5026 | BW19: 4900 | BX19: 4768 | BY19: 4631 | BZ19: 4488 | CA19: 4338 | CB19: 4182 | CC19: 4020 | CD19: 3851 | CE19: 3674 | CF19: 3491 | CG19: 3299 | CH19: 3100 | CI19: 2893 | CJ19: 2677 | CK19: 2452 | CL19: 2219 | CM19: 1976 | CN19: 1724 | CO19: 1462 | CP19: 1190 | CQ19: 908 | CR19: 616 | CS19: 313 | CT19: 0 | CU19: 0 | DL19: 357.6874324 | DM19: 1260.392206 | DN19: 2185.637098 | DO19: 3133.991756 | DP19: 3106.038467 | DQ19: 3861.129647 | DR19: 4635.024971 | DS19: 5428.193661 | DT19: 6241.11926 | DU19: 7074.295172 | DV19: 7928.224296 | DW19: 8803.421991 | DX19: 9700.410178 | DY19: 10619.73041 | DZ19: 11561.93869 | EA19: 12527.59924 | EB19: 13517.29532 | EC19: 14531.62681 | ED19: 15571.21123 | EE19: 16636.68466 | EF19: 16834.84629 | EG19: 17037.94469 | EH19: 17246.11284 | EI19: 17459.49031 | EJ19: 17678.22131 | EK19: 17902.4558 | EL19: 18132.3489 | EM19: 18368.06813 | EN19: 18609.78884 | EO19: 18857.69668 | EP19: 19111.99312 | EQ19: 19372.89331 | ER19: 19640.62947 | ES19: 19915.4532 | ET19: 20197.63652 | EU19: 20487.47245 | EV19: 20785.27632 | EW19: 21091.38612 | EX19: 21406.16549 | EY19: 21730.00316 | EZ19: 22063.31535 | FA19: 22406.54517 | FB19: 22760.17124 | FC19: 23124.71273 | FD19: 23500.75229 | FE19: 23779.03055 | FF19: 24064.4867 | FG19: 24357.21195 | FH19: 24657.27588 | FI19: 24964.72013 | FJ19: 25279.53455 | FK19: 23601.64086 | FL19: 21881.32908 | FM19: 20117.48471 | FN19: 18308.98538 | FO19: 16454.71686 | FP19: 14553.62091 | FQ19: 12604.65778 | FR19: 10606.84739 | FS19: 8559.324923 | FT19: 6461.332316 | FU19: 6312.317087 | FV19: 6160.692908 | FW19: 6006.500749 | FX19: 5849.68882 | FY19: 5690.15707 | FZ19: 5527.779119 | GA19: 5362.274003 | GB19: 5193.397657 | GC19: 5020.805893 | GD19: 4844.179366 | GE19: 4663.266251 | GF19: 4477.721971 | GG19: 4287.178258 | GH19: 4091.338764 | GI19: 3890.018293 | GJ19: 3682.736318 | GK19: 3469.387478 | GL19: 3249.535514 | GM19: 3022.818881 | GN19: 2789.023406 | GO19: 2547.92836 | GP19: 2298.981285 | GQ19: 2042.059138 | GR19: 1776.722593 | GS19: 1502.774994 | GT19: 1220.029446 | GU19: 928.303791 | GV19: 627.408614 | GW19: 317.8257032 | GX19: 0 | GY19: 0
A20: 15_20_M | B20: 20 | C20: 15 | D20: M | F20: 1062 | G20: 0 | H20: 336 | I20: 812 | J20: 1374 | K20: 1984 | L20: 1698 | M20: 2131 | N20: 2584 | O20: 3060 | P20: 3560 | Q20: 4083 | R20: 4633 | S20: 5209 | T20: 5812 | U20: 6445 | V20: 7108 | W20: 7803 | X20: 8530 | Y20: 9292 | Z20: 10090 | AA20: 10925 | AB20: 11147 | AC20: 11377 | AD20: 11616 | AE20: 11865 | AF20: 12123 | AG20: 12392 | AH20: 12671 | AI20: 12961 | AJ20: 13262 | AK20: 13575 | AL20: 13901 | AM20: 14239 | AN20: 14591 | AO20: 14957 | AP20: 15337 | AQ20: 15733 | AR20: 16145 | AS20: 16573 | AT20: 17018 | AU20: 17482 | AV20: 17964 | AW20: 18467 | AX20: 18991 | AY20: 19537 | AZ20: 19998 | BA20: 20479 | BB20: 20978 | BC20: 21497 | BD20: 22037 | BE20: 22598 | BF20: 21181 | BG20: 19707 | BH20: 18175 | BI20: 16581 | BJ20: 14924 | BK20: 13200 | BL20: 11407 | BM20: 9543 | BN20: 7604 | BO20: 5588 | BP20: 5491 | BQ20: 5391 | BR20: 5286 | BS20: 5176 | BT20: 5062 | BU20: 4943 | BV20: 4819 | BW20: 4689 | BX20: 4554 | BY20: 4413 | BZ20: 4266 | CA20: 4113 | CB20: 3953 | CC20: 3787 | CD20: 3613 | CE20: 3433 | CF20: 3245 | CG20: 3049 | CH20: 2845 | CI20: 2632 | CJ20: 2412 | CK20: 2182 | CL20: 1943 | CM20: 1695 | CN20: 1438 | CO20: 1170 | CP20: 893 | CQ20: 606 | CR20: 308 | CS20: 0 | CT20: 0 | DL20: 360.3726973 | DM20: 1262.81155 | DN20: 2187.785426 | DO20: 3135.861732 | DP20: 3107.624663 | DQ20: 3866.016662 | DR20: 4643.292295 | DS20: 5439.924999 | DT20: 6256.398003 | DU20: 7093.203884 | DV20: 7950.8473 | DW20: 8829.839357 | DX20: 9730.710038 | DY20: 10654.00335 | DZ20: 11600.27123 | EA20: 12570.08401 | EB20: 13564.0281 | EC20: 14582.70697 | ED20: 15626.74205 | EE20: 16696.77375 | EF20: 16899.93651 | EG20: 17108.164 | EH20: 17321.59512 | EI20: 17540.37322 | EJ20: 17764.64725 | EK20: 17994.57101 | EL20: 18230.3108 | EM20: 18472.04043 | EN20: 18719.9437 | EO20: 18974.22031 | EP20: 19235.08329 | EQ20: 19502.76256 | ER20: 19777.50735 | ES20: 20059.58734 | ET20: 20349.29316 | EU20: 20646.93766 | EV20: 20952.85641 | EW20: 21267.41038 | EX20: 21590.98569 | EY20: 21923.99583 | EZ20: 22266.88122 | FA20: 22620.11735 | FB20: 22984.21988 | FC20: 23359.76675 | FD20: 23639.8134 | FE20: 23927.07277 | FF20: 24221.64629 | FG20: 24523.59989 | FH20: 24832.97023 | FI20: 25149.75357 | FJ20: 23473.88004 | FK20: 21755.6349 | FL20: 19993.89702 | FM20: 18187.55345 | FN20: 16335.49186 | FO20: 14436.6447 | FP20: 12489.98349 | FQ20: 10494.52964 | FR20: 8449.404416 | FS20: 6353.847138 | FT20: 6207.323551 | FU20: 6058.227941 | FV20: 5906.600202 | FW20: 5752.423471 | FX20: 5595.573817 | FY20: 5435.8844 | FZ20: 5273.120204 | GA20: 5107.048483 | GB20: 4937.340337 | GC20: 4763.69657 | GD20: 4585.801081 | GE20: 4403.31079 | GF20: 4215.973264 | GG20: 4023.41255 | GH20: 3825.458616 | GI20: 3621.65303 | GJ20: 3411.746899 | GK20: 3195.468874 | GL20: 2972.506037 | GM20: 2742.720163 | GN20: 2505.458793 | GO20: 2260.664621 | GP20: 2008.047639 | GQ20: 1747.247476 | GR20: 1477.768672 | GS20: 1199.839069 | GT20: 912.9857186 | GU20: 617.039699 | GV20: 312.5286081 | GW20: 0 | GX20: 0
A21: 16_20_M | B21: 20 | C21: 16 | D21: M | F21: 1044 | G21: 0 | H21: 337 | I21: 815 | J21: 1379 | K21: 1990 | L21: 1707 | M21: 2144 | N21: 2603 | O21: 3085 | P21: 3591 | Q21: 4121 | R21: 4678 | S21: 5261 | T21: 5872 | U21: 6513 | V21: 7184 | W21: 7887 | X21: 8624 | Y21: 9395 | Z21: 10203 | AA21: 11049 | AB21: 11279 | AC21: 11517 | AD21: 11766 | AE21: 12024 | AF21: 12292 | AG21: 12570 | AH21: 12860 | AI21: 13161 | AJ21: 13473 | AK21: 13798 | AL21: 14136 | AM21: 14488 | AN21: 14853 | AO21: 15232 | AP21: 15627 | AQ21: 16038 | AR21: 16465 | AS21: 16910 | AT21: 17372 | AU21: 17854 | AV21: 18356 | AW21: 18878 | AX21: 19423 | AY21: 19886 | AZ21: 20367 | BA21: 20867 | BB21: 21387 | BC21: 21928 | BD21: 22490 | BE21: 21074 | BF21: 19602 | BG21: 18071 | BH21: 16478 | BI21: 14822 | BJ21: 13099 | BK21: 11308 | BL21: 9445 | BM21: 7508 | BN21: 5493 | BO21: 5398 | BP21: 5299 | BQ21: 5196 | BR21: 5088 | BS21: 4976 | BT21: 4859 | BU21: 4737 | BV21: 4610 | BW21: 4477 | BX21: 4338 | BY21: 4194 | BZ21: 4043 | CA21: 3886 | CB21: 3723 | CC21: 3552 | CD21: 3375 | CE21: 3190 | CF21: 2997 | CG21: 2797 | CH21: 2588 | CI21: 2371 | CJ21: 2145 | CK21: 1911 | CL21: 1667 | CM21: 1414 | CN21: 1151 | CO21: 878 | CP21: 596 | CQ21: 303 | CR21: 0 | CS21: 0 | DL21: 363.378229 | DM21: 1265.752024 | DN21: 2190.658525 | DO21: 3138.667085 | DP21: 3110.35938 | DQ21: 3872.269691 | DR21: 4653.150684 | DS21: 5453.475775 | DT21: 6273.727608 | DU21: 7114.400547 | DV21: 7975.995331 | DW21: 8859.030814 | DX21: 9764.039453 | DY21: 10691.56141 | DZ21: 11642.1546 | EA21: 12616.39249 | EB21: 13614.86505 | EC21: 14638.17962 | ED21: 15686.96196 | EE21: 16761.8572 | EF21: 16970.14221 | EG21: 17183.62511 | EH21: 17402.44838 | EI21: 17626.75997 | EJ21: 17856.71234 | EK21: 18092.47059 | EL21: 18334.20698 | EM21: 18582.10346 | EN21: 18836.35794 | EO21: 19097.18135 | EP21: 19364.8013 | EQ21: 19639.46462 | ER21: 19921.43868 | ES21: 20211.0117 | ET21: 20508.49405 | EU21: 20814.21888 | EV21: 21128.54448 | EW21: 21451.85435 | EX21: 21784.55924 | EY21: 22127.09687 | EZ21: 22479.93963 | FA21: 22843.59963 | FB21: 23218.6501 | FC21: 23500.45687 | FD21: 23789.52005 | FE21: 24085.93765 | FF21: 24389.77656 | FG21: 24701.07442 | FH21: 25019.82861 | FI21: 23345.9706 | FJ21: 21629.77945 | FK21: 19870.14264 | FL21: 18065.9491 | FM21: 16216.08837 | FN21: 14319.49467 | FO21: 12375.12885 | FP21: 10382.0245 | FQ21: 8339.288832 | FR21: 6246.176632 | FS21: 6102.136071 | FT21: 5955.584203 | FU21: 5806.540444 | FV21: 5654.989365 | FW21: 5500.810673 | FX21: 5343.84385 | FY21: 5183.863385 | FZ21: 5020.587192 | GA21: 4853.751775 | GB21: 4683.077658 | GC21: 4508.183894 | GD21: 4328.829793 | GE21: 4144.688679 | GF21: 3955.394536 | GG21: 3760.791694 | GH21: 3560.44268 | GI21: 3354.129581 | GJ21: 3141.627501 | GK21: 2922.474284 | GL21: 2696.5287 | GM21: 2463.411552 | GN21: 2222.913559 | GO21: 1974.466862 | GP21: 1717.992894 | GQ21: 1453.086721 | GR21: 1179.648693 | GS21: 897.6676463 | GT21: 606.670784 | GU21: 307.231513 | GV21: 0 | GW21: 0
A22: 17_20_M | B22: 20 | C22: 17 | D22: M | F22: 1025 | G22: 0 | H22: 338 | I22: 817 | J22: 1383 | K22: 1996 | L22: 1715 | M22: 2158 | N22: 2623 | O22: 3111 | P22: 3623 | Q22: 4160 | R22: 4723 | S22: 5314 | T22: 5933 | U22: 6582 | V22: 7261 | W22: 7974 | X22: 8719 | Y22: 9501 | Z22: 10318 | AA22: 11175 | AB22: 11413 | AC22: 11661 | AD22: 11919 | AE22: 12186 | AF22: 12464 | AG22: 12753 | AH22: 13054 | AI22: 13366 | AJ22: 13690 | AK22: 14027 | AL22: 14378 | AM22: 14742 | AN22: 15121 | AO22: 15515 | AP22: 15925 | AQ22: 16352 | AR22: 16795 | AS22: 17257 | AT22: 17738 | AU22: 18238 | AV22: 18760 | AW22: 19303 | AX22: 19767 | AY22: 20249 | AZ22: 20750 | BA22: 21271 | BB22: 21813 | BC22: 22376 | BD22: 20961 | BE22: 19490 | BF22: 17960 | BG22: 16369 | BH22: 14714 | BI22: 12993 | BJ22: 11203 | BK22: 9342 | BL22: 7406 | BM22: 5393 | BN22: 5300 | BO22: 5203 | BP22: 5102 | BQ22: 4996 | BR22: 4886 | BS22: 4771 | BT22: 4651 | BU22: 4526 | BV22: 4395 | BW22: 4259 | BX22: 4118 | BY22: 3970 | BZ22: 3816 | CA22: 3655 | CB22: 3488 | CC22: 3313 | CD22: 3132 | CE22: 2943 | CF22: 2746 | CG22: 2541 | CH22: 2328 | CI22: 2106 | CJ22: 1876 | CK22: 1636 | CL22: 1388 | CM22: 1130 | CN22: 862 | CO22: 585 | CP22: 297 | CQ22: 0 | CR22: 0 | DL22: 366.3197362 | DM22: 1268.38355 | DN22: 2192.973253 | DO22: 3140.655733 | DP22: 3112.01249 | DQ22: 3877.37046 | DR22: 4661.782202 | DS22: 5465.720607 | DT22: 6289.669922 | DU22: 7134.120735 | DV22: 7999.580964 | DW22: 8886.571722 | DX22: 9795.621632 | DY22: 10727.27641 | DZ22: 11682.09684 | EA22: 12660.65963 | EB22: 13663.55831 | EC22: 14691.40422 | ED22: 15744.82748 | EE22: 16824.47483 | EF22: 17038.01294 | EG22: 17256.88448 | EH22: 17481.23632 | EI22: 17711.21953 | EJ22: 17946.99789 | EK22: 18188.74208 | EL22: 18436.63207 | EM22: 18690.86389 | EN22: 18951.64626 | EO22: 19219.20434 | EP22: 19493.78243 | EQ22: 19775.64547 | ER22: 20065.07913 | ES22: 20362.39118 | ET22: 20667.91219 | EU22: 20981.99764 | EV22: 21305.02826 | EW22: 21637.41192 | EX22: 21979.58348 | EY22: 22332.01207 | EZ22: 22695.20605 | FA22: 23069.73367 | FB22: 23353.40296 | FC22: 23644.37043 | FD22: 23942.73506 | FE22: 24248.56478 | FF22: 24561.89835 | FG22: 24882.73438 | FH22: 23211.00583 | FI22: 21496.9935 | FJ22: 19739.58692 | FK22: 17937.66795 | FL22: 16090.1365 | FM22: 14195.91774 | FN22: 12253.98408 | FO22: 10263.35712 | FP22: 8223.157915 | FQ22: 6132.62601 | FR22: 5991.207605 | FS22: 5847.318278 | FT22: 5700.977104 | FU22: 5552.170172 | FV22: 5400.781193 | FW22: 5246.656667 | FX22: 5089.581637 | FY22: 4929.288645 | FZ22: 4765.533704 | GA22: 4597.982309 | GB22: 4426.257313 | GC22: 4250.123624 | GD22: 4069.262213 | GE22: 3883.444621 | GF22: 3692.298263 | GG22: 3495.677387 | GH22: 3293.115757 | GI22: 3084.380624 | GJ22: 2869.21936 | GK22: 2647.342553 | GL22: 2418.39242 | GM22: 2182.196294 | GN22: 1938.249268 | GO22: 1686.582588 | GP22: 1426.546895 | GQ22: 1158.061446 | GR22: 881.1541874 | GS22: 595.432834 | GT22: 301.6401349 | GU22: 0 | GV22: 0
A23: 18_20_M | B23: 20 | C23: 18 | D23: M | F23: 1236 | G23: 0 | H23: 338 | I23: 816 | J23: 1381 | K23: 1994 | L23: 1712 | M23: 2115 | N23: 2538 | O23: 2982 | P23: 3448 | Q23: 3937 | R23: 4449 | S23: 4986 | T23: 5548 | U23: 6138 | V23: 6756 | W23: 7403 | X23: 8080 | Y23: 8790 | Z23: 9532 | AA23: 10310 | AB23: 10471 | AC23: 10638 | AD23: 10811 | AE23: 10992 | AF23: 11179 | AG23: 11373 | AH23: 11574 | AI23: 11783 | AJ23: 12000 | AK23: 12225 | AL23: 12459 | AM23: 12702 | AN23: 12954 | AO23: 13215 | AP23: 13487 | AQ23: 13769 | AR23: 14062 | AS23: 14367 | AT23: 14683 | AU23: 15012 | AV23: 15354 | AW23: 15586 | AX23: 15827 | AY23: 16077 | AZ23: 16337 | BA23: 16607 | BB23: 16888 | BC23: 17181 | BD23: 17485 | BE23: 17802 | BF23: 18133 | BG23: 18477 | BH23: 18837 | BI23: 19214 | BJ23: 19608 | BK23: 20017 | BL23: 20442 | BM23: 20884 | BN23: 21342 | BO23: 21817 | BP23: 22309 | BQ23: 20819 | BR23: 19269 | BS23: 17656 | BT23: 15978 | BU23: 14232 | BV23: 12417 | BW23: 10529 | BX23: 8566 | BY23: 6527 | BZ23: 4407 | CA23: 4205 | CB23: 3995 | CC23: 3776 | CD23: 3548 | CE23: 3311 | CF23: 3064 | CG23: 2807 | CH23: 2540 | CI23: 2262 | CJ23: 1973 | CK23: 1673 | CL23: 1362 | CM23: 1040 | CN23: 705 | CO23: 359 | CP23: 0 | CQ23: 0 | DL23: 338 | DM23: 1234.467352 | DN23: 2160.038382 | DO23: 3108.725353 | DP23: 3081.111401 | DQ23: 3805.314072 | DR23: 4547.522828 | DS23: 5308.182229 | DT23: 6087.741748 | DU23: 6886.6664 | DV23: 7705.432816 | DW23: 8544.5231 | DX23: 9404.434562 | DY23: 10285.67755 | DZ23: 11188.77621 | EA23: 12114.26933 | EB23: 13062.71116 | EC23: 14034.67233 | ED23: 15030.73682 | EE23: 16051.50681 | EF23: 16202.7608 | EG23: 16357.68581 | EH23: 16516.36823 | EI23: 16678.90459 | EJ23: 16845.39195 | EK23: 17015.92944 | EL23: 17190.62845 | EM23: 17369.60458 | EN23: 17552.98208 | EO23: 17740.89738 | EP23: 17933.50199 | EQ23: 18130.96067 | ER23: 18333.45224 | ES23: 18541.17195 | ET23: 18754.32907 | EU23: 18973.15075 | EV23: 19197.88144 | EW23: 19428.78455 | EX23: 19666.14165 | EY23: 19910.25566 | EZ23: 20161.45509 | FA23: 20296.50213 | FB23: 20435.71524 | FC23: 20579.3404 | FD23: 20727.6547 | FE23: 20880.97467 | FF23: 21039.66143 | FG23: 21204.12231 | FH23: 21374.81877 | FI23: 21552.27517 | FJ23: 21737.1026 | FK23: 21930.04263 | FL23: 22132.03941 | FM23: 22344.33791 | FN23: 22568.60875 | FO23: 22800.96369 | FP23: 23041.59137 | FQ23: 23290.84206 | FR23: 23548.83649 | FS23: 23815.27025 | FT23: 24089.27029 | FU23: 22369.2146 | FV23: 20605.13144 | FW23: 18794.93362 | FX23: 16936.50593 | FY23: 15027.86928 | FZ23: 13067.15695 | GA23: 11052.93932 | GB23: 8984.224947 | GC23: 6860.53075 | GD23: 4682.544764 | GE23: 4452.140165 | GF23: 4215.000359 | GG23: 3970.813996 | GH23: 3719.227555 | GI23: 3459.814051 | GJ23: 3192.269118 | GK23: 2916.239844 | GL23: 2631.279551 | GM23: 2337.129333 | GN23: 2033.519844 | GO23: 1720.155444 | GP23: 1396.678543 | GQ23: 1062.593379 | GR23: 718.3543315 | GS23: 363.7338603 | GT23: 0 | GU23: 0
A24: 19_20_M | B24: 20 | C24: 19 | D24: M | F24: 1223 | G24: 0 | H24: 339 | I24: 818 | J24: 1385 | K24: 1999 | L24: 1718 | M24: 2126 | N24: 2553 | O24: 3002 | P24: 3472 | Q24: 3965 | R24: 4483 | S24: 5025 | T24: 5593 | U24: 6189 | V24: 6812 | W24: 7466 | X24: 8150 | Y24: 8866 | Z24: 9616 | AA24: 10401 | AB24: 10568 | AC24: 10741 | AD24: 10921 | AE24: 11108 | AF24: 11301 | AG24: 11503 | AH24: 11711 | AI24: 11928 | AJ24: 12153 | AK24: 12386 | AL24: 12629 | AM24: 12880 | AN24: 13141 | AO24: 13412 | AP24: 13694 | AQ24: 13987 | AR24: 14290 | AS24: 14606 | AT24: 14934 | AU24: 15276 | AV24: 15508 | AW24: 15750 | AX24: 16001 | AY24: 16261 | AZ24: 16532 | BA24: 16814 | BB24: 17107 | BC24: 17412 | BD24: 17729 | BE24: 18060 | BF24: 18405 | BG24: 18766 | BH24: 19143 | BI24: 19537 | BJ24: 19948 | BK24: 20374 | BL24: 20817 | BM24: 21276 | BN24: 21752 | BO24: 22246 | BP24: 20758 | BQ24: 19209 | BR24: 17597 | BS24: 15921 | BT24: 14177 | BU24: 12363 | BV24: 10477 | BW24: 8516 | BX24: 6478 | BY24: 4361 | BZ24: 4161 | CA24: 3953 | CB24: 3737 | CC24: 3511 | CD24: 3276 | CE24: 3032 | CF24: 2778 | CG24: 2513 | CH24: 2238 | CI24: 1953 | CJ24: 1656 | CK24: 1348 | CL24: 1029 | CM24: 698 | CN24: 355 | CO24: 0 | CP24: 0 | DL24: 339 | DM24: 1236.818827 | DN24: 2162.758904 | DO24: 3111.823759 | DP24: 3084.595971 | DQ24: 3811.781194 | DR24: 4557.040464 | DS24: 5320.81429 | DT24: 6103.557832 | DU24: 6905.737501 | DV24: 7727.825177 | DW24: 8570.30728 | DX24: 9433.682795 | DY24: 10318.46402 | DZ24: 11225.17737 | EA24: 12154.36419 | EB24: 13106.58165 | EC24: 14082.39974 | ED24: 15082.40599 | EE24: 16107.20271 | EF24: 16262.25957 | EG24: 16421.07037 | EH24: 16583.73091 | EI24: 16750.33727 | EJ24: 16920.9874 | EK24: 17095.79154 | EL24: 17274.86398 | EM24: 17458.32747 | EN24: 17646.31693 | EO24: 17838.98241 | EP24: 18036.48716 | EQ24: 18239.00844 | ER24: 18446.74 | ES24: 18659.88945 | ET24: 18878.68233 | EU24: 19103.36141 | EV24: 19334.18844 | EW24: 19571.44311 | EX24: 19815.42615 | EY24: 20066.46311 | EZ24: 20202.61261 | FA24: 20342.92791 | FB24: 20487.6522 | FC24: 20637.05948 | FD24: 20791.4626 | FE24: 20951.21853 | FF24: 21116.73039 | FG24: 21288.45515 | FH24: 21466.9123 | FI24: 21652.70693 | FJ24: 21846.57236 | FK24: 22049.44059 | FL24: 22262.53887 | FM24: 22487.51305 | FN24: 22721.59498 | FO24: 22963.98433 | FP24: 23215.03199 | FQ24: 23474.86046 | FR24: 23743.16893 | FS24: 24019.05594 | FT24: 22300.89451 | FU24: 20538.75497 | FV24: 18730.56331 | FW24: 16874.15934 | FX24: 14967.56341 | FY24: 13008.98917 | FZ24: 10996.94612 | GA24: 8930.44844 | GB24: 6809.13434 | GC24: 4633.492693 | GD24: 4405.512588 | GE24: 4170.900834 | GF24: 3929.204162 | GG24: 3680.236064 | GH24: 3423.621031 | GI24: 3158.888224 | GJ24: 2885.676831 | GK24: 2603.83921 | GL24: 2312.944398 | GM24: 2012.400923 | GN24: 1702.19661 | GO24: 1382.031163 | GP24: 1051.519154 | GQ24: 710.70791 | GR24: 359.9081805 | GS24: 0 | GT24: 0
A25: 20_20_M | B25: 20 | C25: 20 | D25: M | F25: 1208 | G25: 0 | H25: 339 | I25: 820 | J25: 1387 | K25: 2002 | L25: 1723 | M25: 2134 | N25: 2565 | O25: 3018 | P25: 3493 | Q25: 3991 | R25: 4513 | S25: 5061 | T25: 5634 | U25: 6235 | V25: 6865 | W25: 7524 | X25: 8215 | Y25: 8938 | Z25: 9695 | AA25: 10487 | AB25: 10660 | AC25: 10839 | AD25: 11026 | AE25: 11219 | AF25: 11420 | AG25: 11628 | AH25: 11845 | AI25: 12069 | AJ25: 12302 | AK25: 12544 | AL25: 12795 | AM25: 13056 | AN25: 13326 | AO25: 13607 | AP25: 13899 | AQ25: 14202 | AR25: 14517 | AS25: 14845 | AT25: 15185 | AU25: 15419 | AV25: 15661 | AW25: 15912 | AX25: 16174 | AY25: 16445 | AZ25: 16727 | BA25: 17021 | BB25: 17327 | BC25: 17645 | BD25: 17976 | BE25: 18322 | BF25: 18683 | BG25: 19061 | BH25: 19456 | BI25: 19867 | BJ25: 20295 | BK25: 20739 | BL25: 21200 | BM25: 21677 | BN25: 22173 | BO25: 20686 | BP25: 19139 | BQ25: 17529 | BR25: 15854 | BS25: 14112 | BT25: 12300 | BU25: 10416 | BV25: 8458 | BW25: 6422 | BX25: 4307 | BY25: 4110 | BZ25: 3905 | CA25: 3691 | CB25: 3468 | CC25: 3236 | CD25: 2994 | CE25: 2743 | CF25: 2482 | CG25: 2210 | CH25: 1928 | CI25: 1635 | CJ25: 1331 | CK25: 1016 | CL25: 689 | CM25: 350 | CN25: 0 | CO25: 0 | DL25: 339 | DM25: 1237.844908 | DN25: 2163.415975 | DO25: 3112.101053 | DP25: 3084.481573 | DQ25: 3814.249703 | DR25: 4562.144657 | DS25: 5328.611701 | DT25: 6114.106976 | DU25: 6919.092111 | DV25: 7744.042594 | DW25: 8589.446004 | DX25: 9455.802743 | DY25: 10343.62681 | DZ25: 11253.4466 | EA25: 12185.80576 | EB25: 13141.26024 | EC25: 14120.38287 | ED25: 15123.76056 | EE25: 16151.99548 | EF25: 16310.95036 | EG25: 16473.75001 | EH25: 16640.48937 | EI25: 16811.26502 | EJ25: 16986.18591 | EK25: 17165.36476 | EL25: 17348.92261 | EM25: 17536.99263 | EN25: 17729.72316 | EO25: 17927.2757 | EP25: 18129.82573 | EQ25: 18337.56523 | ER25: 18550.6999 | ES25: 18769.4534 | ET25: 18994.06656 | EU25: 19224.79922 | EV25: 19461.92884 | EW25: 19705.75365 | EX25: 19956.59574 | EY25: 20094.00962 | EZ25: 20235.58868 | FA25: 20381.57282 | FB25: 20532.23251 | FC25: 20687.87627 | FD25: 20848.85628 | FE25: 21015.57073 | FF25: 21188.47137 | FG25: 21368.07203 | FH25: 21554.97082 | FI25: 21749.89147 | FJ25: 21953.75182 | FK25: 22167.75857 | FL25: 22393.52878 | FM25: 22629.6084 | FN25: 22874.02256 | FO25: 23127.13904 | FP25: 23389.05879 | FQ25: 23659.50607 | FR25: 23937.55284 | FS25: 22221.61039 | FT25: 20461.71677 | FU25: 18655.79964 | FV25: 16801.76442 | FW25: 14897.58838 | FX25: 12941.49526 | FY25: 10932.00796 | FZ25: 8868.057 | GA25: 6749.380151 | GB25: 4576.491449 | GC25: 4351.273738 | GD25: 4119.425219 | GE25: 3880.657138 | GF25: 3634.650639 | GG25: 3381.032453 | GH25: 3119.582689 | GI25: 2849.807427 | GJ25: 2571.320094 | GK25: 2283.964775 | GL25: 1987.259644 | GM25: 1680.947229 | GN25: 1364.743936 | GO25: 1038.298641 | GP25: 701.7290888 | GQ25: 355.4939346 | GR25: 0 | GS25: 0
A26: 21_20_M | B26: 20 | C26: 21 | D26: M | F26: 1194 | G26: 0 | H26: 340 | I26: 822 | J26: 1391 | K26: 2007 | L26: 1730 | M26: 2145 | N26: 2581 | O26: 3039 | P26: 3518 | Q26: 4022 | R26: 4549 | S26: 5102 | T26: 5682 | U26: 6289 | V26: 6925 | W26: 7592 | X26: 8289 | Y26: 9020 | Z26: 9784 | AA26: 10584 | AB26: 10763 | AC26: 10950 | AD26: 11143 | AE26: 11343 | AF26: 11551 | AG26: 11767 | AH26: 11991 | AI26: 12224 | AJ26: 12465 | AK26: 12716 | AL26: 12976 | AM26: 13246 | AN26: 13526 | AO26: 13818 | AP26: 14120 | AQ26: 14435 | AR26: 14762 | AS26: 15101 | AT26: 15335 | AU26: 15578 | AV26: 15830 | AW26: 16092 | AX26: 16364 | AY26: 16647 | AZ26: 16941 | BA26: 17247 | BB26: 17566 | BC26: 17898 | BD26: 18245 | BE26: 18606 | BF26: 18984 | BG26: 19379 | BH26: 19792 | BI26: 20221 | BJ26: 20667 | BK26: 21128 | BL26: 21608 | BM26: 22104 | BN26: 20619 | BO26: 19074 | BP26: 17465 | BQ26: 15792 | BR26: 14052 | BS26: 12242 | BT26: 10360 | BU26: 8404 | BV26: 6370 | BW26: 4257 | BX26: 4062 | BY26: 3859 | BZ26: 3648 | CA26: 3428 | CB26: 3198 | CC26: 2960 | CD26: 2711 | CE26: 2453 | CF26: 2185 | CG26: 1906 | CH26: 1616 | CI26: 1316 | CJ26: 1004 | CK26: 681 | CL26: 346 | CM26: 0 | CN26: 0 | DL26: 340 | DM26: 1240.120615 | DN26: 2165.943052 | DO26: 3114.883437 | DP26: 3087.523363 | DQ26: 3820.335905 | DR26: 4571.343416 | DS26: 5340.99236 | DT26: 6129.734764 | DU26: 6938.035838 | DV26: 7766.37244 | DW26: 8615.233785 | DX26: 9485.122198 | DY26: 10376.55389 | DZ26: 11290.05981 | EA26: 12226.18271 | EB26: 13185.4816 | EC26: 14168.52899 | ED26: 15175.91188 | EE26: 16208.22932 | EF26: 16371.16029 | EG26: 16538.02533 | EH26: 16708.91972 | EI26: 16883.95121 | EJ26: 17063.23107 | EK26: 17246.87873 | EL26: 17435.02573 | EM26: 17627.81882 | EN26: 17825.4179 | EO26: 18027.99674 | EP26: 18235.74571 | EQ26: 18448.8687 | ER26: 18667.58765 | ES26: 18892.14156 | ET26: 19122.7885 | EU26: 19359.80387 | EV26: 19603.48353 | EW26: 19854.1464 | EX26: 19992.74311 | EY26: 20135.50455 | EZ26: 20282.66756 | FA26: 20434.49928 | FB26: 20591.30425 | FC26: 20753.43016 | FD26: 20921.27064 | FE26: 21095.27257 | FF26: 21275.94451 | FG26: 21463.8781 | FH26: 21659.78811 | FI26: 21864.57923 | FJ26: 22079.43903 | FK26: 22305.95776 | FL26: 22543.89845 | FM26: 22790.21356 | FN26: 23045.25116 | FO26: 23309.15668 | FP26: 23581.58065 | FQ26: 23861.68271 | FR26: 22147.81636 | FS26: 20390.01811 | FT26: 18586.26926 | FU26: 16734.43351 | FV26: 14832.49165 | FW26: 12878.67251 | FX26: 10871.50596 | FY26: 8809.932055 | FZ26: 6693.701335 | GA26: 4523.345395 | GB26: 4300.771781 | GC26: 4071.714033 | GD26: 3835.758708 | GE26: 3592.582542 | GF26: 3342.026666 | GG26: 3083.483706 | GH26: 2816.909915 | GI26: 2541.767181 | GJ26: 2257.621968 | GK26: 1964.274089 | GL26: 1661.555725 | GM26: 1348.85358 | GN26: 1026.273515 | GO26: 693.6193027 | GP26: 351.3739718 | GQ26: 0 | GR26: 0
A27: 22_20_M | B27: 20 | C27: 22 | D27: M | F27: 1179 | G27: 0 | H27: 341 | I27: 824 | J27: 1394 | K27: 2012 | L27: 1736 | M27: 2156 | N27: 2596 | O27: 3059 | P27: 3543 | Q27: 4052 | R27: 4585 | S27: 5144 | T27: 5730 | U27: 6343 | V27: 6986 | W27: 7659 | X27: 8364 | Y27: 9102 | Z27: 9874 | AA27: 10682 | AB27: 10868 | AC27: 11061 | AD27: 11261 | AE27: 11468 | AF27: 11684 | AG27: 11908 | AH27: 12140 | AI27: 12381 | AJ27: 12631 | AK27: 12890 | AL27: 13160 | AM27: 13440 | AN27: 13730 | AO27: 14032 | AP27: 14346 | AQ27: 14672 | AR27: 15011 | AS27: 15246 | AT27: 15489 | AU27: 15742 | AV27: 16004 | AW27: 16277 | AX27: 16561 | AY27: 16856 | AZ27: 17163 | BA27: 17482 | BB27: 17815 | BC27: 18162 | BD27: 18524 | BE27: 18902 | BF27: 19298 | BG27: 19712 | BH27: 20143 | BI27: 20589 | BJ27: 21053 | BK27: 21533 | BL27: 22031 | BM27: 20548 | BN27: 19004 | BO27: 17398 | BP27: 15726 | BQ27: 13988 | BR27: 12180 | BS27: 10300 | BT27: 8346 | BU27: 6315 | BV27: 4204 | BW27: 4012 | BX27: 3811 | BY27: 3602 | BZ27: 3385 | CA27: 3158 | CB27: 2923 | CC27: 2678 | CD27: 2423 | CE27: 2158 | CF27: 1882 | CG27: 1596 | CH27: 1300 | CI27: 992 | CJ27: 673 | CK27: 342 | CL27: 0 | CM27: 0 | DL27: 341 | DM27: 1241.964338 | DN27: 2167.767266 | DO27: 3116.685103 | DP27: 3089.297524 | DQ27: 3825.060166 | DR27: 4579.083113 | DS27: 5351.808987 | DT27: 6143.692918 | DU27: 6955.201246 | DV27: 7786.812209 | DW27: 8639.016675 | DX27: 9512.318905 | DY27: 10407.23735 | DZ27: 11324.30188 | EA27: 12264.05794 | EB27: 13227.06389 | EC27: 14213.89192 | ED27: 15225.12543 | EE27: 16261.37185 | EF27: 16428.37491 | EG27: 16599.4 | EH27: 16774.55356 | EI27: 16953.94531 | EJ27: 17137.693 | EK27: 17325.9264 | EL27: 17518.79059 | EM27: 17716.4437 | EN27: 17919.05775 | EO27: 18126.82133 | EP27: 18339.93647 | EQ27: 18558.6232 | ER27: 18783.11861 | ES27: 19013.67887 | ET27: 19250.57718 | EU27: 19494.1069 | EV27: 19744.58353 | EW27: 19884.45358 | EX27: 20028.48811 | EY27: 20176.92072 | EZ27: 20330.01503 | FA27: 20488.0713 | FB27: 20651.43245 | FC27: 20820.48727 | FD27: 20995.67746 | FE27: 21177.50595 | FF27: 21366.55751 | FG27: 21563.53737 | FH27: 21769.33623 | FI27: 21985.12124 | FJ27: 22212.45406 | FK27: 22452.39633 | FL27: 22700.73908 | FM27: 22957.86815 | FN27: 23223.86565 | FO27: 23498.45637 | FP27: 23780.75048 | FQ27: 22069.10029 | FR27: 20313.58928 | FS27: 18512.10932 | FT27: 16662.63309 | FU27: 14763.09764 | FV27: 12811.74096 | FW27: 10807.10516 | FX27: 8748.146705 | FY27: 6634.524488 | FZ27: 4466.883234 | GA27: 4247.021229 | GB27: 4020.81695 | GC27: 3787.907862 | GD27: 3547.849401 | GE27: 3300.501583 | GF27: 3045.287161 | GG27: 2781.934701 | GH27: 2510.135214 | GI27: 2229.516165 | GJ27: 1939.98329 | GK27: 1641.116895 | GL27: 1332.308362 | GM27: 1013.675059 | GN27: 685.046152 | GO27: 346.9597259 | GP27: 0 | GQ27: 0
A28: 23_20_M | B28: 20 | C28: 23 | D28: M | F28: 1163 | G28: 0 | H28: 342 | I28: 826 | J28: 1397 | K28: 2016 | L28: 1742 | M28: 2166 | N28: 2611 | O28: 3078 | P28: 3568 | Q28: 4082 | R28: 4621 | S28: 5186 | T28: 5777 | U28: 6397 | V28: 7047 | W28: 7727 | X28: 8439 | Y28: 9184 | Z28: 9964 | AA28: 10781 | AB28: 10973 | AC28: 11173 | AD28: 11380 | AE28: 11595 | AF28: 11818 | AG28: 12050 | AH28: 12291 | AI28: 12540 | AJ28: 12799 | AK28: 13068 | AL28: 13347 | AM28: 13637 | AN28: 13939 | AO28: 14252 | AP28: 14577 | AQ28: 14915 | AR28: 15150 | AS28: 15394 | AT28: 15648 | AU28: 15911 | AV28: 16185 | AW28: 16469 | AX28: 16765 | AY28: 17072 | AZ28: 17392 | BA28: 17726 | BB28: 18073 | BC28: 18436 | BD28: 18815 | BE28: 19211 | BF28: 19627 | BG28: 20058 | BH28: 20506 | BI28: 20971 | BJ28: 21453 | BK28: 21953 | BL28: 20472 | BM28: 18930 | BN28: 17325 | BO28: 15656 | BP28: 13919 | BQ28: 12114 | BR28: 10236 | BS28: 8284 | BT28: 6255 | BU28: 4147 | BV28: 3957 | BW28: 3759 | BX28: 3553 | BY28: 3339 | BZ28: 3115 | CA28: 2883 | CB28: 2641 | CC28: 2390 | CD28: 2128 | CE28: 1857 | CF28: 1575 | CG28: 1282 | CH28: 978 | CI28: 663 | CJ28: 337 | CK28: 0 | CL28: 0 | DL28: 342 | DM28: 1243.377482 | DN28: 2168.89097 | DO28: 3117.507498 | DP28: 3089.808366 | DQ28: 3828.427752 | DR28: 4585.365455 | DS28: 5361.066724 | DT28: 6155.987582 | DU28: 6970.595503 | DV28: 7805.37012 | DW28: 8660.803969 | DX28: 9537.403263 | DY28: 10435.6852 | DZ28: 11356.18198 | EA28: 12299.4381 | EB28: 13266.01125 | EC28: 14256.46957 | ED28: 15271.40418 | EE28: 16311.41992 | EF28: 16482.58456 | EG28: 16657.86847 | EH28: 16837.37974 | EI28: 17021.23428 | EJ28: 17209.56001 | EK28: 17402.50019 | EL28: 17600.21112 | EM28: 17802.86289 | EN28: 18010.64226 | EO28: 18223.74919 | EP28: 18442.40176 | EQ28: 18666.83497 | ER28: 18897.30299 | ES28: 19134.07667 | ET28: 19377.44668 | EU28: 19627.72488 | EV28: 19768.95341 | EW28: 19914.34616 | EX28: 20064.13329 | EY28: 20218.57463 | EZ28: 20377.96592 | FA28: 20542.64498 | FB28: 20712.99541 | FC28: 20889.45341 | FD28: 21072.51593 | FE28: 21262.76036 | FF28: 21460.88181 | FG28: 21667.75601 | FH28: 21884.52836 | FI28: 22112.73007 | FJ28: 22354.42132 | FK28: 22604.94349 | FL28: 22864.28267 | FM28: 23132.54251 | FN28: 23409.42549 | FO28: 23694.04051 | FP28: 21984.7398 | FQ28: 20231.60825 | FR28: 18432.59536 | FS28: 16585.57473 | FT28: 14688.61259 | FU28: 12739.82225 | FV28: 10737.82457 | FW28: 8681.594475 | FX28: 6570.815433 | FY28: 4406.038969 | FZ28: 4189.201181 | GA28: 3966.077035 | GB28: 3736.314076 | GC28: 3499.483431 | GD28: 3255.469667 | GE28: 3003.734394 | GF28: 2744.068753 | GG28: 2475.956134 | GH28: 2199.351063 | GI28: 1913.574178 | GJ28: 1618.434845 | GK28: 1313.778158 | GL28: 999.5036465 | GM28: 675.6039662 | GN28: 342.251197 | GO28: 0 | GP28: 0
A29: 24_20_M | B29: 20 | C29: 24 | D29: M | F29: 1147 | G29: 0 | H29: 342 | I29: 828 | J29: 1401 | K29: 2021 | L29: 1749 | M29: 2178 | N29: 2628 | O29: 3100 | P29: 3596 | Q29: 4115 | R29: 4660 | S29: 5231 | T29: 5829 | U29: 6455 | V29: 7112 | W29: 7799 | X29: 8519 | Y29: 9272 | Z29: 10061 | AA29: 10886 | AB29: 11085 | AC29: 11292 | AD29: 11507 | AE29: 11730 | AF29: 11961 | AG29: 12201 | AH29: 12450 | AI29: 12708 | AJ29: 12977 | AK29: 13255 | AL29: 13545 | AM29: 13845 | AN29: 14158 | AO29: 14482 | AP29: 14819 | AQ29: 15055 | AR29: 15300 | AS29: 15554 | AT29: 15818 | AU29: 16093 | AV29: 16378 | AW29: 16674 | AX29: 16982 | AY29: 17303 | AZ29: 17637 | BA29: 17986 | BB29: 18349 | BC29: 18729 | BD29: 19125 | BE29: 19541 | BF29: 19974 | BG29: 20424 | BH29: 20890 | BI29: 21374 | BJ29: 21876 | BK29: 20395 | BL29: 18855 | BM29: 17252 | BN29: 15585 | BO29: 13851 | BP29: 12047 | BQ29: 10172 | BR29: 8222 | BS29: 6196 | BT29: 4090 | BU29: 3903 | BV29: 3708 | BW29: 3504 | BX29: 3293 | BY29: 3073 | BZ29: 2843 | CA29: 2605 | CB29: 2357 | CC29: 2099 | CD29: 1831 | CE29: 1553 | CF29: 1264 | CG29: 965 | CH29: 654 | CI29: 333 | CJ29: 0 | CK29: 0 | DL29: 342.347599 | DM29: 1245.240047 | DN29: 2170.664235 | DO29: 3119.186283 | DP29: 3091.387604 | DQ29: 3833.075023 | DR29: 4593.145583 | DS29: 5372.045427 | DT29: 6170.231717 | DU29: 6988.173323 | DV29: 7826.351543 | DW29: 8685.26086 | DX29: 9565.406367 | DY29: 10467.30755 | DZ29: 11391.49572 | EA29: 12338.51468 | EB29: 13308.91807 | EC29: 14303.28149 | ED29: 15322.19332 | EE29: 16366.25657 | EF29: 16541.68365 | EG29: 16721.32764 | EH29: 16905.30266 | EI29: 17093.73477 | EJ29: 17286.76548 | EK29: 17484.54924 | EL29: 17687.25426 | EM29: 17895.06548 | EN29: 18108.18084 | EO29: 18326.81647 | EP29: 18551.20535 | EQ29: 18781.59963 | ER29: 19018.26789 | ES29: 19261.49813 | ET29: 19511.59865 | EU29: 19654.20722 | EV29: 19800.98067 | EW29: 19952.14576 | EX29: 20107.95862 | EY29: 20268.71056 | EZ29: 20434.7344 | FA29: 20606.4087 | FB29: 20784.16426 | FC29: 20968.49217 | FD29: 21159.96269 | FE29: 21359.26094 | FF29: 21567.24803 | FG29: 21785.04798 | FH29: 22014.16204 | FI29: 22256.61022 | FJ29: 22509.3007 | FK29: 22770.83585 | FL29: 23041.34009 | FM29: 23320.4926 | FN29: 23607.39988 | FO29: 21900.49369 | FP29: 20149.79705 | FQ29: 18353.26486 | FR29: 16508.77856 | FS29: 14614.34397 | FT29: 12668.22362 | FU29: 10668.90146 | FV29: 8615.445447 | FW29: 6507.452423 | FX29: 4345.593833 | FY29: 4131.705931 | FZ29: 3911.564107 | GA29: 3684.993435 | GB29: 3451.451855 | GC29: 3210.63493 | GD29: 2962.432939 | GE29: 2706.254279 | GF29: 2441.845991 | GG29: 2168.932266 | GH29: 1887.19621 | GI29: 1596.238974 | GJ29: 1295.989964 | GK29: 985.9542905 | GL29: 666.5674508 | GM29: 337.5426681 | GN29: 0 | GO29: 0
A30: 25_20_M | B30: 20 | C30: 25 | D30: M | F30: 1131 | G30: 0 | H30: 344 | I30: 830 | J30: 1405 | K30: 2027 | L30: 1756 | M30: 2190 | N30: 2646 | O30: 3124 | P30: 3625 | Q30: 4150 | R30: 4701 | S30: 5279 | T30: 5884 | U30: 6517 | V30: 7181 | W30: 7876 | X30: 8604 | Y30: 9366 | Z30: 10163 | AA30: 10997 | AB30: 11204 | AC30: 11418 | AD30: 11641 | AE30: 11871 | AF30: 12111 | AG30: 12359 | AH30: 12617 | AI30: 12885 | AJ30: 13163 | AK30: 13452 | AL30: 13752 | AM30: 14063 | AN30: 14387 | AO30: 14723 | AP30: 14960 | AQ30: 15206 | AR30: 15461 | AS30: 15725 | AT30: 16000 | AU30: 16286 | AV30: 16583 | AW30: 16892 | AX30: 17214 | AY30: 17549 | AZ30: 17898 | BA30: 18262 | BB30: 18642 | BC30: 19039 | BD30: 19455 | BE30: 19890 | BF30: 20341 | BG30: 20809 | BH30: 21294 | BI30: 21797 | BJ30: 20319 | BK30: 18780 | BL30: 17180 | BM30: 15514 | BN30: 13782 | BO30: 11980 | BP30: 10107 | BQ30: 8160 | BR30: 6136 | BS30: 4032 | BT30: 3848 | BU30: 3655 | BV30: 3455 | BW30: 3246 | BX30: 3029 | BY30: 2803 | BZ30: 2568 | CA30: 2324 | CB30: 2069 | CC30: 1805 | CD30: 1531 | CE30: 1246 | CF30: 951 | CG30: 645 | CH30: 328 | CI30: 0 | CJ30: 0 | DL30: 344.5484009 | DM30: 1247.53127 | DN30: 2173.045001 | DO30: 3121.655837 | DP30: 3093.943532 | DQ30: 3838.887511 | DR30: 4602.283722 | DS30: 5384.57943 | DT30: 6186.233171 | DU30: 7007.715454 | DV30: 7849.509499 | DW30: 8712.108793 | DX30: 9596.020648 | DY30: 10501.76372 | DZ30: 11429.86858 | EA30: 12380.87503 | EB30: 13355.34383 | EC30: 14353.84771 | ED30: 15376.97295 | EE30: 16425.33233 | EF30: 16605.10465 | EG30: 16789.1956 | EH30: 16977.72943 | EI30: 17170.84582 | EJ30: 17368.69742 | EK30: 17571.45052 | EL30: 17779.28824 | EM30: 17992.40651 | EN30: 18211.01947 | EO30: 18435.35806 | EP30: 18665.67245 | EQ30: 18902.22889 | ER30: 19145.31273 | ES30: 19395.22866 | ET30: 19539.2101 | EU30: 19687.35676 | EV30: 19839.892 | EW30: 19997.06824 | EX30: 20159.17229 | EY30: 20326.53198 | EZ30: 20499.52075 | FA30: 20678.56395 | FB30: 20864.14683 | FC30: 21056.83237 | FD30: 21257.29572 | FE30: 21466.38319 | FF30: 21685.19734 | FG30: 21915.20929 | FH30: 22158.3986 | FI30: 22413.24001 | FJ30: 22676.97292 | FK30: 22949.70066 | FL30: 23231.12813 | FM30: 23520.37085 | FN30: 21815.7931 | FO30: 20067.4983 | FP30: 18273.35321 | FQ30: 16431.34993 | FR30: 14539.45269 | FS30: 12595.93597 | FT30: 10599.29953 | FU30: 8548.530772 | FV30: 6443.33017 | FW30: 4284.399809 | FX30: 4073.477282 | FY30: 3856.497916 | FZ30: 3633.007025 | GA30: 3402.802011 | GB30: 3165.468875 | GC30: 2920.709205 | GD30: 2668.165237 | GE30: 2407.36813 | GF30: 2138.355437 | GG30: 1860.593571 | GH30: 1573.712647 | GI30: 1277.697425 | GJ30: 972.1604482 | GK30: 657.1252651 | GL30: 332.8341391 | GM30: 0 | GN30: 0
A31: 26_20_M | B31: 20 | C31: 26 | D31: M | F31: 1115 | G31: 0 | H31: 345 | I31: 833 | J31: 1409 | K31: 2034 | L31: 1766 | M31: 2205 | N31: 2666 | O31: 3149 | P31: 3656 | Q31: 4188 | R31: 4746 | S31: 5330 | T31: 5942 | U31: 6584 | V31: 7255 | W31: 7959 | X31: 8695 | Y31: 9466 | Z31: 10272 | AA31: 11116 | AB31: 11330 | AC31: 11552 | AD31: 11782 | AE31: 12021 | AF31: 12269 | AG31: 12527 | AH31: 12794 | AI31: 13071 | AJ31: 13359 | AK31: 13659 | AL31: 13969 | AM31: 14292 | AN31: 14628 | AO31: 14865 | AP31: 15111 | AQ31: 15367 | AR31: 15633 | AS31: 15908 | AT31: 16195 | AU31: 16493 | AV31: 16802 | AW31: 17125 | AX31: 17460 | AY31: 17810 | AZ31: 18175 | BA31: 18555 | BB31: 18953 | BC31: 19370 | BD31: 19806 | BE31: 20258 | BF31: 20728 | BG31: 21215 | BH31: 21720 | BI31: 20243 | BJ31: 18706 | BK31: 17107 | BL31: 15444 | BM31: 13714 | BN31: 11914 | BO31: 10043 | BP31: 8098 | BQ31: 6076 | BR31: 3976 | BS31: 3794 | BT31: 3604 | BU31: 3407 | BV31: 3201 | BW31: 2987 | BX31: 2764 | BY31: 2532 | BZ31: 2291 | CA31: 2040 | CB31: 1780 | CC31: 1510 | CD31: 1229 | CE31: 938 | CF31: 636 | CG31: 323 | CH31: 0 | CI31: 0 | DL31: 347.0237398 | DM31: 1250.29213 | DN31: 2176.095301 | DO31: 3124.997948 | DP31: 3097.581055 | DQ31: 3845.992877 | DR31: 4612.930936 | DS31: 5398.843866 | DT31: 6204.191833 | DU31: 7029.447257 | DV31: 7875.092523 | DW31: 8741.623288 | DX31: 9629.546116 | DY31: 10539.37897 | DZ31: 11471.64846 | EA31: 12426.90123 | EB31: 13405.69511 | EC31: 14408.6005 | ED31: 15436.21309 | EE31: 16489.14561 | EF31: 16673.35952 | EG31: 16862.00228 | EH31: 17055.21183 | EI31: 17253.13898 | EJ31: 17455.94815 | EK31: 17663.82063 | EL31: 17876.95034 | EM31: 18095.54949 | EN31: 18319.84698 | EO31: 18550.091 | EP31: 18786.54549 | EQ31: 19029.49319 | ER31: 19279.23518 | ES31: 19424.60058 | ET31: 19574.13201 | EU31: 19728.04945 | EV31: 19886.60166 | EW31: 20050.071 | EX31: 20218.78035 | EY31: 20393.0981 | EZ31: 20573.44425 | FA31: 20760.29822 | FB31: 20954.21586 | FC31: 21155.8624 | FD31: 21366.06956 | FE31: 21585.9186 | FF31: 21816.85078 | FG31: 22060.80561 | FH31: 22317.82481 | FI31: 22583.78551 | FJ31: 22858.77068 | FK31: 23142.48257 | FL31: 23434.03478 | FM31: 21731.83118 | FN31: 19985.94482 | FO31: 18194.30109 | FP31: 16354.79419 | FQ31: 14465.44785 | FR31: 12524.54865 | FS31: 10530.61241 | FT31: 8482.647926 | FU31: 6380.384232 | FV31: 4224.3089 | FW31: 4016.395854 | FX31: 3802.47528 | FY31: 3582.100216 | FZ31: 3355.080271 | GA31: 3121.020757 | GB31: 2879.654031 | GC31: 2630.672133 | GD31: 2373.688384 | GE31: 2108.529738 | GF31: 1834.666983 | GG31: 1551.740313 | GH31: 1259.755337 | GI31: 958.3666059 | GJ31: 647.6830793 | GK31: 328.1256102 | GL31: 0 | GM31: 0
A32: 27_20_M | B32: 20 | C32: 27 | D32: M | F32: 1097 | G32: 0 | H32: 346 | I32: 835 | J32: 1413 | K32: 2040 | L32: 1773 | M32: 2217 | N32: 2683 | O32: 3173 | P32: 3686 | Q32: 4224 | R32: 4788 | S32: 5379 | T32: 5998 | U32: 6647 | V32: 7326 | W32: 8037 | X32: 8782 | Y32: 9561 | Z32: 10377 | AA32: 11230 | AB32: 11452 | AC32: 11681 | AD32: 11920 | AE32: 12167 | AF32: 12424 | AG32: 12691 | AH32: 12968 | AI32: 13255 | AJ32: 13553 | AK32: 13863 | AL32: 14185 | AM32: 14520 | AN32: 14758 | AO32: 15005 | AP32: 15262 | AQ32: 15528 | AR32: 15805 | AS32: 16092 | AT32: 16391 | AU32: 16701 | AV32: 17024 | AW32: 17361 | AX32: 17711 | AY32: 18076 | AZ32: 18458 | BA32: 18856 | BB32: 19274 | BC32: 19711 | BD32: 20165 | BE32: 20636 | BF32: 21125 | BG32: 21632 | BH32: 20157 | BI32: 18622 | BJ32: 17025 | BK32: 15364 | BL32: 13636 | BM32: 11839 | BN32: 9970 | BO32: 8028 | BP32: 6009 | BQ32: 3911 | BR32: 3732 | BS32: 3546 | BT32: 3351 | BU32: 3149 | BV32: 2938 | BW32: 2719 | BX32: 2491 | BY32: 2254 | BZ32: 2007 | CA32: 1751 | CB32: 1485 | CC32: 1209 | CD32: 923 | CE32: 626 | CF32: 318 | CG32: 0 | CH32: 0 | DL32: 348.9596685 | DM32: 1251.827129 | DN32: 2177.213965 | DO32: 3125.685361 | DP32: 3097.822253 | DQ32: 3849.33819 | DR32: 4619.444472 | DS32: 5408.590908 | DT32: 6217.2391 | DU32: 7045.860314 | DV32: 7894.938544 | DW32: 8764.968255 | DX32: 9656.454781 | DY32: 10569.91158 | DZ32: 11505.87117 | EA32: 12464.87648 | EB32: 13447.48209 | EC32: 14454.26658 | ED32: 15485.82434 | EE32: 16542.77158 | EF32: 16731.52963 | EG32: 16924.83648 | EH32: 17122.84087 | EI32: 17325.70509 | EJ32: 17533.60837 | EK32: 17746.74237 | EL32: 17965.31707 | EM32: 18189.5591 | EN32: 18419.71438 | EO32: 18656.04426 | EP32: 18898.82849 | EQ32: 19148.3641 | ER32: 19295.2753 | ES32: 19446.35298 | ET32: 19601.81329 | EU32: 19761.9008 | EV32: 19926.89286 | EW32: 20097.10669 | EX32: 20272.90495 | EY32: 20454.70155 | EZ32: 20642.96928 | FA32: 20838.25587 | FB32: 21041.21531 | FC32: 21252.66272 | FD32: 21473.65522 | FE32: 21705.6002 | FF32: 21950.39174 | FG32: 22209.84305 | FH32: 22478.27231 | FI32: 22755.78485 | FJ32: 23042.06202 | FK32: 23336.21825 | FL32: 21636.66037 | FM32: 19893.46697 | FN32: 18104.5719 | FO32: 16267.88135 | FP32: 14381.4351 | FQ32: 12443.46035 | FR32: 10452.5617 | FS32: 8407.677949 | FT32: 6308.542195 | FU32: 4155.774744 | FV32: 3951.267433 | FW32: 3740.71815 | FX32: 3524.001092 | FY32: 3300.649055 | FZ32: 3070.473073 | GA32: 2833.051472 | GB32: 2588.088454 | GC32: 2335.218895 | GD32: 2074.307642 | GE32: 1804.892465 | GF32: 1526.73399 | GG32: 1239.56496 | GH32: 943.0485336 | GI32: 637.3141643 | GJ32: 322.8285151 | GK32: 0 | GL32: 0
A33: 28_20_M | B33: 20 | C33: 28 | D33: M | F33: 1080 | G33: 0 | H33: 347 | I33: 838 | J33: 1418 | K33: 2047 | L33: 1783 | M33: 2233 | N33: 2705 | O33: 3200 | P33: 3720 | Q33: 4265 | R33: 4836 | S33: 5434 | T33: 6061 | U33: 6718 | V33: 7406 | W33: 8126 | X33: 8879 | Y33: 9668 | Z33: 10494 | AA33: 11357 | AB33: 11587 | AC33: 11825 | AD33: 12072 | AE33: 12328 | AF33: 12594 | AG33: 12870 | AH33: 13157 | AI33: 13454 | AJ33: 13764 | AK33: 14085 | AL33: 14419 | AM33: 14657 | AN33: 14905 | AO33: 15163 | AP33: 15430 | AQ33: 15707 | AR33: 15995 | AS33: 16295 | AT33: 16606 | AU33: 16930 | AV33: 17267 | AW33: 17618 | AX33: 17984 | AY33: 18366 | AZ33: 18766 | BA33: 19183 | BB33: 19622 | BC33: 20077 | BD33: 20550 | BE33: 21040 | BF33: 21549 | BG33: 20076 | BH33: 18543 | BI33: 16948 | BJ33: 15289 | BK33: 13563 | BL33: 11768 | BM33: 9902 | BN33: 7962 | BO33: 5946 | BP33: 3851 | BQ33: 3674 | BR33: 3491 | BS33: 3299 | BT33: 3100 | BU33: 2893 | BV33: 2677 | BW33: 2452 | BX33: 2219 | BY33: 1976 | BZ33: 1724 | CA33: 1462 | CB33: 1190 | CC33: 908 | CD33: 616 | CE33: 313 | CF33: 0 | CG33: 0 | DL33: 351.5896357 | DM33: 1254.703309 | DN33: 2180.337937 | DO33: 3129.058965 | DP33: 3101.44782 | DQ33: 3856.580836 | DR33: 4630.381096 | DS33: 5423.30007 | DT33: 6235.798644 | DU33: 7068.34991 | DV33: 7921.43706 | DW33: 8795.553686 | DX33: 9691.201073 | DY33: 10608.8986 | DZ33: 11549.17545 | EA33: 12512.57157 | EB33: 13499.64973 | EC33: 14510.98739 | ED33: 15547.18251 | EE33: 16608.85976 | EF33: 16802.27339 | EG33: 17000.3661 | EH33: 17203.29822 | EI33: 17411.24705 | EJ33: 17624.40213 | EK33: 17842.9714 | EL33: 18067.17933 | EM33: 18297.26977 | EN33: 18533.50164 | EO33: 18776.15191 | EP33: 19025.51384 | EQ33: 19173.90706 | ER33: 19326.46811 | ES33: 19483.40958 | ET33: 19644.97219 | EU33: 19811.42861 | EV33: 19983.09087 | EW33: 20160.31633 | EX33: 20343.51326 | EY33: 20533.14836 | EZ33: 20729.76186 | FA33: 20933.99733 | FB33: 21146.65455 | FC33: 21368.7682 | FD33: 21601.71424 | FE33: 21847.34458 | FF33: 22108.14897 | FG33: 22378.9266 | FH33: 22658.81932 | FI33: 22947.53559 | FJ33: 23244.16623 | FK33: 21547.1199 | FL33: 19806.47907 | FM33: 18020.18399 | FN33: 16186.15005 | FO33: 14302.42959 | FP33: 12367.26645 | FQ33: 10379.19648 | FR33: 8337.25571 | FS33: 6241.096155 | FT33: 4091.338764 | FU33: 3890.018293 | FV33: 3682.736318 | FW33: 3469.387478 | FX33: 3249.535514 | FY33: 3022.818881 | FZ33: 2789.023406 | GA33: 2547.92836 | GB33: 2298.981285 | GC33: 2042.059138 | GD33: 1776.722593 | GE33: 1502.774994 | GF33: 1220.029446 | GG33: 928.303791 | GH33: 627.408614 | GI33: 317.8257032 | GJ33: 0 | GK33: 0
A34: 29_20_M | B34: 20 | C34: 29 | D34: M | F34: 1062 | G34: 0 | H34: 348 | I34: 841 | J34: 1424 | K34: 2055 | L34: 1792 | M34: 2248 | N34: 2726 | O34: 3228 | P34: 3754 | Q34: 4306 | R34: 4884 | S34: 5490 | T34: 6125 | U34: 6790 | V34: 7486 | W34: 8215 | X34: 8978 | Y34: 9777 | Z34: 10613 | AA34: 11487 | AB34: 11724 | AC34: 11970 | AD34: 12226 | AE34: 12492 | AF34: 12767 | AG34: 13053 | AH34: 13350 | AI34: 13658 | AJ34: 13979 | AK34: 14312 | AL34: 14551 | AM34: 14800 | AN34: 15058 | AO34: 15326 | AP34: 15604 | AQ34: 15893 | AR34: 16194 | AS34: 16506 | AT34: 16831 | AU34: 17169 | AV34: 17520 | AW34: 17887 | AX34: 18270 | AY34: 18670 | AZ34: 19088 | BA34: 19527 | BB34: 19984 | BC34: 20459 | BD34: 20951 | BE34: 21461 | BF34: 19990 | BG34: 18459 | BH34: 16867 | BI34: 15210 | BJ34: 13486 | BK34: 11694 | BL34: 9830 | BM34: 7893 | BN34: 5879 | BO34: 3787 | BP34: 3613 | BQ34: 3433 | BR34: 3245 | BS34: 3049 | BT34: 2845 | BU34: 2632 | BV34: 2412 | BW34: 2182 | BX34: 1943 | BY34: 1695 | BZ34: 1438 | CA34: 1170 | CB34: 893 | CC34: 606 | CD34: 308 | CE34: 0 | CF34: 0 | DL34: 354.112335 | DM34: 1257.256286 | DN34: 2182.917038 | DO34: 3131.660205 | DP34: 3104.067616 | DQ34: 3862.775208 | DR34: 4640.225413 | DS34: 5436.868977 | DT34: 6253.168349 | DU34: 7089.595724 | DV34: 7946.633253 | DW34: 8824.770384 | DX34: 9724.513718 | DY34: 10646.37905 | DZ34: 11590.89217 | EA34: 12558.60045 | EB34: 13550.06496 | EC34: 14565.8659 | ED34: 15606.60876 | EE34: 16672.93063 | EF34: 16871.12848 | EG34: 17074.1445 | EH34: 17282.15398 | EI34: 17495.34426 | EJ34: 17713.9211 | EK34: 17938.10674 | EL34: 18168.14286 | EM34: 18404.28582 | EN34: 18646.80968 | EO34: 18896.00375 | EP34: 19045.98286 | EQ34: 19200.13191 | ER34: 19358.65981 | ES34: 19521.80323 | ET34: 19689.82999 | EU34: 19863.04668 | EV34: 20041.80515 | EW34: 20226.50779 | EX34: 20417.61498 | EY34: 20615.65912 | EZ34: 20821.27294 | FA34: 21035.24018 | FB34: 21258.57207 | FC34: 21492.6117 | FD34: 21739.16685 | FE34: 22000.67043 | FF34: 22273.94001 | FG34: 22556.36165 | FH34: 22847.64273 | FI34: 23146.90904 | FJ34: 21452.54534 | FK34: 19714.64081 | FL34: 17931.09118 | FM34: 16099.86725 | FN34: 14219.03686 | FO34: 12286.78366 | FP34: 10301.73131 | FQ34: 8262.844529 | FR34: 6169.891162 | FS34: 4023.41255 | FT34: 3825.458616 | FU34: 3621.65303 | FV34: 3411.746899 | FW34: 3195.468874 | FX34: 2972.506037 | FY34: 2742.720163 | FZ34: 2505.458793 | GA34: 2260.664621 | GB34: 2008.047639 | GC34: 1747.247476 | GD34: 1477.768672 | GE34: 1199.839069 | GF34: 912.9857186 | GG34: 617.039699 | GH34: 312.5286081 | GI34: 0 | GJ34: 0
A35: 30_20_M | B35: 20 | C35: 30 | D35: M | F35: 1043 | G35: 0 | H35: 349 | I35: 844 | J35: 1428 | K35: 2062 | L35: 1802 | M35: 2263 | N35: 2748 | O35: 3256 | P35: 3789 | Q35: 4347 | R35: 4933 | S35: 5547 | T35: 6190 | U35: 6863 | V35: 7568 | W35: 8306 | X35: 9079 | Y35: 9887 | Z35: 10733 | AA35: 11618 | AB35: 11864 | AC35: 12119 | AD35: 12383 | AE35: 12658 | AF35: 12943 | AG35: 13240 | AH35: 13547 | AI35: 13867 | AJ35: 14198 | AK35: 14439 | AL35: 14689 | AM35: 14948 | AN35: 15217 | AO35: 15496 | AP35: 15786 | AQ35: 16087 | AR35: 16400 | AS35: 16726 | AT35: 17064 | AU35: 17417 | AV35: 17785 | AW35: 18168 | AX35: 18569 | AY35: 18988 | AZ35: 19427 | BA35: 19886 | BB35: 20362 | BC35: 20856 | BD35: 21369 | BE35: 19900 | BF35: 18371 | BG35: 16781 | BH35: 15126 | BI35: 13405 | BJ35: 11615 | BK35: 9754 | BL35: 7819 | BM35: 5808 | BN35: 3719 | BO35: 3549 | BP35: 3371 | BQ35: 3187 | BR35: 2994 | BS35: 2794 | BT35: 2586 | BU35: 2369 | BV35: 2143 | BW35: 1909 | BX35: 1665 | BY35: 1412 | BZ35: 1150 | CA35: 877 | CB35: 595 | CC35: 303 | CD35: 0 | CE35: 0 | DL35: 356.5364874 | DM35: 1259.481167 | DN35: 2184.93239 | DO35: 3133.455833 | DP35: 3105.633617 | DQ35: 3867.858092 | DR35: 4648.896414 | DS35: 5449.200629 | DT35: 6269.232197 | DU35: 7109.462117 | DV35: 7970.368321 | DW35: 8852.444958 | DX35: 9756.194812 | DY35: 10682.12991 | DZ35: 11630.78269 | EA35: 12602.69825 | EB35: 13598.43959 | EC35: 14618.59356 | ED35: 15663.77704 | EE35: 16734.63659 | EF35: 16937.73916 | EG35: 17145.81057 | EH35: 17359.03583 | EI35: 17577.61841 | EJ35: 17801.7782 | EK35: 18031.75456 | EL35: 18267.80116 | EM35: 18510.189 | EN35: 18759.20319 | EO35: 18910.85347 | EP35: 19066.67582 | EQ35: 19226.87522 | ER35: 19391.68408 | ES35: 19561.36508 | ET35: 19736.21906 | EU35: 19916.59201 | EV35: 20102.88015 | EW35: 20295.53711 | EX35: 20495.08705 | EY35: 20702.15121 | EZ35: 20917.49635 | FA35: 21142.10891 | FB35: 21377.29721 | FC35: 21624.82237 | FD35: 21887.05717 | FE35: 22162.94599 | FF35: 22448.0518 | FG35: 22742.0624 | FH35: 23044.07183 | FI35: 21352.49666 | FJ35: 19617.43303 | FK35: 17836.78718 | FL35: 16008.54449 | FM35: 14130.721 | FN35: 12201.5801 | FO35: 10219.68388 | FP35: 8184.1037 | FQ35: 6094.5388 | FR35: 3951.548107 | FS35: 3757.065037 | FT35: 3557.006041 | FU35: 3350.875436 | FV35: 3138.59307 | FW35: 2919.714144 | FX35: 2693.877686 | FY35: 2460.888116 | FZ35: 2220.547951 | GA35: 1972.30899 | GB35: 1716.12626 | GC35: 1451.654052 | GD35: 1178.405717 | GE35: 896.716746 | GF35: 606.2074194 | GG35: 306.93723 | GH35: 0 | GI35: 0
A36: 31_20_M | B36: 20 | C36: 31 | D36: M | F36: 1024 | G36: 0 | H36: 351 | I36: 847 | J36: 1434 | K36: 2070 | L36: 1812 | M36: 2280 | N36: 2771 | O36: 3286 | P36: 3826 | Q36: 4392 | R36: 4985 | S36: 5607 | T36: 6258 | U36: 6941 | V36: 7655 | W36: 8402 | X36: 9185 | Y36: 10004 | Z36: 10861 | AA36: 11757 | AB36: 12011 | AC36: 12275 | AD36: 12549 | AE36: 12834 | AF36: 13129 | AG36: 13436 | AH36: 13754 | AI36: 14085 | AJ36: 14327 | AK36: 14577 | AL36: 14837 | AM36: 15107 | AN36: 15387 | AO36: 15678 | AP36: 15980 | AQ36: 16294 | AR36: 16621 | AS36: 16960 | AT36: 17314 | AU36: 17682 | AV36: 18067 | AW36: 18468 | AX36: 18887 | AY36: 19327 | AZ36: 19788 | BA36: 20266 | BB36: 20762 | BC36: 21276 | BD36: 19809 | BE36: 18283 | BF36: 16694 | BG36: 15042 | BH36: 13323 | BI36: 11536 | BJ36: 9677 | BK36: 7745 | BL36: 5738 | BM36: 3651 | BN36: 3484 | BO36: 3310 | BP36: 3129 | BQ36: 2940 | BR36: 2743 | BS36: 2538 | BT36: 2325 | BU36: 2104 | BV36: 1874 | BW36: 1635 | BX36: 1386 | BY36: 1129 | BZ36: 861 | CA36: 584 | CB36: 297 | CC36: 0 | CD36: 0 | DL36: 359.2739196 | DM36: 1262.223238 | DN36: 2187.673803 | DO36: 3136.191565 | DP36: 3108.359159 | DQ36: 3874.320495 | DR36: 4659.172073 | DS36: 5463.365115 | DT36: 6287.359997 | DU36: 7131.623733 | DV36: 7996.638626 | DW36: 8882.895124 | DX36: 9790.892244 | DY36: 10721.14825 | DZ36: 11674.19316 | EA36: 12650.57371 | EB36: 13650.85905 | EC36: 14675.64695 | ED36: 15725.5633 | EE36: 16801.26515 | EF36: 17009.39661 | EG36: 17222.6549 | EH36: 17441.24121 | EI36: 17665.37306 | EJ36: 17895.28749 | EK36: 18131.23549 | EL36: 18373.48496 | EM36: 18622.31683 | EN36: 18775.63577 | EO36: 18933.12879 | EP36: 19094.99693 | EQ36: 19261.46837 | ER36: 19432.80061 | ES36: 19609.28873 | ET36: 19791.27286 | EU36: 19979.143 | EV36: 20173.34606 | EW36: 20374.3979 | EX36: 20582.90828 | EY36: 20799.62692 | EZ36: 21025.51544 | FA36: 21261.84732 | FB36: 21510.33694 | FC36: 21773.29683 | FD36: 22051.79805 | FE36: 22339.55538 | FF36: 22636.25596 | FG36: 22941.02949 | FH36: 21252.26978 | FI36: 19520.03409 | FJ36: 17742.33121 | FK36: 15917.05633 | FL36: 14042.2949 | FM36: 12116.25455 | FN36: 10137.59091 | FO36: 8105.311501 | FP36: 6019.014257 | FQ36: 3879.48507 | FR36: 3688.580931 | FS36: 3492.093964 | FT36: 3289.684977 | FU36: 3081.129952 | FV36: 2866.18939 | FW36: 2644.594114 | FX36: 2416.018319 | FY36: 2180.030684 | FZ36: 1936.366998 | GA36: 1684.715954 | GB36: 1425.114226 | GC36: 1156.81847 | GD36: 880.2032871 | GE36: 594.9694694 | GF36: 301.3458519 | GG36: 0 | GH36: 0
A37: 32_20_M | B37: 20 | C37: 32 | D37: M | F37: 1005 | G37: 0 | H37: 352 | I37: 851 | J37: 1440 | K37: 2079 | L37: 1824 | M37: 2298 | N37: 2796 | O37: 3318 | P37: 3866 | Q37: 4440 | R37: 5041 | S37: 5671 | T37: 6332 | U37: 7023 | V37: 7747 | W37: 8505 | X37: 9298 | Y37: 10128 | Z37: 10996 | AA37: 11904 | AB37: 12167 | AC37: 12441 | AD37: 12724 | AE37: 13019 | AF37: 13325 | AG37: 13642 | AH37: 13972 | AI37: 14215 | AJ37: 14466 | AK37: 14727 | AL37: 14998 | AM37: 15278 | AN37: 15570 | AO37: 15873 | AP37: 16188 | AQ37: 16516 | AR37: 16856 | AS37: 17211 | AT37: 17580 | AU37: 17965 | AV37: 18367 | AW37: 18787 | AX37: 19227 | AY37: 19689 | AZ37: 20169 | BA37: 20667 | BB37: 21183 | BC37: 19718 | BD37: 18194 | BE37: 16608 | BF37: 14958 | BG37: 13242 | BH37: 11457 | BI37: 9601 | BJ37: 7672 | BK37: 5667 | BL37: 3583 | BM37: 3419 | BN37: 3248 | BO37: 3070 | BP37: 2885 | BQ37: 2692 | BR37: 2491 | BS37: 2282 | BT37: 2065 | BU37: 1839 | BV37: 1604 | BW37: 1361 | BX37: 1108 | BY37: 845 | BZ37: 573 | CA37: 292 | CB37: 0 | CC37: 0 | DL37: 362.3362596 | DM37: 1265.503207 | DN37: 2191.171325 | DO37: 3139.907062 | DP37: 3112.292849 | DQ37: 3882.221208 | DR37: 4671.119513 | DS37: 5479.43804 | DT37: 6307.633452 | DU37: 7156.1768 | DV37: 8025.546847 | DW37: 8916.230326 | DX37: 9828.732083 | DY37: 10763.56787 | DZ37: 11721.26906 | EA37: 12702.38812 | EB37: 13707.50465 | EC37: 14737.22495 | ED37: 15792.18498 | EE37: 16873.05656 | EF37: 17086.34992 | EG37: 17304.94207 | EH37: 17529.04817 | EI37: 17758.90294 | EJ37: 17994.75469 | EK37: 18236.86825 | EL37: 18485.52035 | EM37: 18640.51059 | EN37: 18799.67703 | EO37: 18963.21681 | EP37: 19131.35382 | EQ37: 19304.34045 | ER37: 19482.466 | ES37: 19666.06478 | ET37: 19855.52057 | EU37: 20051.27358 | EV37: 20253.83141 | EW37: 20463.79231 | EX37: 20681.88906 | EY37: 20909.05848 | EZ37: 21146.53929 | FA37: 21395.99918 | FB37: 21659.69057 | FC37: 21940.63091 | FD37: 22231.06371 | FE37: 22530.48386 | FF37: 22838.02355 | FG37: 21152.0817 | FH37: 19422.72392 | FI37: 17647.9166 | FJ37: 15825.61319 | FK37: 13953.84698 | FL37: 12030.90486 | FM37: 10055.38026 | FN37: 8026.28494 | FO37: 5943.336151 | FP37: 3807.244915 | FQ37: 3619.889909 | FR37: 3427.094567 | FS37: 3228.565606 | FT37: 3023.950651 | FU37: 2813.018788 | FV37: 2595.515439 | FW37: 2371.139427 | FX37: 2139.501236 | FY37: 1900.408221 | FZ37: 1653.673604 | GA37: 1398.675234 | GB37: 1135.385117 | GC37: 863.9343145 | GD37: 584.1371898 | GE37: 295.7544738 | GF37: 0 | GG37: 0
A38: 33_20_M | B38: 20 | C38: 33 | D38: M | F38: 985 | G38: 0 | H38: 354 | I38: 855 | J38: 1447 | K38: 2088 | L38: 1836 | M38: 2317 | N38: 2822 | O38: 3351 | P38: 3906 | Q38: 4488 | R38: 5098 | S38: 5737 | T38: 6406 | U38: 7107 | V38: 7841 | W38: 8609 | X38: 9413 | Y38: 10254 | Z38: 11134 | AA38: 12054 | AB38: 12327 | AC38: 12610 | AD38: 12903 | AE38: 13208 | AF38: 13525 | AG38: 13854 | AH38: 14097 | AI38: 14350 | AJ38: 14611 | AK38: 14883 | AL38: 15165 | AM38: 15458 | AN38: 15762 | AO38: 16078 | AP38: 16406 | AQ38: 16748 | AR38: 17103 | AS38: 17473 | AT38: 17859 | AU38: 18262 | AV38: 18683 | AW38: 19123 | AX38: 19586 | AY38: 20068 | AZ38: 20568 | BA38: 21086 | BB38: 19623 | BC38: 18101 | BD38: 16518 | BE38: 14870 | BF38: 13156 | BG38: 11374 | BH38: 9521 | BI38: 7595 | BJ38: 5593 | BK38: 3512 | BL38: 3352 | BM38: 3184 | BN38: 3010 | BO38: 2828 | BP38: 2639 | BQ38: 2442 | BR38: 2237 | BS38: 2024 | BT38: 1803 | BU38: 1573 | BV38: 1334 | BW38: 1086 | BX38: 829 | BY38: 562 | BZ38: 286 | CA38: 0 | CB38: 0 | DL38: 365.3433865 | DM38: 1268.563685 | DN38: 2194.280641 | DO38: 3143.060232 | DP38: 3115.485476 | DQ38: 3889.391369 | DR38: 4682.344313 | DS38: 5494.790967 | DT38: 6327.191483 | DU38: 7180.013331 | DV38: 8053.731401 | DW38: 8948.837569 | DX38: 9865.833844 | DY38: 10805.23676 | DZ38: 11767.58269 | EA38: 12753.43367 | EB38: 13763.37708 | EC38: 14798.02842 | ED38: 15858.03751 | EE38: 16944.08521 | EF38: 17162.71731 | EG38: 17386.83133 | EH38: 17616.65964 | EI38: 17852.44776 | EJ38: 18094.45739 | EK38: 18342.96093 | EL38: 18499.75275 | EM38: 18660.72477 | EN38: 18826.07014 | EO38: 18996.00844 | EP38: 19170.78681 | EQ38: 19350.68871 | ER38: 19536.04253 | ES38: 19727.22578 | ET38: 19924.67189 | EU38: 20128.88009 | EV38: 20340.43698 | EW38: 20560.05803 | EX38: 20788.65471 | EY38: 21027.43019 | EZ38: 21278.00446 | FA38: 21542.56844 | FB38: 21824.06331 | FC38: 22117.30747 | FD38: 22419.58537 | FE38: 22730.03232 | FF38: 21047.05347 | FG38: 19320.72429 | FH38: 17548.9709 | FI38: 15729.80772 | FJ38: 13861.29058 | FK38: 11941.65529 | FL38: 9969.504151 | FM38: 7943.861136 | FN38: 5864.460029 | FO38: 3732.034688 | FP38: 3548.354543 | FQ38: 3359.388226 | FR38: 3164.717842 | FS38: 2964.183774 | FT38: 2757.425555 | FU38: 2544.215923 | FV38: 2324.29843 | FW38: 2097.357947 | FX38: 1862.978834 | FY38: 1620.958053 | FZ38: 1371.088082 | GA38: 1113.143008 | GB38: 846.8475258 | GC38: 572.4358752 | GD38: 289.8688126 | GE38: 0 | GF38: 0
A39: 34_20_M | B39: 20 | C39: 34 | D39: M | F39: 964 | G39: 0 | H39: 355 | I39: 859 | J39: 1453 | K39: 2096 | L39: 1848 | M39: 2335 | N39: 2847 | O39: 3384 | P39: 3947 | Q39: 4537 | R39: 5156 | S39: 5803 | T39: 6482 | U39: 7193 | V39: 7936 | W39: 8715 | X39: 9530 | Y39: 10382 | Z39: 11274 | AA39: 12207 | AB39: 12489 | AC39: 12782 | AD39: 13086 | AE39: 13402 | AF39: 13730 | AG39: 13974 | AH39: 14227 | AI39: 14490 | AJ39: 14763 | AK39: 15046 | AL39: 15340 | AM39: 15645 | AN39: 15962 | AO39: 16291 | AP39: 16633 | AQ39: 16990 | AR39: 17361 | AS39: 17748 | AT39: 18151 | AU39: 18573 | AV39: 19014 | AW39: 19477 | AX39: 19961 | AY39: 20463 | AZ39: 20983 | BA39: 19523 | BB39: 18003 | BC39: 16422 | BD39: 14777 | BE39: 13066 | BF39: 11287 | BG39: 9436 | BH39: 7513 | BI39: 5514 | BJ39: 3437 | BK39: 3280 | BL39: 3116 | BM39: 2945 | BN39: 2767 | BO39: 2582 | BP39: 2390 | BQ39: 2189 | BR39: 1981 | BS39: 1764 | BT39: 1539 | BU39: 1305 | BV39: 1063 | BW39: 811 | BX39: 550 | BY39: 280 | BZ39: 0 | CA39: 0 | DL39: 368.2922772 | DM39: 1271.349894 | DN39: 2196.89302 | DO39: 3145.487824 | DP39: 3117.716878 | DQ39: 3895.551341 | DR39: 4692.503449 | DS39: 5509.022744 | DT39: 6345.565741 | DU39: 7202.595852 | DV39: 8080.59237 | DW39: 8980.04398 | DX39: 9901.452862 | DY39: 10845.33975 | DZ39: 11812.24966 | EA39: 12802.75155 | EB39: 13817.44109 | EC39: 14856.94665 | ED39: 15921.92609 | EE39: 17013.07614 | EF39: 17237.18992 | EG39: 17466.98155 | EH39: 17702.69366 | EI39: 17944.58459 | EJ39: 18192.92218 | EK39: 18351.59532 | EL39: 18514.45241 | EM39: 18681.68241 | EN39: 18853.50031 | EO39: 19030.14772 | EP39: 19211.9019 | EQ39: 19399.08496 | ER39: 19592.06778 | ES39: 19791.27658 | ET39: 19997.20175 | EU39: 20210.41753 | EV39: 20431.62107 | EW39: 20661.69708 | EX39: 20901.81112 | EY39: 21153.53272 | EZ39: 21418.98784 | FA39: 21701.03696 | FB39: 21997.22507 | FC39: 22302.49948 | FD39: 22616.00025 | FE39: 20936.10035 | FF39: 19212.91872 | FG39: 17444.39712 | FH39: 15628.50856 | FI39: 13763.31329 | FJ39: 11847.05355 | FK39: 9878.431296 | FL39: 7856.414608 | FM39: 5780.760028 | FN39: 3652.105947 | FO39: 3472.356674 | FP39: 3287.373421 | FQ39: 3096.919144 | FR39: 2900.726223 | FS39: 2698.473394 | FT39: 2489.748696 | FU39: 2274.536222 | FV39: 2052.316329 | FW39: 1823.006164 | FX39: 1586.219753 | FY39: 1341.838639 | FZ39: 1089.307474 | GA39: 828.8098368 | GB39: 560.271196 | GC39: 283.6888684 | GD39: 0 | GE39: 0
A40: 35_20_M | B40: 20 | C40: 35 | D40: M | F40: 943 | G40: 0 | H40: 357 | I40: 863 | J40: 1460 | K40: 2106 | L40: 1861 | M40: 2356 | N40: 2875 | O40: 3420 | P40: 3991 | Q40: 4590 | R40: 5217 | S40: 5874 | T40: 6563 | U40: 7283 | V40: 8038 | W40: 8827 | X40: 9654 | Y40: 10518 | Z40: 11423 | AA40: 12369 | AB40: 12661 | AC40: 12964 | AD40: 13279 | AE40: 13606 | AF40: 13851 | AG40: 14105 | AH40: 14369 | AI40: 14643 | AJ40: 14927 | AK40: 15222 | AL40: 15528 | AM40: 15846 | AN40: 16176 | AO40: 16520 | AP40: 16877 | AQ40: 17249 | AR40: 17637 | AS40: 18041 | AT40: 18463 | AU40: 18905 | AV40: 19369 | AW40: 19855 | AX40: 20359 | AY40: 20881 | AZ40: 19423 | BA40: 17906 | BB40: 16327 | BC40: 14684 | BD40: 12976 | BE40: 11199 | BF40: 9352 | BG40: 7432 | BH40: 5436 | BI40: 3363 | BJ40: 3209 | BK40: 3048 | BL40: 2881 | BM40: 2707 | BN40: 2526 | BO40: 2338 | BP40: 2142 | BQ40: 1938 | BR40: 1726 | BS40: 1505 | BT40: 1277 | BU40: 1039 | BV40: 793 | BW40: 538 | BX40: 274 | BY40: 0 | BZ40: 0 | DL40: 371.605732 | DM40: 1274.732939 | DN40: 2200.340168 | DO40: 3148.993138 | DP40: 3121.274154 | DQ40: 3903.281622 | DR40: 4704.484898 | DS40: 5525.330151 | DT40: 6366.269998 | DU40: 7227.771852 | DV40: 8110.311858 | DW40: 9014.378682 | DX40: 9940.478337 | DY40: 10889.13975 | DZ40: 11860.91449 | EA40: 12856.3794 | EB40: 13876.14259 | EC40: 14920.84009 | ED40: 15991.14518 | EE40: 17087.76851 | EF40: 17317.52969 | EG40: 17553.17224 | EH40: 17794.95119 | EI40: 18043.12983 | EJ40: 18203.69153 | EK40: 18368.44126 | EL40: 18537.56377 | EM40: 18711.26951 | EN40: 18889.79457 | EO40: 19073.41007 | EP40: 19262.43188 | EQ40: 19457.22427 | ER40: 19658.20633 | ES40: 19865.85963 | ET40: 20080.74615 | EU40: 20303.54481 | EV40: 20535.11368 | EW40: 20776.5809 | EX40: 21029.46579 | EY40: 21295.82964 | EZ40: 21578.45266 | FA40: 21877.58199 | FB40: 22185.84762 | FC40: 22502.3937 | FD40: 20825.60081 | FE40: 19105.55258 | FF40: 17340.2435 | FG40: 15527.66668 | FH40: 13665.83767 | FI40: 11753.08754 | FJ40: 9787.977745 | FK40: 7769.564951 | FL40: 5697.62686 | FM40: 3572.704167 | FN40: 3396.832943 | FO40: 3215.92037 | FP40: 3029.620272 | FQ40: 2837.683787 | FR40: 2639.819138 | FS40: 2435.661162 | FT40: 2224.993012 | FU40: 2007.568004 | FV40: 1783.088967 | FW40: 1551.560319 | FX40: 1312.264826 | FY40: 1065.471939 | FZ40: 810.7721478 | GA40: 548.1065168 | GB40: 277.5089241 | GC40: 0 | GD40: 0
A41: 36_20_M | B41: 20 | C41: 36 | D41: M | F41: 921 | G41: 0 | H41: 359 | I41: 867 | J41: 1466 | K41: 2116 | L41: 1874 | M41: 2376 | N41: 2903 | O41: 3456 | P41: 4036 | Q41: 4643 | R41: 5279 | S41: 5946 | T41: 6644 | U41: 7376 | V41: 8141 | W41: 8942 | X41: 9780 | Y41: 10657 | Z41: 11574 | AA41: 12533 | AB41: 12836 | AC41: 13149 | AD41: 13475 | AE41: 13722 | AF41: 13977 | AG41: 14242 | AH41: 14517 | AI41: 14802 | AJ41: 15098 | AK41: 15405 | AL41: 15724 | AM41: 16055 | AN41: 16400 | AO41: 16758 | AP41: 17132 | AQ41: 17520 | AR41: 17925 | AS41: 18349 | AT41: 18791 | AU41: 19255 | AV41: 19743 | AW41: 20249 | AX41: 20774 | AY41: 19318 | AZ41: 17803 | BA41: 16227 | BB41: 14587 | BC41: 12882 | BD41: 11108 | BE41: 9264 | BF41: 7347 | BG41: 5354 | BH41: 3284 | BI41: 3134 | BJ41: 2977 | BK41: 2814 | BL41: 2644 | BM41: 2467 | BN41: 2283 | BO41: 2091 | BP41: 1892 | BQ41: 1685 | BR41: 1470 | BS41: 1247 | BT41: 1015 | BU41: 775 | BV41: 525 | BW41: 267 | BX41: 0 | BY41: 0 | DL41: 374.8915864 | DM41: 1277.887323 | DN41: 2203.351252 | DO41: 3151.848425 | DP41: 3123.959784 | DQ41: 3910.106507 | DR41: 4715.521103 | DS41: 5540.645756 | DT41: 6385.93637 | DU41: 7251.856962 | DV41: 8138.883136 | DW41: 9047.506663 | DX41: 9978.240876 | DY41: 10931.62046 | DZ41: 11908.20404 | EA41: 12908.57999 | EB41: 13933.36315 | EC41: 14983.20401 | ED41: 16058.78871 | EE41: 17160.84539 | EF41: 17396.41177 | EG41: 17638.06997 | EH41: 17886.07851 | EI41: 18048.615 | EJ41: 18215.34362 | EK41: 18386.44474 | EL41: 18562.124 | EM41: 18742.61172 | EN41: 18928.17255 | EO41: 19119.11581 | EP41: 19315.79882 | EQ41: 19518.63318 | ER41: 19728.09119 | ES41: 19944.72195 | ET41: 20169.18524 | EU41: 20402.31114 | EV41: 20645.1885 | EW41: 20899.28391 | EX41: 21166.59077 | EY41: 21449.80496 | EZ41: 21752.02796 | FA41: 22063.44628 | FB41: 22383.17595 | FC41: 20709.6344 | FD41: 18992.91896 | FE41: 17230.98891 | FF41: 15421.84225 | FG41: 13563.50192 | FH41: 11654.30932 | FI41: 9692.83979 | FJ41: 7678.168791 | FK41: 5610.099103 | FL41: 3489.205835 | FM41: 3317.431829 | FN41: 3140.694271 | FO41: 2958.662434 | FP41: 2771.111326 | FQ41: 2577.786328 | FR41: 2378.380903 | FS41: 2172.772415 | FT41: 1960.558295 | FU41: 1741.50621 | FV41: 1515.342345 | FW41: 1281.7115 | FX41: 1040.589983 | FY41: 791.5390723 | FZ41: 535.0728026 | GA41: 271.0346969 | GB41: 0 | GC41: 0
A42: 37_20_M | B42: 20 | C42: 37 | D42: M | F42: 899 | G42: 0 | H42: 361 | I42: 871 | J42: 1474 | K42: 2127 | L42: 1888 | M42: 2398 | N42: 2934 | O42: 3495 | P42: 4083 | Q42: 4700 | R42: 5346 | S42: 6023 | T42: 6732 | U42: 7474 | V42: 8250 | W42: 9063 | X42: 9914 | Y42: 10804 | Z42: 11735 | AA42: 12708 | AB42: 13021 | AC42: 13346 | AD42: 13593 | AE42: 13850 | AF42: 14116 | AG42: 14392 | AH42: 14678 | AI42: 14975 | AJ42: 15283 | AK42: 15603 | AL42: 15936 | AM42: 16282 | AN42: 16641 | AO42: 17015 | AP42: 17405 | AQ42: 17811 | AR42: 18235 | AS42: 18678 | AT42: 19143 | AU42: 19631 | AV42: 20140 | AW42: 20667 | AX42: 19213 | AY42: 17701 | AZ42: 16127 | BA42: 14490 | BB42: 12787 | BC42: 11017 | BD42: 9175 | BE42: 7261 | BF42: 5272 | BG42: 3206 | BH42: 3059 | BI42: 2906 | BJ42: 2747 | BK42: 2581 | BL42: 2408 | BM42: 2229 | BN42: 2042 | BO42: 1847 | BP42: 1645 | BQ42: 1435 | BR42: 1217 | BS42: 991 | BT42: 756 | BU42: 513 | BV42: 261 | BW42: 0 | BX42: 0 | DL42: 378.568625 | DM42: 1281.714999 | DN42: 2207.323812 | DO42: 3155.958744 | DP42: 3128.20236 | DQ42: 3918.786989 | DR42: 4728.714126 | DS42: 5558.428876 | DT42: 6408.383912 | DU42: 7279.042626 | DV42: 8170.883452 | DW42: 9084.405078 | DX42: 10020.12633 | DY42: 10978.58866 | DZ42: 11960.36185 | EA42: 12966.04079 | EB42: 13996.25441 | EC42: 15051.66575 | ED42: 16132.97812 | EE42: 17240.92972 | EF42: 17482.50403 | EG42: 17730.38079 | EH42: 17894.93193 | EI42: 18063.68098 | EJ42: 18236.80401 | EK42: 18414.50205 | EL42: 18596.9998 | EM42: 18784.55564 | EN42: 18977.47255 | EO42: 19176.10116 | EP42: 19380.84581 | EQ42: 19592.16989 | ER42: 19810.60999 | ES42: 20036.80729 | ET42: 20271.5646 | EU42: 20515.93244 | EV42: 20771.32602 | EW42: 21039.67252 | EX42: 21323.58578 | EY42: 21626.55049 | EZ42: 21941.09635 | FA42: 22264.01269 | FB42: 20593.72606 | FC42: 18880.30051 | FD42: 17121.7507 | FE42: 15316.03565 | FF42: 13461.25696 | FG42: 11555.63155 | FH42: 9597.904725 | FI42: 7587.10312 | FJ42: 5522.948112 | FK42: 3406.015242 | FL42: 3238.390226 | FM42: 3065.894118 | FN42: 2888.21716 | FO42: 2705.166362 | FP42: 2516.536522 | FQ42: 2321.852134 | FR42: 2120.979508 | FS42: 1913.810969 | FT42: 1699.936335 | FU42: 1479.142685 | FV42: 1251.185111 | FW42: 1015.749137 | FX42: 772.9280536 | FY42: 522.4447588 | FZ42: 264.5604696 | GA42: 0 | GB42: 0
A43: 38_20_M | B43: 20 | C43: 38 | D43: M | F43: 876 | G43: 0 | H43: 362 | I43: 876 | J43: 1482 | K43: 2138 | L43: 1903 | M43: 2421 | N43: 2964 | O43: 3534 | P43: 4132 | Q43: 4758 | R43: 5414 | S43: 6101 | T43: 6821 | U43: 7574 | V43: 8362 | W43: 9188 | X43: 10051 | Y43: 10954 | Z43: 11899 | AA43: 12887 | AB43: 13211 | AC43: 13459 | AD43: 13717 | AE43: 13984 | AF43: 14261 | AG43: 14549 | AH43: 14847 | AI43: 15156 | AJ43: 15478 | AK43: 15811 | AL43: 16158 | AM43: 16519 | AN43: 16894 | AO43: 17285 | AP43: 17692 | AQ43: 18117 | AR43: 18561 | AS43: 19026 | AT43: 19515 | AU43: 20025 | AV43: 20555 | AW43: 19104 | AX43: 17594 | AY43: 16023 | AZ43: 14389 | BA43: 12689 | BB43: 10921 | BC43: 9083 | BD43: 7173 | BE43: 5187 | BF43: 3124 | BG43: 2981 | BH43: 2832 | BI43: 2677 | BJ43: 2515 | BK43: 2347 | BL43: 2172 | BM43: 1989 | BN43: 1800 | BO43: 1603 | BP43: 1399 | BQ43: 1186 | BR43: 966 | BS43: 737 | BT43: 500 | BU43: 254 | BV43: 0 | BW43: 0 | DL43: 382.2522593 | DM43: 1285.378228 | DN43: 2210.954332 | DO43: 3159.545253 | DP43: 3131.73251 | DQ43: 3926.748169 | DR43: 4741.181655 | DS43: 5575.474711 | DT43: 6430.078967 | DU43: 7305.459998 | DV43: 8202.102341 | DW43: 9120.509484 | DX43: 10061.20628 | DY43: 11024.74449 | DZ43: 12011.69967 | EA43: 13022.67987 | EB43: 14058.32569 | EC43: 15119.31637 | ED43: 16206.36428 | EE43: 17320.21896 | EF43: 17567.9682 | EG43: 17734.63625 | EH43: 17905.50866 | EI43: 18080.75711 | EJ43: 18260.57781 | EK43: 18445.18964 | EL43: 18634.84446 | EM43: 18829.83872 | EN43: 19030.51606 | EO43: 19237.27337 | EP43: 19450.56476 | EQ43: 19670.91387 | ER43: 19898.94258 | ES43: 20135.42534 | ET43: 20381.37293 | EU43: 20638.14713 | EV43: 20907.60641 | EW43: 21192.27939 | EX43: 21495.54947 | EY43: 21813.40556 | EZ43: 22139.67134 | FA43: 20472.77204 | FB43: 18762.81926 | FC43: 17007.79417 | FD43: 15205.66294 | FE43: 13354.53752 | FF43: 11452.72949 | FG43: 9498.851168 | FH43: 7491.925951 | FI43: 5431.784832 | FJ43: 3319.04222 | FK43: 3155.696734 | FL43: 2987.588079 | FM43: 2814.43441 | FN43: 2636.084951 | FO43: 2452.179193 | FP43: 2262.476082 | FQ43: 2066.959982 | FR43: 1865.095552 | FS43: 1656.756373 | FT43: 1441.463352 | FU43: 1219.354838 | FV43: 989.8618705 | FW43: 753.1216483 | FX43: 508.9476799 | FY43: 257.7919592 | FZ43: 0 | GA43: 0
A44: 39_20_M | B44: 20 | C44: 39 | D44: M | F44: 853 | G44: 0 | H44: 364 | I44: 881 | J44: 1490 | K44: 2151 | L44: 1919 | M44: 2446 | N44: 2998 | O44: 3577 | P44: 4183 | Q44: 4820 | R44: 5486 | S44: 6184 | T44: 6915 | U44: 7680 | V44: 8481 | W44: 9319 | X44: 10195 | Y44: 11113 | Z44: 12072 | AA44: 13075 | AB44: 13325 | AC44: 13584 | AD44: 13852 | AE44: 14130 | AF44: 14419 | AG44: 14718 | AH44: 15029 | AI44: 15352 | AJ44: 15687 | AK44: 16035 | AL44: 16396 | AM44: 16773 | AN44: 17164 | AO44: 17573 | AP44: 17998 | AQ44: 18443 | AR44: 18909 | AS44: 19398 | AT44: 19910 | AU44: 20442 | AV44: 18994 | AW44: 17487 | AX44: 15918 | AY44: 14287 | AZ44: 12590 | BA44: 10825 | BB44: 8990 | BC44: 7083 | BD44: 5101 | BE44: 3041 | BF44: 2902 | BG44: 2757 | BH44: 2606 | BI44: 2449 | BJ44: 2285 | BK44: 2114 | BL44: 1937 | BM44: 1753 | BN44: 1561 | BO44: 1362 | BP44: 1155 | BQ44: 940 | BR44: 717 | BS44: 486 | BT44: 247 | BU44: 0 | BV44: 0 | DL44: 386.3349701 | DM44: 1289.667055 | DN44: 2215.443086 | DO44: 3164.226593 | DP44: 3136.598218 | DQ44: 3936.282642 | DR44: 4755.46144 | DS44: 5594.575199 | DT44: 6454.0774 | DU44: 7334.439231 | DV44: 8236.149693 | DW44: 9159.717945 | DX44: 10105.67868 | DY44: 11074.58916 | DZ44: 12067.03761 | EA44: 13083.64335 | EB44: 14125.06272 | EC44: 15191.98358 | ED44: 16285.12905 | EE44: 17405.24863 | EF44: 17574.02453 | EG44: 17747.0109 | EH44: 17924.37494 | EI44: 18106.30803 | EJ44: 18293.02319 | EK44: 18484.76573 | EL44: 18681.82549 | EM44: 18884.53911 | EN44: 19093.29592 | EO44: 19308.54071 | EP44: 19530.78406 | EQ44: 19760.62843 | ER44: 19998.8198 | ES44: 20246.3289 | ET44: 20504.46384 | EU44: 20775.01398 | EV44: 21060.42221 | EW44: 21363.97 | EX44: 21685.10467 | EY44: 22014.71786 | EZ44: 20351.20597 | FA44: 18644.68145 | FB44: 16893.18293 | FC44: 15094.64024 | FD44: 13247.17619 | FE44: 11349.11712 | FF44: 9399.095025 | FG44: 7396.159622 | FH44: 5340.063509 | FI44: 3231.552375 | FJ44: 3072.540948 | FK44: 2908.892149 | FL44: 2740.358648 | FM44: 2566.644825 | FN44: 2387.594337 | FO44: 2203.05652 | FP44: 2012.607215 | FQ44: 1815.93384 | FR44: 1612.961408 | FS44: 1403.301495 | FT44: 1186.814851 | FU44: 963.3864884 | FV44: 732.9376725 | FW44: 495.4506011 | FX44: 251.0234489 | FY44: 0 | FZ44: 0
A45: 40_20_M | B45: 20 | C45: 40 | D45: M | F45: 829 | G45: 0 | H45: 367 | I45: 886 | J45: 1499 | K45: 2163 | L45: 1935 | M45: 2470 | N45: 3031 | O45: 3620 | P45: 4236 | Q45: 4882 | R45: 5559 | S45: 6268 | T45: 7011 | U45: 7788 | V45: 8601 | W45: 9452 | X45: 10343 | Y45: 11275 | Z45: 12249 | AA45: 13185 | AB45: 13445 | AC45: 13715 | AD45: 13994 | AE45: 14284 | AF45: 14585 | AG45: 14897 | AH45: 15220 | AI45: 15556 | AJ45: 15906 | AK45: 16269 | AL45: 16646 | AM45: 17039 | AN45: 17448 | AO45: 17875 | AP45: 18320 | AQ45: 18787 | AR45: 19276 | AS45: 19791 | AT45: 20326 | AU45: 18880 | AV45: 17375 | AW45: 15810 | AX45: 14181 | AY45: 12487 | AZ45: 10726 | BA45: 8894 | BB45: 6990 | BC45: 5012 | BD45: 2956 | BE45: 2821 | BF45: 2680 | BG45: 2533 | BH45: 2380 | BI45: 2221 | BJ45: 2055 | BK45: 1883 | BL45: 1703 | BM45: 1517 | BN45: 1323 | BO45: 1122 | BP45: 914 | BQ45: 697 | BR45: 473 | BS45: 241 | BT45: 0 | BU45: 0 | DL45: 390.4569068 | DM45: 1293.830468 | DN45: 2219.635332 | DO45: 3168.433603 | DP45: 3140.807675 | DQ45: 3945.159806 | DR45: 4769.079547 | DS45: 5613.008733 | DT45: 6477.405667 | DU45: 7362.745359 | DV45: 8269.521795 | DW45: 9198.25315 | DX45: 10149.47896 | DY45: 11123.76827 | DZ45: 12121.71974 | EA45: 13143.96753 | EB45: 14191.17572 | EC45: 15264.04182 | ED45: 16363.28744 | EE45: 17406.7704 | EF45: 17581.97279 | EG45: 17761.555 | EH45: 17945.70339 | EI45: 18134.62491 | EJ45: 18328.5581 | EK45: 18527.78592 | EL45: 18732.63779 | EM45: 18943.49522 | EN45: 19160.79333 | EO45: 19385.02921 | EP45: 19616.78515 | EQ45: 19856.77759 | ER45: 20105.93575 | ES45: 20365.51202 | ET45: 20637.22407 | EU45: 20923.42591 | EV45: 21227.29331 | EW45: 21551.85388 | EX45: 21884.93162 | EY45: 20224.96235 | EZ45: 18522.07575 | FA45: 16774.22542 | FB45: 14979.45634 | FC45: 13135.85584 | FD45: 11241.68969 | FE45: 9295.677425 | FF45: 7296.898934 | FG45: 5245.033456 | FH45: 3140.837939 | FI45: 2986.24348 | FJ45: 2827.136989 | FK45: 2663.306732 | FL45: 2494.510596 | FM45: 2320.453924 | FN45: 2141.000211 | FO45: 1955.749628 | FP45: 1764.741852 | FQ45: 1567.470664 | FR45: 1363.929957 | FS45: 1153.808466 | FT45: 936.647805 | FU45: 712.8024237 | FV45: 481.8958281 | FW45: 243.9606555 | FX45: 0 | FY45: 0
A46: 41_20_M | B46: 20 | C46: 41 | D46: M | F46: 804 | G46: 0 | H46: 369 | I46: 891 | J46: 1508 | K46: 2175 | L46: 1952 | M46: 2495 | N46: 3066 | O46: 3663 | P46: 4290 | Q46: 4947 | R46: 5634 | S46: 6355 | T46: 7109 | U46: 7899 | V46: 8725 | W46: 9590 | X46: 10494 | Y46: 11441 | Z46: 12351 | AA46: 13301 | AB46: 13572 | AC46: 13853 | AD46: 14144 | AE46: 14446 | AF46: 14759 | AG46: 15084 | AH46: 15422 | AI46: 15772 | AJ46: 16137 | AK46: 16515 | AL46: 16910 | AM46: 17320 | AN46: 17748 | AO46: 18194 | AP46: 18661 | AQ46: 19151 | AR46: 19667 | AS46: 20204 | AT46: 18760 | AU46: 17259 | AV46: 15696 | AW46: 14071 | AX46: 12380 | AY46: 10622 | AZ46: 8794 | BA46: 6893 | BB46: 4919 | BC46: 2867 | BD46: 2736 | BE46: 2599 | BF46: 2456 | BG46: 2308 | BH46: 2154 | BI46: 1993 | BJ46: 1826 | BK46: 1652 | BL46: 1471 | BM46: 1283 | BN46: 1088 | BO46: 886 | BP46: 676 | BQ46: 459 | BR46: 233 | BS46: 0 | BT46: 0 | DL46: 394.6370887 | DM46: 1297.929024 | DN46: 2223.634062 | DO46: 3172.315309 | DP46: 3144.554368 | DQ46: 3953.618619 | DR46: 4782.323778 | DS46: 5631.115775 | DT46: 6500.456167 | DU46: 7390.824346 | DV46: 8302.722563 | DW46: 9236.673283 | DX46: 10193.22703 | DY46: 11172.96257 | DZ46: 12176.49257 | EA46: 13204.45818 | EB46: 14257.53221 | EC46: 15336.40947 | ED46: 16361.41818 | EE46: 17411.33939 | EF46: 17593.27087 | EG46: 17779.76728 | EH46: 17971.02939 | EI46: 18167.28885 | EJ46: 18368.82169 | EK46: 18575.94999 | EL46: 18789.04735 | EM46: 19008.53913 | EN46: 19234.90868 | EO46: 19468.71779 | EP46: 19710.65276 | EQ46: 19961.60043 | ER46: 20222.75633 | ES46: 20495.765 | ET46: 20782.88985 | EU46: 21087.19908 | EV46: 21412.76086 | EW46: 21749.47041 | EX46: 20093.22431 | EY46: 18394.07875 | EZ46: 16650.08771 | FA46: 14859.20367 | FB46: 13019.58076 | FC46: 11129.50652 | FD46: 9187.638498 | FE46: 7193.16289 | FF46: 5145.68992 | FG46: 3045.993678 | FH46: 2896.029759 | FI46: 2741.720561 | FJ46: 2582.906524 | FK46: 2419.226677 | FL46: 2250.409549 | FM46: 2076.356067 | FN46: 1896.72751 | FO46: 1711.354524 | FP46: 1520.056681 | FQ46: 1322.633539 | FR46: 1118.843372 | FS46: 908.3583562 | FT46: 691.2273021 | FU46: 467.0663496 | FV46: 236.603579 | FW46: 0 | FX46: 0
A47: 42_20_M | B47: 20 | C47: 42 | D47: M | F47: 779 | G47: 0 | H47: 371 | I47: 897 | J47: 1517 | K47: 2189 | L47: 1970 | M47: 2523 | N47: 3103 | O47: 3710 | P47: 4347 | Q47: 5015 | R47: 5714 | S47: 6447 | T47: 7213 | U47: 8016 | V47: 8856 | W47: 9735 | X47: 10654 | Y47: 11539 | Z47: 12464 | AA47: 13430 | AB47: 13712 | AC47: 14005 | AD47: 14308 | AE47: 14622 | AF47: 14949 | AG47: 15288 | AH47: 15640 | AI47: 16005 | AJ47: 16385 | AK47: 16780 | AL47: 17192 | AM47: 17621 | AN47: 18068 | AO47: 18536 | AP47: 19026 | AQ47: 19542 | AR47: 20082 | AS47: 18641 | AT47: 17142 | AU47: 15582 | AV47: 13960 | AW47: 12272 | AX47: 10518 | AY47: 8693 | AZ47: 6796 | BA47: 4825 | BB47: 2777 | BC47: 2650 | BD47: 2518 | BE47: 2380 | BF47: 2236 | BG47: 2086 | BH47: 1931 | BI47: 1769 | BJ47: 1600 | BK47: 1425 | BL47: 1243 | BM47: 1054 | BN47: 858 | BO47: 655 | BP47: 444 | BQ47: 226 | BR47: 0 | BS47: 0 | DL47: 399.2702692 | DM47: 1302.749024 | DN47: 2228.629738 | DO47: 3177.474522 | DP47: 3149.865405 | DQ47: 3963.922934 | DR47: 4797.703797 | DS47: 5651.656918 | DT47: 6526.247966 | DU47: 7421.964183 | DV47: 8339.311955 | DW47: 9278.824331 | DX47: 10241.06125 | DY47: 11226.61509 | DZ47: 12236.1053 | EA47: 13270.18142 | EB47: 14329.51304 | EC47: 15336.90065 | ED47: 16368.66903 | EE47: 17425.47003 | EF47: 17614.32925 | EG47: 17807.94744 | EH47: 18006.54942 | EI47: 18210.40434 | EJ47: 18419.82704 | EK47: 18635.18329 | EL47: 18856.8888 | EM47: 19085.41331 | EN47: 19321.29827 | EO47: 19565.20008 | EP47: 19817.96353 | EQ47: 20080.72772 | ER47: 20355.06459 | ES47: 20643.14773 | ET47: 20947.93865 | EU47: 21273.38254 | EV47: 21613.70679 | EW47: 19961.12345 | EX47: 18265.73968 | EY47: 16525.58049 | EZ47: 14738.61141 | FA47: 12903.00433 | FB47: 11016.98988 | FC47: 9079.31784 | FD47: 7089.109077 | FE47: 5046.097738 | FF47: 2950.989451 | FG47: 2805.770638 | FH47: 2656.250342 | FI47: 2502.265424 | FJ47: 2343.647851 | FK47: 2180.217266 | FL47: 2011.523408 | FM47: 1837.459399 | FN47: 1657.948147 | FO47: 1472.616449 | FP47: 1281.299804 | FQ47: 1083.823389 | FR47: 879.9851361 | FS47: 669.5190962 | FT47: 452.6425416 | FU47: 229.2465026 | FV47: 0 | FW47: 0
A48: 43_20_M | B48: 20 | C48: 43 | D48: M | F48: 753 | G48: 0 | H48: 373 | I48: 902 | J48: 1527 | K48: 2203 | L48: 1988 | M48: 2551 | N48: 3140 | O48: 3758 | P48: 4406 | Q48: 5085 | R48: 5796 | S48: 6540 | T48: 7320 | U48: 8136 | V48: 8990 | W48: 9883 | X48: 10744 | Y48: 11643 | Z48: 12583 | AA48: 13566 | AB48: 13860 | AC48: 14164 | AD48: 14480 | AE48: 14808 | AF48: 15148 | AG48: 15502 | AH48: 15869 | AI48: 16250 | AJ48: 16646 | AK48: 17059 | AL48: 17489 | AM48: 17937 | AN48: 18406 | AO48: 18896 | AP48: 19413 | AQ48: 19955 | AR48: 18517 | AS48: 17021 | AT48: 15465 | AU48: 13845 | AV48: 12161 | AW48: 10410 | AX48: 8589 | AY48: 6696 | AZ48: 4729 | BA48: 2685 | BB48: 2562 | BC48: 2434 | BD48: 2300 | BE48: 2162 | BF48: 2017 | BG48: 1866 | BH48: 1710 | BI48: 1547 | BJ48: 1378 | BK48: 1202 | BL48: 1019 | BM48: 830 | BN48: 633 | BO48: 429 | BP48: 218 | BQ48: 0 | BR48: 0 | DL48: 403.9932125 | DM48: 1307.509011 | DN48: 2233.409325 | DO48: 3182.255928 | DP48: 3154.632201 | DQ48: 3973.700533 | DR48: 4812.574614 | DS48: 5671.706873 | DT48: 6551.570051 | DU48: 7452.654998 | DV48: 8375.477854 | DW48: 9320.580341 | DX48: 10288.53517 | DY48: 11279.94083 | DZ48: 12295.42427 | EA48: 13335.63082 | EB48: 14325.93425 | EC48: 15340.10723 | ED48: 16378.77269 | EE48: 17442.59543 | EF48: 17638.67395 | EG48: 17839.72264 | EH48: 18046.00355 | EI48: 18257.82403 | EJ48: 18475.54178 | EK48: 18699.56252 | EL48: 18930.34193 | EM48: 19168.40043 | EN48: 19414.36346 | EO48: 19669.03229 | EP48: 19933.48759 | EQ48: 20209.22622 | ER48: 20498.32876 | ES48: 20803.64641 | ET48: 21128.99714 | EU48: 21473.11888 | EV48: 19824.39451 | EW48: 18132.93866 | EX48: 16396.73343 | EY48: 14613.86493 | EZ48: 12782.40531 | FA48: 10900.66842 | FB48: 8967.347171 | FC48: 6981.573817 | FD48: 4943.097925 | FE48: 2852.646561 | FF48: 2712.236571 | FG48: 2567.720838 | FH48: 2419.000429 | FI48: 2265.609379 | FJ48: 2107.541902 | FK48: 1944.639345 | FL48: 1776.450282 | FM48: 1602.913637 | FN48: 1423.685912 | FO48: 1238.656688 | FP48: 1047.749996 | FQ48: 850.4527107 | FR48: 646.9930743 | FS48: 437.3496985 | FT48: 221.595143 | FU48: 0 | FV48: 0
A49: 44_20_M | B49: 20 | C49: 44 | D49: M | F49: 726 | G49: 0 | H49: 376 | I49: 908 | J49: 1537 | K49: 2217 | L49: 2007 | M49: 2579 | N49: 3178 | O49: 3807 | P49: 4466 | Q49: 5156 | R49: 5879 | S49: 6636 | T49: 7429 | U49: 8258 | V49: 9127 | W49: 9964 | X49: 10839 | Y49: 11754 | Z49: 12710 | AA49: 13709 | AB49: 14015 | AC49: 14333 | AD49: 14662 | AE49: 15004 | AF49: 15358 | AG49: 15727 | AH49: 16109 | AI49: 16507 | AJ49: 16921 | AK49: 17352 | AL49: 17802 | AM49: 18271 | AN49: 18762 | AO49: 19279 | AP49: 19824 | AQ49: 18389 | AR49: 16896 | AS49: 15342 | AT49: 13726 | AU49: 12045 | AV49: 10298 | AW49: 8480 | AX49: 6591 | AY49: 4628 | AZ49: 2589 | BA49: 2470 | BB49: 2347 | BC49: 2218 | BD49: 2084 | BE49: 1945 | BF49: 1800 | BG49: 1649 | BH49: 1492 | BI49: 1329 | BJ49: 1159 | BK49: 983 | BL49: 800 | BM49: 611 | BN49: 414 | BO49: 211 | BP49: 0 | BQ49: 0 | DL49: 408.8149225 | DM49: 1312.204702 | DN49: 2237.955496 | DO49: 3186.629547 | DP49: 3158.812598 | DQ49: 3982.895711 | DR49: 4826.866762 | DS49: 5691.184464 | DT49: 6576.32465 | DU49: 7482.787085 | DV49: 8411.09585 | DW49: 9361.804589 | DX49: 10335.49144 | DY49: 11332.76155 | DZ49: 12354.2368 | EA49: 13327.96525 | EB49: 14325.07147 | EC49: 15346.15098 | ED49: 16391.8376 | EE49: 17462.80153 | EF49: 17666.38823 | EG49: 17875.18551 | EH49: 18089.49289 | EI49: 18309.6597 | EJ49: 18536.08126 | EK49: 18769.19865 | EL49: 19009.51037 | EM49: 19257.60972 | EN49: 19514.25269 | EO49: 19780.45922 | EP49: 20057.64807 | EQ49: 20347.80314 | ER49: 20653.66091 | ES49: 20978.90706 | ET49: 21326.93272 | EU49: 19682.17201 | EV49: 17994.74726 | EW49: 16262.70715 | EX49: 14484.05075 | EY49: 12656.92398 | EZ49: 10779.59077 | FA49: 8850.845364 | FB49: 6869.766571 | FC49: 4836.130097 | FD49: 2750.572308 | FE49: 2615.251749 | FF49: 2475.923748 | FG49: 2332.508556 | FH49: 2184.766647 | FI49: 2032.393609 | FJ49: 1875.223849 | FK49: 1713.073768 | FL49: 1545.722498 | FM49: 1372.885478 | FN49: 1194.556348 | FO49: 1010.40574 | FP49: 820.4193184 | FQ49: 624.138209 | FR49: 421.9991612 | FS49: 213.6495005 | FT49: 0 | FU49: 0
A50: 45_20_M | B50: 20 | C50: 45 | D50: M | F50: 698 | G50: 0 | H50: 378 | I50: 914 | J50: 1547 | K50: 2232 | L50: 2026 | M50: 2608 | N50: 3218 | O50: 3857 | P50: 4527 | Q50: 5229 | R50: 5964 | S50: 6734 | T50: 7541 | U50: 8384 | V50: 9199 | W50: 10051 | X50: 10942 | Y50: 11873 | Z50: 12845 | AA50: 13862 | AB50: 14181 | AC50: 14512 | AD50: 14855 | AE50: 15211 | AF50: 15581 | AG50: 15965 | AH50: 16364 | AI50: 16780 | AJ50: 17212 | AK50: 17662 | AL50: 18132 | AM50: 18624 | AN50: 19141 | AO50: 19687 | AP50: 18255 | AQ50: 16765 | AR50: 15215 | AS50: 13603 | AT50: 11925 | AU50: 10181 | AV50: 8368 | AW50: 6483 | AX50: 4524 | AY50: 2489 | AZ50: 2375 | BA50: 2256 | BB50: 2132 | BC50: 2004 | BD50: 1870 | BE50: 1730 | BF50: 1585 | BG50: 1434 | BH50: 1277 | BI50: 1114 | BJ50: 945 | BK50: 769 | BL50: 587 | BM50: 398 | BN50: 203 | BO50: 0 | BP50: 0 | DL50: 413.7798817 | DM50: 1316.961797 | DN50: 2242.478003 | DO50: 3190.892244 | DP50: 3162.791996 | DQ50: 3991.984747 | DR50: 4841.152252 | DS50: 5710.755947 | DT50: 6601.279874 | DU50: 7513.231162 | DV50: 8447.145106 | DW50: 9403.580301 | DX50: 10383.12095 | DY50: 11386.3665 | DZ50: 12344.14047 | EA50: 13324.82363 | EB50: 14328.98575 | EC50: 15357.23158 | ED50: 16410.19826 | EE50: 17488.57041 | EF50: 17700.03962 | EG50: 17916.99169 | EH50: 18139.76758 | EI50: 18368.75219 | EJ50: 18604.37192 | EK50: 18847.10323 | EL50: 19097.50689 | EM50: 19356.29311 | EN50: 19624.42043 | EO50: 19903.22869 | EP50: 20194.60419 | EQ50: 20501.16782 | ER50: 20826.47221 | ES50: 21175.20181 | ET50: 19534.59393 | EU50: 17851.40776 | EV50: 16123.65437 | EW50: 14349.33507 | EX50: 12526.67142 | EY50: 10653.96045 | EZ50: 8729.858324 | FA50: 6753.535823 | FB50: 4724.794287 | FC50: 2644.305369 | FD50: 2514.13576 | FE50: 2380.210761 | FF50: 2242.361983 | FG50: 2100.202321 | FH50: 1953.627722 | FI50: 1802.557443 | FJ50: 1646.66748 | FK50: 1485.798034 | FL50: 1319.769141 | FM50: 1148.364704 | FN50: 971.2983599 | FO50: 788.6386056 | FP50: 600.087957 | FQ50: 405.779589 | FR50: 205.4095748 | FS50: 0 | FT50: 0
A51: 0_15_M | B51: 15 | C51: 0 | D51: M | F51: 1017 | G51: 0 | H51: 354 | I51: 818 | J51: 1366 | K51: 1962 | L51: 1657 | M51: 2084 | N51: 2533 | O51: 3005 | P51: 3502 | Q51: 4025 | R51: 4575 | S51: 5153 | T51: 5760 | U51: 6398 | V51: 7068 | W51: 7146 | X51: 7227 | Y51: 7312 | Z51: 7400 | AA51: 7492 | AB51: 7587 | AC51: 7686 | AD51: 7789 | AE51: 7896 | AF51: 8007 | AG51: 8123 | AH51: 8243 | AI51: 8368 | AJ51: 8498 | AK51: 8633 | AL51: 8773 | AM51: 8919 | AN51: 9071 | AO51: 9229 | AP51: 9393 | AQ51: 9563 | AR51: 9740 | AS51: 9924 | AT51: 10116 | AU51: 10315 | AV51: 10522 | AW51: 10737 | AX51: 10960 | AY51: 11193 | AZ51: 11434 | BA51: 11686 | BB51: 11947 | BC51: 12219 | BD51: 12501 | BE51: 12795 | BF51: 13101 | BG51: 13420 | BH51: 13751 | BI51: 14096 | BJ51: 14455 | BK51: 14830 | BL51: 15219 | BM51: 15623 | BN51: 16044 | BO51: 16380 | BP51: 16729 | BQ51: 17092 | BR51: 17470 | BS51: 17862 | BT51: 18270 | BU51: 17194 | BV51: 16075 | BW51: 14911 | BX51: 13701 | BY51: 12442 | BZ51: 11133 | CA51: 9771 | CB51: 8355 | CC51: 6882 | CD51: 5351 | CE51: 5259 | CF51: 5162 | CG51: 5062 | CH51: 4957 | CI51: 4847 | CJ51: 4733 | CK51: 4614 | CL51: 4490 | CM51: 4361 | CN51: 4226 | CO51: 4085 | CP51: 3939 | CQ51: 3786 | CR51: 3626 | CS51: 3460 | CT51: 3287 | CU51: 3107 | CV51: 2920 | CW51: 2724 | CX51: 2521 | CY51: 2310 | CZ51: 2090 | DA51: 1861 | DB51: 1624 | DC51: 1377 | DD51: 1121 | DE51: 855 | DF51: 580 | DG51: 295 | DH51: 0 | DI51: 0 | DL51: 430.2947188 | DM51: 1337.607624 | DN51: 2267.662371 | DO51: 3221.01232 | DP51: 3198.221944 | DQ51: 3971.330431 | DR51: 4763.754689 | DS51: 5575.970086 | DT51: 6408.462656 | DU51: 7261.730737 | DV51: 8136.28646 | DW51: 9032.657089 | DX51: 9951.383186 | DY51: 10893.02232 | DZ51: 11858.1531 | EA51: 11950.5762 | EB51: 12045.29726 | EC51: 12142.38488 | ED51: 12241.90036 | EE51: 12343.91186 | EF51: 12448.48111 | EG51: 12555.67176 | EH51: 12665.55176 | EI51: 12778.18866 | EJ51: 12893.65002 | EK51: 13012.0059 | EL51: 13133.32527 | EM51: 13257.68389 | EN51: 13385.16037 | EO51: 13515.83334 | EP51: 13649.78658 | EQ51: 13787.10747 | ER51: 13927.88717 | ES51: 14072.22079 | ET51: 14220.20757 | EU51: 14371.95105 | EV51: 14527.55884 | EW51: 14687.14371 | EX51: 14850.82374 | EY51: 15018.72325 | EZ51: 15190.97398 | FA51: 15367.71579 | FB51: 15549.09805 | FC51: 15735.28166 | FD51: 15926.43836 | FE51: 16122.75402 | FF51: 16324.42973 | FG51: 16531.68196 | FH51: 16744.74172 | FI51: 16963.85672 | FJ51: 17189.29238 | FK51: 17421.33052 | FL51: 17660.27492 | FM51: 17906.44774 | FN51: 18160.19303 | FO51: 18421.76538 | FP51: 18690.28678 | FQ51: 18965.8827 | FR51: 19248.68319 | FS51: 19437.12014 | FT51: 19630.48294 | FU51: 19828.83429 | FV51: 20032.21106 | FW51: 20240.63812 | FX51: 20454.09845 | FY51: 19172.52753 | FZ51: 17858.62375 | GA51: 16511.53909 | GB51: 15130.41553 | GC51: 13714.41737 | GD51: 12262.72828 | GE51: 10774.58256 | GF51: 9249.254023 | GG51: 7686.09748 | GH51: 6084.551236 | GI51: 5944.219035 | GJ51: 5801.451047 | GK51: 5656.244754 | GL51: 5508.585273 | GM51: 5358.396336 | GN51: 5205.493795 | GO51: 5049.665737 | GP51: 4890.649045 | GQ51: 4728.134425 | GR51: 4561.849493 | GS51: 4391.513994 | GT51: 4216.731307 | GU51: 4037.275211 | GV51: 3852.933104 | GW51: 3663.354556 | GX51: 3468.267523 | GY51: 3267.358923 | GZ51: 3060.246681 | HA51: 2846.87464 | HB51: 2626.784419 | HC51: 2399.606008 | HD51: 2165.147837 | HE51: 1923.223331 | HF51: 1673.262609 | HG51: 1415.256288 | HH51: 1148.873291 | HI51: 874.1907241 | HJ51: 590.9145763 | HK51: 299.2858705 | HL51: 0 | HM51: 0
A52: 1_15_M | B52: 15 | C52: 1 | D52: M | F52: 1008 | G52: 0 | H52: 355 | I52: 818 | J52: 1367 | K52: 1964 | L52: 1660 | M52: 2089 | N52: 2540 | O52: 3015 | P52: 3515 | Q52: 4040 | R52: 4593 | S52: 5174 | T52: 5785 | U52: 6426 | V52: 7099 | W52: 7181 | X52: 7265 | Y52: 7353 | Z52: 7445 | AA52: 7540 | AB52: 7639 | AC52: 7741 | AD52: 7848 | AE52: 7959 | AF52: 8075 | AG52: 8195 | AH52: 8320 | AI52: 8450 | AJ52: 8585 | AK52: 8725 | AL52: 8871 | AM52: 9022 | AN52: 9180 | AO52: 9344 | AP52: 9514 | AQ52: 9691 | AR52: 9875 | AS52: 10066 | AT52: 10265 | AU52: 10472 | AV52: 10686 | AW52: 10910 | AX52: 11142 | AY52: 11383 | AZ52: 11634 | BA52: 11895 | BB52: 12166 | BC52: 12449 | BD52: 12742 | BE52: 13048 | BF52: 13366 | BG52: 13697 | BH52: 14041 | BI52: 14400 | BJ52: 14774 | BK52: 15163 | BL52: 15567 | BM52: 15987 | BN52: 16324 | BO52: 16673 | BP52: 17037 | BQ52: 17415 | BR52: 17808 | BS52: 18216 | BT52: 17141 | BU52: 16022 | BV52: 14859 | BW52: 13649 | BX52: 12391 | BY52: 11082 | BZ52: 9722 | CA52: 8306 | CB52: 6834 | CC52: 5304 | CD52: 5212 | CE52: 5117 | CF52: 5017 | CG52: 4913 | CH52: 4805 | CI52: 4692 | CJ52: 4574 | CK52: 4451 | CL52: 4322 | CM52: 4189 | CN52: 4049 | CO52: 3904 | CP52: 3752 | CQ52: 3594 | CR52: 3430 | CS52: 3258 | CT52: 3080 | CU52: 2894 | CV52: 2700 | CW52: 2499 | CX52: 2289 | CY52: 2071 | CZ52: 1845 | DA52: 1609 | DB52: 1365 | DC52: 1111 | DD52: 848 | DE52: 575 | DF52: 292 | DG52: 0 | DH52: 0 | DL52: 431.5285969 | DM52: 1338.977702 | DN52: 2269.146296 | DO52: 3222.588974 | DP52: 3199.876826 | DQ52: 3974.867905 | DR52: 4769.211322 | DS52: 5583.383122 | DT52: 6417.870953 | DU52: 7273.17561 | DV52: 8149.812421 | DW52: 9048.309576 | DX52: 9969.211733 | DY52: 10913.08406 | DZ52: 11880.51018 | EA52: 11975.26386 | EB52: 12072.38435 | EC52: 12171.93295 | ED52: 12273.97798 | EE52: 12378.5811 | EF52: 12485.8059 | EG52: 12595.72035 | EH52: 12708.39191 | EI52: 12823.88803 | EJ52: 12942.27862 | EK52: 13063.63236 | EL52: 13188.02486 | EM52: 13315.53458 | EN52: 13446.23985 | EO52: 13580.22421 | EP52: 13717.57479 | EQ52: 13858.38252 | ER52: 14002.74225 | ES52: 14150.75294 | ET52: 14302.51789 | EU52: 14458.14434 | EV52: 14617.74472 | EW52: 14781.43667 | EX52: 14949.34399 | EY52: 15121.59775 | EZ52: 15298.33717 | FA52: 15479.71086 | FB52: 15665.87877 | FC52: 15857.01171 | FD52: 16053.29451 | FE52: 16254.92707 | FF52: 16462.12463 | FG52: 16675.11704 | FH52: 16894.15077 | FI52: 17119.48998 | FJ52: 17351.41524 | FK52: 17590.22898 | FL52: 17836.25202 | FM52: 18089.827 | FN52: 18351.3164 | FO52: 18619.82892 | FP52: 18895.41208 | FQ52: 19178.19961 | FR52: 19367.51883 | FS52: 19561.78583 | FT52: 19761.05904 | FU52: 19965.38088 | FV52: 20174.77123 | FW52: 20389.21954 | FX52: 19108.65552 | FY52: 17795.78533 | FZ52: 16449.75421 | GA52: 15069.71345 | GB52: 13654.81925 | GC52: 12204.26622 | GD52: 10717.26625 | GE52: 9193.116799 | GF52: 7631.159767 | GG52: 6030.832165 | GH52: 5891.757495 | GI52: 5750.243104 | GJ52: 5606.335032 | GK52: 5459.995581 | GL52: 5311.110057 | GM52: 5159.528602 | GN52: 5005.042321 | GO52: 4847.392567 | GP52: 4686.347413 | GQ52: 4521.507787 | GR52: 4352.669383 | GS52: 4179.450185 | GT52: 4001.643414 | GU52: 3818.936203 | GV52: 3630.964499 | GW52: 3437.595293 | GX52: 3238.381492 | GY52: 3033.119378 | GZ52: 2821.600944 | HA52: 2603.360084 | HB52: 2378.291827 | HC52: 2146.038371 | HD52: 1906.110575 | HE52: 1658.568831 | HF52: 1402.81752 | HG52: 1138.876381 | HH52: 866.4094448 | HI52: 585.5272836 | HJ52: 296.6373229 | HK52: 0 | HL52: 0
A53: 2_15_M | B53: 15 | C53: 2 | D53: M | F53: 998 | G53: 0 | H53: 355 | I53: 819 | J53: 1368 | K53: 1965 | L53: 1661 | M53: 2092 | N53: 2546 | O53: 3023 | P53: 3526 | Q53: 4054 | R53: 4610 | S53: 5194 | T53: 5807 | U53: 6452 | V53: 7129 | W53: 7213 | X53: 7301 | Y53: 7392 | Z53: 7487 | AA53: 7586 | AB53: 7689 | AC53: 7795 | AD53: 7906 | AE53: 8022 | AF53: 8142 | AG53: 8266 | AH53: 8396 | AI53: 8531 | AJ53: 8671 | AK53: 8817 | AL53: 8968 | AM53: 9126 | AN53: 9289 | AO53: 9459 | AP53: 9636 | AQ53: 9820 | AR53: 10011 | AS53: 10209 | AT53: 10416 | AU53: 10630 | AV53: 10853 | AW53: 11085 | AX53: 11326 | AY53: 11577 | AZ53: 11837 | BA53: 12108 | BB53: 12390 | BC53: 12684 | BD53: 12989 | BE53: 13306 | BF53: 13637 | BG53: 13981 | BH53: 14339 | BI53: 14712 | BJ53: 15101 | BK53: 15504 | BL53: 15924 | BM53: 16261 | BN53: 16611 | BO53: 16975 | BP53: 17354 | BQ53: 17747 | BR53: 18156 | BS53: 17081 | BT53: 15963 | BU53: 14801 | BV53: 13592 | BW53: 12334 | BX53: 11026 | BY53: 9666 | BZ53: 8252 | CA53: 6781 | CB53: 5251 | CC53: 5160 | CD53: 5066 | CE53: 4967 | CF53: 4864 | CG53: 4757 | CH53: 4645 | CI53: 4528 | CJ53: 4406 | CK53: 4279 | CL53: 4147 | CM53: 4009 | CN53: 3865 | CO53: 3715 | CP53: 3558 | CQ53: 3396 | CR53: 3226 | CS53: 3049 | CT53: 2865 | CU53: 2673 | CV53: 2474 | CW53: 2266 | CX53: 2050 | CY53: 1826 | CZ53: 1593 | DA53: 1351 | DB53: 1100 | DC53: 839 | DD53: 569 | DE53: 290 | DF53: 0 | DG53: 0 | DL53: 432.3718848 | DM53: 1339.493801 | DN53: 2269.306756 | DO53: 3222.369721 | DP53: 3199.262015 | DQ53: 3975.845531 | DR53: 4771.81148 | DS53: 5587.636951 | DT53: 6423.811517 | DU53: 7280.838678 | DV53: 8159.234364 | DW53: 9059.530422 | DX53: 9982.278646 | DY53: 10928.04894 | DZ53: 11897.42055 | EA53: 11994.57684 | EB53: 12094.1615 | EC53: 12196.24303 | ED53: 12300.88301 | EE53: 12408.14497 | EF53: 12518.09687 | EG53: 12630.80612 | EH53: 12746.34 | EI53: 12864.76827 | EJ53: 12986.15929 | EK53: 13110.58852 | EL53: 13238.13422 | EM53: 13368.87441 | EN53: 13502.89234 | EO53: 13640.2749 | EP53: 13781.11271 | EQ53: 13925.50036 | ER53: 14073.53651 | ES53: 14225.32417 | ET53: 14380.97018 | EU53: 14540.58659 | EV53: 14704.29055 | EW53: 14872.20526 | EX53: 15044.46107 | EY53: 15221.1965 | EZ53: 15402.55928 | FA53: 15588.7083 | FB53: 15779.81338 | FC53: 15976.05814 | FD53: 16177.64118 | FE53: 16384.77638 | FF53: 16597.69228 | FG53: 16816.63398 | FH53: 17041.86423 | FI53: 17273.66223 | FJ53: 17512.32888 | FK53: 17758.18351 | FL53: 18011.5672 | FM53: 18272.8409 | FN53: 18541.33707 | FO53: 18816.90309 | FP53: 19099.66879 | FQ53: 19289.96537 | FR53: 19485.22946 | FS53: 19685.5247 | FT53: 19890.88901 | FU53: 20101.34836 | FV53: 20316.88692 | FW53: 19037.44169 | FX53: 17725.71275 | FY53: 16380.84564 | FZ53: 15001.99193 | GA53: 13588.31803 | GB53: 12139.00967 | GC53: 10653.2908 | GD53: 9130.433898 | GE53: 7569.791739 | GF53: 5970.818192 | GG53: 5833.120897 | GH53: 5693.006928 | GI53: 5550.52281 | GJ53: 5405.632493 | GK53: 5258.224456 | GL53: 5108.153856 | GM53: 4955.218984 | GN53: 4799.170922 | GO53: 4639.71934 | GP53: 4476.536131 | GQ53: 4309.343929 | GR53: 4137.852158 | GS53: 3961.76516 | GT53: 3780.886782 | GU53: 3594.7485 | GV53: 3403.210959 | GW53: 3205.994598 | GX53: 3002.767499 | GY53: 2793.329841 | GZ53: 2577.228813 | HA53: 2354.381234 | HB53: 2124.465565 | HC53: 1887.053959 | HD53: 1641.920859 | HE53: 1388.817296 | HF53: 1127.439939 | HG53: 857.9217515 | HH53: 580.0822968 | HI53: 293.6944924 | HJ53: 0 | HK53: 0
A54: 3_15_M | B54: 15 | C54: 3 | D54: M | F54: 989 | G54: 0 | H54: 356 | I54: 820 | J54: 1370 | K54: 1968 | L54: 1665 | M54: 2099 | N54: 2555 | O54: 3036 | P54: 3541 | Q54: 4073 | R54: 4632 | S54: 5219 | T54: 5837 | U54: 6485 | V54: 7166 | W54: 7254 | X54: 7345 | Y54: 7440 | Z54: 7539 | AA54: 7641 | AB54: 7748 | AC54: 7859 | AD54: 7974 | AE54: 8094 | AF54: 8219 | AG54: 8348 | AH54: 8483 | AI54: 8623 | AJ54: 8768 | AK54: 8920 | AL54: 9077 | AM54: 9240 | AN54: 9410 | AO54: 9587 | AP54: 9770 | AQ54: 9961 | AR54: 10159 | AS54: 10366 | AT54: 10580 | AU54: 10803 | AV54: 11034 | AW54: 11275 | AX54: 11525 | AY54: 11786 | AZ54: 12056 | BA54: 12338 | BB54: 12631 | BC54: 12936 | BD54: 13253 | BE54: 13583 | BF54: 13926 | BG54: 14284 | BH54: 14657 | BI54: 15045 | BJ54: 15448 | BK54: 15868 | BL54: 16205 | BM54: 16555 | BN54: 16920 | BO54: 17299 | BP54: 17693 | BQ54: 18102 | BR54: 17028 | BS54: 15911 | BT54: 14749 | BU54: 13540 | BV54: 12283 | BW54: 10976 | BX54: 9617 | BY54: 8203 | BZ54: 6733 | CA54: 5204 | CB54: 5114 | CC54: 5020 | CD54: 4922 | CE54: 4820 | CF54: 4714 | CG54: 4603 | CH54: 4487 | CI54: 4367 | CJ54: 4241 | CK54: 4110 | CL54: 3973 | CM54: 3830 | CN54: 3682 | CO54: 3527 | CP54: 3365 | CQ54: 3197 | CR54: 3022 | CS54: 2839 | CT54: 2649 | CU54: 2452 | CV54: 2246 | CW54: 2032 | CX54: 1810 | CY54: 1579 | CZ54: 1339 | DA54: 1090 | DB54: 832 | DC54: 564 | DD54: 287 | DE54: 0 | DF54: 0 | DL54: 433.9025058 | DM54: 1341.3962 | DN54: 2271.577259 | DO54: 3225.011949 | DP54: 3202.280445 | DQ54: 3981.043237 | DR54: 4779.234375 | DS54: 5597.33293 | DT54: 6435.831296 | DU54: 7295.233892 | DV54: 8176.060502 | DW54: 9078.850264 | DX54: 10004.16005 | DY54: 10952.55601 | DZ54: 11924.62852 | EA54: 12024.24762 | EB54: 12126.36403 | EC54: 12231.03927 | ED54: 12338.3368 | EE54: 12448.3246 | EF54: 12561.07001 | EG54: 12676.64018 | EH54: 12795.10474 | EI54: 12916.53174 | EJ54: 13040.99651 | EK54: 13168.57715 | EL54: 13299.35138 | EM54: 13433.40222 | EN54: 13570.81631 | EO54: 13711.68404 | EP54: 13856.09973 | EQ54: 14004.1618 | ER54: 14155.97296 | ES54: 14311.63974 | ET54: 14471.27382 | EU54: 14634.99192 | EV54: 14802.91673 | EW54: 14975.17791 | EX54: 15151.91338 | EY54: 15333.27008 | EZ54: 15519.40595 | FA54: 15710.48992 | FB54: 15906.70454 | FC54: 16108.24724 | FD54: 16315.33068 | FE54: 16528.18222 | FF54: 16747.04575 | FG54: 16972.18275 | FH54: 17203.87119 | FI54: 17442.41061 | FJ54: 17688.119 | FK54: 17941.33607 | FL54: 18202.42137 | FM54: 18470.9095 | FN54: 18746.46363 | FO54: 19029.21321 | FP54: 19220.39287 | FQ54: 19416.56202 | FR54: 19617.78002 | FS54: 19824.09035 | FT54: 20035.51396 | FU54: 20252.04154 | FV54: 18973.60427 | FW54: 17662.90231 | FX54: 16319.08967 | FY54: 14941.31976 | FZ54: 13528.75087 | GA54: 12080.56855 | GB54: 10595.99621 | GC54: 9074.319246 | GD54: 7514.877523 | GE54: 5917.12364 | GF54: 5780.663784 | GG54: 5641.828548 | GH54: 5500.64427 | GI54: 5357.075853 | GJ54: 5211.013879 | GK54: 5062.317012 | GL54: 4910.788714 | GM54: 4756.124646 | GN54: 4598.091723 | GO54: 4436.37081 | GP54: 4270.696309 | GQ54: 4100.793223 | GR54: 3926.273046 | GS54: 3746.92417 | GT54: 3562.539977 | GU54: 3372.75381 | GV54: 3177.275985 | GW54: 2975.95705 | GX54: 2768.451521 | GY54: 2554.308403 | GZ54: 2333.448158 | HA54: 2105.556096 | HB54: 1870.216804 | HC54: 1627.22708 | HD54: 1376.378528 | HE54: 1117.443028 | HF54: 850.1404721 | HG54: 574.6950041 | HH54: 291.0459448 | HI54: 0 | HJ54: 0
A55: 4_15_M | B55: 15 | C55: 4 | D55: M | F55: 979 | G55: 0 | H55: 356 | I55: 821 | J55: 1372 | K55: 1971 | L55: 1668 | M55: 2104 | N55: 2564 | O55: 3047 | P55: 3555 | Q55: 4090 | R55: 4652 | S55: 5243 | T55: 5864 | U55: 6516 | V55: 7202 | W55: 7293 | X55: 7388 | Y55: 7486 | Z55: 7589 | AA55: 7695 | AB55: 7806 | AC55: 7921 | AD55: 8041 | AE55: 8165 | AF55: 8295 | AG55: 8429 | AH55: 8569 | AI55: 8714 | AJ55: 8865 | AK55: 9023 | AL55: 9186 | AM55: 9355 | AN55: 9532 | AO55: 9715 | AP55: 9906 | AQ55: 10104 | AR55: 10310 | AS55: 10524 | AT55: 10746 | AU55: 10977 | AV55: 11218 | AW55: 11468 | AX55: 11728 | AY55: 11998 | AZ55: 12279 | BA55: 12572 | BB55: 12876 | BC55: 13193 | BD55: 13523 | BE55: 13866 | BF55: 14223 | BG55: 14595 | BH55: 14983 | BI55: 15385 | BJ55: 15804 | BK55: 16142 | BL55: 16493 | BM55: 16858 | BN55: 17237 | BO55: 17632 | BP55: 18042 | BQ55: 16968 | BR55: 15852 | BS55: 14690 | BT55: 13483 | BU55: 12227 | BV55: 10920 | BW55: 9561 | BX55: 8148 | BY55: 6679 | BZ55: 5151 | CA55: 5062 | CB55: 4969 | CC55: 4872 | CD55: 4771 | CE55: 4666 | CF55: 4556 | CG55: 4442 | CH55: 4322 | CI55: 4198 | CJ55: 4068 | CK55: 3932 | CL55: 3791 | CM55: 3644 | CN55: 3491 | CO55: 3331 | CP55: 3164 | CQ55: 2991 | CR55: 2810 | CS55: 2622 | CT55: 2427 | CU55: 2223 | CV55: 2011 | CW55: 1791 | CX55: 1563 | CY55: 1325 | CZ55: 1079 | DA55: 823 | DB55: 558 | DC55: 284 | DD55: 0 | DE55: 0 | DL55: 435.070438 | DM55: 1342.485194 | DN55: 2272.580594 | DO55: 3225.923051 | DP55: 3203.092803 | DQ55: 3983.744718 | DR55: 4783.864879 | DS55: 5603.934664 | DT55: 6444.447074 | DU55: 7305.909916 | DV55: 8188.849728 | DW55: 9093.810411 | DX55: 10021.34507 | DY55: 10972.03052 | DZ55: 11946.45013 | EA55: 12048.60237 | EB55: 12153.3138 | EC55: 12260.64779 | ED55: 12370.67234 | EE55: 12483.45472 | EF55: 12599.0619 | EG55: 12717.56338 | EH55: 12839.02688 | EI55: 12963.52756 | EJ55: 13091.14336 | EK55: 13221.95165 | EL55: 13356.0352 | EM55: 13493.48036 | EN55: 13634.37726 | EO55: 13778.81993 | EP55: 13926.90649 | EQ55: 14078.73936 | ER55: 14234.42469 | ES55: 14394.07374 | ET55: 14557.80276 | EU55: 14725.73387 | EV55: 14897.99596 | EW55: 15074.72625 | EX55: 15256.07082 | EY55: 15442.18656 | EZ55: 15633.24139 | FA55: 15829.41665 | FB55: 16030.90845 | FC55: 16237.92812 | FD55: 16450.70169 | FE55: 16669.47169 | FF55: 16894.49818 | FG55: 17126.05774 | FH55: 17364.4484 | FI55: 17609.98665 | FJ55: 17863.01063 | FK55: 18123.87838 | FL55: 18392.34824 | FM55: 18667.88322 | FN55: 18950.61297 | FO55: 19142.76795 | FP55: 19339.93206 | FQ55: 19542.16987 | FR55: 19749.52588 | FS55: 19962.01623 | FT55: 20179.6317 | FU55: 18902.31073 | FV55: 17592.74741 | FW55: 16250.10449 | FX55: 14873.51899 | FY55: 13462.15749 | FZ55: 12015.21649 | GA55: 10531.92166 | GB55: 9011.547283 | GC55: 7453.432601 | GD55: 5857.029431 | GE55: 5721.943219 | GF55: 5584.504189 | GG55: 5444.73904 | GH55: 5302.614181 | GI55: 5158.023191 | GJ55: 5010.829536 | GK55: 4860.789102 | GL55: 4707.71116 | GM55: 4551.25318 | GN55: 4391.166251 | GO55: 4227.201445 | GP55: 4059.004117 | GQ55: 3886.290573 | GR55: 3708.754543 | GS55: 3526.183549 | GT55: 3338.360931 | GU55: 3144.878806 | GV55: 2945.59258 | GW55: 2740.164707 | GX55: 2528.157107 | GY55: 2309.511436 | GZ55: 2083.948297 | HA55: 1851.111967 | HB55: 1610.510552 | HC55: 1362.27747 | HD55: 1105.852691 | HE55: 841.4082926 | HF55: 568.8443468 | HG55: 288.1031142 | HH55: 0 | HI55: 0
A56: 5_15_M | B56: 15 | C56: 5 | D56: M | F56: 968 | G56: 0 | H56: 356 | I56: 822 | J56: 1373 | K56: 1972 | L56: 1670 | M56: 2109 | N56: 2570 | O56: 3056 | P56: 3568 | Q56: 4106 | R56: 4671 | S56: 5265 | T56: 5890 | U56: 6546 | V56: 7235 | W56: 7330 | X56: 7428 | Y56: 7531 | Z56: 7637 | AA56: 7748 | AB56: 7863 | AC56: 7982 | AD56: 8107 | AE56: 8236 | AF56: 8370 | AG56: 8510 | AH56: 8655 | AI56: 8806 | AJ56: 8963 | AK56: 9126 | AL56: 9295 | AM56: 9472 | AN56: 9655 | AO56: 9845 | AP56: 10043 | AQ56: 10248 | AR56: 10462 | AS56: 10684 | AT56: 10915 | AU56: 11155 | AV56: 11405 | AW56: 11665 | AX56: 11935 | AY56: 12215 | AZ56: 12507 | BA56: 12811 | BB56: 13127 | BC56: 13457 | BD56: 13799 | BE56: 14156 | BF56: 14527 | BG56: 14914 | BH56: 15317 | BI56: 15735 | BJ56: 16073 | BK56: 16425 | BL56: 16790 | BM56: 17170 | BN56: 17565 | BO56: 17976 | BP56: 16903 | BQ56: 15787 | BR56: 14627 | BS56: 13420 | BT56: 12164 | BU56: 10859 | BV56: 9501 | BW56: 8089 | BX56: 6620 | BY56: 5093 | BZ56: 5005 | CA56: 4913 | CB56: 4818 | CC56: 4718 | CD56: 4614 | CE56: 4505 | CF56: 4392 | CG56: 4274 | CH56: 4151 | CI56: 4022 | CJ56: 3888 | CK56: 3749 | CL56: 3603 | CM56: 3451 | CN56: 3293 | CO56: 3129 | CP56: 2957 | CQ56: 2779 | CR56: 2593 | CS56: 2399 | CT56: 2198 | CU56: 1989 | CV56: 1771 | CW56: 1545 | CX56: 1311 | CY56: 1067 | CZ56: 814 | DA56: 552 | DB56: 281 | DC56: 0 | DD56: 0 | DL56: 435.8959251 | DM56: 1342.803745 | DN56: 2272.375618 | DO56: 3225.177448 | DP56: 3201.78947 | DQ56: 3984.057713 | DR56: 4785.828725 | DS56: 5607.5842 | DT56: 6449.820073 | DU56: 7313.050362 | DV56: 8197.806061 | DW56: 9104.627328 | DX56: 10034.07749 | DY56: 10986.72638 | DZ56: 11963.16486 | EA56: 12067.91863 | EB56: 12175.29533 | EC56: 12285.36296 | ED56: 12398.18872 | EE56: 12513.83943 | EF56: 12632.38439 | EG56: 12753.891 | EH56: 12878.43421 | EI56: 13006.09179 | EJ56: 13136.94074 | EK56: 13271.06353 | EL56: 13408.54624 | EM56: 13549.47868 | EN56: 13693.95456 | EO56: 13842.07171 | EP56: 13993.9322 | EQ56: 14149.64177 | ER56: 14309.31125 | ES56: 14473.05634 | ET56: 14640.99854 | EU56: 14813.26592 | EV56: 14989.99495 | EW56: 15171.33073 | EX56: 15357.42901 | EY56: 15548.4566 | EZ56: 15744.59354 | FA56: 15946.0345 | FB56: 16152.98933 | FC56: 16365.68261 | FD56: 16584.35538 | FE56: 16809.26616 | FF56: 17040.69001 | FG56: 17278.9233 | FH56: 17524.2809 | FI56: 17777.09923 | FJ56: 18037.73463 | FK56: 18306.19445 | FL56: 18581.71104 | FM56: 18864.42103 | FN56: 19057.65544 | FO56: 19255.92126 | FP56: 19459.28834 | FQ56: 19667.79683 | FR56: 19881.46907 | FS56: 20100.2907 | FT56: 18824.20053 | FU56: 17515.90075 | FV56: 16174.53931 | FW56: 14799.27037 | FX56: 13389.26288 | FY56: 11943.69364 | FZ56: 10461.79795 | GA56: 8942.849562 | GB56: 7386.202713 | GC56: 5791.295481 | GD56: 5657.73322 | GE56: 5521.84674 | GF56: 5383.635142 | GG56: 5243.090616 | GH56: 5100.110683 | GI56: 4954.564998 | GJ56: 4806.218272 | GK56: 4654.82913 | GL56: 4500.118422 | GM56: 4341.854076 | GN56: 4179.718392 | GO56: 4013.352129 | GP56: 3842.57924 | GQ56: 3667.129395 | GR56: 3486.698612 | GS56: 3300.92443 | GT56: 3109.700419 | GU56: 2912.575876 | GV56: 2709.374581 | GW56: 2499.928624 | GX56: 2283.800062 | GY56: 2060.667303 | GZ56: 1830.454729 | HA56: 1592.788181 | HB56: 1347.129086 | HC56: 1093.607493 | HD56: 832.1027832 | HE56: 562.5303249 | HF56: 284.8660006 | HG56: 0 | HH56: 0
A57: 6_15_M | B57: 15 | C57: 6 | D57: M | F57: 958 | G57: 0 | H57: 357 | I57: 823 | J57: 1375 | K57: 1975 | L57: 1674 | M57: 2116 | N57: 2581 | O57: 3070 | P57: 3585 | Q57: 4127 | R57: 4696 | S57: 5294 | T57: 5923 | U57: 6584 | V57: 7277 | W57: 7376 | X57: 7478 | Y57: 7584 | Z57: 7695 | AA57: 7810 | AB57: 7929 | AC57: 8053 | AD57: 8182 | AE57: 8317 | AF57: 8456 | AG57: 8601 | AH57: 8752 | AI57: 8909 | AJ57: 9072 | AK57: 9241 | AL57: 9417 | AM57: 9600 | AN57: 9790 | AO57: 9987 | AP57: 10193 | AQ57: 10406 | AR57: 10628 | AS57: 10859 | AT57: 11098 | AU57: 11348 | AV57: 11607 | AW57: 11877 | AX57: 12157 | AY57: 12449 | AZ57: 12752 | BA57: 13068 | BB57: 13396 | BC57: 13739 | BD57: 14095 | BE57: 14466 | BF57: 14852 | BG57: 15254 | BH57: 15672 | BI57: 16010 | BJ57: 16363 | BK57: 16729 | BL57: 17109 | BM57: 17505 | BN57: 17916 | BO57: 16844 | BP57: 15729 | BQ57: 14569 | BR57: 13362 | BS57: 12108 | BT57: 10803 | BU57: 9446 | BV57: 8035 | BW57: 6567 | BX57: 5041 | BY57: 4954 | BZ57: 4863 | CA57: 4768 | CB57: 4669 | CC57: 4566 | CD57: 4459 | CE57: 4347 | CF57: 4230 | CG57: 4108 | CH57: 3981 | CI57: 3848 | CJ57: 3710 | CK57: 3566 | CL57: 3416 | CM57: 3260 | CN57: 3097 | CO57: 2927 | CP57: 2750 | CQ57: 2566 | CR57: 2375 | CS57: 2176 | CT57: 1968 | CU57: 1753 | CV57: 1529 | CW57: 1297 | CX57: 1056 | CY57: 806 | CZ57: 547 | DA57: 278 | DB57: 0 | DC57: 0 | DL57: 437.4393124 | DM57: 1344.559463 | DN57: 2274.345432 | DO57: 3227.363334 | DP57: 3204.194086 | DQ57: 3988.673464 | DR57: 4792.704774 | DS57: 5616.772773 | DT57: 6461.379628 | DU57: 7327.044083 | DV57: 8214.294074 | DW57: 9123.68008 | DX57: 10055.75918 | DY57: 11011.10903 | DZ57: 11990.31358 | EA57: 12097.72978 | EB57: 12207.83729 | EC57: 12320.7032 | ED57: 12436.39421 | EE57: 12554.97946 | EF57: 12676.52603 | EG57: 12801.1087 | EH57: 12928.80507 | EI57: 13059.69181 | EJ57: 13193.85115 | EK57: 13331.36887 | EL57: 13472.33451 | EM57: 13616.84152 | EN57: 13764.98743 | EO57: 13916.87401 | EP57: 14072.60662 | EQ57: 14232.2957 | ER57: 14396.05647 | ES57: 14564.00985 | ET57: 14736.28317 | EU57: 14913.0122 | EV57: 15094.34118 | EW57: 15280.42482 | EX57: 15471.42891 | EY57: 15667.53232 | EZ57: 15868.92841 | FA57: 16075.82568 | FB57: 16288.4474 | FC57: 16507.03326 | FD57: 16731.84038 | FE57: 16963.14245 | FF57: 17201.23432 | FG57: 17446.42939 | FH57: 17699.06252 | FI57: 17959.48852 | FJ57: 18227.93857 | FK57: 18503.44481 | FL57: 18786.14005 | FM57: 18980.35918 | FN57: 19179.62975 | FO57: 19384.02173 | FP57: 19593.58089 | FQ57: 19808.32468 | FR57: 20028.24538 | FS57: 18753.27613 | FT57: 17446.11935 | FU57: 16105.93169 | FV57: 14731.86938 | FW57: 13323.08337 | FX57: 11878.77047 | FY57: 10398.156 | FZ57: 8880.513207 | GA57: 7325.195445 | GB57: 5731.639716 | GC57: 5599.450254 | GD57: 5464.957043 | GE57: 5328.188352 | GF57: 5189.11487 | GG57: 5047.637979 | GH57: 4903.586035 | GI57: 4756.767948 | GJ57: 4606.950905 | GK57: 4453.867116 | GL57: 4297.21876 | GM57: 4136.768572 | GN57: 3972.177784 | GO57: 3803.183994 | GP57: 3629.510254 | GQ57: 3450.843803 | GR57: 3266.968033 | GS57: 3077.652319 | GT57: 2882.63876 | GU57: 2681.621027 | GV57: 2474.210508 | GW57: 2260.152131 | GX57: 2039.446268 | GY57: 1811.534173 | GZ57: 1576.333642 | HA57: 1333.413371 | HB57: 1082.605272 | HC57: 823.7481741 | HD57: 556.6796676 | HE57: 281.92317 | HF57: 0 | HG57: 0
A58: 7_15_M | B58: 15 | C58: 7 | D58: M | F58: 947 | G58: 0 | H58: 357 | I58: 824 | J58: 1377 | K58: 1978 | L58: 1678 | M58: 2122 | N58: 2590 | O58: 3083 | P58: 3601 | Q58: 4146 | R58: 4719 | S58: 5322 | T58: 5955 | U58: 6620 | V58: 7318 | W58: 7420 | X58: 7526 | Y58: 7637 | Z58: 7751 | AA58: 7871 | AB58: 7995 | AC58: 8124 | AD58: 8258 | AE58: 8397 | AF58: 8542 | AG58: 8693 | AH58: 8849 | AI58: 9012 | AJ58: 9181 | AK58: 9356 | AL58: 9539 | AM58: 9729 | AN58: 9926 | AO58: 10131 | AP58: 10345 | AQ58: 10566 | AR58: 10796 | AS58: 11036 | AT58: 11285 | AU58: 11544 | AV58: 11813 | AW58: 12093 | AX58: 12384 | AY58: 12687 | AZ58: 13002 | BA58: 13330 | BB58: 13672 | BC58: 14028 | BD58: 14398 | BE58: 14784 | BF58: 15185 | BG58: 15602 | BH58: 15942 | BI58: 16294 | BJ58: 16661 | BK58: 17042 | BL58: 17438 | BM58: 17850 | BN58: 16779 | BO58: 15664 | BP58: 14505 | BQ58: 13299 | BR58: 12045 | BS58: 10741 | BT58: 9385 | BU58: 7975 | BV58: 6508 | BW58: 4983 | BX58: 4897 | BY58: 4807 | BZ58: 4713 | CA58: 4616 | CB58: 4514 | CC58: 4408 | CD58: 4297 | CE58: 4181 | CF58: 4061 | CG58: 3935 | CH58: 3804 | CI58: 3668 | CJ58: 3525 | CK58: 3377 | CL58: 3222 | CM58: 3061 | CN58: 2893 | CO58: 2719 | CP58: 2537 | CQ58: 2348 | CR58: 2151 | CS58: 1946 | CT58: 1733 | CU58: 1512 | CV58: 1282 | CW58: 1044 | CX58: 797 | CY58: 540 | CZ58: 275 | DA58: 0 | DB58: 0 | DL58: 438.6522889 | DM58: 1345.559497 | DN58: 2275.123959 | DO58: 3227.911966 | DP58: 3204.505008 | DQ58: 3990.925505 | DR58: 4796.942017 | DS58: 5623.044928 | DT58: 6469.740785 | DU58: 7337.545387 | DV58: 8226.996412 | DW58: 9138.638266 | DX58: 10073.03544 | DY58: 11030.75868 | DZ58: 12012.39349 | EA58: 12122.54448 | EB58: 12235.45421 | EC58: 12351.18917 | ED58: 12469.81834 | EE58: 12591.40847 | EF58: 12716.03413 | EG58: 12843.77277 | EH58: 12974.70066 | EI58: 13108.89974 | EJ58: 13246.45552 | EK58: 13387.45723 | EL58: 13531.998 | EM58: 13680.17505 | EN58: 13832.08983 | EO58: 13987.84727 | EP58: 14147.55737 | EQ58: 14311.33484 | ER58: 14479.29996 | ES58: 14651.57923 | ET58: 14828.30766 | EU58: 15009.62856 | EV58: 15195.69545 | EW58: 15386.67306 | EX58: 15582.73891 | EY58: 15784.08495 | EZ58: 15990.91818 | FA58: 16203.46046 | FB58: 16421.94996 | FC58: 16646.64226 | FD58: 16877.80955 | FE58: 17115.74502 | FF58: 17360.76042 | FG58: 17613.18892 | FH58: 17873.38366 | FI58: 18141.72751 | FJ58: 18417.21751 | FK58: 18699.89546 | FL58: 18895.18807 | FM58: 19095.56334 | FN58: 19301.08292 | FO58: 19511.7928 | FP58: 19727.71663 | FQ58: 19948.84158 | FR58: 18675.1011 | FS58: 17369.20574 | FT58: 16030.30577 | FU58: 14657.55794 | FV58: 13250.12373 | FW58: 11807.19137 | FX58: 10327.9863 | FY58: 8811.781608 | FZ58: 7257.930289 | GA58: 5665.868966 | GB58: 5535.201744 | GC58: 5402.25915 | GD58: 5267.071135 | GE58: 5129.577187 | GF58: 4989.710422 | GG58: 4847.305354 | GH58: 4702.179679 | GI58: 4554.112431 | GJ58: 4402.780143 | GK58: 4247.959463 | GL58: 4089.344576 | GM58: 3926.592406 | GN58: 3759.548599 | GO58: 3587.845869 | GP58: 3411.31303 | GQ58: 3229.635058 | GR58: 3042.59851 | GS58: 2849.774568 | GT58: 2651.021208 | GU58: 2445.978094 | GV58: 2234.435629 | GW58: 2016.158407 | GX58: 1790.86747 | GY58: 1558.205996 | GZ58: 1318.109264 | HA58: 1070.122408 | HB58: 814.0650942 | HC58: 550.3656457 | HD58: 278.6860564 | HE58: 0 | HF58: 0
A59: 8_15_M | B59: 15 | C59: 8 | D59: M | F59: 936 | G59: 0 | H59: 358 | I59: 826 | J59: 1379 | K59: 1981 | L59: 1682 | M59: 2130 | N59: 2601 | O59: 3097 | P59: 3619 | Q59: 4168 | R59: 4745 | S59: 5352 | T59: 5989 | U59: 6659 | V59: 7362 | W59: 7468 | X59: 7578 | Y59: 7693 | Z59: 7812 | AA59: 7936 | AB59: 8065 | AC59: 8199 | AD59: 8338 | AE59: 8483 | AF59: 8633 | AG59: 8789 | AH59: 8952 | AI59: 9121 | AJ59: 9296 | AK59: 9479 | AL59: 9668 | AM59: 9865 | AN59: 10070 | AO59: 10283 | AP59: 10504 | AQ59: 10734 | AR59: 10973 | AS59: 11222 | AT59: 11480 | AU59: 11749 | AV59: 12029 | AW59: 12320 | AX59: 12622 | AY59: 12937 | AZ59: 13264 | BA59: 13605 | BB59: 13960 | BC59: 14330 | BD59: 14715 | BE59: 15116 | BF59: 15533 | BG59: 15873 | BH59: 16226 | BI59: 16593 | BJ59: 16975 | BK59: 17372 | BL59: 17784 | BM59: 16713 | BN59: 15599 | BO59: 14441 | BP59: 13236 | BQ59: 11983 | BR59: 10680 | BS59: 9325 | BT59: 7915 | BU59: 6449 | BV59: 4925 | BW59: 4840 | BX59: 4751 | BY59: 4658 | BZ59: 4562 | CA59: 4461 | CB59: 4356 | CC59: 4247 | CD59: 4133 | CE59: 4014 | CF59: 3889 | CG59: 3760 | CH59: 3625 | CI59: 3484 | CJ59: 3337 | CK59: 3185 | CL59: 3025 | CM59: 2860 | CN59: 2687 | CO59: 2507 | CP59: 2320 | CQ59: 2126 | CR59: 1923 | CS59: 1713 | CT59: 1494 | CU59: 1267 | CV59: 1032 | CW59: 787 | CX59: 534 | CY59: 272 | CZ59: 0 | DA59: 0 | DL59: 440.0599407 | DM59: 1346.909441 | DN59: 2276.411972 | DO59: 3229.134323 | DP59: 3205.657963 | DQ59: 3994.191953 | DR59: 4802.374447 | DS59: 5630.700139 | DT59: 6479.673082 | DU59: 7349.818491 | DV59: 8241.668504 | DW59: 9155.774827 | DX59: 10092.69544 | DY59: 11053.00267 | DZ59: 12037.28669 | EA59: 12150.24111 | EB59: 12266.02093 | EC59: 12384.69496 | ED59: 12506.32959 | EE59: 12630.99924 | EF59: 12758.78113 | EG59: 12889.7512 | EH59: 13023.99109 | EI59: 13161.58602 | EJ59: 13302.62492 | EK59: 13447.2006 | EL59: 13595.40997 | EM59: 13747.35416 | EN59: 13903.13766 | EO59: 14062.87008 | EP59: 14226.66556 | EQ59: 14394.64377 | ER59: 14566.93038 | ES59: 14743.65965 | ET59: 14924.97393 | EU59: 15111.0256 | EV59: 15301.97827 | EW59: 15498.00818 | EX59: 15699.30583 | EY59: 15906.07676 | EZ59: 16118.54136 | FA59: 16336.93633 | FB59: 16561.51572 | FC59: 16792.55018 | FD59: 17030.33128 | FE59: 17275.16912 | FF59: 17527.39518 | FG59: 17787.36091 | FH59: 18055.44726 | FI59: 18330.919 | FJ59: 18613.57351 | FK59: 18809.94172 | FL59: 19011.41471 | FM59: 19218.0594 | FN59: 19429.91741 | FO59: 19647.01256 | FP59: 19869.33872 | FQ59: 18596.83094 | FR59: 17292.19387 | FS59: 15954.5783 | FT59: 14583.14146 | FU59: 13177.04522 | FV59: 11735.47794 | FW59: 10257.66486 | FX59: 8742.892335 | FY59: 7190.500991 | FZ59: 5599.926941 | GA59: 5470.773996 | GB59: 5339.373016 | GC59: 5205.75538 | GD59: 5069.86359 | GE59: 4931.635815 | GF59: 4790.91407 | GG59: 4647.47194 | GH59: 4501.081401 | GI59: 4351.481917 | GJ59: 4198.466396 | GK59: 4041.659498 | GL59: 3880.814199 | GM59: 3715.693374 | GN59: 3546.054755 | GO59: 3371.492729 | GP59: 3191.959052 | GQ59: 3006.955751 | GR59: 2816.386154 | GS59: 2619.987339 | GT59: 2417.438949 | GU59: 2208.318872 | GV59: 1992.644902 | GW59: 1769.889827 | GX59: 1540.028109 | GY59: 1302.731259 | GZ59: 1057.526761 | HA59: 804.7595849 | HB59: 544.0516237 | HC59: 275.4489427 | HD59: 0 | HE59: 0
A60: 9_15_M | B60: 15 | C60: 9 | D60: M | F60: 925 | G60: 0 | H60: 359 | I60: 827 | J60: 1382 | K60: 1985 | L60: 1687 | M60: 2138 | N60: 2613 | O60: 3113 | P60: 3639 | Q60: 4192 | R60: 4773 | S60: 5384 | T60: 6027 | U60: 6701 | V60: 7410 | W60: 7520 | X60: 7635 | Y60: 7754 | Z60: 7878 | AA60: 8006 | AB60: 8140 | AC60: 8279 | AD60: 8423 | AE60: 8574 | AF60: 8730 | AG60: 8892 | AH60: 9061 | AI60: 9236 | AJ60: 9418 | AK60: 9607 | AL60: 9804 | AM60: 10009 | AN60: 10221 | AO60: 10442 | AP60: 10672 | AQ60: 10911 | AR60: 11159 | AS60: 11417 | AT60: 11686 | AU60: 11965 | AV60: 12255 | AW60: 12557 | AX60: 12871 | AY60: 13199 | AZ60: 13539 | BA60: 13893 | BB60: 14263 | BC60: 14647 | BD60: 15047 | BE60: 15463 | BF60: 15804 | BG60: 16157 | BH60: 16525 | BI60: 16908 | BJ60: 17305 | BK60: 17718 | BL60: 16648 | BM60: 15535 | BN60: 14377 | BO60: 13173 | BP60: 11921 | BQ60: 10618 | BR60: 9264 | BS60: 7855 | BT60: 6390 | BU60: 4867 | BV60: 4783 | BW60: 4695 | BX60: 4604 | BY60: 4508 | BZ60: 4409 | CA60: 4305 | CB60: 4197 | CC60: 4084 | CD60: 3966 | CE60: 3844 | CF60: 3716 | CG60: 3582 | CH60: 3443 | CI60: 3298 | CJ60: 3147 | CK60: 2990 | CL60: 2826 | CM60: 2656 | CN60: 2478 | CO60: 2293 | CP60: 2101 | CQ60: 1901 | CR60: 1693 | CS60: 1477 | CT60: 1252 | CU60: 1020 | CV60: 778 | CW60: 528 | CX60: 268 | CY60: 0 | CZ60: 0 | DL60: 441.6823314 | DM60: 1348.632713 | DN60: 2278.236413 | DO60: 3231.060207 | DP60: 3207.686548 | DQ60: 3998.51323 | DR60: 4809.047786 | DS60: 5639.782894 | DT60: 6491.231641 | DU60: 7363.914284 | DV60: 8258.370111 | DW60: 9175.144759 | DX60: 10114.79783 | DY60: 11077.90632 | DZ60: 12065.05943 | EA60: 12180.8849 | EB60: 12299.60461 | EC60: 12421.28458 | ED60: 12545.99907 | EE60: 12673.82511 | EF60: 12804.83826 | EG60: 12939.11989 | EH60: 13076.75492 | EI60: 13217.83197 | EJ60: 13362.44357 | EK60: 13510.68629 | EL60: 13662.66095 | EM60: 13818.47162 | EN60: 13978.22746 | EO60: 14142.04211 | EP60: 14310.03459 | EQ60: 14482.32976 | ER60: 14659.06112 | ES60: 14840.37008 | ET60: 15026.40785 | EU60: 15217.33696 | EV60: 15413.33234 | EW60: 15614.58306 | EX60: 15821.29317 | EY60: 16033.68165 | EZ60: 16251.9837 | FA60: 16476.45183 | FB60: 16707.35519 | FC60: 16944.9837 | FD60: 17189.64582 | FE60: 17441.67134 | FF60: 17701.41004 | FG60: 17969.24094 | FH60: 18244.69657 | FI60: 18527.33393 | FJ60: 18724.78017 | FK60: 18927.35814 | FL60: 19135.13072 | FM60: 19348.13976 | FN60: 19566.41529 | FO60: 19789.94604 | FP60: 18518.66738 | FQ60: 17215.28434 | FR60: 15878.9566 | FS60: 14508.83438 | FT60: 13104.07997 | FU60: 11663.89304 | FV60: 10187.48914 | FW60: 8674.154475 | FX60: 7123.229317 | FY60: 5534.149389 | FZ60: 5406.518367 | GA60: 5276.667647 | GB60: 5144.60094 | GC60: 5010.320979 | GD60: 4873.703006 | GE60: 4734.627754 | GF60: 4592.877584 | GG60: 4448.236301 | GH60: 4300.458895 | GI60: 4149.19728 | GJ60: 3994.224535 | GK60: 3835.3181 | GL60: 3672.159758 | GM60: 3504.507763 | GN60: 3332.099097 | GO60: 3154.630729 | GP60: 2971.90754 | GQ60: 2783.528815 | GR60: 2589.396071 | GS60: 2389.217435 | GT60: 2182.616592 | GU60: 1969.376088 | GV60: 1749.249374 | GW60: 1521.937781 | GX60: 1287.48204 | GY60: 1045.127668 | GZ60: 795.2095892 | HA60: 537.3319314 | HB60: 272.2118291 | HC60: 0 | HD60: 0
A61: 10_15_M | B61: 15 | C61: 10 | D61: M | F61: 913 | G61: 0 | H61: 359 | I61: 829 | J61: 1384 | K61: 1988 | L61: 1691 | M61: 2146 | N61: 2624 | O61: 3128 | P61: 3657 | Q61: 4215 | R61: 4800 | S61: 5416 | T61: 6063 | U61: 6743 | V61: 7457 | W61: 7571 | X61: 7690 | Y61: 7814 | Z61: 7942 | AA61: 8076 | AB61: 8215 | AC61: 8359 | AD61: 8509 | AE61: 8665 | AF61: 8827 | AG61: 8995 | AH61: 9170 | AI61: 9352 | AJ61: 9541 | AK61: 9738 | AL61: 9942 | AM61: 10154 | AN61: 10375 | AO61: 10604 | AP61: 10843 | AQ61: 11091 | AR61: 11348 | AS61: 11616 | AT61: 11895 | AU61: 12185 | AV61: 12486 | AW61: 12800 | AX61: 13127 | AY61: 13466 | AZ61: 13820 | BA61: 14189 | BB61: 14573 | BC61: 14972 | BD61: 15388 | BE61: 15729 | BF61: 16083 | BG61: 16451 | BH61: 16834 | BI61: 17232 | BJ61: 17646 | BK61: 16577 | BL61: 15464 | BM61: 14307 | BN61: 13104 | BO61: 11853 | BP61: 10551 | BQ61: 9198 | BR61: 7790 | BS61: 6326 | BT61: 4804 | BU61: 4721 | BV61: 4634 | BW61: 4544 | BX61: 4450 | BY61: 4352 | BZ61: 4249 | CA61: 4142 | CB61: 4031 | CC61: 3915 | CD61: 3794 | CE61: 3667 | CF61: 3536 | CG61: 3398 | CH61: 3255 | CI61: 3106 | CJ61: 2951 | CK61: 2789 | CL61: 2621 | CM61: 2446 | CN61: 2263 | CO61: 2073 | CP61: 1876 | CQ61: 1671 | CR61: 1458 | CS61: 1236 | CT61: 1006 | CU61: 768 | CV61: 521 | CW61: 265 | CX61: 0 | CY61: 0 | DL61: 443.003605 | DM61: 1349.643035 | DN61: 2278.92554 | DO61: 3231.418464 | DP61: 3207.705954 | DQ61: 4000.575547 | DR61: 4813.202319 | DS61: 5646.087277 | DT61: 6499.738881 | DU61: 7374.684067 | DV61: 8271.456232 | DW61: 9190.602362 | DX61: 10132.68637 | DY61: 11098.28408 | DZ61: 12087.98345 | EA61: 12206.75233 | EB61: 12328.48111 | EC61: 12453.24382 | ED61: 12581.1173 | EE61: 12712.17673 | EF61: 12846.50315 | EG61: 12984.18117 | EH61: 13125.29907 | EI61: 13269.94905 | EJ61: 13418.22732 | EK61: 13570.23437 | EL61: 13726.0738 | EM61: 13885.8543 | EN61: 14049.68893 | EO61: 14217.69603 | EP61: 14389.99957 | EQ61: 14566.73221 | ER61: 14748.03432 | ES61: 14934.05588 | ET61: 15124.95819 | EU61: 15320.91477 | EV61: 15522.11312 | EW61: 15728.75569 | EX61: 15941.05988 | EY61: 16159.25928 | EZ61: 16383.60471 | FA61: 16614.36368 | FB61: 16851.82429 | FC61: 17096.29324 | FD61: 17348.09848 | FE61: 17607.58792 | FF61: 17875.1385 | FG61: 18150.57381 | FH61: 18433.18509 | FI61: 18631.80412 | FJ61: 18835.57934 | FK61: 19044.57898 | FL61: 19258.84616 | FM61: 19478.40628 | FN61: 19703.24845 | FO61: 18433.30849 | FP61: 17131.29972 | FQ61: 15796.37562 | FR61: 14427.68715 | FS61: 13024.39724 | FT61: 11585.70598 | FU61: 10110.82908 | FV61: 8599.052579 | FW61: 7049.716421 | FX61: 5462.256015 | FY61: 5336.275089 | FZ61: 5208.105951 | GA61: 5077.754646 | GB61: 4945.193722 | GC61: 4810.331606 | GD61: 4673.057165 | GE61: 4533.164128 | GF61: 4390.388926 | GG61: 4244.48288 | GH61: 4095.174351 | GI61: 3942.261099 | GJ61: 3785.349726 | GK61: 3624.316176 | GL61: 3458.835001 | GM61: 3288.652472 | GN61: 3113.479127 | GO61: 2933.139918 | GP61: 2747.264242 | GQ61: 2555.579472 | GR61: 2357.998483 | GS61: 2154.215293 | GT61: 1943.816916 | GU61: 1726.554743 | GV61: 1502.12824 | GW61: 1270.576615 | GX61: 1031.639494 | GY61: 784.9531796 | GZ61: 530.5545449 | HA61: 268.6804324 | HB61: 0 | HC61: 0
A62: 11_15_M | B62: 15 | C62: 11 | D62: M | F62: 901 | G62: 0 | H62: 360 | I62: 830 | J62: 1387 | K62: 1992 | L62: 1697 | M62: 2155 | N62: 2637 | O62: 3144 | P62: 3678 | Q62: 4240 | R62: 4830 | S62: 5451 | T62: 6103 | U62: 6788 | V62: 7508 | W62: 7626 | X62: 7750 | Y62: 7878 | Z62: 8011 | AA62: 8150 | AB62: 8294 | AC62: 8444 | AD62: 8600 | AE62: 8761 | AF62: 8930 | AG62: 9104 | AH62: 9286 | AI62: 9475 | AJ62: 9671 | AK62: 9875 | AL62: 10087 | AM62: 10307 | AN62: 10536 | AO62: 10774 | AP62: 11022 | AQ62: 11279 | AR62: 11547 | AS62: 11825 | AT62: 12114 | AU62: 12415 | AV62: 12729 | AW62: 13055 | AX62: 13394 | AY62: 13747 | AZ62: 14115 | BA62: 14498 | BB62: 14897 | BC62: 15312 | BD62: 15653 | BE62: 16008 | BF62: 16377 | BG62: 16761 | BH62: 17160 | BI62: 17575 | BJ62: 16506 | BK62: 15394 | BL62: 14238 | BM62: 13035 | BN62: 11785 | BO62: 10484 | BP62: 9131 | BQ62: 7725 | BR62: 6262 | BS62: 4741 | BT62: 4659 | BU62: 4573 | BV62: 4484 | BW62: 4391 | BX62: 4294 | BY62: 4193 | BZ62: 4088 | CA62: 3978 | CB62: 3863 | CC62: 3744 | CD62: 3619 | CE62: 3489 | CF62: 3354 | CG62: 3213 | CH62: 3065 | CI62: 2912 | CJ62: 2753 | CK62: 2586 | CL62: 2413 | CM62: 2233 | CN62: 2046 | CO62: 1851 | CP62: 1649 | CQ62: 1438 | CR62: 1220 | CS62: 993 | CT62: 758 | CU62: 514 | CV62: 261 | CW62: 0 | CX62: 0 | DL62: 444.5556358 | DM62: 1351.050655 | DN62: 2280.183291 | DO62: 3232.522564 | DP62: 3208.653782 | DQ62: 4003.751761 | DR62: 4818.667231 | DS62: 5653.897243 | DT62: 6509.95673 | DU62: 7387.36727 | DV62: 8286.663659 | DW62: 9208.397158 | DX62: 10153.13067 | DY62: 11121.43888 | DZ62: 12113.91154 | EA62: 12235.6894 | EB62: 12360.50064 | EC62: 12488.42188 | ED62: 12619.5279 | EE62: 12753.89944 | EF62: 12891.62076 | EG62: 13032.77985 | EH62: 13177.46855 | EI62: 13325.78275 | EJ62: 13477.82255 | EK62: 13633.69112 | EL62: 13793.49667 | EM62: 13957.35169 | EN62: 14125.37382 | EO62: 14297.68614 | EP62: 14474.4205 | EQ62: 14655.71622 | ER62: 14841.72202 | ES62: 15032.598 | ET62: 15228.51627 | EU62: 15429.66277 | EV62: 15636.23832 | EW62: 15848.45876 | EX62: 16066.55607 | EY62: 16290.77937 | EZ62: 16521.39454 | FA62: 16758.68788 | FB62: 17002.96431 | FC62: 17254.54991 | FD62: 17513.7908 | FE62: 17781.06176 | FF62: 18056.47749 | FG62: 18339.06756 | FH62: 18538.8647 | FI62: 18743.84298 | FJ62: 18954.07097 | FK62: 19169.59208 | FL62: 19390.43201 | FM62: 19616.58015 | FN62: 18347.97983 | FO62: 17047.33855 | FP62: 15713.81042 | FQ62: 14346.55624 | FR62: 12944.7314 | FS62: 11507.53644 | FT62: 10034.19956 | FU62: 8523.982426 | FV62: 6976.236569 | FW62: 5390.397121 | FX62: 5266.067893 | FY62: 5139.58215 | FZ62: 5010.948321 | GA62: 4880.143356 | GB62: 4747.08264 | GC62: 4611.617913 | GD62: 4473.538036 | GE62: 4332.636629 | GF62: 4188.682395 | GG62: 4041.345662 | GH62: 3890.423892 | GI62: 3735.625374 | GJ62: 3576.637169 | GK62: 3413.225237 | GL62: 3245.279444 | GM62: 3072.414722 | GN62: 2894.301063 | GO62: 2710.912462 | GP62: 2521.874139 | GQ62: 2326.921347 | GR62: 2125.722583 | GS62: 1918.135321 | GT62: 1703.691412 | GU62: 1482.470679 | GV62: 1253.894727 | GW62: 1017.997425 | GX62: 774.4522836 | GY62: 523.371488 | GZ62: 265.1490357 | HA62: 0 | HB62: 0
A63: 12_15_M | B63: 15 | C63: 12 | D63: M | F63: 889 | G63: 0 | H63: 361 | I63: 832 | J63: 1390 | K63: 1997 | L63: 1703 | M63: 2165 | N63: 2651 | O63: 3163 | P63: 3701 | Q63: 4267 | R63: 4863 | S63: 5488 | T63: 6146 | U63: 6837 | V63: 7563 | W63: 7686 | X63: 7814 | Y63: 7947 | Z63: 8086 | AA63: 8230 | AB63: 8379 | AC63: 8535 | AD63: 8696 | AE63: 8864 | AF63: 9039 | AG63: 9220 | AH63: 9409 | AI63: 9605 | AJ63: 9808 | AK63: 10020 | AL63: 10240 | AM63: 10469 | AN63: 10706 | AO63: 10953 | AP63: 11210 | AQ63: 11477 | AR63: 11755 | AS63: 12044 | AT63: 12345 | AU63: 12657 | AV63: 12983 | AW63: 13321 | AX63: 13674 | AY63: 14041 | AZ63: 14423 | BA63: 14822 | BB63: 15236 | BC63: 15578 | BD63: 15934 | BE63: 16303 | BF63: 16688 | BG63: 17087 | BH63: 17503 | BI63: 16435 | BJ63: 15324 | BK63: 14168 | BL63: 12967 | BM63: 11717 | BN63: 10417 | BO63: 9065 | BP63: 7660 | BQ63: 6198 | BR63: 4678 | BS63: 4597 | BT63: 4512 | BU63: 4425 | BV63: 4333 | BW63: 4237 | BX63: 4138 | BY63: 4034 | BZ63: 3925 | CA63: 3812 | CB63: 3694 | CC63: 3571 | CD63: 3443 | CE63: 3309 | CF63: 3170 | CG63: 3025 | CH63: 2874 | CI63: 2716 | CJ63: 2552 | CK63: 2382 | CL63: 2204 | CM63: 2019 | CN63: 1827 | CO63: 1627 | CP63: 1419 | CQ63: 1204 | CR63: 980 | CS63: 748 | CT63: 507 | CU63: 258 | CV63: 0 | CW63: 0 | DL63: 446.3482288 | DM63: 1352.873949 | DN63: 2282.037674 | DO63: 3234.409695 | DP63: 3210.574107 | DQ63: 4008.100396 | DR63: 4825.503904 | DS63: 5663.28791 | DT63: 6521.962578 | DU63: 7402.050939 | DV63: 8304.092014 | DW63: 9228.636231 | DX63: 10176.24548 | DY63: 11147.49623 | DZ63: 12142.97451 | EA63: 12267.83621 | EB63: 12395.80721 | EC63: 12526.96187 | ED63: 12661.38062 | EE63: 12799.14742 | EF63: 12940.34992 | EG63: 13085.07963 | EH63: 13233.43208 | EI63: 13385.50705 | EJ63: 13541.40722 | EK63: 13701.24037 | EL63: 13865.11838 | EM63: 14033.15823 | EN63: 14205.4821 | EO63: 14382.22101 | EP63: 14563.51326 | EQ63: 14749.50631 | ER63: 14940.35908 | ES63: 15136.24224 | ET63: 15337.34018 | EU63: 15543.85213 | EV63: 15755.99234 | EW63: 15973.99119 | EX63: 16198.09613 | EY63: 16428.5714 | EZ63: 16665.7015 | FA63: 16909.78958 | FB63: 17161.15988 | FC63: 17420.15668 | FD63: 17687.1527 | FE63: 17962.55293 | FF63: 18245.12678 | FG63: 18446.10283 | FH63: 18652.28474 | FI63: 18863.74645 | FJ63: 19080.52711 | FK63: 19302.65874 | FL63: 19530.12575 | FM63: 18262.87196 | FN63: 16963.60544 | FO63: 15631.4894 | FP63: 14265.66866 | FQ63: 12865.31747 | FR63: 11429.62793 | FS63: 9957.828508 | FT63: 8449.18083 | FU63: 6903.03629 | FV63: 5318.829949 | FW63: 5196.165982 | FX63: 5071.378967 | FY63: 4944.450815 | FZ63: 4815.385797 | GA63: 4684.105329 | GB63: 4550.422931 | GC63: 4414.175799 | GD63: 4275.171489 | GE63: 4133.125732 | GF63: 3987.786783 | GG63: 3838.888018 | GH63: 3686.139251 | GI63: 3529.343366 | GJ63: 3368.18659 | GK63: 3202.432137 | GL63: 3031.815355 | GM63: 2856.197974 | GN63: 2675.264643 | GO63: 2488.607053 | GP63: 2296.156292 | GQ63: 2097.637107 | GR63: 1892.688718 | GS63: 1681.151904 | GT63: 1462.881674 | GU63: 1237.313673 | GV63: 1004.50925 | GW63: 764.195874 | GX63: 516.5941015 | GY63: 261.617639 | GZ63: 0 | HA63: 0
A64: 13_15_M | B64: 15 | C64: 13 | D64: M | F64: 876 | G64: 0 | H64: 361 | I64: 834 | J64: 1393 | K64: 2001 | L64: 1708 | M64: 2174 | N64: 2664 | O64: 3180 | P64: 3723 | Q64: 4294 | R64: 4894 | S64: 5525 | T64: 6188 | U64: 6885 | V64: 7617 | W64: 7745 | X64: 7878 | Y64: 8016 | Z64: 8160 | AA64: 8309 | AB64: 8464 | AC64: 8626 | AD64: 8793 | AE64: 8968 | AF64: 9149 | AG64: 9337 | AH64: 9533 | AI64: 9736 | AJ64: 9947 | AK64: 10167 | AL64: 10395 | AM64: 10633 | AN64: 10879 | AO64: 11136 | AP64: 11402 | AQ64: 11680 | AR64: 11968 | AS64: 12268 | AT64: 12580 | AU64: 12905 | AV64: 13243 | AW64: 13595 | AX64: 13961 | AY64: 14343 | AZ64: 14741 | BA64: 15154 | BB64: 15497 | BC64: 15853 | BD64: 16223 | BE64: 16608 | BF64: 17009 | BG64: 17425 | BH64: 16357 | BI64: 15247 | BJ64: 14093 | BK64: 12892 | BL64: 11643 | BM64: 10345 | BN64: 8994 | BO64: 7589 | BP64: 6128 | BQ64: 4609 | BR64: 4530 | BS64: 4447 | BT64: 4360 | BU64: 4270 | BV64: 4176 | BW64: 4077 | BX64: 3975 | BY64: 3868 | BZ64: 3757 | CA64: 3640 | CB64: 3519 | CC64: 3393 | CD64: 3261 | CE64: 3124 | CF64: 2981 | CG64: 2832 | CH64: 2677 | CI64: 2515 | CJ64: 2347 | CK64: 2172 | CL64: 1989 | CM64: 1800 | CN64: 1603 | CO64: 1399 | CP64: 1186 | CQ64: 966 | CR64: 737 | CS64: 500 | CT64: 254 | CU64: 0 | CV64: 0 | DL64: 447.8503953 | DM64: 1354.020503 | DN64: 2282.82009 | DO64: 3234.818135 | DP64: 3210.601295 | DQ64: 4010.32841 | DR64: 4829.990914 | DS64: 5670.087671 | DT64: 6531.130062 | DU64: 7413.644972 | DV64: 8318.170481 | DW64: 9245.255815 | DX64: 10195.46433 | DY64: 11169.36853 | DZ64: 12167.56183 | EA64: 12295.58957 | EB64: 12426.79984 | EC64: 12561.27274 | ED64: 12699.09188 | EE64: 12840.34456 | EF64: 12985.12193 | EG64: 13133.51916 | EH64: 13285.63564 | EI64: 13441.57358 | EJ64: 13601.44022 | EK64: 13765.34686 | EL64: 13933.40973 | EM64: 14105.75004 | EN64: 14282.49793 | EO64: 14463.79059 | EP64: 14649.77411 | EQ64: 14840.60615 | ER64: 15036.45583 | ES64: 15237.50586 | ET64: 15443.95375 | EU64: 15656.01207 | EV64: 15873.90944 | EW64: 16097.89151 | EX64: 16328.22076 | EY64: 16565.17975 | EZ64: 16809.06973 | FA64: 17060.21294 | FB64: 17318.95172 | FC64: 17585.6565 | FD64: 17860.72972 | FE64: 18143.28255 | FF64: 18345.53246 | FG64: 18553.01991 | FH64: 18765.81498 | FI64: 18983.96279 | FJ64: 19207.48484 | FK64: 19436.37791 | FL64: 18170.58771 | FM64: 16872.8168 | FN64: 15542.22085 | FO64: 14177.96233 | FP64: 12779.20821 | FQ64: 11345.14024 | FR64: 9874.996943 | FS64: 8368.053864 | FT64: 6823.650862 | FU64: 5241.223692 | FV64: 5120.356725 | FW64: 4997.378881 | FX64: 4872.324129 | FY64: 4745.144551 | FZ64: 4615.756576 | GA64: 4484.06285 | GB64: 4349.823191 | GC64: 4212.844171 | GD64: 4072.840996 | GE64: 3929.6424 | GF64: 3782.920939 | GG64: 3632.392212 | GH64: 3477.866934 | GI64: 3319.04222 | GJ64: 3155.696734 | GK64: 2987.588079 | GL64: 2814.43441 | GM64: 2636.084951 | GN64: 2452.179193 | GO64: 2262.476082 | GP64: 2066.959982 | GQ64: 1865.095552 | GR64: 1656.756373 | GS64: 1441.463352 | GT64: 1219.354838 | GU64: 989.8618705 | GV64: 753.1216483 | GW64: 508.9476799 | GX64: 257.7919592 | GY64: 0 | GZ64: 0
A65: 14_15_M | B65: 15 | C65: 14 | D65: M | F65: 863 | G65: 0 | H65: 362 | I65: 836 | J65: 1397 | K65: 2006 | L65: 1715 | M65: 2185 | N65: 2679 | O65: 3200 | P65: 3747 | Q65: 4323 | R65: 4929 | S65: 5566 | T65: 6234 | U65: 6937 | V65: 7675 | W65: 7808 | X65: 7946 | Y65: 8090 | Z65: 8239 | AA65: 8394 | AB65: 8555 | AC65: 8722 | AD65: 8896 | AE65: 9077 | AF65: 9265 | AG65: 9461 | AH65: 9664 | AI65: 9875 | AJ65: 10094 | AK65: 10322 | AL65: 10559 | AM65: 10805 | AN65: 11061 | AO65: 11327 | AP65: 11604 | AQ65: 11892 | AR65: 12191 | AS65: 12503 | AT65: 12827 | AU65: 13164 | AV65: 13516 | AW65: 13881 | AX65: 14262 | AY65: 14659 | AZ65: 15072 | BA65: 15415 | BB65: 15772 | BC65: 16143 | BD65: 16529 | BE65: 16930 | BF65: 17347 | BG65: 16280 | BH65: 15171 | BI65: 14017 | BJ65: 12817 | BK65: 11570 | BL65: 10272 | BM65: 8922 | BN65: 7518 | BO65: 6059 | BP65: 4541 | BQ65: 4462 | BR65: 4380 | BS65: 4295 | BT65: 4206 | BU65: 4113 | BV65: 4017 | BW65: 3916 | BX65: 3810 | BY65: 3701 | BZ65: 3586 | CA65: 3467 | CB65: 3342 | CC65: 3212 | CD65: 3077 | CE65: 2936 | CF65: 2789 | CG65: 2637 | CH65: 2477 | CI65: 2312 | CJ65: 2139 | CK65: 1960 | CL65: 1773 | CM65: 1579 | CN65: 1378 | CO65: 1168 | CP65: 951 | CQ65: 726 | CR65: 492 | CS65: 250 | CT65: 0 | CU65: 0 | DL65: 449.6039572 | DM65: 1355.593917 | DN65: 2284.207911 | DO65: 3236.01747 | DP65: 3211.607103 | DQ65: 4013.731289 | DR65: 4835.848166 | DS65: 5678.457864 | DT65: 6542.075534 | DU65: 7427.227326 | DV65: 8334.450269 | DW65: 9264.295074 | DX65: 10217.32124 | DY65: 11194.10854 | DZ65: 12195.25257 | EA65: 12326.51543 | EB65: 12461.03936 | EC65: 12598.90765 | ED65: 12740.20723 | EE65: 12885.0289 | EF65: 13033.46745 | EG65: 13185.62189 | EH65: 13341.59393 | EI65: 13501.49032 | EJ65: 13665.42173 | EK65: 13833.50364 | EL65: 14005.85631 | EM65: 14182.60899 | EN65: 14363.89772 | EO65: 14549.86728 | EP65: 14740.67399 | EQ65: 14936.48546 | ER65: 15137.48271 | ES65: 15343.8615 | ET65: 15555.83272 | EU65: 15773.62322 | EV65: 15997.47686 | EW65: 16227.65434 | EX65: 16464.43626 | EY65: 16708.12196 | EZ65: 16959.0317 | FA65: 17217.50581 | FB65: 17483.91248 | FC65: 17758.65155 | FD65: 18041.17593 | FE65: 18244.69636 | FF65: 18453.48143 | FG65: 18667.60159 | FH65: 18887.10238 | FI65: 19112.01167 | FJ65: 19342.32132 | FK65: 18077.97765 | FL65: 16781.68388 | FM65: 15452.60494 | FN65: 14089.89669 | FO65: 12692.71686 | FP65: 11260.26775 | FQ65: 9791.778504 | FR65: 8286.524904 | FS65: 6743.83113 | FT65: 5163.14603 | FU65: 5044.075377 | FV65: 4922.93282 | FW65: 4799.727074 | FX65: 4674.439259 | FY65: 4546.994104 | FZ65: 4417.211819 | GA65: 4284.940268 | GB65: 4150.002238 | GC65: 4012.062894 | GD65: 3870.952064 | GE65: 3726.344123 | GF65: 3578.059092 | GG65: 3425.835969 | GH65: 3269.385076 | GI65: 3108.503768 | GJ65: 2942.976516 | GK65: 2772.384578 | GL65: 2596.751589 | GM65: 2415.559581 | GN65: 2228.79796 | GO65: 2036.009117 | GP65: 1837.135779 | GQ65: 1631.855649 | GR65: 1419.718622 | GS65: 1200.915909 | GT65: 974.976825 | GU65: 741.6698521 | GV65: 501.3012584 | GW65: 253.9662795 | GX65: 0 | GY65: 0
A66: 15_15_M | B66: 15 | C66: 15 | D66: M | F66: 850 | G66: 0 | H66: 363 | I66: 838 | J66: 1401 | K66: 2012 | L66: 1722 | M66: 2197 | N66: 2696 | O66: 3221 | P66: 3774 | Q66: 4355 | R66: 4967 | S66: 5609 | T66: 6284 | U66: 6994 | V66: 7739 | W66: 7876 | X66: 8020 | Y66: 8169 | Z66: 8323 | AA66: 8484 | AB66: 8652 | AC66: 8825 | AD66: 9006 | AE66: 9194 | AF66: 9389 | AG66: 9591 | AH66: 9802 | AI66: 10021 | AJ66: 10248 | AK66: 10485 | AL66: 10731 | AM66: 10986 | AN66: 11252 | AO66: 11529 | AP66: 11816 | AQ66: 12115 | AR66: 12426 | AS66: 12749 | AT66: 13086 | AU66: 13437 | AV66: 13802 | AW66: 14182 | AX66: 14578 | AY66: 14990 | AZ66: 15334 | BA66: 15691 | BB66: 16063 | BC66: 16450 | BD66: 16851 | BE66: 17269 | BF66: 16203 | BG66: 15095 | BH66: 13942 | BI66: 12743 | BJ66: 11496 | BK66: 10199 | BL66: 8850 | BM66: 7448 | BN66: 5989 | BO66: 4472 | BP66: 4395 | BQ66: 4315 | BR66: 4231 | BS66: 4143 | BT66: 4052 | BU66: 3956 | BV66: 3857 | BW66: 3753 | BX66: 3645 | BY66: 3532 | BZ66: 3415 | CA66: 3292 | CB66: 3164 | CC66: 3031 | CD66: 2892 | CE66: 2748 | CF66: 2597 | CG66: 2440 | CH66: 2277 | CI66: 2107 | CJ66: 1931 | CK66: 1747 | CL66: 1556 | CM66: 1357 | CN66: 1151 | CO66: 937 | CP66: 715 | CQ66: 485 | CR66: 247 | CS66: 0 | CT66: 0 | DL66: 451.6282859 | DM66: 1357.631352 | DN66: 2286.260135 | DO66: 3238.084389 | DP66: 3213.690507 | DQ66: 4018.423492 | DR66: 4843.211678 | DS66: 5688.558871 | DT66: 6554.979718 | DU66: 7442.9995 | DV66: 8353.156759 | DW66: 9285.99853 | DX66: 10242.09142 | DY66: 11222.01739 | DZ66: 12226.3689 | EA66: 12360.94738 | EB66: 12498.86841 | EC66: 12640.21859 | ED66: 12785.08835 | EE66: 12933.57212 | EF66: 13085.76852 | EG66: 13241.77878 | EH66: 13401.70916 | EI66: 13565.66968 | EJ66: 13733.77511 | EK66: 13906.14474 | EL66: 14082.90692 | EM66: 14264.19661 | EN66: 14450.15721 | EO66: 14640.94377 | EP66: 14836.72236 | EQ66: 15037.67233 | ER66: 15243.9877 | ES66: 15455.87768 | ET66: 15673.56738 | EU66: 15897.29886 | EV66: 16127.33105 | EW66: 16363.94262 | EX66: 16607.43099 | EY66: 16858.11446 | EZ66: 17116.33138 | FA66: 17382.44769 | FB66: 17656.86065 | FC66: 17939.36496 | FD66: 18144.16022 | FE66: 18354.25186 | FF66: 18569.70644 | FG66: 18790.56994 | FH66: 19016.87666 | FI66: 19248.6136 | FJ66: 17985.7277 | FK66: 16690.9229 | FL66: 15363.36498 | FM66: 14002.21068 | FN66: 12606.62865 | FO66: 11175.81301 | FP66: 9708.993504 | FQ66: 8205.432415 | FR66: 6664.481593 | FS66: 5085.577224 | FT66: 4968.305313 | FU66: 4848.973895 | FV66: 4727.614463 | FW66: 4604.21293 | FX66: 4478.661255 | FY66: 4350.868798 | FZ66: 4220.606087 | GA66: 4087.694974 | GB66: 3951.87138 | GC66: 3812.910838 | GD66: 3670.492253 | GE66: 3524.441998 | GF66: 3374.507679 | GG66: 3220.411573 | GH66: 3061.967977 | GI66: 2898.827905 | GJ66: 2730.89184 | GK66: 2557.903451 | GL66: 2379.54544 | GM66: 2195.645054 | GN66: 2005.743606 | GO66: 1809.78347 | GP66: 1607.443335 | GQ66: 1398.668257 | GR66: 1183.057909 | GS66: 960.4833396 | GT66: 730.8401127 | GU66: 494.0605073 | GV66: 250.1405997 | GW66: 0 | GX66: 0
A67: 16_15_M | B67: 15 | C67: 16 | D67: M | F67: 837 | G67: 0 | H67: 365 | I67: 841 | J67: 1405 | K67: 2018 | L67: 1731 | M67: 2210 | N67: 2714 | O67: 3245 | P67: 3803 | Q67: 4390 | R67: 5007 | S67: 5656 | T67: 6338 | U67: 7054 | V67: 7807 | W67: 7950 | X67: 8099 | Y67: 8253 | Z67: 8414 | AA67: 8581 | AB67: 8754 | AC67: 8934 | AD67: 9122 | AE67: 9317 | AF67: 9519 | AG67: 9729 | AH67: 9948 | AI67: 10175 | AJ67: 10411 | AK67: 10657 | AL67: 10912 | AM67: 11177 | AN67: 11453 | AO67: 11740 | AP67: 12038 | AQ67: 12349 | AR67: 12672 | AS67: 13008 | AT67: 13357 | AU67: 13722 | AV67: 14101 | AW67: 14496 | AX67: 14908 | AY67: 15253 | AZ67: 15611 | BA67: 15983 | BB67: 16370 | BC67: 16773 | BD67: 17191 | BE67: 16126 | BF67: 15018 | BG67: 13866 | BH67: 12668 | BI67: 11422 | BJ67: 10127 | BK67: 8779 | BL67: 7377 | BM67: 5920 | BN67: 4404 | BO67: 4328 | BP67: 4249 | BQ67: 4166 | BR67: 4080 | BS67: 3990 | BT67: 3896 | BU67: 3798 | BV67: 3696 | BW67: 3589 | BX67: 3478 | BY67: 3362 | BZ67: 3242 | CA67: 3116 | CB67: 2985 | CC67: 2848 | CD67: 2706 | CE67: 2557 | CF67: 2403 | CG67: 2242 | CH67: 2075 | CI67: 1901 | CJ67: 1720 | CK67: 1532 | CL67: 1336 | CM67: 1133 | CN67: 923 | CO67: 704 | CP67: 478 | CQ67: 243 | CR67: 0 | CS67: 0 | DL67: 453.9234145 | DM67: 1360.129126 | DN67: 2288.96502 | DO67: 3241.002769 | DP67: 3216.826724 | DQ67: 4024.373922 | DR67: 4852.045964 | DS67: 5700.346394 | DT67: 6569.78918 | DU67: 7460.901136 | DV67: 8374.217341 | DW67: 9310.291721 | DX67: 10269.69309 | DY67: 11253.00035 | DZ67: 12260.81132 | EA67: 12398.78397 | EB67: 12540.1836 | EC67: 12685.10026 | ED67: 12833.62803 | EE67: 12985.86515 | EF67: 13141.91236 | EG67: 13301.87539 | EH67: 13465.86368 | EI67: 13633.99123 | EJ67: 13806.37638 | EK67: 13983.1466 | EL67: 14164.43572 | EM67: 14350.3858 | EN67: 14541.15059 | EO67: 14736.89465 | EP67: 14937.79562 | EQ67: 15144.0458 | ER67: 15355.85271 | ES67: 15573.43972 | ET67: 15797.04709 | EU67: 16026.93196 | EV67: 16263.37108 | EW67: 16506.65997 | EX67: 16757.11492 | EY67: 17015.07232 | EZ67: 17280.89585 | FA67: 17554.9802 | FB67: 17837.46183 | FC67: 18043.5292 | FD67: 18254.91983 | FE67: 18471.70575 | FF67: 18693.93427 | FG67: 18921.6292 | FH67: 19154.78987 | FI67: 17893.35799 | FJ67: 16600.04599 | FK67: 15274.01367 | FL67: 13914.41874 | FM67: 12520.43076 | FN67: 11091.23348 | FO67: 9626.066651 | FP67: 8124.206436 | FQ67: 6584.97727 | FR67: 5007.828677 | FS67: 4892.347151 | FT67: 4774.842338 | FU67: 4655.349116 | FV67: 4533.824709 | FW67: 4410.196301 | FX67: 4284.336923 | FY67: 4156.06791 | FZ67: 4025.165699 | GA67: 3891.436296 | GB67: 3754.600081 | GC67: 3614.430065 | GD67: 3470.587684 | GE67: 3322.90895 | GF67: 3171.126147 | GG67: 3015.067787 | GH67: 2854.40539 | GI67: 2689.069498 | GJ67: 2518.651801 | GK67: 2343.02779 | GL67: 2161.850403 | GM67: 1974.917146 | GN67: 1781.990307 | GO67: 1582.772203 | GP67: 1377.249935 | GQ67: 1165.099074 | GR67: 945.8359598 | GS67: 719.765887 | GT67: 486.4140858 | GU67: 246.3149199 | GV67: 0 | GW67: 0
A68: 17_15_M | B68: 15 | C68: 17 | D68: M | F68: 823 | G68: 0 | H68: 366 | I68: 844 | J68: 1410 | K68: 2025 | L68: 1739 | M68: 2223 | N68: 2732 | O68: 3268 | P68: 3832 | Q68: 4424 | R68: 5048 | S68: 5703 | T68: 6392 | U68: 7115 | V68: 7875 | W68: 8023 | X68: 8177 | Y68: 8338 | Z68: 8504 | AA68: 8678 | AB68: 8858 | AC68: 9045 | AD68: 9239 | AE68: 9441 | AF68: 9651 | AG68: 9869 | AH68: 10096 | AI68: 10332 | AJ68: 10577 | AK68: 10831 | AL68: 11096 | AM68: 11372 | AN68: 11658 | AO68: 11956 | AP68: 12265 | AQ68: 12588 | AR68: 12923 | AS68: 13272 | AT68: 13636 | AU68: 14014 | AV68: 14409 | AW68: 14820 | AX68: 15165 | AY68: 15524 | AZ68: 15897 | BA68: 16285 | BB68: 16688 | BC68: 17107 | BD68: 16043 | BE68: 14936 | BF68: 13785 | BG68: 12588 | BH68: 11343 | BI68: 10048 | BJ68: 8702 | BK68: 7301 | BL68: 5845 | BM68: 4330 | BN68: 4255 | BO68: 4177 | BP68: 4096 | BQ68: 4011 | BR68: 3923 | BS68: 3831 | BT68: 3734 | BU68: 3634 | BV68: 3529 | BW68: 3420 | BX68: 3306 | BY68: 3187 | BZ68: 3064 | CA68: 2935 | CB68: 2800 | CC68: 2660 | CD68: 2515 | CE68: 2363 | CF68: 2205 | CG68: 2040 | CH68: 1869 | CI68: 1691 | CJ68: 1506 | CK68: 1314 | CL68: 1114 | CM68: 907 | CN68: 692 | CO68: 470 | CP68: 239 | CQ68: 0 | CR68: 0 | DL68: 455.9854732 | DM68: 1362.017977 | DN68: 2290.67713 | DO68: 3242.532515 | DP68: 3218.168409 | DQ68: 4028.314503 | DR68: 4858.647604 | DS68: 5709.670494 | DT68: 6581.898392 | DU68: 7475.854579 | DV68: 8392.080445 | DW68: 9331.131804 | DX68: 10293.57417 | DY68: 11279.99132 | DZ68: 12290.98366 | EA68: 12432.4361 | EB68: 12577.40284 | EC68: 12725.97753 | ED68: 12878.25803 | EE68: 13034.34453 | EF68: 13194.34224 | EG68: 13358.35991 | EH68: 13526.51076 | EI68: 13698.91209 | EJ68: 13875.69041 | EK68: 14056.97835 | EL68: 14242.9165 | EM68: 14433.65725 | EN68: 14629.36348 | EO68: 14830.21103 | EP68: 15036.39034 | EQ68: 15248.10711 | ER68: 15465.58282 | ES68: 15689.05578 | ET68: 15918.78124 | EU68: 16155.03387 | EV68: 16398.1071 | EW68: 16648.3151 | EX68: 16905.99214 | EY68: 17171.49945 | EZ68: 17445.22897 | FA68: 17727.62109 | FB68: 17935.0589 | FC68: 18147.84953 | FD68: 18366.06546 | FE68: 18589.75453 | FF68: 18818.94702 | FG68: 19053.63752 | FH68: 17793.76847 | FI68: 16502.05318 | FJ68: 15177.65244 | FK68: 13819.72503 | FL68: 12427.44148 | FM68: 10999.99749 | FN68: 9536.611492 | FO68: 8036.570735 | FP68: 6499.199986 | FQ68: 4923.949417 | FR68: 4810.406985 | FS68: 4694.885299 | FT68: 4577.395109 | FU68: 4457.924278 | FV68: 4336.369974 | FW68: 4212.603607 | FX68: 4086.500107 | FY68: 3957.794057 | FZ68: 3826.294874 | GA68: 3691.727871 | GB68: 3553.872831 | GC68: 3412.502093 | GD68: 3267.274998 | GE68: 3118.031839 | GF68: 2964.626282 | GG68: 2806.765828 | GH68: 2644.081093 | GI68: 2476.473554 | GJ68: 2303.664473 | GK68: 2125.542214 | GL68: 1941.746642 | GM68: 1752.071789 | GN68: 1556.274274 | GO68: 1354.043846 | GP68: 1145.383198 | GQ68: 929.9456034 | GR68: 707.740761 | GS68: 478.3042996 | GT68: 242.1949571 | GU68: 0 | GV68: 0
A69: 18_15_M | B69: 15 | C69: 18 | D69: M | F69: 982 | G69: 0 | H69: 365 | I69: 843 | J69: 1409 | K69: 2023 | L69: 1738 | M69: 2191 | N69: 2668 | O69: 3170 | P69: 3698 | Q69: 4253 | R69: 4837 | S69: 5451 | T69: 6095 | U69: 6772 | V69: 7484 | W69: 7584 | X69: 7689 | Y69: 7798 | Z69: 7911 | AA69: 8028 | AB69: 8149 | AC69: 8276 | AD69: 8407 | AE69: 8543 | AF69: 8685 | AG69: 8831 | AH69: 8984 | AI69: 9142 | AJ69: 9306 | AK69: 9476 | AL69: 9653 | AM69: 9837 | AN69: 10028 | AO69: 10226 | AP69: 10432 | AQ69: 10646 | AR69: 10868 | AS69: 11099 | AT69: 11339 | AU69: 11588 | AV69: 11848 | AW69: 12019 | AX69: 12198 | AY69: 12383 | AZ69: 12576 | BA69: 12776 | BB69: 12984 | BC69: 13201 | BD69: 13427 | BE69: 13663 | BF69: 13908 | BG69: 14165 | BH69: 14433 | BI69: 14713 | BJ69: 15005 | BK69: 15307 | BL69: 15621 | BM69: 15947 | BN69: 16285 | BO69: 16636 | BP69: 17000 | BQ69: 15877 | BR69: 14708 | BS69: 13492 | BT69: 12226 | BU69: 10910 | BV69: 9541 | BW69: 8118 | BX69: 6638 | BY69: 5100 | BZ69: 3501 | CA69: 3341 | CB69: 3174 | CC69: 3000 | CD69: 2819 | CE69: 2630 | CF69: 2434 | CG69: 2230 | CH69: 2018 | CI69: 1797 | CJ69: 1568 | CK69: 1329 | CL69: 1082 | CM69: 826 | CN69: 560 | CO69: 285 | CP69: 0 | CQ69: 0 | DL69: 430.5557622 | DM69: 1337.299939 | DN69: 2266.687314 | DO69: 3219.287894 | DP69: 3195.687336 | DQ69: 3974.805891 | DR69: 4773.320723 | DS69: 5591.713275 | DT69: 6430.471819 | DU69: 7290.101232 | DV69: 8171.119471 | DW69: 9074.052441 | DX69: 9999.442712 | DY69: 10947.84776 | DZ69: 11919.84085 | EA69: 12019.92513 | EB69: 12122.44901 | EC69: 12227.47485 | ED69: 12335.06526 | EE69: 12445.28608 | EF69: 12558.20415 | EG69: 12673.88788 | EH69: 12792.40564 | EI69: 12913.8331 | EJ69: 13038.24721 | EK69: 13165.72743 | EL69: 13296.36211 | EM69: 13430.24374 | EN69: 13567.47181 | EO69: 13708.1552 | EP69: 13852.4138 | EQ69: 14000.37767 | ER69: 14152.18761 | ES69: 14307.99655 | ET69: 14467.96856 | EU69: 14632.28099 | EV69: 14801.12439 | EW69: 14974.70342 | EX69: 15153.23747 | EY69: 15336.96314 | EZ69: 15526.13952 | FA69: 15622.8536 | FB69: 15722.69718 | FC69: 15825.867 | FD69: 15932.58418 | FE69: 16043.10217 | FF69: 16157.70976 | FG69: 16276.7308 | FH69: 16400.53095 | FI69: 16529.52472 | FJ69: 16664.19645 | FK69: 16805.13824 | FL69: 16953.11088 | FM69: 17109.03054 | FN69: 17270.27541 | FO69: 17437.22786 | FP69: 17610.2435 | FQ69: 17789.60067 | FR69: 17975.39216 | FS69: 18167.3805 | FT69: 18364.89114 | FU69: 17066.70394 | FV69: 15735.35955 | FW69: 14369.25775 | FX69: 12966.85461 | FY69: 11526.57585 | FZ69: 10047.06972 | GA69: 8527.164005 | GB69: 6966.122794 | GC69: 5363.634445 | GD69: 3720.203899 | GE69: 3537.116983 | GF69: 3348.694415 | GG69: 3154.669605 | GH69: 2954.730594 | GI69: 2748.708539 | GJ69: 2536.199392 | GK69: 2316.921736 | GL69: 2090.520425 | GM69: 1856.862542 | GN69: 1615.474335 | GO69: 1366.52059 | GP69: 1109.49785 | GQ69: 844.1279092 | GR69: 570.640111 | GS69: 288.9859634 | GT69: 0 | GU69: 0
A70: =C70&"_"&B70&"_"&D70 -> 19_15_M | B70: 15 | C70: 19 | D70: M | F70: 971 | G70: 0 | H70: 366 | I70: 844 | J70: 1411 | K70: 2026 | L70: 1741 | M70: 2198 | N70: 2678 | O70: 3183 | P70: 3715 | Q70: 4274 | R70: 4862 | S70: 5479 | T70: 6128 | U70: 6810 | V70: 7526 | W70: 7630 | X70: 7739 | Y70: 7852 | Z70: 7969 | AA70: 8090 | AB70: 8216 | AC70: 8347 | AD70: 8483 | AE70: 8624 | AF70: 8771 | AG70: 8923 | AH70: 9081 | AI70: 9245 | AJ70: 9415 | AK70: 9592 | AL70: 9775 | AM70: 9965 | AN70: 10163 | AO70: 10369 | AP70: 10582 | AQ70: 10804 | AR70: 11034 | AS70: 11273 | AT70: 11522 | AU70: 11781 | AV70: 11953 | AW70: 12132 | AX70: 12318 | AY70: 12511 | AZ70: 12712 | BA70: 12921 | BB70: 13138 | BC70: 13365 | BD70: 13601 | BE70: 13847 | BF70: 14104 | BG70: 14372 | BH70: 14653 | BI70: 14945 | BJ70: 15248 | BK70: 15563 | BL70: 15890 | BM70: 16230 | BN70: 16582 | BO70: 16946 | BP70: 15824 | BQ70: 14657 | BR70: 13442 | BS70: 12178 | BT70: 10863 | BU70: 9496 | BV70: 8074 | BW70: 6595 | BX70: 5059 | BY70: 3462 | BZ70: 3304 | CA70: 3139 | CB70: 2967 | CC70: 2788 | CD70: 2601 | CE70: 2407 | CF70: 2205 | CG70: 1995 | CH70: 1777 | CI70: 1550 | CJ70: 1315 | CK70: 1070 | CL70: 817 | CM70: 554 | CN70: 282 | CO70: 0 | CP70: 0 | DL70: 431.231774 | DM70: 1337.590086 | DN70: 2266.580499 | DO70: 3218.773606 | DP70: 3194.754114 | DQ70: 3975.629987 | DR70: 4775.939998 | DS70: 5596.161422 | DT70: 6436.787303 | DU70: 7298.323318 | DV70: 8181.282876 | DW70: 9086.195352 | DX70: 10013.60448 | DY70: 10964.06916 | DZ70: 11938.16437 | EA70: 12040.79819 | EB70: 12145.93319 | EC70: 12253.63161 | ED70: 12363.95895 | EE70: 12476.98162 | EF70: 12592.76746 | EG70: 12711.38414 | EH70: 12832.90668 | EI70: 12957.41119 | EJ70: 13084.97611 | EK70: 13215.68883 | EL70: 13349.64068 | EM70: 13486.9299 | EN70: 13627.66404 | EO70: 13771.96175 | EP70: 13919.9518 | EQ70: 14071.77364 | ER70: 14227.5789 | ES70: 14387.53024 | ET70: 14551.8036 | EU70: 14720.5881 | EV70: 14894.08697 | EW70: 15072.51796 | EX70: 15256.1158 | EY70: 15445.13701 | EZ70: 15542.76554 | FA70: 15643.5226 | FB70: 15747.60245 | FC70: 15855.22358 | FD70: 15966.63621 | FE70: 16082.12556 | FF70: 16202.01181 | FG70: 16326.65668 | FH70: 16456.47046 | FI70: 16591.93229 | FJ70: 16733.62707 | FK70: 16882.30506 | FL70: 17038.96122 | FM70: 17201.64812 | FN70: 17370.07129 | FO70: 17544.58605 | FP70: 17725.47073 | FQ70: 17912.79388 | FR70: 18106.339 | FS70: 18305.46824 | FT70: 17008.93921 | FU70: 15679.25354 | FV70: 14314.85816 | FW70: 12914.15894 | FX70: 11475.64555 | FY70: 9997.903214 | FZ70: 8479.843635 | GA70: 6920.755944 | GB70: 5320.248178 | GC70: 3678.826858 | GD70: 3497.780416 | GE70: 3311.433702 | GF70: 3119.52659 | GG70: 2921.757194 | GH70: 2717.972448 | GI70: 2507.793293 | GJ70: 2290.978591 | GK70: 2067.239432 | GL70: 1836.205304 | GM70: 1597.751964 | GN70: 1351.372206 | GO70: 1097.252652 | GP70: 834.8223998 | GQ70: 564.3260891 | GR70: 285.7488498 | GS70: 0 | GT70: 0
A71: 20_15_M | B71: 15 | C71: 20 | D71: M | F71: 961 | G71: 0 | H71: 367 | I71: 846 | J71: 1414 | K71: 2031 | L71: 1748 | M71: 2208 | N71: 2692 | O71: 3201 | P71: 3737 | Q71: 4300 | R71: 4893 | S71: 5515 | T71: 6169 | U71: 6856 | V71: 7577 | W71: 7686 | X71: 7798 | Y71: 7915 | Z71: 8036 | AA71: 8162 | AB71: 8293 | AC71: 8429 | AD71: 8570 | AE71: 8716 | AF71: 8868 | AG71: 9026 | AH71: 9189 | AI71: 9359 | AJ71: 9535 | AK71: 9718 | AL71: 9909 | AM71: 10106 | AN71: 10311 | AO71: 10524 | AP71: 10745 | AQ71: 10975 | AR71: 11214 | AS71: 11462 | AT71: 11721 | AU71: 11893 | AV71: 12072 | AW71: 12259 | AX71: 12452 | AY71: 12654 | AZ71: 12863 | BA71: 13081 | BB71: 13308 | BC71: 13544 | BD71: 13790 | BE71: 14048 | BF71: 14316 | BG71: 14598 | BH71: 14891 | BI71: 15195 | BJ71: 15511 | BK71: 15839 | BL71: 16179 | BM71: 16532 | BN71: 16898 | BO71: 15777 | BP71: 14610 | BQ71: 13396 | BR71: 12134 | BS71: 10820 | BT71: 9454 | BU71: 8033 | BV71: 6557 | BW71: 5022 | BX71: 3427 | BY71: 3270 | BZ71: 3106 | CA71: 2936 | CB71: 2759 | CC71: 2574 | CD71: 2382 | CE71: 2182 | CF71: 1975 | CG71: 1759 | CH71: 1534 | CI71: 1301 | CJ71: 1059 | CK71: 808 | CL71: 548 | CM71: 279 | CN71: 0 | CO71: 0 | DL71: 432.6190138 | DM71: 1339.296012 | DN71: 2268.612511 | DO71: 3221.138653 | DP71: 3197.458581 | DQ71: 3980.667273 | DR71: 4783.357999 | DS71: 5606.012683 | DT71: 6449.125474 | DU71: 7313.198098 | DV71: 8198.747573 | DW71: 9106.304736 | DX71: 10036.41506 | DY71: 10989.63949 | DZ71: 11966.55536 | EA71: 12071.78921 | EB71: 12179.58543 | EC71: 12290.00922 | ED71: 12403.12655 | EE71: 12519.0048 | EF71: 12637.71098 | EG71: 12759.31949 | EH71: 12883.90573 | EI71: 13011.54718 | EJ71: 13142.33035 | EK71: 13276.34553 | EL71: 13413.68981 | EM71: 13554.46955 | EN71: 13698.80227 | EO71: 13846.81554 | EP71: 13998.6476 | EQ71: 14154.44891 | ER71: 14314.38082 | ES71: 14478.61801 | ET71: 14647.34827 | EU71: 14820.77356 | EV71: 14999.11013 | EW71: 15182.59099 | EX71: 15371.47035 | EY71: 15469.92938 | EZ71: 15571.516 | FA71: 15676.42226 | FB71: 15784.86423 | FC71: 15897.0892 | FD71: 16013.37912 | FE71: 16134.05082 | FF71: 16259.4625 | FG71: 16390.02054 | FH71: 16526.19936 | FI71: 16668.57733 | FJ71: 16817.89512 | FK71: 16975.13376 | FL71: 17139.11899 | FM71: 17308.86335 | FN71: 17484.72089 | FO71: 17666.96864 | FP71: 17855.69896 | FQ71: 18050.67577 | FR71: 18251.22854 | FS71: 16956.14467 | FT71: 15627.97648 | FU71: 14265.14034 | FV71: 12865.98959 | FW71: 11429.07486 | FX71: 9952.995053 | FY71: 8436.679796 | FZ71: 6879.238558 | GA71: 5280.461855 | GB71: 3640.75665 | GC71: 3461.540132 | GD71: 3277.17843 | GE71: 3087.295001 | GF71: 2891.595444 | GG71: 2689.938592 | GH71: 2481.964405 | GI71: 2267.462578 | GJ71: 2045.884669 | GK71: 1817.100467 | GL71: 1581.035436 | GM71: 1337.271148 | GN71: 1085.662315 | GO71: 826.0902202 | GP71: 558.4754318 | GQ71: 282.8060192 | GR71: 0 | GS71: 0
A72: 21_15_M | B72: 15 | C72: 21 | D72: M | F72: 950 | G72: 0 | H72: 368 | I72: 848 | J72: 1417 | K72: 2036 | L72: 1754 | M72: 2217 | N72: 2705 | O72: 3218 | P72: 3758 | Q72: 4325 | R72: 4922 | S72: 5549 | T72: 6208 | U72: 6900 | V72: 7627 | W72: 7739 | X72: 7856 | Y72: 7977 | Z72: 8103 | AA72: 8233 | AB72: 8369 | AC72: 8510 | AD72: 8656 | AE72: 8807 | AF72: 8965 | AG72: 9128 | AH72: 9298 | AI72: 9474 | AJ72: 9656 | AK72: 9846 | AL72: 10043 | AM72: 10248 | AN72: 10460 | AO72: 10681 | AP72: 10910 | AQ72: 11149 | AR72: 11397 | AS72: 11654 | AT72: 11827 | AU72: 12007 | AV72: 12194 | AW72: 12388 | AX72: 12589 | AY72: 12799 | AZ72: 13018 | BA72: 13245 | BB72: 13482 | BC72: 13729 | BD72: 13986 | BE72: 14255 | BF72: 14537 | BG72: 14831 | BH72: 15136 | BI72: 15453 | BJ72: 15782 | BK72: 16123 | BL72: 16477 | BM72: 16844 | BN72: 15724 | BO72: 14559 | BP72: 13347 | BQ72: 12085 | BR72: 10773 | BS72: 9408 | BT72: 7989 | BU72: 6514 | BV72: 4981 | BW72: 3388 | BX72: 3232 | BY72: 3071 | BZ72: 2903 | CA72: 2727 | CB72: 2545 | CC72: 2355 | CD72: 2158 | CE72: 1952 | CF72: 1739 | CG72: 1517 | CH72: 1286 | CI72: 1047 | CJ72: 799 | CK72: 542 | CL72: 276 | CM72: 0 | CN72: 0 | DL72: 433.6837112 | DM72: 1340.284285 | DN72: 2269.521003 | DO72: 3221.963159 | DP72: 3198.19486 | DQ72: 3983.492009 | DR72: 4788.316337 | DS72: 5613.150585 | DT72: 6458.484957 | DU72: 7324.824259 | DV72: 8212.686594 | DW72: 9122.604151 | DX72: 10055.12403 | DY72: 11010.8091 | DZ72: 11990.23892 | EA72: 12098.14294 | EB72: 12208.67302 | EC72: 12321.89471 | ED72: 12437.87483 | EE72: 12556.67968 | EF72: 12678.38302 | EG72: 12803.05939 | EH72: 12930.78527 | EI72: 13061.6462 | EJ72: 13195.73133 | EK72: 13333.13645 | EL72: 13473.96664 | EM72: 13618.33816 | EN72: 13766.37727 | EO72: 13918.2209 | EP72: 14074.01818 | EQ72: 14233.92906 | ER72: 14398.1268 | ES72: 14566.79778 | ET72: 14740.14251 | EU72: 14918.3756 | EV72: 15101.72819 | EW72: 15290.45195 | EX72: 15389.82496 | EY72: 15492.32456 | EZ72: 15598.14035 | FA72: 15707.48573 | FB72: 15820.60479 | FC72: 15937.77588 | FD72: 16059.31217 | FE72: 16185.56793 | FF72: 16316.94531 | FG72: 16453.9135 | FH72: 16597.04369 | FI72: 16747.06602 | FJ72: 16904.9462 | FK72: 17070.36884 | FL72: 17241.57887 | FM72: 17418.92998 | FN72: 17602.69903 | FO72: 17792.97891 | FP72: 17989.53518 | FQ72: 18191.70062 | FR72: 16898.26799 | FS72: 15571.75037 | FT72: 14210.55651 | FU72: 12813.15596 | FV72: 11377.99319 | FW72: 9903.741629 | FX72: 8389.262359 | FY72: 6833.762226 | FZ72: 5236.950776 | GA72: 3599.235651 | GB72: 3422.176867 | GC72: 3239.886084 | GD72: 3052.11392 | GE72: 2858.772232 | GF72: 2659.389908 | GG72: 2453.797165 | GH72: 2241.554657 | GI72: 2022.650848 | GJ72: 1796.508235 | GK72: 1563.013663 | GL72: 1322.122763 | GM72: 1073.417117 | GN72: 816.7847108 | GO72: 552.1614099 | GP72: 279.5689056 | GQ72: 0 | GR72: 0
A73: 22_15_M | B73: 15 | C73: 22 | D73: M | F73: 939 | G73: 0 | H73: 369 | I73: 850 | J73: 1421 | K73: 2041 | L73: 1760 | M73: 2227 | N73: 2719 | O73: 3236 | P73: 3780 | Q73: 4353 | R73: 4954 | S73: 5586 | T73: 6250 | U73: 6948 | V73: 7680 | W73: 7797 | X73: 7918 | Y73: 8043 | Z73: 8174 | AA73: 8309 | AB73: 8449 | AC73: 8595 | AD73: 8747 | AE73: 8904 | AF73: 9067 | AG73: 9236 | AH73: 9412 | AI73: 9594 | AJ73: 9783 | AK73: 9980 | AL73: 10184 | AM73: 10396 | AN73: 10617 | AO73: 10846 | AP73: 11083 | AQ73: 11331 | AR73: 11588 | AS73: 11761 | AT73: 11941 | AU73: 12129 | AV73: 12323 | AW73: 12525 | AX73: 12736 | AY73: 12954 | AZ73: 13182 | BA73: 13419 | BB73: 13667 | BC73: 13925 | BD73: 14194 | BE73: 14476 | BF73: 14771 | BG73: 15077 | BH73: 15395 | BI73: 15725 | BJ73: 16067 | BK73: 16422 | BL73: 16790 | BM73: 15672 | BN73: 14508 | BO73: 13297 | BP73: 12036 | BQ73: 10726 | BR73: 9362 | BS73: 7945 | BT73: 6471 | BU73: 4940 | BV73: 3348 | BW73: 3195 | BX73: 3035 | BY73: 2869 | BZ73: 2696 | CA73: 2515 | CB73: 2328 | CC73: 2132 | CD73: 1929 | CE73: 1718 | CF73: 1499 | CG73: 1271 | CH73: 1035 | CI73: 790 | CJ73: 536 | CK73: 272 | CL73: 0 | CM73: 0 | DL73: 434.9506538 | DM73: 1341.632173 | DN73: 2270.949613 | DO73: 3223.472236 | DP73: 3199.78254 | DQ73: 3987.338874 | DR73: 4794.471556 | DS73: 5621.659734 | DT73: 6469.396471 | DU73: 7338.187624 | DV73: 8228.552604 | DW73: 9141.025182 | DX73: 10076.15433 | DY73: 11034.5051 | DZ73: 12016.65658 | EA73: 12127.29183 | EB73: 12240.61671 | EC73: 12356.69752 | ED73: 12475.59981 | EE73: 12597.39671 | EF73: 12722.16192 | EG73: 12849.97089 | EH73: 12980.90821 | EI73: 13115.06185 | EJ73: 13252.52635 | EK73: 13393.40548 | EL73: 13537.81423 | EM73: 13685.87757 | EN73: 13837.73109 | EO73: 13993.52262 | EP73: 14153.41067 | EQ73: 14317.56712 | ER73: 14486.17689 | ES73: 14659.43906 | ET73: 14837.56661 | EU73: 15020.78878 | EV73: 15209.3547 | EW73: 15309.63937 | EX73: 15413.04953 | EY73: 15519.77233 | EZ73: 15630.01848 | FA73: 15744.02888 | FB73: 15862.07825 | FC73: 15984.47609 | FD73: 16111.57273 | FE73: 16243.76606 | FF73: 16381.52004 | FG73: 16525.39867 | FH73: 16676.1215 | FI73: 16834.63889 | FJ73: 17001.49425 | FK73: 17174.16486 | FL73: 17353.00391 | FM73: 17538.28798 | FN73: 17730.11031 | FO73: 17928.23792 | FP73: 18132.00662 | FQ73: 16840.1738 | FR73: 15515.29094 | FS73: 14155.77516 | FT73: 12760.10735 | FU73: 11326.67569 | FV73: 9854.227224 | FW73: 8341.553451 | FX73: 6787.95714 | FY73: 5193.064907 | FZ73: 3557.409192 | GA73: 3382.315276 | GB73: 3202.161158 | GC73: 3016.588456 | GD73: 2825.330625 | GE73: 2628.289664 | GF73: 2424.926936 | GG73: 2215.282334 | GH73: 1998.929001 | GI73: 1775.592181 | GJ73: 1544.923336 | GK73: 1306.873545 | GL73: 1061.018025 | GM73: 807.2347152 | GN73: 545.4417176 | GO73: 276.3317919 | GP73: 0 | GQ73: 0
A74: 23_15_M | B74: 15 | C74: 23 | D74: M | F74: 927 | G74: 0 | H74: 369 | I74: 852 | J74: 1424 | K74: 2045 | L74: 1766 | M74: 2237 | N74: 2732 | O74: 3254 | P74: 3802 | Q74: 4379 | R74: 4985 | S74: 5622 | T74: 6291 | U74: 6994 | V74: 7732 | W74: 7853 | X74: 7978 | Y74: 8109 | Z74: 8244 | AA74: 8384 | AB74: 8529 | AC74: 8680 | AD74: 8837 | AE74: 9000 | AF74: 9169 | AG74: 9344 | AH74: 9526 | AI74: 9715 | AJ74: 9911 | AK74: 10115 | AL74: 10327 | AM74: 10547 | AN74: 10775 | AO74: 11012 | AP74: 11259 | AQ74: 11515 | AR74: 11689 | AS74: 11870 | AT74: 12058 | AU74: 12253 | AV74: 12455 | AW74: 12666 | AX74: 12886 | AY74: 13114 | AZ74: 13352 | BA74: 13599 | BB74: 13858 | BC74: 14128 | BD74: 14410 | BE74: 14706 | BF74: 15013 | BG74: 15332 | BH74: 15663 | BI74: 16006 | BJ74: 16363 | BK74: 16732 | BL74: 15615 | BM74: 14452 | BN74: 13242 | BO74: 11983 | BP74: 10674 | BQ74: 9313 | BR74: 7897 | BS74: 6425 | BT74: 4895 | BU74: 3305 | BV74: 3154 | BW74: 2996 | BX74: 2832 | BY74: 2661 | BZ74: 2483 | CA74: 2298 | CB74: 2105 | CC74: 1905 | CD74: 1696 | CE74: 1480 | CF74: 1255 | CG74: 1022 | CH74: 780 | CI74: 529 | CJ74: 269 | CK74: 0 | CL74: 0 | DL74: 435.9113321 | DM74: 1342.293772 | DN74: 2271.302126 | DO74: 3223.503757 | DP74: 3199.482596 | DQ74: 3989.075541 | DR74: 4798.283789 | DS74: 5627.588823 | DT74: 6477.484417 | DU74: 7348.477383 | DV74: 8241.088346 | DW74: 9155.852562 | DX74: 10093.32077 | DY74: 11054.05717 | DZ74: 12038.64312 | EA74: 12152.08395 | EB74: 12268.27805 | EC74: 12387.29022 | ED74: 12509.19285 | EE74: 12634.05875 | EF74: 12761.96226 | EG74: 12892.98691 | EH74: 13027.21942 | EI74: 13164.75297 | EJ74: 13305.68988 | EK74: 13450.14379 | EL74: 13598.23827 | EM74: 13750.10743 | EN74: 13905.89771 | EO74: 14065.76607 | EP74: 14229.88286 | EQ74: 14398.43144 | ER74: 14571.60934 | ES74: 14749.62777 | ET74: 14932.7139 | EU74: 15121.11412 | EV74: 15222.40007 | EW74: 15326.8106 | EX74: 15434.5302 | EY74: 15545.76668 | EZ74: 15660.75746 | FA74: 15779.77337 | FB74: 15903.11991 | FC74: 16031.14318 | FD74: 16164.23646 | FE74: 16302.85806 | FF74: 16447.56418 | FG74: 16599.06294 | FH74: 16758.28806 | FI74: 16926.49255 | FJ74: 17100.75627 | FK74: 17281.21937 | FL74: 17468.1586 | FM74: 17661.66823 | FN74: 17861.48845 | FO74: 18066.98199 | FP74: 16776.9118 | FQ74: 15453.83771 | FR74: 14096.18848 | FS74: 12702.39794 | FT74: 11270.92225 | FU74: 9800.370011 | FV74: 8289.684388 | FW74: 6738.095211 | FX74: 5145.342675 | FY74: 3511.876395 | FZ74: 3339.032163 | GA74: 3161.203284 | GB74: 2978.053957 | GC74: 2789.351448 | GD74: 2594.829187 | GE74: 2394.16188 | GF74: 2187.196858 | GG74: 1973.482397 | GH74: 1753.052672 | GI74: 1525.33433 | GJ74: 1290.292491 | GK74: 1047.52985 | GL74: 796.9783055 | GM74: 538.664331 | GN74: 272.8003952 | GO74: 0 | GP74: 0
A75: 24_15_M | B75: 15 | C75: 24 | D75: M | F75: 915 | G75: 0 | H75: 370 | I75: 854 | J75: 1427 | K75: 2050 | L75: 1773 | M75: 2248 | N75: 2747 | O75: 3273 | P75: 3826 | Q75: 4408 | R75: 5019 | S75: 5661 | T75: 6336 | U75: 7045 | V75: 7789 | W75: 7914 | X75: 8044 | Y75: 8179 | Z75: 8319 | AA75: 8464 | AB75: 8615 | AC75: 8771 | AD75: 8934 | AE75: 9102 | AF75: 9277 | AG75: 9459 | AH75: 9647 | AI75: 9843 | AJ75: 10046 | AK75: 10258 | AL75: 10477 | AM75: 10705 | AN75: 10941 | AO75: 11187 | AP75: 11443 | AQ75: 11618 | AR75: 11799 | AS75: 11987 | AT75: 12183 | AU75: 12386 | AV75: 12597 | AW75: 12817 | AX75: 13046 | AY75: 13284 | AZ75: 13533 | BA75: 13792 | BB75: 14062 | BC75: 14345 | BD75: 14641 | BE75: 14949 | BF75: 15269 | BG75: 15601 | BH75: 15946 | BI75: 16303 | BJ75: 16674 | BK75: 15558 | BL75: 14396 | BM75: 13188 | BN75: 11931 | BO75: 10623 | BP75: 9263 | BQ75: 7849 | BR75: 6379 | BS75: 4851 | BT75: 3263 | BU75: 3113 | BV75: 2958 | BW75: 2796 | BX75: 2627 | BY75: 2451 | BZ75: 2268 | CA75: 2078 | CB75: 1880 | CC75: 1675 | CD75: 1461 | CE75: 1239 | CF75: 1009 | CG75: 770 | CH75: 522 | CI75: 265 | CJ75: 0 | CK75: 0 | DL75: 437.0922379 | DM75: 1343.364511 | DN75: 2272.255778 | DO75: 3224.334696 | DP75: 3200.185308 | DQ75: 3992.01739 | DR75: 4803.510309 | DS75: 5635.146253 | DT75: 6487.419943 | DU75: 7360.839391 | DV75: 8255.926693 | DW75: 9173.218857 | DX75: 10113.26581 | DY75: 11076.63397 | DZ75: 12063.90436 | EA75: 12180.22089 | EB75: 12299.35231 | EC75: 12421.37033 | ED75: 12546.34686 | EE75: 12674.35514 | EF75: 12805.47768 | EG75: 12939.79995 | EH75: 13077.41376 | EI75: 13218.42005 | EJ75: 13362.93109 | EK75: 13511.06906 | EL75: 13662.96666 | EM75: 13818.76893 | EN75: 13978.63128 | EO75: 14142.72262 | EP75: 14311.22471 | EQ75: 14484.3336 | ER75: 14662.25872 | ES75: 14845.22525 | ET75: 15033.47684 | EU75: 15135.78185 | EV75: 15241.21126 | EW75: 15349.94696 | EX75: 15462.19395 | EY75: 15578.18622 | EZ75: 15698.1908 | FA75: 15822.50931 | FB75: 15951.48371 | FC75: 16085.5028 | FD75: 16225.01937 | FE75: 16370.58199 | FF75: 16522.8876 | FG75: 16682.85361 | FH75: 16851.71015 | FI75: 17027.57598 | FJ75: 17209.67306 | FK75: 17398.27851 | FL75: 17593.46306 | FM75: 17795.01818 | FN75: 18002.2533 | FO75: 16713.96526 | FP75: 15392.72288 | FQ75: 14036.91282 | FR75: 12644.96449 | FS75: 11215.40035 | FT75: 9746.849608 | FU75: 8238.191484 | FV75: 6688.657555 | FW75: 5097.990509 | FX75: 3466.643609 | FY75: 3296.099533 | FZ75: 3120.502828 | GA75: 2939.65306 | GB75: 2753.339042 | GC75: 2561.327247 | GD75: 2363.343977 | GE75: 2159.042421 | GF75: 1948.253837 | GG75: 1730.464942 | GH75: 1505.676769 | GI75: 1273.610603 | GJ75: 1033.887781 | GK75: 786.4774096 | GL75: 531.4812741 | GM75: 269.2689985 | GN75: 0 | GO75: 0
A76: 25_15_M | B76: 15 | C76: 25 | D76: M | F76: 903 | G76: 0 | H76: 371 | I76: 857 | J76: 1431 | K76: 2056 | L76: 1781 | M76: 2260 | N76: 2764 | O76: 3294 | P76: 3852 | Q76: 4439 | R76: 5055 | S76: 5703 | T76: 6384 | U76: 7099 | V76: 7849 | W76: 7979 | X76: 8113 | Y76: 8253 | Z76: 8398 | AA76: 8549 | AB76: 8705 | AC76: 8867 | AD76: 9035 | AE76: 9210 | AF76: 9391 | AG76: 9579 | AH76: 9775 | AI76: 9977 | AJ76: 10188 | AK76: 10407 | AL76: 10634 | AM76: 10870 | AN76: 11116 | AO76: 11371 | AP76: 11546 | AQ76: 11728 | AR76: 11917 | AS76: 12113 | AT76: 12316 | AU76: 12528 | AV76: 12749 | AW76: 12978 | AX76: 13217 | AY76: 13466 | AZ76: 13725 | BA76: 13996 | BB76: 14279 | BC76: 14575 | BD76: 14884 | BE76: 15205 | BF76: 15539 | BG76: 15884 | BH76: 16243 | BI76: 16615 | BJ76: 15500 | BK76: 14340 | BL76: 13133 | BM76: 11877 | BN76: 10571 | BO76: 9213 | BP76: 7800 | BQ76: 6332 | BR76: 4806 | BS76: 3220 | BT76: 3072 | BU76: 2919 | BV76: 2759 | BW76: 2592 | BX76: 2419 | BY76: 2238 | BZ76: 2050 | CA76: 1855 | CB76: 1652 | CC76: 1441 | CD76: 1222 | CE76: 995 | CF76: 759 | CG76: 515 | CH76: 262 | CI76: 0 | CJ76: 0 | DL76: 438.4874981 | DM76: 1344.808068 | DN76: 2273.745931 | DO76: 3225.86986 | DP76: 3201.762448 | DQ76: 3996.005965 | DR76: 4809.959805 | DS76: 5644.107068 | DT76: 6498.943637 | DU76: 7374.978954 | DV76: 8272.73682 | DW76: 9192.753469 | DX76: 10135.58095 | DY76: 11101.78531 | DZ76: 12091.94751 | EA76: 12211.19258 | EB76: 12333.32023 | EC76: 12458.40145 | ED76: 12586.5084 | EE76: 12717.72253 | EF76: 12852.12806 | EG76: 12989.81543 | EH76: 13130.88418 | EI76: 13275.44521 | EJ76: 13423.6193 | EK76: 13575.5377 | EL76: 13731.34405 | EM76: 13891.19224 | EN76: 14055.24963 | EO76: 14223.69647 | EP76: 14396.72724 | EQ76: 14574.54961 | ER76: 14757.38674 | ES76: 14945.47951 | ET76: 15048.79297 | EU76: 15155.23021 | EV76: 15264.97049 | EW76: 15378.21594 | EX76: 15495.19711 | EY76: 15616.17715 | EZ76: 15741.45375 | FA76: 15871.36466 | FB76: 16006.29412 | FC76: 16146.68933 | FD76: 16293.09115 | FE76: 16446.18515 | FF76: 16606.87225 | FG76: 16776.35948 | FH76: 16953.81993 | FI76: 17137.54419 | FJ76: 17327.78879 | FK76: 17524.66745 | FL76: 17727.92518 | FM76: 17936.89908 | FN76: 16650.39239 | FO76: 15330.93617 | FP76: 13976.96591 | FQ76: 12586.92558 | FR76: 11159.28542 | FS76: 9692.672957 | FT76: 8186.056365 | FU76: 6638.597186 | FV76: 5050.042049 | FW76: 3420.849882 | FX76: 3252.511593 | FY76: 3079.183796 | FZ76: 2900.683961 | GA76: 2716.827814 | GB76: 2527.202868 | GC76: 2331.732746 | GD76: 2130.129236 | GE76: 1922.009119 | GF76: 1707.174305 | GG76: 1485.411713 | GH76: 1256.475557 | GI76: 1020.049157 | GJ76: 776.221 | GK76: 524.7038876 | GL76: 265.7376018 | GM76: 0 | GN76: 0
A77: 26_15_M | B77: 15 | C77: 26 | D77: M | F77: 891 | G77: 0 | H77: 373 | I77: 860 | J77: 1436 | K77: 2063 | L77: 1790 | M77: 2273 | N77: 2782 | O77: 3317 | P77: 3880 | Q77: 4472 | R77: 5094 | S77: 5748 | T77: 6435 | U77: 7157 | V77: 7914 | W77: 8048 | X77: 8188 | Y77: 8332 | Z77: 8483 | AA77: 8639 | AB77: 8800 | AC77: 8968 | AD77: 9143 | AE77: 9323 | AF77: 9511 | AG77: 9706 | AH77: 9909 | AI77: 10119 | AJ77: 10337 | AK77: 10564 | AL77: 10799 | AM77: 11044 | AN77: 11299 | AO77: 11474 | AP77: 11657 | AQ77: 11846 | AR77: 12043 | AS77: 12247 | AT77: 12459 | AU77: 12680 | AV77: 12910 | AW77: 13149 | AX77: 13399 | AY77: 13659 | AZ77: 13930 | BA77: 14214 | BB77: 14510 | BC77: 14820 | BD77: 15142 | BE77: 15477 | BF77: 15824 | BG77: 16183 | BH77: 16556 | BI77: 15443 | BJ77: 14284 | BK77: 13079 | BL77: 11825 | BM77: 10520 | BN77: 9163 | BO77: 7752 | BP77: 6285 | BQ77: 4761 | BR77: 3177 | BS77: 3032 | BT77: 2880 | BU77: 2722 | BV77: 2558 | BW77: 2387 | BX77: 2209 | BY77: 2023 | BZ77: 1831 | CA77: 1630 | CB77: 1422 | CC77: 1206 | CD77: 982 | CE77: 749 | CF77: 508 | CG77: 259 | CH77: 0 | CI77: 0 | DL77: 440.1175777 | DM77: 1346.671448 | DN77: 2275.845453 | DO77: 3228.207009 | DP77: 3204.339833 | DQ77: 4001.195019 | DR77: 4817.814731 | DS77: 5654.683214 | DT77: 6512.297759 | DU77: 7391.169489 | DV77: 8291.821512 | DW77: 9214.792116 | DX77: 10160.63297 | DY77: 11129.90999 | DZ77: 12123.20152 | EA77: 12245.44318 | EB77: 12370.63361 | EC77: 12498.84387 | ED77: 12630.15437 | EE77: 12764.64811 | EF77: 12902.41414 | EG77: 13043.5506 | EH77: 13188.16705 | EI77: 13336.38287 | EJ77: 13488.32788 | EK77: 13644.14432 | EL77: 13803.98455 | EM77: 13968.01445 | EN77: 14136.4127 | EO77: 14309.37228 | EP77: 14487.09909 | EQ77: 14669.81426 | ER77: 14857.75597 | ES77: 14962.08594 | ET77: 15069.53941 | EU77: 15180.29303 | EV77: 15294.54609 | EW77: 15412.52574 | EX77: 15534.49129 | EY77: 15660.73653 | EZ77: 15791.59507 | FA77: 15927.44664 | FB77: 16068.7329 | FC77: 16215.98708 | FD77: 16369.88352 | FE77: 16531.30676 | FF77: 16701.44092 | FG77: 16880.49789 | FH77: 17065.84996 | FI77: 17257.75392 | FJ77: 17456.29972 | FK77: 17661.28346 | FL77: 17872.02319 | FM77: 16587.28894 | FN77: 15269.65301 | FO77: 13917.50843 | FP77: 12529.29425 | FQ77: 11103.54644 | FR77: 9638.91232 | FS77: 8134.295161 | FT77: 6588.958558 | FU77: 5002.574388 | FV77: 3375.610706 | FW77: 3209.43002 | FX77: 3038.464705 | FY77: 2862.436803 | FZ77: 2681.00362 | GA77: 2493.935782 | GB77: 2300.967691 | GC77: 2102.04376 | GD77: 1896.562515 | GE77: 1684.634797 | GF77: 1465.822707 | GG77: 1239.894503 | GH77: 1006.560983 | GI77: 765.9645903 | GJ77: 517.9265011 | GK77: 262.2062051 | GL77: 0 | GM77: 0
A78: 27_15_M | B78: 15 | C78: 27 | D78: M | F78: 878 | G78: 0 | H78: 374 | I78: 862 | J78: 1440 | K78: 2069 | L78: 1798 | M78: 2285 | N78: 2799 | O78: 3339 | P78: 3907 | Q78: 4505 | R78: 5133 | S78: 5793 | T78: 6486 | U78: 7214 | V78: 7978 | W78: 8117 | X78: 8261 | Y78: 8411 | Z78: 8567 | AA78: 8728 | AB78: 8896 | AC78: 9070 | AD78: 9250 | AE78: 9438 | AF78: 9632 | AG78: 9834 | AH78: 10044 | AI78: 10261 | AJ78: 10488 | AK78: 10723 | AL78: 10967 | AM78: 11221 | AN78: 11397 | AO78: 11580 | AP78: 11770 | AQ78: 11967 | AR78: 12172 | AS78: 12385 | AT78: 12606 | AU78: 12837 | AV78: 13076 | AW78: 13326 | AX78: 13587 | AY78: 13859 | AZ78: 14143 | BA78: 14440 | BB78: 14751 | BC78: 15074 | BD78: 15410 | BE78: 15758 | BF78: 16119 | BG78: 16493 | BH78: 15381 | BI78: 14224 | BJ78: 13020 | BK78: 11767 | BL78: 10464 | BM78: 9109 | BN78: 7700 | BO78: 6235 | BP78: 4713 | BQ78: 3131 | BR78: 2988 | BS78: 2838 | BT78: 2683 | BU78: 2521 | BV78: 2352 | BW78: 2177 | BX78: 1994 | BY78: 1804 | BZ78: 1607 | CA78: 1402 | CB78: 1189 | CC78: 968 | CD78: 739 | CE78: 501 | CF78: 255 | CG78: 0 | CH78: 0 | DL78: 441.4720832 | DM78: 1347.89402 | DN78: 2276.927978 | DO78: 3229.14199 | DP78: 3205.119952 | DQ78: 4004.378495 | DR78: 4823.449987 | DS78: 5662.819744 | DT78: 6522.986388 | DU78: 7404.4601 | DV78: 8307.765612 | DW78: 9233.440463 | DX78: 10182.03573 | DY78: 11154.11419 | DZ78: 12150.26006 | EA78: 12275.56924 | EB78: 12403.89188 | EC78: 12535.30726 | ED78: 12669.89703 | EE78: 12807.74877 | EF78: 12948.95911 | EG78: 13093.63613 | EH78: 13241.89771 | EI78: 13393.87212 | EJ78: 13549.70008 | EK78: 13709.5323 | EL78: 13873.53305 | EM78: 14041.87932 | EN78: 14214.76245 | EO78: 14392.38644 | EP78: 14574.97023 | EQ78: 14762.74904 | ER78: 14868.18103 | ES78: 14976.73624 | ET78: 15088.5885 | EU78: 15203.93406 | EV78: 15322.99633 | EW78: 15446.03051 | EX78: 15573.32615 | EY78: 15705.21238 | EZ78: 15842.06404 | FA78: 15984.31683 | FB78: 16132.4957 | FC78: 16287.26281 | FD78: 16449.48502 | FE78: 16620.32163 | FF78: 16801.10462 | FG78: 16988.2173 | FH78: 17181.91703 | FI78: 17382.29553 | FJ78: 17589.12311 | FK78: 17801.74625 | FL78: 16518.94262 | FM78: 15203.2484 | FN78: 13853.10772 | FO78: 12466.97711 | FP78: 11043.34409 | FQ78: 9580.859105 | FR78: 8078.429901 | FS78: 6535.326362 | FT78: 4951.228879 | FU78: 3326.617343 | FV78: 3162.871029 | FW78: 2994.44644 | FX78: 2820.924753 | FY78: 2642.13184 | FZ78: 2457.89214 | GA78: 2267.777186 | GB78: 2071.729186 | GC78: 1869.454897 | GD78: 1660.559672 | GE78: 1444.859901 | GF78: 1222.165289 | GG78: 992.2640523 | GH78: 754.8903646 | GI78: 510.2800796 | GJ78: 258.3805253 | GK78: 0 | GL78: 0
A79: 28_15_M | B79: 15 | C79: 28 | D79: M | F79: 865 | G79: 0 | H79: 375 | I79: 865 | J79: 1445 | K79: 2076 | L79: 1807 | M79: 2299 | N79: 2818 | O79: 3363 | P79: 3937 | Q79: 4540 | R79: 5174 | S79: 5840 | T79: 6540 | U79: 7275 | V79: 8046 | W79: 8190 | X79: 8340 | Y79: 8495 | Z79: 8656 | AA79: 8824 | AB79: 8997 | AC79: 9177 | AD79: 9364 | AE79: 9558 | AF79: 9760 | AG79: 9969 | AH79: 10186 | AI79: 10412 | AJ79: 10646 | AK79: 10890 | AL79: 11143 | AM79: 11320 | AN79: 11503 | AO79: 11693 | AP79: 11891 | AQ79: 12097 | AR79: 12310 | AS79: 12532 | AT79: 12763 | AU79: 13004 | AV79: 13254 | AW79: 13515 | AX79: 13788 | AY79: 14072 | AZ79: 14370 | BA79: 14681 | BB79: 15006 | BC79: 15342 | BD79: 15692 | BE79: 16054 | BF79: 16430 | BG79: 15319 | BH79: 14163 | BI79: 12961 | BJ79: 11710 | BK79: 10408 | BL79: 9055 | BM79: 7648 | BN79: 6185 | BO79: 4664 | BP79: 3084 | BQ79: 2943 | BR79: 2796 | BS79: 2643 | BT79: 2483 | BU79: 2317 | BV79: 2144 | BW79: 1964 | BX79: 1777 | BY79: 1583 | BZ79: 1381 | CA79: 1171 | CB79: 953 | CC79: 727 | CD79: 493 | CE79: 251 | CF79: 0 | CG79: 0 | DL79: 443.0674269 | DM79: 1349.555729 | DN79: 2278.653417 | DO79: 3230.928685 | DP79: 3206.965823 | DQ79: 4008.844139 | DR79: 4830.589023 | DS79: 5672.687112 | DT79: 6535.636216 | DU79: 7419.948089 | DV79: 8326.146764 | DW79: 9254.76917 | DX79: 10206.36324 | DY79: 11181.49732 | DZ79: 12180.75358 | EA79: 12309.1951 | EB79: 12440.72206 | EC79: 12575.41478 | ED79: 12713.35938 | EE79: 12854.65095 | EF79: 12999.39615 | EG79: 13147.71135 | EH79: 13299.72328 | EI79: 13455.57118 | EJ79: 13615.4041 | EK79: 13779.38472 | EL79: 13947.68836 | EM79: 14120.50474 | EN79: 14298.03596 | EO79: 14480.49881 | EP79: 14668.12558 | EQ79: 14774.67089 | ER79: 14884.33959 | ES79: 14997.30278 | ET79: 15113.75364 | EU79: 15233.91196 | EV79: 15358.02883 | EW79: 15486.38967 | EX79: 15619.31916 | EY79: 15757.18736 | EZ79: 15900.42406 | FA79: 16049.54606 | FB79: 16205.2035 | FC79: 16368.24574 | FD79: 16539.80756 | FE79: 16721.41585 | FF79: 16910.27629 | FG79: 17105.77868 | FH79: 17307.97474 | FI79: 17516.65817 | FJ79: 17731.14648 | FK79: 16450.25215 | FL79: 15136.52175 | FM79: 13788.35915 | FN79: 12404.21887 | FO79: 10982.6578 | FP79: 9522.270372 | FQ79: 8021.96656 | FR79: 6481.019584 | FS79: 4899.227946 | FT79: 3276.994837 | FU79: 3115.718528 | FV79: 2949.724988 | FW79: 2778.742686 | FX79: 2602.636592 | FY79: 2421.070524 | FZ79: 2233.841599 | GA79: 2040.71882 | GB79: 1841.415437 | GC79: 1635.549138 | GD79: 1422.959056 | GE79: 1203.496739 | GF79: 977.0285574 | GG79: 743.4385684 | GH79: 502.633658 | GI79: 254.5548456 | GJ79: 0 | GK79: 0
A80: 29_15_M | B80: 15 | C80: 29 | D80: M | F80: 851 | G80: 0 | H80: 376 | I80: 868 | J80: 1450 | K80: 2082 | L80: 1815 | M80: 2313 | N80: 2836 | O80: 3387 | P80: 3966 | Q80: 4575 | R80: 5215 | S80: 5888 | T80: 6594 | U80: 7335 | V80: 8114 | W80: 8263 | X80: 8418 | Y80: 8579 | Z80: 8746 | AA80: 8919 | AB80: 9099 | AC80: 9285 | AD80: 9479 | AE80: 9680 | AF80: 9888 | AG80: 10105 | AH80: 10330 | AI80: 10564 | AJ80: 10807 | AK80: 11059 | AL80: 11236 | AM80: 11421 | AN80: 11612 | AO80: 11810 | AP80: 12016 | AQ80: 12230 | AR80: 12453 | AS80: 12685 | AT80: 12926 | AU80: 13177 | AV80: 13439 | AW80: 13711 | AX80: 13996 | AY80: 14294 | AZ80: 14607 | BA80: 14932 | BB80: 15270 | BC80: 15621 | BD80: 15984 | BE80: 16362 | BF80: 15253 | BG80: 14098 | BH80: 12897 | BI80: 11648 | BJ80: 10349 | BK80: 8997 | BL80: 7592 | BM80: 6131 | BN80: 4612 | BO80: 3035 | BP80: 2896 | BQ80: 2751 | BR80: 2600 | BS80: 2443 | BT80: 2280 | BU80: 2110 | BV80: 1933 | BW80: 1749 | BX80: 1557 | BY80: 1359 | BZ80: 1152 | CA80: 938 | CB80: 716 | CC80: 485 | CD80: 247 | CE80: 0 | CF80: 0 | DL80: 444.4106717 | DM80: 1350.624849 | DN80: 2279.436859 | DO80: 3231.414872 | DP80: 3207.143382 | DQ80: 4011.461096 | DR80: 4835.693951 | DS80: 5680.3276 | DT80: 6545.861045 | DU80: 7432.805057 | DV80: 8341.682689 | DW80: 9273.027341 | DX80: 10227.39181 | DY80: 11205.34182 | DZ80: 12207.4574 | EA80: 12339.11093 | EB80: 12473.92111 | EC80: 12611.9725 | ED80: 12753.35858 | EE80: 12898.18446 | EF80: 13046.56491 | EG80: 13198.62501 | EH80: 13354.50239 | EI80: 13514.34438 | EJ80: 13678.31191 | EK80: 13846.57856 | EL80: 14019.3323 | EM80: 14196.77322 | EN80: 14379.1158 | EO80: 14566.58919 | EP80: 14674.34421 | EQ80: 14785.2233 | ER80: 14899.39457 | ES80: 15017.04799 | ET80: 15138.39946 | EU80: 15263.69574 | EV80: 15393.21782 | EW80: 15527.28567 | EX80: 15666.26428 | EY80: 15810.57715 | EZ80: 15960.73242 | FA80: 16117.36744 | FB80: 16281.31289 | FC80: 16453.67741 | FD80: 16635.9528 | FE80: 16826.72492 | FF80: 17024.16043 | FG80: 17228.33086 | FH80: 17439.03446 | FI80: 17655.56162 | FJ80: 16376.72175 | FK80: 15065.10588 | FL80: 13719.13424 | FM80: 12337.2204 | FN80: 10917.85457 | FO80: 9459.772403 | FP80: 7961.827289 | FQ80: 6423.303771 | FR80: 4844.015551 | FS80: 3224.259931 | FT80: 3065.55541 | FU80: 2902.257425 | FV80: 2734.137419 | FW80: 2560.927395 | FX80: 2382.292496 | FY80: 2198.032905 | FZ80: 2007.923641 | GA80: 1811.689175 | GB80: 1609.316141 | GC80: 1400.129617 | GD80: 1184.334855 | GE80: 961.4886504 | GF80: 731.4134425 | GG80: 494.5238719 | GH80: 250.4348828 | GI80: 0 | GJ80: 0
A81: 30_15_M | B81: 15 | C81: 30 | D81: M | F81: 838 | G81: 0 | H81: 378 | I81: 871 | J81: 1456 | K81: 2091 | L81: 1827 | M81: 2329 | N81: 2859 | O81: 3415 | P81: 4001 | Q81: 4616 | R81: 5263 | S81: 5942 | T81: 6656 | U81: 7405 | V81: 8192 | W81: 8347 | X81: 8507 | Y81: 8674 | Z81: 8846 | AA81: 9026 | AB81: 9212 | AC81: 9405 | AD81: 9605 | AE81: 9814 | AF81: 10030 | AG81: 10254 | AH81: 10487 | AI81: 10730 | AJ81: 10981 | AK81: 11159 | AL81: 11344 | AM81: 11536 | AN81: 11735 | AO81: 11941 | AP81: 12156 | AQ81: 12379 | AR81: 12612 | AS81: 12853 | AT81: 13105 | AU81: 13367 | AV81: 13641 | AW81: 13926 | AX81: 14224 | AY81: 14537 | AZ81: 14864 | BA81: 15203 | BB81: 15555 | BC81: 15920 | BD81: 16298 | BE81: 15190 | BF81: 14038 | BG81: 12838 | BH81: 11591 | BI81: 10293 | BJ81: 8943 | BK81: 7539 | BL81: 6080 | BM81: 4564 | BN81: 2988 | BO81: 2851 | BP81: 2709 | BQ81: 2560 | BR81: 2406 | BS81: 2245 | BT81: 2077 | BU81: 1903 | BV81: 1722 | BW81: 1534 | BX81: 1338 | BY81: 1135 | BZ81: 924 | CA81: 705 | CB81: 478 | CC81: 243 | CD81: 0 | CE81: 0 | DL81: 446.5174927 | DM81: 1353.185811 | DN81: 2282.458754 | DO81: 3234.905064 | DP81: 3211.110058 | DQ81: 4018.469404 | DR81: 4845.805706 | DS81: 5693.606075 | DT81: 6562.368944 | DU81: 7452.604484 | DV81: 8364.832661 | DW81: 9299.591847 | DX81: 10257.43255 | DY81: 11238.91863 | DZ81: 12244.6374 | EA81: 12379.55349 | EB81: 12517.70076 | EC81: 12659.17123 | ED81: 12804.06852 | EE81: 12952.50595 | EF81: 13104.60703 | EG81: 13260.50794 | EH81: 13420.35434 | EI81: 13584.30559 | EJ81: 13752.53359 | EK81: 13925.22471 | EL81: 14102.57715 | EM81: 14284.80325 | EN81: 14472.12923 | EO81: 14581.00238 | EP81: 14692.99998 | EQ81: 14808.2874 | ER81: 14927.0516 | ES81: 15049.50483 | ET81: 15175.88982 | EU81: 15306.48339 | EV81: 15441.60115 | EW81: 15581.60329 | EX81: 15726.90749 | EY81: 15878.01375 | EZ81: 16035.54748 | FA81: 16200.32195 | FB81: 16373.42139 | FC81: 16556.30482 | FD81: 16748.82647 | FE81: 16948.04539 | FF81: 17154.03455 | FG81: 17366.56601 | FH81: 17584.99264 | FI81: 16308.10459 | FJ81: 14998.41073 | FK81: 13654.4197 | FL81: 12274.49919 | FM81: 10857.20891 | FN81: 9401.228621 | FO81: 7905.504852 | FP81: 6369.257566 | FQ81: 4792.198062 | FR81: 3174.849008 | FS81: 3018.650089 | FT81: 2857.82883 | FU81: 2692.307761 | FV81: 2521.666788 | FW81: 2345.763668 | FX81: 2164.470493 | FY81: 1977.40023 | FZ81: 1784.301873 | GA81: 1584.855605 | GB81: 1379.010696 | GC81: 1166.37602 | GD81: 946.8412706 | GE81: 720.3392168 | GF81: 486.8774504 | GG81: 246.609203 | GH81: 0 | GI81: 0
A82: 31_15_M | B82: 15 | C82: 31 | D82: M | F82: 823 | G82: 0 | H82: 379 | I82: 874 | J82: 1461 | K82: 2098 | L82: 1836 | M82: 2344 | N82: 2878 | O82: 3440 | P82: 4031 | Q82: 4653 | R82: 5306 | S82: 5992 | T82: 6713 | U82: 7470 | V82: 8264 | W82: 8424 | X82: 8590 | Y82: 8763 | Z82: 8941 | AA82: 9127 | AB82: 9320 | AC82: 9520 | AD82: 9727 | AE82: 9943 | AF82: 10167 | AG82: 10399 | AH82: 10641 | AI82: 10892 | AJ82: 11070 | AK82: 11255 | AL82: 11448 | AM82: 11648 | AN82: 11855 | AO82: 12070 | AP82: 12294 | AQ82: 12527 | AR82: 12770 | AS82: 13022 | AT82: 13285 | AU82: 13559 | AV82: 13845 | AW82: 14144 | AX82: 14457 | AY82: 14785 | AZ82: 15125 | BA82: 15478 | BB82: 15845 | BC82: 16225 | BD82: 15119 | BE82: 13968 | BF82: 12770 | BG82: 11524 | BH82: 10228 | BI82: 8881 | BJ82: 7479 | BK82: 6022 | BL82: 4508 | BM82: 2935 | BN82: 2800 | BO82: 2660 | BP82: 2515 | BQ82: 2363 | BR82: 2205 | BS82: 2040 | BT82: 1869 | BU82: 1691 | BV82: 1506 | BW82: 1314 | BX82: 1114 | BY82: 907 | BZ82: 692 | CA82: 470 | CB82: 239 | CC82: 0 | CD82: 0 | DL82: 447.8786182 | DM82: 1354.117083 | DN82: 2282.944143 | DO82: 3234.928526 | DP82: 3210.655759 | DQ82: 4020.472869 | DR82: 4850.313062 | DS82: 5700.662319 | DT82: 6572.017809 | DU82: 7464.885954 | DV82: 8379.790577 | DW82: 9317.266863 | DX82: 10277.86236 | DY82: 11262.14677 | DZ82: 12270.70611 | EA82: 12408.96505 | EB82: 12550.53392 | EC82: 12695.51471 | ED82: 12844.01899 | EE82: 12996.16854 | EF82: 13152.09778 | EG82: 13311.95051 | EH82: 13475.88425 | EI82: 13644.06901 | EJ82: 13816.68925 | EK82: 13993.94104 | EL82: 14176.03423 | EM82: 14363.19166 | EN82: 14473.35656 | EO82: 14586.64645 | EP82: 14703.22348 | EQ82: 14823.27117 | ER82: 14946.99759 | ES82: 15074.64077 | ET82: 15206.4728 | EU82: 15342.8042 | EV82: 15483.98969 | EW82: 15630.4402 | EX82: 15782.64639 | EY82: 15941.2199 | EZ82: 16106.95394 | FA82: 16280.9046 | FB82: 16464.49317 | FC82: 16659.04723 | FD82: 16860.34345 | FE82: 17068.45841 | FF82: 17283.14101 | FG82: 17503.74167 | FH82: 16229.04874 | FI82: 14921.61742 | FJ82: 13579.92055 | FK82: 12202.39214 | FL82: 10787.54972 | FM82: 9334.003628 | FN82: 7840.776323 | FO82: 6307.102566 | FP82: 4732.713422 | FQ82: 3118.031839 | FR82: 2964.626282 | FS82: 2806.765828 | FT82: 2644.081093 | FU82: 2476.473554 | FV82: 2303.664473 | FW82: 2125.542214 | FX82: 1941.746642 | FY82: 1752.071789 | FZ82: 1556.274274 | GA82: 1354.043846 | GB82: 1145.383198 | GC82: 929.9456034 | GD82: 707.740761 | GE82: 478.3042996 | GF82: 242.1949571 | GG82: 0 | GH82: 0
A83: 32_15_M | B83: 15 | C83: 32 | D83: M | F83: 809 | G83: 0 | H83: 381 | I83: 878 | J83: 1467 | K83: 2107 | L83: 1848 | M83: 2361 | N83: 2902 | O83: 3470 | P83: 4068 | Q83: 4697 | R83: 5357 | S83: 6051 | T83: 6779 | U83: 7544 | V83: 8347 | W83: 8513 | X83: 8685 | Y83: 8863 | Z83: 9048 | AA83: 9240 | AB83: 9440 | AC83: 9647 | AD83: 9862 | AE83: 10085 | AF83: 10317 | AG83: 10558 | AH83: 10808 | AI83: 10987 | AJ83: 11173 | AK83: 11366 | AL83: 11567 | AM83: 11775 | AN83: 11991 | AO83: 12216 | AP83: 12449 | AQ83: 12692 | AR83: 12945 | AS83: 13208 | AT83: 13483 | AU83: 13770 | AV83: 14069 | AW83: 14383 | AX83: 14711 | AY83: 15053 | AZ83: 15408 | BA83: 15776 | BB83: 16157 | BC83: 15052 | BD83: 13903 | BE83: 12707 | BF83: 11463 | BG83: 10169 | BH83: 8823 | BI83: 7423 | BJ83: 5968 | BK83: 4456 | BL83: 2885 | BM83: 2753 | BN83: 2615 | BO83: 2472 | BP83: 2323 | BQ83: 2168 | BR83: 2006 | BS83: 1838 | BT83: 1663 | BU83: 1481 | BV83: 1292 | BW83: 1096 | BX83: 892 | BY83: 681 | BZ83: 462 | CA83: 235 | CB83: 0 | CC83: 0 | DL83: 450.0321285 | DM83: 1356.611975 | DN83: 2285.783883 | DO83: 3238.117203 | DP83: 3214.197488 | DQ83: 4027.120524 | DR83: 4860.127197 | DS83: 5713.702656 | DT83: 6588.340855 | DU83: 7484.552179 | DV83: 8402.857713 | DW83: 9343.790045 | DX83: 10307.90269 | DY83: 11295.76432 | DZ83: 12307.9636 | EA83: 12449.63727 | EB83: 12594.70936 | EC83: 12743.28987 | ED83: 12895.49893 | EE83: 13051.46941 | EF83: 13211.34337 | EG83: 13375.27663 | EH83: 13543.43745 | EI83: 13716.0086 | EJ83: 13893.18413 | EK83: 14075.17163 | EL83: 14262.19084 | EM83: 14373.58124 | EN83: 14488.09793 | EO83: 14605.90018 | EP83: 14727.16833 | EQ83: 14852.10666 | ER83: 14980.94891 | ES83: 15113.96283 | ET83: 15251.45434 | EU83: 15393.77319 | EV83: 15541.32414 | EW83: 15694.58937 | EX83: 15854.1679 | EY83: 16020.83458 | EZ83: 16195.61974 | FA83: 16379.91008 | FB83: 16575.5701 | FC83: 16778.80288 | FD83: 16988.8712 | FE83: 17205.54773 | FF83: 17428.18907 | FG83: 16155.59319 | FH83: 14850.28184 | FI83: 13510.72788 | FJ83: 12135.36622 | FK83: 10722.71637 | FL83: 9271.472328 | FM83: 7780.599828 | FN83: 6249.344767 | FO83: 4677.453162 | FP83: 3065.368547 | FQ83: 2914.546826 | FR83: 2759.397388 | FS83: 2599.595106 | FT83: 2434.910383 | FU83: 2265.068658 | FV83: 2089.965759 | FW83: 1909.254513 | FX83: 1722.751388 | FY83: 1530.251873 | FZ83: 1331.513807 | GA83: 1126.221314 | GB83: 914.4056964 | GC83: 695.715635 | GD83: 470.1945135 | GE83: 238.0749943 | GF83: 0 | GG83: 0
A84: 33_15_M | B84: 15 | C84: 33 | D84: M | F84: 794 | G84: 0 | H84: 382 | I84: 882 | J84: 1473 | K84: 2116 | L84: 1860 | M84: 2379 | N84: 2925 | O84: 3500 | P84: 4104 | Q84: 4740 | R84: 5407 | S84: 6109 | T84: 6845 | U84: 7618 | V84: 8430 | W84: 8601 | X84: 8779 | Y84: 8964 | Z84: 9156 | AA84: 9354 | AB84: 9561 | AC84: 9775 | AD84: 9998 | AE84: 10229 | AF84: 10469 | AG84: 10719 | AH84: 10899 | AI84: 11085 | AJ84: 11279 | AK84: 11480 | AL84: 11689 | AM84: 11906 | AN84: 12131 | AO84: 12366 | AP84: 12609 | AQ84: 12863 | AR84: 13127 | AS84: 13402 | AT84: 13689 | AU84: 13989 | AV84: 14303 | AW84: 14632 | AX84: 14975 | AY84: 15331 | AZ84: 15701 | BA84: 16084 | BB84: 14981 | BC84: 13833 | BD84: 12639 | BE84: 11396 | BF84: 10104 | BG84: 8760 | BH84: 7363 | BI84: 5910 | BJ84: 4400 | BK84: 2831 | BL84: 2702 | BM84: 2567 | BN84: 2426 | BO84: 2279 | BP84: 2127 | BQ84: 1968 | BR84: 1803 | BS84: 1632 | BT84: 1453 | BU84: 1268 | BV84: 1075 | BW84: 875 | BX84: 668 | BY84: 453 | BZ84: 230 | CA84: 0 | CB84: 0 | DL84: 451.9589247 | DM84: 1358.551944 | DN84: 2287.731858 | DO84: 3240.067647 | DP84: 3216.145461 | DQ84: 4032.003674 | DR84: 4867.998997 | DS84: 5724.613192 | DT84: 6602.343481 | DU84: 7501.697165 | DV84: 8423.192234 | DW84: 9367.366361 | DX84: 10334.77131 | DY84: 11325.97748 | DZ84: 12341.57909 | EA84: 12486.75022 | EB84: 12635.41366 | EC84: 12787.6878 | ED84: 12943.70381 | EE84: 13103.6019 | EF84: 13267.53609 | EG84: 13435.67276 | EH84: 13608.19285 | EI84: 13785.28829 | EJ84: 13967.16423 | EK84: 14154.03708 | EL84: 14266.74232 | EM84: 14382.57533 | EN84: 14501.69229 | EO84: 14624.27014 | EP84: 14750.50907 | EQ84: 14880.63829 | ER84: 15014.92089 | ES84: 15153.65789 | ET84: 15297.19366 | EU84: 15445.92646 | EV84: 15600.32931 | EW84: 15760.9878 | EX84: 15928.65712 | EY84: 16104.34002 | EZ84: 16289.38624 | FA84: 16485.61259 | FB84: 16690.91438 | FC84: 16903.09913 | FD84: 17121.91609 | FE84: 17346.71905 | FF84: 16076.30386 | FG84: 14773.23807 | FH84: 13435.95818 | FI84: 12062.96473 | FJ84: 10652.73415 | FK84: 9203.970454 | FL84: 7715.56207 | FM84: 6186.840986 | FN84: 4617.570901 | FO84: 3008.219585 | FP84: 2860.135406 | FQ84: 2707.717313 | FR84: 2550.802045 | FS84: 2389.220541 | FT84: 2222.56987 | FU84: 2050.774667 | FV84: 1873.534444 | FW84: 1690.43227 | FX84: 1501.547851 | FY84: 1306.372528 | FZ84: 1104.971934 | GA84: 897.118469 | GB84: 682.4951225 | GC84: 461.2156923 | GD84: 233.6607484 | GE84: 0 | GF84: 0
A85: 34_15_M | B85: 15 | C85: 34 | D85: M | F85: 778 | G85: 0 | H85: 384 | I85: 885 | J85: 1479 | K85: 2124 | L85: 1871 | M85: 2396 | N85: 2948 | O85: 3529 | P85: 4140 | Q85: 4782 | R85: 5457 | S85: 6166 | T85: 6911 | U85: 7692 | V85: 8512 | W85: 8690 | X85: 8874 | Y85: 9065 | Z85: 9263 | AA85: 9469 | AB85: 9683 | AC85: 9905 | AD85: 10136 | AE85: 10375 | AF85: 10624 | AG85: 10804 | AH85: 10992 | AI85: 11186 | AJ85: 11388 | AK85: 11598 | AL85: 11815 | AM85: 12041 | AN85: 12276 | AO85: 12521 | AP85: 12775 | AQ85: 13040 | AR85: 13316 | AS85: 13604 | AT85: 13904 | AU85: 14218 | AV85: 14548 | AW85: 14893 | AX85: 15250 | AY85: 15621 | AZ85: 16006 | BA85: 14905 | BB85: 13759 | BC85: 12566 | BD85: 11326 | BE85: 10035 | BF85: 8694 | BG85: 7298 | BH85: 5848 | BI85: 4341 | BJ85: 2774 | BK85: 2647 | BL85: 2515 | BM85: 2377 | BN85: 2234 | BO85: 2084 | BP85: 1929 | BQ85: 1767 | BR85: 1599 | BS85: 1424 | BT85: 1242 | BU85: 1053 | BV85: 858 | BW85: 654 | BX85: 444 | BY85: 226 | BZ85: 0 | CA85: 0 | DL85: 453.6829796 | DM85: 1359.970847 | DN85: 2288.831265 | DO85: 3240.833333 | DP85: 3216.562783 | DQ85: 4035.194187 | DR85: 4874.007084 | DS85: 5733.485826 | DT85: 6614.124264 | DU85: 7516.426163 | DV85: 8440.913744 | DW85: 9388.122286 | DX85: 10358.60439 | DY85: 11352.935 | DZ85: 12371.71685 | EA85: 12520.47207 | EB85: 12672.81905 | EC85: 12828.88719 | ED85: 12988.8147 | EE85: 13152.7537 | EF85: 13320.86857 | EG85: 13493.3383 | EH85: 13670.35257 | EI85: 13852.11392 | EJ85: 14038.83525 | EK85: 14152.94775 | EL85: 14270.18982 | EM85: 14390.71431 | EN85: 14514.69459 | EO85: 14642.32652 | EP85: 14773.83445 | EQ85: 14909.47658 | ER85: 15049.54866 | ES85: 15194.38946 | ET85: 15344.39023 | EU85: 15500.01435 | EV85: 15661.83311 | EW85: 15830.58081 | EX85: 16007.23094 | EY85: 16193.09392 | EZ85: 16389.93594 | FA85: 16597.43212 | FB85: 16811.85949 | FC85: 17032.97328 | FD85: 17260.10244 | FE85: 15992.04289 | FF85: 14691.36378 | FG85: 13356.55952 | FH85: 11986.03186 | FI85: 10578.38677 | FJ85: 9132.20409 | FK85: 7646.542328 | FL85: 6120.582967 | FM85: 4554.083638 | FN85: 2947.631135 | FO85: 2802.61421 | FP85: 2653.331476 | FQ85: 2499.63434 | FR85: 2341.179403 | FS85: 2177.943285 | FT85: 2009.492028 | FU85: 1835.744522 | FV85: 1656.355008 | FW85: 1471.174366 | FX85: 1280.058979 | FY85: 1082.870813 | FZ85: 878.9798253 | GA85: 668.9457665 | GB85: 452.179177 | GC85: 228.9522195 | GD85: 0 | GE85: 0
A86: 35_15_M | B86: 15 | C86: 35 | D86: M | F86: 763 | G86: 0 | H86: 386 | I86: 890 | J86: 1487 | K86: 2135 | L86: 1885 | M86: 2416 | N86: 2975 | O86: 3564 | P86: 4182 | Q86: 4832 | R86: 5515 | S86: 6232 | T86: 6985 | U86: 7776 | V86: 8606 | W86: 8789 | X86: 8980 | Y86: 9178 | Z86: 9383 | AA86: 9597 | AB86: 9818 | AC86: 10048 | AD86: 10286 | AE86: 10534 | AF86: 10716 | AG86: 10904 | AH86: 11099 | AI86: 11301 | AJ86: 11512 | AK86: 11730 | AL86: 11957 | AM86: 12193 | AN86: 12438 | AO86: 12693 | AP86: 12958 | AQ86: 13235 | AR86: 13523 | AS86: 13824 | AT86: 14139 | AU86: 14469 | AV86: 14815 | AW86: 15174 | AX86: 15546 | AY86: 15933 | AZ86: 14833 | BA86: 13689 | BB86: 12498 | BC86: 11259 | BD86: 9971 | BE86: 8631 | BF86: 7238 | BG86: 5790 | BH86: 4285 | BI86: 2721 | BJ86: 2596 | BK86: 2466 | BL86: 2331 | BM86: 2190 | BN86: 2044 | BO86: 1891 | BP86: 1733 | BQ86: 1568 | BR86: 1396 | BS86: 1218 | BT86: 1033 | BU86: 841 | BV86: 642 | BW86: 435 | BX86: 221 | BY86: 0 | BZ86: 0 | DL86: 456.2108118 | DM86: 1362.940221 | DN86: 2292.246759 | DO86: 3244.699501 | DP86: 3220.884372 | DQ86: 4042.903787 | DR86: 4885.166499 | DS86: 5748.153986 | DT86: 6632.356979 | DU86: 7538.283486 | DV86: 8466.453667 | DW86: 9417.403817 | DX86: 10391.69117 | DY86: 11389.89926 | DZ86: 12412.63812 | EA86: 12565.05133 | EB86: 12721.16618 | EC86: 12881.11906 | ED86: 13045.06026 | EE86: 13213.15231 | EF86: 13385.57236 | EG86: 13562.50796 | EH86: 13744.15922 | EI86: 13930.73573 | EJ86: 14046.16467 | EK86: 14164.72472 | EL86: 14286.56565 | EM86: 14411.85744 | EN86: 14540.79189 | EO86: 14673.58878 | EP86: 14810.50167 | EQ86: 14951.82144 | ER86: 15097.88149 | ES86: 15249.06656 | ET86: 15405.83092 | EU86: 15568.73242 | EV86: 15738.48573 | EW86: 15916.03683 | EX86: 16102.6592 | EY86: 16300.07141 | EZ86: 16509.64094 | FA86: 16726.1647 | FB86: 16949.42314 | FC86: 17178.71883 | FD86: 15912.88613 | FE86: 14614.46221 | FF86: 13281.94344 | FG86: 11913.79755 | FH86: 10508.51674 | FI86: 9064.826372 | FJ86: 7581.643232 | FK86: 6058.235583 | FL86: 4494.379674 | FM86: 2890.560998 | FN86: 2748.294878 | FO86: 2601.918337 | FP86: 2451.162497 | FQ86: 2295.882808 | FR86: 2135.715114 | FS86: 1970.645849 | FT86: 1800.198065 | FU86: 1624.2684 | FV86: 1442.790749 | FW86: 1255.373216 | FX86: 1061.851054 | FY86: 862.0430473 | FZ86: 655.7252539 | GA86: 443.2003558 | GB86: 224.5379736 | GC86: 0 | GD86: 0
A87: 36_15_M | B87: 15 | C87: 36 | D87: M | F87: 746 | G87: 0 | H87: 387 | I87: 894 | J87: 1493 | K87: 2144 | L87: 1897 | M87: 2434 | N87: 3000 | O87: 3595 | P87: 4220 | Q87: 4878 | R87: 5568 | S87: 6294 | T87: 7056 | U87: 7855 | V87: 8694 | W87: 8884 | X87: 9081 | Y87: 9286 | Z87: 9499 | AA87: 9719 | AB87: 9948 | AC87: 10186 | AD87: 10433 | AE87: 10615 | AF87: 10804 | AG87: 11000 | AH87: 11204 | AI87: 11415 | AJ87: 11634 | AK87: 11862 | AL87: 12098 | AM87: 12344 | AN87: 12600 | AO87: 12866 | AP87: 13143 | AQ87: 13433 | AR87: 13734 | AS87: 14050 | AT87: 14380 | AU87: 14727 | AV87: 15088 | AW87: 15462 | AX87: 15850 | AY87: 14752 | AZ87: 13609 | BA87: 12421 | BB87: 11184 | BC87: 9898 | BD87: 8560 | BE87: 7170 | BF87: 5724 | BG87: 4221 | BH87: 2660 | BI87: 2538 | BJ87: 2411 | BK87: 2279 | BL87: 2141 | BM87: 1998 | BN87: 1849 | BO87: 1694 | BP87: 1533 | BQ87: 1365 | BR87: 1191 | BS87: 1010 | BT87: 822 | BU87: 627 | BV87: 425 | BW87: 216 | BX87: 0 | BY87: 0 | DL87: 458.0566055 | DM87: 1364.403264 | DN87: 2293.309301 | DO87: 3245.34307 | DP87: 3221.089175 | DQ87: 4045.972561 | DR87: 4891.142295 | DS87: 5757.076046 | DT87: 6644.267565 | DU87: 7553.221859 | DV87: 8484.458878 | DW87: 9438.518114 | DX87: 10415.96381 | DY87: 11417.38523 | DZ87: 12443.39945 | EA87: 12599.58054 | EB87: 12759.57592 | EC87: 12923.53387 | ED87: 13091.61482 | EE87: 13263.99388 | EF87: 13440.85621 | EG87: 13622.39921 | EH87: 13808.82873 | EI87: 13925.76747 | EJ87: 14045.83983 | EK87: 14169.1921 | EL87: 14295.99052 | EM87: 14426.42235 | EN87: 14560.70229 | EO87: 14699.07876 | EP87: 14841.83717 | EQ87: 14989.30501 | ER87: 15141.85974 | ES87: 15299.94551 | ET87: 15464.10516 | EU87: 15635.03145 | EV87: 15813.63961 | EW87: 16001.16183 | EX87: 16199.26352 | EY87: 16410.1781 | EZ87: 16629.07616 | FA87: 16854.73763 | FB87: 17086.49819 | FC87: 15823.16591 | FD87: 14527.32864 | FE87: 13197.39818 | FF87: 11831.895 | FG87: 10429.32335 | FH87: 8988.424575 | FI87: 7508.045822 | FJ87: 5987.55145 | FK87: 4426.748685 | FL87: 2826.03852 | FM87: 2686.944688 | FN87: 2543.816781 | FO87: 2396.404814 | FP87: 2244.592892 | FQ87: 2088.060922 | FR87: 1926.617783 | FS87: 1760.037971 | FT87: 1588.030791 | FU87: 1410.542245 | FV87: 1227.203344 | FW87: 1037.892058 | FX87: 842.5075325 | FY87: 640.9805114 | FZ87: 433.2948054 | GA87: 219.5351616 | GB87: 0 | GC87: 0
A88: 37_15_M | B88: 15 | C88: 37 | D88: M | F88: 730 | G88: 0 | H88: 390 | I88: 899 | J88: 1501 | K88: 2156 | L88: 1912 | M88: 2457 | N88: 3029 | O88: 3632 | P88: 4265 | Q88: 4931 | R88: 5630 | S88: 6364 | T88: 7136 | U88: 7945 | V88: 8794 | W88: 8991 | X88: 9195 | Y88: 9407 | Z88: 9627 | AA88: 9855 | AB88: 10092 | AC88: 10339 | AD88: 10522 | AE88: 10711 | AF88: 10908 | AG88: 11112 | AH88: 11324 | AI88: 11544 | AJ88: 11773 | AK88: 12010 | AL88: 12257 | AM88: 12513 | AN88: 12780 | AO88: 13058 | AP88: 13348 | AQ88: 13650 | AR88: 13966 | AS88: 14297 | AT88: 14644 | AU88: 15006 | AV88: 15382 | AW88: 15772 | AX88: 14676 | AY88: 13535 | AZ88: 12348 | BA88: 11114 | BB88: 9830 | BC88: 8494 | BD88: 7106 | BE88: 5662 | BF88: 4162 | BG88: 2603 | BH88: 2484 | BI88: 2360 | BJ88: 2230 | BK88: 2096 | BL88: 1956 | BM88: 1810 | BN88: 1658 | BO88: 1500 | BP88: 1336 | BQ88: 1165 | BR88: 988 | BS88: 805 | BT88: 614 | BU88: 416 | BV88: 212 | BW88: 0 | BX88: 0 | DL88: 460.7370285 | DM88: 1367.489032 | DN88: 2296.801927 | DO88: 3249.243148 | DP88: 3225.399131 | DQ88: 4053.806481 | DR88: 4902.555905 | DS88: 5772.128107 | DT88: 6663.014269 | DU88: 7575.719438 | DV88: 8510.7669 | DW88: 9468.70324 | DX88: 10450.09865 | DY88: 11455.54963 | DZ88: 12485.68444 | EA88: 12645.73467 | EB88: 12809.72376 | EC88: 12977.81019 | ED88: 13150.16719 | EE88: 13326.97771 | EF88: 13508.43661 | EG88: 13694.7463 | EH88: 13813.12528 | EI88: 13934.64102 | EJ88: 14059.43665 | EK88: 14187.67493 | EL88: 14319.53894 | EM88: 14455.23868 | EN88: 14595.01784 | EO88: 14739.15679 | EP88: 14887.97762 | EQ88: 15041.85106 | ER88: 15201.21195 | ES88: 15366.58924 | ET88: 15538.65543 | EU88: 15718.29725 | EV88: 15906.70871 | EW88: 16105.50599 | EX88: 16316.86141 | EY88: 16538.03532 | EZ88: 16766.00449 | FA88: 17000.10381 | FB88: 15739.14184 | FC88: 14445.70848 | FD88: 13118.27403 | FE88: 11755.26088 | FF88: 10355.23251 | FG88: 8916.942093 | FH88: 7439.252427 | FI88: 5921.54873 | FJ88: 4363.55247 | FK88: 2765.785764 | FL88: 2629.674183 | FM88: 2489.570129 | FN88: 2345.404597 | FO88: 2196.756799 | FP88: 2043.470113 | FQ88: 1885.380742 | FR88: 1722.30755 | FS88: 1554.033216 | FT88: 1380.27857 | FU88: 1201.04591 | FV88: 1016.020558 | FW88: 824.7193382 | FX88: 627.4311553 | FY88: 424.2582901 | FZ88: 214.8266327 | GA88: 0 | GB88: 0
A89: 38_15_M | B89: 15 | C89: 38 | D89: M | F89: 713 | G89: 0 | H89: 392 | I89: 903 | J89: 1509 | K89: 2167 | L89: 1927 | M89: 2478 | N89: 3058 | O89: 3668 | P89: 4310 | Q89: 4984 | R89: 5692 | S89: 6435 | T89: 7216 | U89: 8035 | V89: 8895 | W89: 9098 | X89: 9309 | Y89: 9529 | Z89: 9756 | AA89: 9993 | AB89: 10238 | AC89: 10422 | AD89: 10612 | AE89: 10810 | AF89: 11015 | AG89: 11228 | AH89: 11448 | AI89: 11678 | AJ89: 11916 | AK89: 12163 | AL89: 12421 | AM89: 12689 | AN89: 12967 | AO89: 13258 | AP89: 13561 | AQ89: 13878 | AR89: 14209 | AS89: 14556 | AT89: 14920 | AU89: 15297 | AV89: 15689 | AW89: 14595 | AX89: 13456 | AY89: 12271 | AZ89: 11039 | BA89: 9757 | BB89: 8423 | BC89: 7037 | BD89: 5596 | BE89: 4098 | BF89: 2542 | BG89: 2426 | BH89: 2305 | BI89: 2178 | BJ89: 2047 | BK89: 1910 | BL89: 1767 | BM89: 1619 | BN89: 1465 | BO89: 1305 | BP89: 1138 | BQ89: 965 | BR89: 786 | BS89: 600 | BT89: 407 | BU89: 207 | BV89: 0 | BW89: 0 | DL89: 463.244909 | DM89: 1370.089001 | DN89: 2299.485465 | DO89: 3252.002822 | DP89: 3228.226828 | DQ89: 4059.994241 | DR89: 4912.156016 | DS89: 5785.189876 | DT89: 6679.586366 | DU89: 7595.85298 | DV89: 8534.519078 | DW89: 9496.136234 | DX89: 10481.28085 | DY89: 11490.55951 | DZ89: 12524.60683 | EA89: 12688.62423 | EB89: 12856.71154 | EC89: 13029.03998 | ED89: 13205.79012 | EE89: 13387.15414 | EF89: 13573.33076 | EG89: 13693.23401 | EH89: 13816.27713 | EI89: 13942.59983 | EJ89: 14072.36118 | EK89: 14205.73977 | EL89: 14342.9406 | EM89: 14484.20229 | EN89: 14629.79984 | EO89: 14780.04951 | EP89: 14935.31489 | EQ89: 15096.02082 | ER89: 15262.68146 | ES89: 15435.94764 | ET89: 15616.67569 | EU89: 15806.01882 | EV89: 16005.54066 | EW89: 16217.3483 | EX89: 16440.89397 | EY89: 16671.29264 | EZ89: 16907.85525 | FA89: 15649.39185 | FB89: 14358.49583 | FC89: 13033.64335 | FD89: 11673.26537 | FE89: 10275.93713 | FF89: 8840.42744 | FG89: 7365.619677 | FH89: 5850.824738 | FI89: 4295.87604 | FJ89: 2701.210875 | FK89: 2568.262765 | FL89: 2431.39603 | FM89: 2290.559619 | FN89: 2145.360014 | FO89: 1995.682569 | FP89: 1841.429197 | FQ89: 1682.247308 | FR89: 1517.929334 | FS89: 1348.214347 | FT89: 1173.138027 | FU89: 992.4469055 | FV89: 805.7719386 | FW89: 613.0639833 | FX89: 414.3527397 | FY89: 209.8238207 | FZ89: 0 | GA89: 0
A90: 39_15_M | B90: 15 | C90: 39 | D90: M | F90: 695 | G90: 0 | H90: 394 | I90: 908 | J90: 1517 | K90: 2178 | L90: 1942 | M90: 2500 | N90: 3087 | O90: 3705 | P90: 4354 | Q90: 5036 | R90: 5753 | S90: 6506 | T90: 7296 | U90: 8125 | V90: 8996 | W90: 9206 | X90: 9425 | Y90: 9652 | Z90: 9887 | AA90: 10132 | AB90: 10316 | AC90: 10508 | AD90: 10706 | AE90: 10912 | AF90: 11126 | AG90: 11347 | AH90: 11577 | AI90: 11817 | AJ90: 12065 | AK90: 12323 | AL90: 12592 | AM90: 12871 | AN90: 13163 | AO90: 13466 | AP90: 13784 | AQ90: 14115 | AR90: 14463 | AS90: 14829 | AT90: 15208 | AU90: 15601 | AV90: 14509 | AW90: 13372 | AX90: 12190 | AY90: 10959 | AZ90: 9680 | BA90: 8349 | BB90: 6965 | BC90: 5526 | BD90: 4032 | BE90: 2478 | BF90: 2365 | BG90: 2247 | BH90: 2123 | BI90: 1995 | BJ90: 1862 | BK90: 1723 | BL90: 1578 | BM90: 1428 | BN90: 1272 | BO90: 1110 | BP90: 941 | BQ90: 766 | BR90: 585 | BS90: 397 | BT90: 202 | BU90: 0 | BV90: 0 | DL90: 465.6070245 | DM90: 1372.250118 | DN90: 2301.429541 | DO90: 3253.712562 | DP90: 3229.683967 | DQ90: 4064.672736 | DR90: 4920.099449 | DS90: 5796.440575 | DT90: 6694.188275 | DU90: 7613.855149 | DV90: 8555.974646 | DW90: 9521.1036 | DX90: 10509.82744 | DY90: 11522.75808 | DZ90: 12560.54185 | EA90: 12728.63405 | EB90: 12900.93633 | EC90: 13077.62679 | ED90: 13258.89476 | EE90: 13444.93507 | EF90: 13566.45702 | EG90: 13691.12233 | EH90: 13819.06712 | EI90: 13950.44654 | EJ90: 14085.43447 | EK90: 14224.23063 | EL90: 14367.06831 | EM90: 14514.21682 | EN90: 14665.98633 | EO90: 14822.73287 | EP90: 14984.87075 | EQ90: 15152.89853 | ER90: 15327.44418 | ES90: 15509.33196 | ET90: 15699.67205 | EU90: 15899.97265 | EV90: 16112.27201 | EW90: 16338.3421 | EX90: 16571.30043 | EY90: 16810.49275 | EZ90: 15554.70503 | FA90: 14266.53716 | FB90: 12944.42046 | FC90: 11586.90354 | FD90: 10192.45769 | FE90: 8759.848698 | FF90: 7288.047353 | FG90: 5776.394342 | FH90: 4224.535524 | FI90: 2633.12835 | FJ90: 2503.520478 | FK90: 2370.096389 | FL90: 2232.834853 | FM90: 2091.387099 | FN90: 1945.486676 | FO90: 1795.028529 | FP90: 1639.927076 | FQ90: 1479.812668 | FR90: 1314.478448 | FS90: 1143.66291 | FT90: 967.4405834 | FU90: 785.5815624 | FV90: 597.7459109 | FW90: 403.9838247 | FX90: 204.5267256 | FY90: 0 | FZ90: 0
A91: 40_15_M | B91: 15 | C91: 40 | D91: M | F91: 677 | G91: 0 | H91: 396 | I91: 913 | J91: 1525 | K91: 2190 | L91: 1958 | M91: 2523 | N91: 3118 | O91: 3744 | P91: 4402 | Q91: 5093 | R91: 5819 | S91: 6582 | T91: 7382 | U91: 8222 | V91: 9103 | W91: 9321 | X91: 9547 | Y91: 9782 | Z91: 10025 | AA91: 10211 | AB91: 10403 | AC91: 10602 | AD91: 10809 | AE91: 11024 | AF91: 11246 | AG91: 11478 | AH91: 11718 | AI91: 11967 | AJ91: 12226 | AK91: 12495 | AL91: 12776 | AM91: 13068 | AN91: 13372 | AO91: 13690 | AP91: 14023 | AQ91: 14371 | AR91: 14737 | AS91: 15118 | AT91: 15513 | AU91: 14423 | AV91: 13288 | AW91: 12108 | AX91: 10879 | AY91: 9602 | AZ91: 8274 | BA91: 6892 | BB91: 5456 | BC91: 3964 | BD91: 2414 | BE91: 2303 | BF91: 2188 | BG91: 2068 | BH91: 1943 | BI91: 1813 | BJ91: 1678 | BK91: 1537 | BL91: 1391 | BM91: 1239 | BN91: 1081 | BO91: 916 | BP91: 746 | BQ91: 569 | BR91: 386 | BS91: 196 | BT91: 0 | BU91: 0 | DL91: 468.3261375 | DM91: 1375.031021 | DN91: 2304.261039 | DO91: 3256.58231 | DP91: 3232.581402 | DQ91: 4071.06519 | DR91: 4930.034921 | DS91: 5809.96836 | DT91: 6711.362324 | DU91: 7634.73318 | DV91: 8580.619295 | DW91: 9549.586115 | DX91: 10542.2241 | DY91: 11559.15644 | DZ91: 12601.03969 | EA91: 12773.3295 | EB91: 12949.97447 | EC91: 13131.16113 | ED91: 13317.08044 | EE91: 13440.23704 | EF91: 13566.54113 | EG91: 13696.12531 | EH91: 13829.1409 | EI91: 13965.7571 | EJ91: 14106.16846 | EK91: 14250.60298 | EL91: 14399.32444 | EM91: 14552.63697 | EN91: 14710.88919 | EO91: 14874.48504 | EP91: 15043.90769 | EQ91: 15219.76255 | ER91: 15402.84219 | ES91: 15594.21426 | ET91: 15795.33224 | EU91: 16008.16645 | EV91: 16235.3423 | EW91: 16470.86512 | EX91: 16712.66058 | EY91: 15459.51757 | EZ91: 14174.04143 | FA91: 12854.67197 | FB91: 11499.96968 | FC91: 10108.42189 | FD91: 8678.73488 | FE91: 7209.968143 | FF91: 5701.392226 | FG91: 4152.770465 | FH91: 2564.556158 | FI91: 2438.347624 | FJ91: 2308.444445 | FK91: 2174.686143 | FL91: 2036.895179 | FM91: 1894.863243 | FN91: 1748.329425 | FO91: 1597.217417 | FP91: 1441.174457 | FQ91: 1280.023851 | FR91: 1113.557848 | FS91: 941.9480829 | FT91: 764.6491766 | FU91: 581.8057818 | FV91: 393.2092393 | FW91: 199.2296306 | FX91: 0 | FY91: 0
A92: 41_15_M | B92: 15 | C92: 41 | D92: M | F92: 658 | G92: 0 | H92: 398 | I92: 918 | J92: 1534 | K92: 2203 | L92: 1974 | M92: 2547 | N92: 3150 | O92: 3783 | P92: 4450 | Q92: 5150 | R92: 5886 | S92: 6658 | T92: 7469 | U92: 8319 | V92: 9212 | W92: 9437 | X92: 9671 | Y92: 9914 | Z92: 10100 | AA92: 10293 | AB92: 10494 | AC92: 10701 | AD92: 10917 | AE92: 11141 | AF92: 11373 | AG92: 11614 | AH92: 11864 | AI92: 12124 | AJ92: 12394 | AK92: 12676 | AL92: 12969 | AM92: 13274 | AN92: 13593 | AO92: 13926 | AP92: 14274 | AQ92: 14641 | AR92: 15024 | AS92: 15421 | AT92: 14332 | AU92: 13200 | AV92: 12022 | AW92: 10796 | AX92: 9521 | AY92: 8195 | AZ92: 6816 | BA92: 5383 | BB92: 3894 | BC92: 2346 | BD92: 2239 | BE92: 2127 | BF92: 2010 | BG92: 1889 | BH92: 1762 | BI92: 1631 | BJ92: 1494 | BK92: 1352 | BL92: 1204 | BM92: 1050 | BN92: 891 | BO92: 725 | BP92: 553 | BQ92: 375 | BR92: 191 | BS92: 0 | BT92: 0 | DL92: 470.9382262 | DM92: 1377.45838 | DN92: 2306.483834 | DO92: 3258.581626 | DP92: 3234.337707 | DQ92: 4076.224176 | DR92: 4938.640972 | DS92: 5822.069632 | DT92: 6727.009965 | DU92: 7653.982431 | DV92: 8603.533067 | DW92: 9576.2315 | DX92: 10572.67845 | DY92: 11593.50633 | DZ92: 12639.38475 | EA92: 12816.00318 | EB92: 12997.1263 | EC92: 13182.94104 | ED92: 13307.84719 | EE92: 13435.90622 | EF92: 13567.24706 | EG92: 13702.01707 | EH92: 13840.38064 | EI92: 13982.52696 | EJ92: 14128.67861 | EK92: 14279.09362 | EL92: 14434.06996 | EM92: 14593.94859 | EN92: 14759.12278 | EO92: 14930.05974 | EP92: 15107.34149 | EQ92: 15291.72777 | ER92: 15484.24214 | ES92: 15686.28132 | ET92: 15899.74533 | EU92: 16127.17592 | EV92: 16365.40678 | EW92: 16609.95268 | EX92: 15359.64719 | EY92: 14077.02491 | EZ92: 12760.57457 | FA92: 11408.80924 | FB92: 10020.28412 | FC92: 8593.728384 | FD92: 7128.140794 | FE92: 5622.797983 | FF92: 4077.471596 | FG92: 2492.753414 | FH92: 2370.026124 | FI92: 2243.725023 | FJ92: 2113.727517 | FK92: 1979.715877 | FL92: 1841.692641 | FM92: 1699.250751 | FN92: 1552.338524 | FO92: 1400.645009 | FP92: 1244.065075 | FQ92: 1082.515498 | FR92: 915.5090912 | FS92: 743.2158239 | FT92: 565.5368091 | FU92: 382.3769598 | FV92: 193.6382525 | FW92: 0 | FX92: 0
A93: 42_15_M | B93: 15 | C93: 42 | D93: M | F93: 639 | G93: 0 | H93: 400 | I93: 924 | J93: 1543 | K93: 2216 | L93: 1991 | M93: 2572 | N93: 3183 | O93: 3826 | P93: 4501 | Q93: 5211 | R93: 5956 | S93: 6739 | T93: 7561 | U93: 8423 | V93: 9327 | W93: 9560 | X93: 9802 | Y93: 9989 | Z93: 10183 | AA93: 10385 | AB93: 10593 | AC93: 10810 | AD93: 11035 | AE93: 11268 | AF93: 11510 | AG93: 11761 | AH93: 12022 | AI93: 12293 | AJ93: 12575 | AK93: 12869 | AL93: 13175 | AM93: 13495 | AN93: 13828 | AO93: 14178 | AP93: 14544 | AQ93: 14929 | AR93: 15328 | AS93: 14242 | AT93: 13111 | AU93: 11935 | AV93: 10712 | AW93: 9439 | AX93: 8116 | AY93: 6740 | AZ93: 5309 | BA93: 3823 | BB93: 2278 | BC93: 2174 | BD93: 2065 | BE93: 1952 | BF93: 1834 | BG93: 1712 | BH93: 1584 | BI93: 1451 | BJ93: 1313 | BK93: 1169 | BL93: 1020 | BM93: 865 | BN93: 704 | BO93: 537 | BP93: 364 | BQ93: 185 | BR93: 0 | BS93: 0 | DL93: 473.9215441 | DM93: 1380.48859 | DN93: 2309.547077 | DO93: 3261.663169 | DP93: 3237.423296 | DQ93: 4082.952694 | DR93: 4949.064646 | DS93: 5836.243335 | DT93: 6744.992304 | DU93: 7675.839218 | DV93: 8629.333992 | DW93: 9606.056041 | DX93: 10606.61489 | DY93: 11631.65556 | DZ93: 12681.8545 | EA93: 12862.90895 | EB93: 13048.61382 | EC93: 13175.264 | ED93: 13305.0722 | EE93: 13438.16369 | EF93: 13574.68183 | EG93: 13714.78621 | EH93: 13858.66059 | EI93: 14006.52212 | EJ93: 14158.62306 | EK93: 14315.25516 | EL93: 14476.7517 | EM93: 14643.49518 | EN93: 14815.93682 | EO93: 14994.63515 | EP93: 15180.31691 | EQ93: 15373.96142 | ER93: 15576.9084 | ES93: 15790.98724 | ET93: 16018.65564 | EU93: 16259.60451 | EV93: 16506.91476 | EW93: 15259.38455 | EX93: 13979.63476 | EY93: 12666.12809 | EZ93: 11317.3314 | FA93: 9931.869348 | FB93: 8508.415373 | FC93: 7045.971121 | FD93: 5543.919275 | FE93: 4001.962049 | FF93: 2420.707673 | FG93: 2301.562224 | FH93: 2178.994718 | FI93: 2052.755795 | FJ93: 1922.717333 | FK93: 1788.527507 | FL93: 1650.179045 | FM93: 1507.468727 | FN93: 1360.127741 | FO93: 1208.123083 | FP93: 1051.105192 | FQ93: 888.969265 | FR93: 721.6285767 | FS93: 549.0233502 | FT93: 371.1390098 | FU93: 188.0468744 | FV93: 0 | FW93: 0
A94: 43_15_M | B94: 15 | C94: 43 | D94: M | F94: 620 | G94: 0 | H94: 403 | I94: 930 | J94: 1553 | K94: 2230 | L94: 2010 | M94: 2599 | N94: 3219 | O94: 3871 | P94: 4556 | Q94: 5276 | R94: 6032 | S94: 6825 | T94: 7658 | U94: 8532 | V94: 9449 | W94: 9690 | X94: 9879 | Y94: 10074 | Z94: 10276 | AA94: 10486 | AB94: 10703 | AC94: 10929 | AD94: 11163 | AE94: 11406 | AF94: 11658 | AG94: 11920 | AH94: 12192 | AI94: 12475 | AJ94: 12770 | AK94: 13077 | AL94: 13397 | AM94: 13731 | AN94: 14081 | AO94: 14448 | AP94: 14835 | AQ94: 15236 | AR94: 14151 | AS94: 13023 | AT94: 11849 | AU94: 10628 | AV94: 9358 | AW94: 8037 | AX94: 6664 | AY94: 5236 | AZ94: 3752 | BA94: 2211 | BB94: 2110 | BC94: 2004 | BD94: 1894 | BE94: 1780 | BF94: 1661 | BG94: 1537 | BH94: 1408 | BI94: 1274 | BJ94: 1135 | BK94: 990 | BL94: 840 | BM94: 684 | BN94: 522 | BO94: 354 | BP94: 180 | BQ94: 0 | BR94: 0 | DL94: 477.3009999 | DM94: 1384.169658 | DN94: 2313.520483 | DO94: 3265.919747 | DP94: 3241.955636 | DQ94: 4091.395566 | DR94: 4961.477314 | DS94: 5852.688475 | DT94: 6765.539359 | DU94: 7700.561265 | DV94: 8658.313454 | DW94: 9639.38378 | DX94: 10644.39396 | DY94: 11673.99551 | DZ94: 12728.873 | EA94: 12914.47327 | EB94: 13042.87296 | EC94: 13174.43606 | ED94: 13309.28418 | EE94: 13447.5567 | EF94: 13589.40841 | EG94: 13735.01771 | EH94: 13884.59631 | EI94: 14038.39077 | EJ94: 14196.68662 | EK94: 14359.80953 | EL94: 14528.13129 | EM94: 14702.08717 | EN94: 14882.21234 | EO94: 15069.20067 | EP94: 15263.98739 | EQ94: 15467.85551 | ER94: 15682.56405 | ES94: 15910.48709 | ET94: 16154.14387 | EU94: 16404.20442 | EV94: 15159.51158 | EW94: 13882.61547 | EX94: 12572.02769 | EY94: 11226.23022 | EZ94: 9843.796588 | FA94: 8423.480826 | FB94: 6964.224126 | FC94: 5465.415664 | FD94: 3926.880121 | FE94: 2349.028326 | FF94: 2233.38488 | FG94: 2114.446092 | FH94: 1992.002696 | FI94: 1865.789646 | FJ94: 1735.670873 | FK94: 1601.500538 | FL94: 1463.112014 | FM94: 1320.297625 | FN94: 1172.77931 | FO94: 1020.545365 | FP94: 863.2399886 | FQ94: 700.7833391 | FR94: 533.1319481 | FS94: 360.3067302 | FT94: 182.4554963 | FU94: 0 | FV94: 0
A95: 44_15_M | B95: 15 | C95: 44 | D95: M | F95: 600 | G95: 0 | H95: 406 | I95: 936 | J95: 1563 | K95: 2245 | L95: 2029 | M95: 2627 | N95: 3256 | O95: 3917 | P95: 4611 | Q95: 5341 | R95: 6108 | S95: 6912 | T95: 7757 | U95: 8644 | V95: 9573 | W95: 9763 | X95: 9959 | Y95: 10162 | Z95: 10373 | AA95: 10591 | AB95: 10818 | AC95: 11053 | AD95: 11297 | AE95: 11550 | AF95: 11813 | AG95: 12087 | AH95: 12371 | AI95: 12667 | AJ95: 12974 | AK95: 13295 | AL95: 13630 | AM95: 13981 | AN95: 14348 | AO95: 14735 | AP95: 15138 | AQ95: 14056 | AR95: 12930 | AS95: 11758 | AT95: 10540 | AU95: 9272 | AV95: 7954 | AW95: 6583 | AX95: 5158 | AY95: 3678 | AZ95: 2139 | BA95: 2041 | BB95: 1939 | BC95: 1833 | BD95: 1722 | BE95: 1607 | BF95: 1487 | BG95: 1363 | BH95: 1233 | BI95: 1098 | BJ95: 958 | BK95: 812 | BL95: 661 | BM95: 505 | BN95: 342 | BO95: 174 | BP95: 0 | BQ95: 0 | DL95: 480.6125746 | DM95: 1387.566012 | DN95: 2316.98499 | DO95: 3269.436588 | DP95: 3245.511624 | DQ95: 4098.806564 | DR95: 4972.800646 | DS95: 5867.98737 | DT95: 6784.880007 | DU95: 7724.01828 | DV95: 8685.969022 | DW95: 9671.331331 | DX95: 10680.73249 | DY95: 11714.83104 | DZ95: 12774.30896 | EA95: 12904.58077 | EB95: 13038.02292 | EC95: 13174.75327 | ED95: 13314.90717 | EE95: 13458.63444 | EF95: 13606.10799 | EG95: 13757.53402 | EH95: 13913.1532 | EI95: 14073.24478 | EJ95: 14238.12662 | EK95: 14408.15957 | EL95: 14583.76251 | EM95: 14765.44654 | EN95: 14953.87173 | EO95: 15149.92787 | EP95: 15354.83958 | EQ95: 15570.29356 | ER95: 15798.57802 | ES95: 16042.72919 | ET95: 16295.70059 | EU95: 15053.93692 | EV95: 13780.02967 | EW95: 12472.50333 | EX95: 11129.79499 | EY95: 9750.549276 | EZ95: 8333.466703 | FA95: 6877.584837 | FB95: 5382.232715 | FC95: 3847.138551 | FD95: 2272.946716 | FE95: 2161.114489 | FF95: 2046.02673 | FG95: 1927.47308 | FH95: 1805.384812 | FI95: 1679.50167 | FJ95: 1549.713406 | FK95: 1415.634727 | FL95: 1277.30218 | FM95: 1134.524324 | FN95: 987.0478905 | FO95: 834.9431214 | FP95: 677.9531154 | FQ95: 515.6675889 | FR95: 348.6054156 | FS95: 176.5698351 | FT95: 0 | FU95: 0
A96: 45_15_M | B96: 15 | C96: 45 | D96: M | F96: 579 | G96: 0 | H96: 408 | I96: 942 | J96: 1573 | K96: 2259 | L96: 2048 | M96: 2654 | N96: 3292 | O96: 3962 | P96: 4667 | Q96: 5407 | R96: 6185 | S96: 7001 | T96: 7857 | U96: 8756 | V96: 9641 | W96: 9838 | X96: 10043 | Y96: 10255 | Z96: 10474 | AA96: 10702 | AB96: 10938 | AC96: 11183 | AD96: 11438 | AE96: 11702 | AF96: 11976 | AG96: 12262 | AH96: 12558 | AI96: 12867 | AJ96: 13189 | AK96: 13525 | AL96: 13876 | AM96: 14243 | AN96: 14631 | AO96: 15036 | AP96: 13956 | AQ96: 12832 | AR96: 11663 | AS96: 10447 | AT96: 9182 | AU96: 7867 | AV96: 6499 | AW96: 5077 | AX96: 3600 | AY96: 2064 | AZ96: 1970 | BA96: 1871 | BB96: 1769 | BC96: 1662 | BD96: 1551 | BE96: 1435 | BF96: 1315 | BG96: 1190 | BH96: 1059 | BI96: 924 | BJ96: 784 | BK96: 638 | BL96: 487 | BM96: 330 | BN96: 168 | BO96: 0 | BP96: 0 | DL96: 483.8697891 | DM96: 1390.667245 | DN96: 2319.906176 | DO96: 3272.155262 | DP96: 3248.007237 | DQ96: 4105.075194 | DR96: 4982.898985 | DS96: 5881.97441 | DT96: 6802.82222 | DU96: 7745.988835 | DV96: 8712.051353 | DW96: 9701.613548 | DX96: 10715.30865 | DY96: 11753.79123 | DZ96: 12759.84662 | EA96: 12895.27586 | EB96: 13033.99725 | EC96: 13176.14193 | ED96: 13321.85461 | EE96: 13471.30249 | EF96: 13624.68601 | EG96: 13782.2398 | EH96: 13944.23657 | EI96: 14110.9861 | EJ96: 14282.83788 | EK96: 14460.19376 | EL96: 14643.53984 | EM96: 14833.50097 | EN96: 15030.91973 | EO96: 15236.96 | EP96: 15453.23329 | EQ96: 15681.93861 | ER96: 15926.00931 | ES96: 16182.02194 | ET96: 14943.36053 | EU96: 13672.62823 | EV96: 12368.31158 | EW96: 11028.9116 | EX96: 9653.028122 | EY96: 8239.369723 | EZ96: 6786.985011 | FA96: 5295.218073 | FB96: 3763.817296 | FC96: 2193.454819 | FD96: 2085.48548 | FE96: 1974.448947 | FF96: 1860.02411 | FG96: 1742.158621 | FH96: 1620.61812 | FI96: 1495.333627 | FJ96: 1365.986631 | FK96: 1232.413387 | FL96: 1094.762249 | FM96: 952.6089911 | FN96: 805.6936789 | FO96: 654.1175808 | FP96: 497.6298999 | FQ96: 336.4407364 | FR96: 170.3898909 | FS96: 0 | FT96: 0
A97: 46_15_M | B97: 15 | C97: 46 | D97: M | F97: 558 | G97: 0 | H97: 411 | I97: 948 | J97: 1584 | K97: 2275 | L97: 2069 | M97: 2684 | N97: 3331 | O97: 4011 | P97: 4726 | Q97: 5478 | R97: 6266 | S97: 7094 | T97: 7964 | U97: 8820 | V97: 9718 | W97: 9923 | X97: 10136 | Y97: 10357 | Z97: 10586 | AA97: 10823 | AB97: 11070 | AC97: 11325 | AD97: 11590 | AE97: 11866 | AF97: 12152 | AG97: 12450 | AH97: 12760 | AI97: 13083 | AJ97: 13419 | AK97: 13771 | AL97: 14139 | AM97: 14526 | AN97: 14933 | AO97: 13856 | AP97: 12735 | AQ97: 11568 | AR97: 10354 | AS97: 9092 | AT97: 7779 | AU97: 6415 | AV97: 4996 | AW97: 3522 | AX97: 1990 | AY97: 1899 | AZ97: 1804 | BA97: 1705 | BB97: 1602 | BC97: 1495 | BD97: 1383 | BE97: 1267 | BF97: 1146 | BG97: 1021 | BH97: 891 | BI97: 755 | BJ97: 615 | BK97: 469 | BL97: 318 | BM97: 162 | BN97: 0 | BO97: 0 | DL97: 487.5620813 | DM97: 1394.461587 | DN97: 2323.785198 | DO97: 3276.103095 | DP97: 3252.010483 | DQ97: 4113.127105 | DR97: 4995.06232 | DS97: 5898.318961 | DT97: 6823.424157 | DU97: 7770.934179 | DV97: 8741.430568 | DW97: 9735.522665 | DX97: 10753.83927 | DY97: 11741.23735 | DZ97: 12752.55182 | EA97: 12893.26495 | EB97: 13037.40114 | EC97: 13185.09999 | ED97: 13336.52299 | EE97: 13491.86485 | EF97: 13651.35412 | EG97: 13815.25702 | EH97: 13983.87522 | EI97: 14157.54687 | EJ97: 14336.65681 | EK97: 14521.66614 | EL97: 14713.1645 | EM97: 14911.94727 | EN97: 15119.11765 | EO97: 15336.21199 | EP97: 15565.34012 | EQ97: 15809.33259 | ER97: 16068.42356 | ES97: 14832.86972 | ET97: 13565.27146 | EU97: 12264.16806 | EV97: 10928.08071 | EW97: 9555.564568 | EX97: 8145.417068 | EY97: 6696.546372 | EZ97: 5208.385236 | FA97: 3680.703302 | FB97: 2114.075154 | FC97: 2009.987584 | FD97: 1902.868674 | FE97: 1792.572146 | FF97: 1678.928764 | FG97: 1561.729996 | FH97: 1440.948017 | FI97: 1316.330926 | FJ97: 1187.824804 | FK97: 1055.06518 | FL97: 917.870691 | FM97: 776.4442364 | FN97: 630.2820462 | FO97: 479.592211 | FP97: 324.2760572 | FQ97: 164.2099466 | FR97: 0 | FS97: 0
A98: 47_15_M | B98: 15 | C98: 47 | D98: M | F98: 536 | G98: 0 | H98: 414 | I98: 955 | J98: 1595 | K98: 2290 | L98: 2089 | M98: 2714 | N98: 3370 | O98: 4061 | P98: 4786 | Q98: 5549 | R98: 6349 | S98: 7189 | T98: 8018 | U98: 8887 | V98: 9798 | W98: 10013 | X98: 10235 | Y98: 10465 | Z98: 10703 | AA98: 10951 | AB98: 11207 | AC98: 11474 | AD98: 11751 | AE98: 12038 | AF98: 12337 | AG98: 12648 | AH98: 12971 | AI98: 13309 | AJ98: 13661 | AK98: 14029 | AL98: 14417 | AM98: 14826 | AN98: 13751 | AO98: 12632 | AP98: 11468 | AQ98: 10257 | AR98: 8998 | AS98: 7688 | AT98: 6326 | AU98: 4911 | AV98: 3440 | AW98: 1911 | AX98: 1824 | AY98: 1733 | AZ98: 1638 | BA98: 1539 | BB98: 1436 | BC98: 1329 | BD98: 1217 | BE98: 1102 | BF98: 981 | BG98: 856 | BH98: 726 | BI98: 591 | BJ98: 451 | BK98: 306 | BL98: 156 | BM98: 0 | BN98: 0 | DL98: 491.2259535 | DM98: 1397.979289 | DN98: 2327.131724 | DO98: 3279.254912 | DP98: 3254.947306 | DQ98: 4120.021209 | DR98: 5005.975861 | DS98: 5913.319644 | DT98: 6842.58857 | DU98: 7794.34258 | DV98: 8769.167819 | DW98: 9767.668144 | DX98: 10736.87313 | DY98: 11729.45286 | DZ98: 12746.01383 | EA98: 12892.24195 | EB98: 13042.02741 | EC98: 13195.52573 | ED98: 13352.92562 | EE98: 13514.44935 | EF98: 13680.35629 | EG98: 13850.93974 | EH98: 14026.52597 | EI98: 14207.48208 | EJ98: 14394.24303 | EK98: 14587.36176 | EL98: 14787.58434 | EM98: 14995.95058 | EN98: 15213.9184 | EO98: 15443.50455 | EP98: 15687.43231 | EQ98: 15949.28117 | ER98: 14716.98363 | ES98: 13452.724 | ET98: 12155.00654 | EU98: 10822.35757 | EV98: 9453.33995 | EW98: 8046.761814 | EX98: 6601.636456 | EY98: 5117.246284 | EZ98: 3593.468769 | FA98: 2030.915026 | FB98: 1930.981572 | FC98: 1828.110689 | FD98: 1722.177613 | FE98: 1613.04592 | FF98: 1500.557703 | FG98: 1384.518043 | FH98: 1264.943401 | FI98: 1141.30999 | FJ98: 1013.81571 | FK98: 882.1265471 | FL98: 746.1474682 | FM98: 605.7916502 | FN98: 460.9811923 | FO98: 311.6480134 | FP98: 157.7357193 | FQ98: 0 | FR98: 0
A99: 48_15_M | B99: 15 | C99: 48 | D99: M | F99: 514 | G99: 0 | H99: 417 | I99: 962 | J99: 1607 | K99: 2307 | L99: 2112 | M99: 2746 | N99: 3413 | O99: 4114 | P99: 4851 | Q99: 5625 | R99: 6437 | S99: 7240 | T99: 8082 | U99: 8964 | V99: 9890 | W99: 10113 | X99: 10344 | Y99: 10584 | Z99: 10833 | AA99: 11091 | AB99: 11358 | AC99: 11636 | AD99: 11925 | AE99: 12225 | AF99: 12537 | AG99: 12862 | AH99: 13200 | AI99: 13553 | AJ99: 13922 | AK99: 14310 | AL99: 14719 | AM99: 13646 | AN99: 12530 | AO99: 11368 | AP99: 10160 | AQ99: 8903 | AR99: 7596 | AS99: 6238 | AT99: 4825 | AU99: 3358 | AV99: 1833 | AW99: 1749 | AX99: 1661 | AY99: 1570 | AZ99: 1475 | BA99: 1377 | BB99: 1274 | BC99: 1167 | BD99: 1056 | BE99: 940 | BF99: 820 | BG99: 696 | BH99: 566 | BI99: 432 | BJ99: 293 | BK99: 149 | BL99: 0 | BM99: 0 | DL99: 495.395718 | DM99: 1402.363875 | DN99: 2331.715129 | DO99: 3284.024031 | DP99: 3259.891463 | DQ99: 4129.313187 | DR99: 5019.689759 | DS99: 5931.53818 | DT99: 6865.398146 | DU99: 7821.834099 | DV99: 8801.426685 | DW99: 9753.38006 | DX99: 10728.20166 | DY99: 11726.47017 | DZ99: 12748.79996 | EA99: 12900.72542 | EB99: 13056.35504 | EC99: 13215.87182 | ED99: 13379.49195 | EE99: 13547.46833 | EF99: 13720.08617 | EG99: 13897.66036 | EH99: 14080.54082 | EI99: 14269.13724 | EJ99: 14463.96689 | EK99: 14665.72804 | EL99: 14875.39908 | EM99: 15094.36198 | EN99: 15324.54363 | EO99: 15568.56392 | EP99: 15829.886 | EQ99: 14600.82808 | ER99: 13339.84036 | ES99: 12045.48189 | ET99: 10716.23923 | EU99: 9350.752964 | EV99: 7947.786156 | EW99: 6506.278 | EX99: 5025.703066 | EY99: 3505.773362 | EZ99: 1947.096505 | FA99: 1851.206402 | FB99: 1752.599242 | FC99: 1651.052566 | FD99: 1546.465544 | FE99: 1438.515018 | FF99: 1327.225198 | FG99: 1212.429916 | FH99: 1093.908027 | FI99: 971.69242 | FJ99: 845.5319235 | FK99: 715.0401501 | FL99: 580.5592447 | FM99: 441.7481167 | FN99: 298.6142991 | FO99: 151.2614921 | FP99: 0 | FQ99: 0
